Workbook

Sheet Guia de aplicação
B1: ISA
D2: GUIA DE APLICAÇÃO
B3: ISBN 978-85-99764-26-8
B4: Indicadores de Sustentabilidade em Agroecossistemas - ISA
B5: O sistema ISA é composto por 7 pastas e uma pasta assessória:
B6: 1ª - Guia de aplicação
B7: 2ª - Questionário
B8: 3ª - Indicadores
B9: 4ª - Relatório
B10: 5ª - Plano de adequação
B11: 6ª - Fórmulas utilizadas nos Indicadores
B12: 7ª - Base de dados
B13: Pastas assessórias - Índice Qualidade do Solo na escala de um sistema de produção
B14: A ferramenta ISA tem como objetivo avaliar limitações, potencialidades e aptidões para os diversos usos e ocupações na escala de um imóvel rural, integrando as dimensões ambiental, social e econômica. Cada indicador recebe um valor de 0 a 1, sendo 0,7 a referência para um bom desempenho ambiental, social e/ou econômico. Funções são aplicadas a cada indicador, comparando o valor medido na propriedade com o valor de referência, e um Índice Final (Aba Relatório) é gerado com base na média dos 21 indicadores de sustentabilidade. A ferramenta pode auxiliar produtores e técnicos no processo de planejamento, monitoramento e tomada de decisões, como também no gerenciamento de riscos.
B16: Aplicação do ISA
B18: 1 - Crie um croqui do imóvel rural, começando pelo perímetro, usando o Google Earth ou um programa semelhante.
B20: 2 - Identifique no croqui os diversos usos e ocupações do solo, incluindo culturas anuais, culturas perenes, pastagens, florestas, habitats naturais, corpos d'água, nascentes, represas e lagos. Esses dados (polígonos, linhas ou pontos) poderão ser aproveitados para gerar, verificar ou retificar o Cadastro Ambiental Rural (CAR).
B22: 3 - A partir do croqui gerado, e de informações levantadas no CAR, como, por exemplo, as Áreas de Preservação Permanente (APPs) que necessitam de restauração, inicia-se o planejamento da visita de campo, definindo-se os locais que serão percorridos, com o objetivo de verificar o manejo das áreas produtivas, o estado de conservação das áreas com vegetação nativa, o estado de conservação das estradas, definir os locais para a coleta de amostras de solo, quando necessário, e os locais para a avaliação da qualidade da água e dos ecossistemas aquáticos, quando presentes.
B25: Preenchimento dos dados
B26: 1 QUESTIONÁRIO
A27: 1 | B27: Colar os croquis do imóvel (croqui gerado no Google Earth ou outro programa similar, e o croqui gerado no CAR).
A29: 6 | B29: O preenchimento da posse de terra diz respeito ao vínculo que o produtor possui com o imóvel rural. Proprietário é a pessoa física ou jurídica que possui o imóvel rural, válido e regularmente destacado do patrimônio público, com o registro imobiliário no seu nome. Ele detém o domínio pleno direto (direito de dispor do imóvel rural) e útil (direito de utilizar ou usufruir do imóvel rural). O Posseiro é aquele que exerce o direito de posse por um ato translativo de domínio, por um documento de passagem de propriedade de um titular a outro, o que ocorre quando o título de propriedade ainda não foi levado a registro imobiliário. Arrendatário é aquele que arrenda (aluga) o imóvel rural para fins de exploração agrícola ou pecuária, na condição de uma regular utilização. Parceiro, ou "Meeiro", é aquele que explora o imóvel rural, no todo ou em parte, mediante contrato agrário escrito ou verbal, remunerando o proprietário ou titular do domínio útil com um percentual da produção alcançada. Assentado, pessoa ou família contemplada por um projeto de Reforma Agrária; Usufrutuário é a pessoa que utiliza a terra como usufruto, geralmente com vínculo familiar, e não tem a posse ou propriedade.
A37: 7 | B37: A planilha ISA foi concebida para ser aplicada em um imóvel rural em consonância com a declaração do Cadastro Ambiental Rural (CAR). Caso o produtor possua outras áreas que compõem a renda ou façam parte do seu empreendimento rural (áreas não contíguas ao imóvel, áreas de arrendamento, áreas destinadas para a compensação de Reserva Legal), as mesmas serão descritas na tabela localizada nesse item, mas não serão objeto de análise dos indicadores.
A40: 8 | B40: Identificar no imóvel rural as áreas de produção das culturas anuais, perenes, pastagens e florestas plantadas (silvicultura), além das áreas não agrícolas (construções, estradas, terreiros, etc.), áreas de pousio, espelho e cursos d'água (represas, lagos, lagoas, e cursos d'água), vegetação nativa e as áreas inaproveitáveis (vossorocas e outras áreas que no momento da avaliaçâo estavam inaproveitáveis para atividades econômicas). A somatória de todas as áreas lançadas neste item deve corresponder à área do imóvel rural lançada no item 7. Nota: O uso e a ocupação do solo referem-se apenas ao impóvel rural em análise e não incluem outros imóveis e áreas não contíguas.
B44: 2 INDICADORES
A46: 1 | B46: ÍNDICES DE PRODUTIVIDADE E PREÇOS DE VENDA
B47: DESCRIÇÃO Avalia a renda bruta anual do imóvel rural proveniente das atividades agrícolas e compara sua produtividade média e preço de mercado com a referência regional ou local. Esse indicador analisa também a contribuição relativa de cada atividade para a receita bruta total do imóvel rural. APLICAÇÃO 1ª ETAPA - Identifique as principais fontes de renda das atividades agrícolas e liste-as em ordem decrescente com base na receita bruta anual estimada (Item 1.1): a primeira linha deve indicar a atividade que gera a maior receita bruta; a segunda linha deve indicar a atividade que gera a segunda maior receita bruta; as demais atividades devem ser agrupadas na terceira linha. 2ª ETAPA - Selecione as atividades agrícolas e as unidades de medida para avaliar a produtividade. As atividades e unidades de medida podem ser modificadas na Aba Fórmulas. 3ª ETAPA - Insira os índices de produtividade: para culturas anuais, considere a produtividade média da última safra; para a pecuária, considere a produção média do último ano; para culturas perenes, considere a média de produção das duas últimas safras. 4ª ETAPA - Informe o preço médio de venda da safra mais recente ou do último ano. Para vendas parceladas, calcule o valor médio. 5ª ETAPA - Lançe a média de produtividade e do preço de venda dos produtos levantados na região ou município. Utilize dados de relatórios anuais oficiais, cooperativas, associações ou agricultores reconhecidos como referência na região. O cálculo do resultado final é feito automaticamente, a partir da média dos índices gerados de cada atividade do empreendimento. Possíveis informações complementares / indagações: Como essa produtividade foi alcançada? Qual é a capacidade produtiva do solo nas áreas agrícolas? Como as atividades são gerenciadas? Quais insumos são utilizados e em quais quantidades? Quais são os critérios para aplicação desses insumos? Quais são as estratégias de compra de insumos?Há disponibilidade de máquinas e equipamentos, ou os serviços são terceirizados? Existe mão de obra qualificada na região? Há infraestrutura pós-colheita ou depende de serviços terceirizados? Como a produção é comercializada e transportada? Ao responder a essas e outras perguntas relevantes, é possível entender como o indicador foi formado. Com base nessa análise, avalie se o resultado está adequado e identifique oportunidades de melhoria. Nota: se a renda bruta média gerada no imóvel rural for menor que R$ 300,00/ha/ano — considerando a receita bruta estimada e a área do imóvel rural — é gerado um rebate de 30% na nota final deste indicador (cálculo realizado automaticamente).
A58: 2 | B58: DIVERSIDADE DE RENDA
B59: DESCRIÇÃO Analisa a diversidade das fontes de renda, atribuindo diferentes pesos com base na origem (dentro ou fora da propriedade) e no tipo de renda. APLICAÇÃO Estimar as outras fontes de renda dentro do imóvel rural (item 2.1) e as fontes de renda fora do imóvel rural (atividades agropecuárias, ou não, realizadas fora do imóvel rural e recebimentos de pensão, aposentadoria, bolsas e outras ajudas financeiras - item 2.2) pelos membros da família diretamente envolvidos nas atividades produtivas do imóvel rura. Os porcentuais de cada fonte de renda são lançados automaticamente, assim como a verificação de concentração de renda em uma única atividade agropecuária (item 2.3).
A67: 3 | B67: EVOLUÇÃO PATRIMONIAL DO IMÓVEL RURAL
B68: DESCRIÇÃO Estima o valor dos ativos da fazenda, incluindo equipamentos, benfeitorias, semoventes (animais), estoque de grãos, uso e ocupação do solo e valor das terras. O indicador analisa o crescimento ou a redução dos ativos ao longo de um período de tempo definido. APLICAÇÃO 1ª ETAPA - (item 3.1) - Defina o tempo de aferição da evolução patrimonial - referência 1 ano ou o período referente à última aplicação do ISA. 2ª ETAPA - (item 3.2) – Informe o valor estimado das instalações, benfeitorias ou reformas recentemente concluídas (durante o período definido no Item 3.1), assim como o valor estimado das instalações e benfeitorias existentes antes desse período (informe o valor ou utilize o valor da última aplicação do ISA). Informe o valor estimado das máquinas e equipamentos adquiridos recentemente (durante o período definido no primeiro passo, Item 3.1) e o valor estimado das máquinas e equipamentos existentes antes do período (Item 3.2). 3ª ETAPA - (item 3.3) – Informe a quantidade de animais e o estoque agrícola, juntamente com a estimativa do valor de cada categoria (R$). Informe os dados do histórico do rebanho (1 ano antes ou referente a última aplicação). A avaliação das estruturas (equipamentos e benfeitorias) e do estoque no imóvel rural auxilia na atualização cadastral do produtor(a) rural nas instituições financeiras. 4ª ETAPA - (item 3.4) - Levante a área de agricultura irrigada na fazenda. Verifique se houve alguma alteração na área irrigada na coluna “Uso histórico”. 5ª ETAPA - (item 3.5) - Verifique se houve alguma mudança no histórico de uso e ocupação do solo em comparação com a ocupação atual descrita no levantamento. 6ª ETAPA - (item 3.6) - Informe os valores atuais e históricos do preço da terra.
A75: 4 | B75: GRAU DE ENDIVIDAMENTO
B76: DESCRIÇÃO Avalia o nível de endividamento do imóvel rural comparando o valor total dos empréstimos (de curto e longo prazo) com o valor patrimonial estimado no Indicador 3. APLICAÇÃO Levantar todos os financiamentos de curto e longo prazos contraídos pelo produtor até o presente momento e lançar o valor no item 4.1
A82: 5 | B82: SERVIÇOS BÁSICOS DISPONÍVEIS PARA O IMÓVEL RURAL / SEGURANÇA ALIMENTAR
B83: DESCRIÇÃO Avalia o acesso aos serviços básicos como água (quantidade e qualidade), eletricidade, estradas, transporte escolar, saúde, segurança, internet e coleta pública de lixo. Para pequenas propriedades, verifica também a disponibilidade da produção de alimentos no próprio imóvel rural como medida para aferir segurança alimentar (hortaliças, frutas, tubérculos e fontes de proteína animal). APLICAÇÃO - Basic services 1ª ETAPA - Verifique quantas residências com moradores regulares possui o estabelecimento. 2ª ETAPA - Para cada residência, verifique a disponibilidade dos serviços listados no Indicador. Para o preenchimento deste indicador, deve-se colocar 1 (se atende satisfatoriamente), 0,5 (se atende parcialmente), ou 0 (não atende ou inexistente). APLICAÇÃO - Produção própia de alimentos (para os imóveis classificados como Agricultores Familiares) 1ª ETAPA - Verifique quantas residências com moradores regulares possui o estabelecimento 2ª ETAPA - Para cada residência ou conjunto de residências, verifique se há produção de hortaliças, tubérculos, frutas e criação de animais para o consumo dos residentes. OBS: Os valores utilizados no preenchimento de cada item são: 1 (presente); 0,5 (parcial) ou 0 (inexistente). Entende-se por parcial a presença do item, mas em quantidade insuficiente para atender à demanda da família. Exemplo de uma referência para uma família com 5 pessoas (demanda média de 2.630 kcal/dia): Citros, 4 pés; Mamoeiros, 13 pés; Bananeiras, 18 pés; Vacas de leite, 2; Cevados (porcos)/ano, 4; Frangos/ano, 100; Galinhas, 50; Galos, 3; Mandioca, 200 kg; Hortaliças (folhosas, frutos e tubérculos)/ano, 600 kg (Fonte: Emater/MG).
A97: 6 | B97: ESCOLARIDADE & CURSOS DIRECIONADOS ÀS PRINCIPAIS ATIVIDADES
B98: DESCRIÇÃO Verifica o nível de escolaridade do agricultor, dos membros da família envolvidos nas atividades do imóvel rural e dos trabalhadores permanentes. Avalia a participação em cursos e oficinas de curta e média duração. Verifica se todas as crianças em idade escolar estão frequentando a escola. APLICAÇÃO 1ª ETAPA - Verifique o número de adultos com vínculo direto à produção e funcionários permanentes. Levantar o número de dependentes em idade escolar que residem no estabelecimento. 2ª ETAPA - Para cada pesssoa identificada na primeira etapa verifique o grau de escolaridadee a participação dos mesmos em cursos de capacitação direcionado às atividades (no último ano). É feita também a verificação se todos os dependentes em idade escolar, residentes no imóvel rural, estão frequentando a escola.
A106: 7 | B106: OCUPAÇÃO & EMPREGO
B107: DESCRIÇÃO Verifica o cumprimento da legislação trabalhista e a adesão às normas recomendadas de trabalho tanto para funcionários permanentes quanto temporários. APLICAÇÃO 1ª ETAPA - Verifique o número de funcionários permanentes (contratação efetiva) e temporários (item 7.1). 2ª ETAPA - A partir do levantamento do número de funcionários permanentes e temporários, verifique quantos são atendidos pelo item 7.1 (referente às obrigações da legislação trabalhista) e item 7.2 (referente às recomendações e determinações do Ministério do Trabalho).
A114: 8 | B114: GESTÃO DO EMPREENDIMENTO
B115: DESCRIÇÃO Avalia o uso de ferramentas de gestão do imóvel rural - fluxo de caixa; registros dos custos de produção; acesso à assistência técnica; participação em associações, sindicatos ou cooperativas; conformidade com regulamentações ambientais; e acesso a crédito financeiro. APLICAÇÃO 1ª ETAPA - Verifique se é feito um controle de receitas e despesas no empreendimento rural (fluxo de caixa). 2ª ETAPA - Verifique se é feito um controle de custos de produção para as atividades desenvolvidas no imóvel rural. 3ª ETAPA - Verifique se o produtor tem acesso à assistência técnica (assistência de revendas ou lojas de insumos agropecuários não são consideradas). 4ª ETAPA - Verifique se o produtor participa ativamente ou de forma eventual em associações, cooperativas, sindicatos, ou outras formas de organização dos produtores rurais . 5ª ETAPA - Verifique a situação da regularização ambiental do produtor com relação a água, licença ambiental e regularização da Reserva Legal (RL) e das Áreas de Preservação Permanente (APP) a partir do Cadastro Ambiental Rural (CAR). 6ª ETAPA - Verifique se o produtor tem acesso às linhas de crédito (custeio, investimentos e/ou crédito para a comercialização da produção). Para o preenchimento deste indicador, deve-se colocar o valor 1 (se a atividade é realizada satisfatoriamente), 0,5 (se a atividade é realizada parcialmente) ou 0 (se inexistente).
A125: 9 | B125: COMERCIALIZAÇÃO & INOVAÇÃO
B126: DESCRIÇÃO Avalia se o produtor(a) busca informações de mercado, acessa mercados institucionais ou com valor agregado, adota técnicas inovadoras e ambientalmente adequadas, e demonstra capacidade de inovação ou exerce papel de liderança na comunidade. APLICAÇÃO 1ª ETAPA - Verifique quais estratégias são utilizadas para a comercialização da produção e como o produtor obtem informações sobre o mercado (consultas em sites, Cooperativas, Associações, etc.). Verificarocorrência de produção certificada ou direcionada para mercados institucionais (orgânica e outras certificações, mercados institucionais como, por exemplo, o Programa de Aquisição de Alimentos - PAA e o Programa Nacional de Alimentação Escolar - PNAE). 2ª ETAPA - Verifique, durante as visitas aos talhões, quais os principais entraves e quais medidas e tecnologias estão sendo adotadas pelo produtor para resolver ou minimizar os eventuais problemas (com o foco nos princípios e fundamentos da agricultura conservacionista / regenerativa). Caso afirmativo, fazer a descrição da técnica inovadora adotada. Verificar também a capacidade de inovação do produtor ou se o mesmo tem uma posição de liderança na comunidade (caso afirmativo fazer a descrição). Avaliar a adoção de práticas que promovam cobertura permanente e diversificada do solo (optativo).
A137: 10 | B137: GERENCIAMENTO DE RESÍDUOS E EFLUENTES NO IMÓVEL RURAL
B138: DESCRIÇÃO Verifica o índice de coleta e destinação adequada do lixo e esgoto, o índice de reaproveitamento dos resíduos orgânicos no imóvel rural, e o índice de tratamento e destinação adequada de efluentes líquidos e gasosos quando presentes no imóvel rural. APLICAÇÃO 1ª ETAPA - Verifique o destino do esgoto doméstico gerado em cada residência existente no imóvel rural (item 10.1). 2ª ETAPA - Examine o destino do lixo doméstico e do lixo gerado nas unidades de produção (lixo reciclável – embalagens, plástico, papel, latas, e o lixo não reciclável) (item 10.2). 3ª ETAPA - Estime a proporção (%) do total de resíduos orgânicos que são compostados ou reaproveitados nas unidades de produção (palhadas, esterco, cama de frango, entre outros). 4ª ETAPA - Verifique se ocorre geração de efluentes líquidos (curral, galpões para criação de animais, unidades de compostagem, café despolpado, chorumeira, etc.). Caso afirmativo, estime qual a proporção (%) dos efluentes gerados que recebem tratamento e destinação adequada. 5ª ETAPA - Verifique se ocorre a geração de efluentes gasosos (caldeiras, carvoaria, biodigestores, etc.). Cas afirmatico, estime qual a proporção (%) do total de efluentes gasosos gerados que possuem um tratamento adequado antes de serem lançados na atmosfera. 6ª ETAPA - Identifique a ocorrecência de alguma situação crítica com relação ao gerenciamento de resíduos e efluentes: fossa seca (negra) localizada próxima a um curso d'água ou poço artesiano; lançamento de efuentes (domésticos ou de criações) sem nehum tratamento em corpos d'água; esgoto a céu aberto, queima de resíduos plásticos, baterias, e outros materiais sintéticos no imóvel rural, entre outros.
A151: 11 | B151: SEGURANÇA DO TRABALHO / GESTÃO DO USO DE AGROTÓXICOS
B152: DESCRIÇÃO Avalia o cumprimento das exigências legais para o uso de agrotóxicos e medicamentos veterinários, incluindo medidas de proteção com o uso de equipamento de proteção individuais, armazenamento e devolução das embalagens. APLICAÇÃO 1ª ETAPA - Verifique se agrotóxicos são utilizados em alguma parte do imóvel rural, o número de pessoas que os manuseiam e quantas usam equipamentos de proteção individual. 2ª ETAPA - Verifique se o imóvel rural possui um local adequado para o armazenamento das embalagens de agrotóxicos (local exclusivo com acesso restrito e ventilado) e se o produtor faz a devolução dessas embalagens no local indicado pela revenda, conforme a Lei 12.305/10 que institui a Política Nacional de Resíduos Sólidos e trata da logística reversa dos resíduos (excolher a opção "sim" quando for adequado e suficiente).
A161: 12 | B161: QUALIDADE DO SOLO
B162: DESCRIÇÃO Avalie a fertilidade e atividade biológica do solo. A avaliação da atividade biológica é opcional e considera as enzimas arilsulfatase e β-glicosidase (tecnologia BioAS da Embrapa). APLICAÇÃO 1ª ETAPA - Identifique a área mais representativa do imóvel rural ou a área direcionada para as intervenções propostas no plano de adequação. Verificar se o entrevistado possui análises recentes de fertilidade do solo (período até 2 anos), e se as mesmas possuem análise granulométrica do solo (textura). 2ª ETAPA - A partir das informações levantadas verifique a necessidade de fazer outras coletas de amostras de solos para análise química em laboratório de solo. Se necessário, fazer a coleta de amostras de solo evitando talhões que foram recentemente adubados, locais próximos a brejos, casas, galpões, formigueiros ou voçorocas. As coletas devem ser realizadas na profundidade de 0-20 cm, com auxílio de um trado, caminhando em zigue-zague pela área. Após a coleta de amostras, o solo deve ser bem misturado, para obtenção de uma amostra composta do talhão. Desta, separa-se uma porção da amostra composta de, aproximadamente, 300 g, em saco plástico limpo e identificado (nome do talhão, data e o código do estabelecimento), para ser encaminhada ao laboratório de solos. Para as análises da biologia do solo, realizar o mesmo procedimento, porém, na profundidade de 0-10 cm. 3ª ETAPA - Ao lançar os dados da análise de solo, primeiro, faça a descrição do talhão e a data da análise no laboratório (campo descrição do talhão). As interpretações dos teores de matéria orgânica e fósforo consideram a textura do solo. Pode ser inserido (opcional) dados sobre aspectos relacionados à atividade biológica do solo envolvendo a BioAS (análise das enzimas arilsulfatase e betaglicosidase em amostras de solo coletadas conforme a descrição da 2ª etapa, na profundidade de 0-10cm). As interpretações dos dados são baseados no sistema da Embrapa (Mendes et al., 2021).
A175: 13 | B175: QUALIDADE DA ÁGUA
B176: DESCRIÇÃO Avalia os ecossistemas aquáticos em dois trechos de um curso d’água utilizando um protocolo de avaliação rápida com nove parâmetros. Análises adicionais (opcional) podem incluir testes a campo (fitas) do pH, nitrato e coliformes e medição da turbidez. APLICAÇÃO 1ª ETAPA - Identifique os corpos d'água que passam pelo imóvel rural. Escolher o curso d'água mais representativo ou mais importante para o imóvel rural (abastecimento ou irrigação). 2ª ETAPA - Depois que o curso de água for definido, identifique os locais de amostragem a montante e a jusante: montante – o ponto onde o curso de água entra no imóvel rural ou próximo de uma nascente; jusante – o ponto de saída do curso d'água que passa dentro ou na divisa do imóvel rural, ou próximo ao local onde um curso d'água deságua em outro corpo d'água. 3ª ETAPA - Aplique o protocolo de avaliação rápida dos ecossistemas aquáticos. Pode ser levado um notebook, tablet ou o cheklist impresso para realizar o seu preenchimento no próprio local de avaliação (item 3.1). 4ª ETAPA (opcional) - Se for utilizar as fitas para leitura de pH e nitrato, os resultados devem ser anotados ou registrados in loco, no caso da cartela microbiológica para análise da presença de coliformes termotolerantes, fazer a leitura após incubação por 15 horas (para a sua coleta, não tocar na cartela, deixar o excesso de água escorrer e guardar a mesma envolta em um papel alumínio até o local de incubação. Após a incubação, proceder a contagem das colônias, considerando sempre os dois lados da cartela. Coliformes fecais são os pontos azuis. Multiplicar cada ponto por 60 para lançar na planilha). A avaliação da turbidez pode ser feita no local utilizando-se equipamentos portáteis para a sua avaliação (item 13.2). OBS: A análise da qualidade da água subterrânea no imóvel rural também é opcional, e pode ser feita com a coleta de água de um poço ou água utilizada para consumo no imóvel rural (item 13.3).
A194: 14 | B194: RISCO DE CONTAMINAÇÃO DA ÁGUA POR AGROTÓXICOS
B195: DESCRIÇÃO Avalia o potencial de contaminação da água por agroquímicos com base na vulnerabilidade da área de aplicação (determinada pela textura do solo, proximidade de cursos d’água e práticas de manejo do solo) e no potencial de contaminação dos princípios ativos (com base na persistência, mobilidade e toxicidade dos ingredientes ativos). APLICAÇÃO 1ª ETAPA - Selecione o ingrediente ativo principal dos produtos (pesticidas) usados ​​para controle de pragas, doenças e plantas invasoras/espontâneas em sistemas agrícolas, pastagens e florestas comerciais (clique no cabeçalho e selecione o produto – item 14.1). 2ª ETAPA - Para cada produto (pesticida), identifique, opcional, a procentagem do ingrediente ativo, identtifique a cultura, a área de aplicação (ha) e o volume aplicado (L ou kg/ha). Recomenda-se agrupar os pesticidas por cultura (por exemplo, café, milho, soja), mesmo que um produto seja usado em várias culturas, pois as taxas de aplicação podem variar. 3ª ETAPA - Os dados de toxicidade, mobilidade do produto no ambiente (coeficiente Koc, que representa a absorção do pesticida na matéria orgânica do solo) e persistência do produto (t1/2, meia-vida in situ em dias) são preenchidos automaticamente. Informações adicionais sobre ingredientes ativos não listados estão disponíveis no Banco de Dados (https://sitem.herts.ac.uk/aeru/ppdb/en/). Dados sobre riscos de contaminação para trabalhadores rurais, consumidores e o meio ambiente (índice EIQ da Universidade Cornell) também estão incluídos, juntamente com detalhes sobre a identificação de pesticidas que estão proibidos na União Europeia. 4ª ETAPA - Para cada pesticida, identifique as características da área de aplicação, considerando: teor de argila (1, 2 ou 3, com base no item 14.5); distância até o curso d’água mais próximo (1, 2 ou 3, com base no item 14.6); tipo de manejo do solo (1, 2 ou 3, com base no item 14.7). Esta etapa visa determinar a vulnerabilidade dessas áreas quanto à contaminação das águas. 5ª ETAPA - O risco de contaminação é calculado automaticamente para cada produto. Para gerar uma pontuação de risco final, insira no item 14.3 as culturas identificadas, suas respectivas áreas e, para cada cultura, o maior risco de contaminação verificado (1, 2 ou 3, onde 3 é o maior). Por exemplo, se cinco pesticidas foram aplicados em uma cultura de milho, com os seguintes riscos de contaminação: Dois produtos classificados como 1; Dois produtos classificados como 2; Um produto classificado como 3. O valor registrado no indicador será 3, pois representa o maior risco de contaminação. O resultado final considera o risco máximo e a área equivalente de cada cultura na fazenda.
A214: 15 | B214: EROSÃO DO SOLO
B215: DESCRIÇÃO Verifica a ocorrência ou não de áreas afetadas, estimando a extensão, intensidade (inicial, intermediária ou avançada) e tendência de comportamento do processo erosivo (redução, inalterado ou intensificação). Se não houver processos erosivos no imóvel rural, deixe o indicador sem preencher (a nota será = 0,7) APLICAÇÃO 1ª ETAPA - Identifique quaisquer áreas com degradação do solo. 2ª ETAPA - Após a identificação, determine qual área apresenta a maior intensidade e/ou o estágio mais severo de degradação. As estimativas podem ser feitas no local ou com o auxílio de imagens de satélite. Apenas uma área será registrada na planilha, selecionando uma categoria (estágio Inicial, Intermediário ou Avançado). 3ª ETAPA - Selecione qual tendência de comportamento do processo erosivo: redução, inalterado ou intensificação.
B225: Indicativos da Intensidade do estágio de degradação
C226: Inicial | D226: Intermediário | F226: Avançado
B227: Erosão laminar | C227: Redução de infiltração de água Raízes expostas | D227: Remoção do horizonte superficial do solo
B228: Erosão em sulcos | D228: Presença de sulcos rasos localizados | F228: Sulcos profundos e disseminados em toda a área
B229: Voçoroca | F229: Presença de voçorocas, movimento de massa (deslocamento de grandes volumes de solo)
A231: 16 | B231: GRAU DE ADOÇÃO DE PRÁTICAS CONSERVACIONISTAS
B232: DESCRIÇÃO Avalia a adoção de medidas de conservação do solo e da água (suficientes, insuficientes ou inadequadas) em todos os sistemas de produção, incluindo a implantação de terraceamentos, quando necessário, cobertura permanente e diversificada do solo, entre outras estratégias para tornar os sistemas mais resilientes ao estresse hídrico e chuvas de alta intensidade, ampliar a capacidade do solo de infiltrar e reter as águas pluviais, além de outras estratégias para reservação de água no imóvel rural. APLICAÇÃO 1ª ETAPA - Avalie a adoção de medidas de conservação do solo em todos os sistemas de produção identificados no questionário (item 8). Veja exemplos abaixo. 2ª ETAPA - Após avaliar o grau de adoção de práticas de conservação — considerando a topografia, a cobertura vegetal e, para culturas permanentes e florestas plantadas, seu estágio de desenvolvimento — registre as respectivas áreas de cada talhão e pasto de acordo com as seguintes categorias: Adequado — As medidas de conservação são adequadas para conter eventuais processos erosivos, não há simais de erosão na área; Médio - existem medidas para conservação do solo mas são inadequadas para prevenir completamente a erosão, incluindo a erosão laminar de baixa intensidade; Baixo — Existem algumas medidas pontuais, mas estão distantes do mínimo necessário para previnir os processo erosivos; Situação crítica — Grave ausência de práticas de conservação do solo e/ou presença de processos erosivos de alta intensidade. 3ª ETAPA - Verifique com o produtor o grau de adoção de estratégias para a conservação e reservação das águas, considerando todo o imóvel rural, marcando uma das opções: suficiente; insuficiente; ou situação inadequada ou de alta fragilidade (item 16.2).
B244: PRÁTICAS CONSERVACIONISTAS - SOLO (REFERÊNCIA) ADEQUADO - Terraços, rotação de culturas, sistemas de plantio direto e cobertura de solo permanente e diversificada, sem sinais de erosão. MÉDIO - Práticas adotadas para a conservação do solo são insuficientes, solos sem boa estrutura ou compactados. BAIXO - Solo desprotegido, plantio sem respeitar as curvas de nível, revolvimento do solo (aração, gradagem, etc.). SITUAÇÃO CRÍTICA - Ausência de práticas de conservação do solo, processos severos de erosão, solos muito compactados, uso intensivo de grade e arado, presença de fogo, monocultivos sem rotação de culturas, solo exposto, etc.
B250: PRÁTICAS CONSERVACIONISTAS - ÁGUA (REFERÊNCIA) SUFICIENTE - Práticas adotadas são suficientes para garantir o abastecimento de água (para consumo humano e/ou atividades agrícolas); implementação de estruturas para minimizar o poder erosivo do escoamento superficial (principalmente enxurradas) em talhões e estradas; adoção de estratégias para manter ou aumentar a matéria orgânica do solo e atividade biológica visando maior estabilidade de agregados e melhora na infiltração e retenção de água no solo. INSUFICIENTE - Práticas adotadas não são suficientes para previnir processos erosivos, e, consequentemente, a perda de água nos sistemas. Práticas adotadas não garantem o abastecimento de água para consumo, e atividades agrícolas. INADEQUADO - Escassez de água para consumo humano; para consumo animal; ausência de práticas para lidar com a seca; processos erosivos de alta intensidade.
B257: PLANTIO EM CURVA DE NÍVEL - Preparo do solo é realizado seguindo a direção da curva de nível do terreno. Para terrenos com pequena declividade, o plantio em nível cria obstáculos à descida do escoamento superficial das águas pluviais, propiciando a redução dos processos erosivos e aumento da infiltração de água no solo. SISTEMA PLANTIO DIRETO - É um sistema de semeadura, no qual a semente é colocada diretamente no solo não revolvido, usando-se máquinas específicas. Somente é aberto um pequeno sulco ou cova de largura e profundidade suficientes para a adequada cobertura e contato das sementes com o solo. O sistema plantio direto segue três princípios: não revolvimento do solo, cobertura permanente do solo e rotação de culturas, além da diversificação de culturas e minimização dos distúrbios à atividade microbiológica do solo. COBERTURA PERMANENTE DO SOLO - A permanência de palhadas de colheitas anteriores ou o uso de plantas de cobertura evitam que o solo fique exposto à insolação, reduz a evaporação, fornece também proteção contra o impacto das gotas de chuva, reduzindo o escoamento superficial e a erosão. A cobertura permanente do solo apresenta como benefícios: a redução da incidência de plantas invasoras; promoção do equilíbrio da flora e da fauna do solo; favorecimento do manejo integrado de pragas e doenças; maior estabilização da taxa de reciclagem de nutrientes; e promoção da atividade biológica no solo. ROTAÇÃO DE CULTURAS - Consiste em alternar, anualmente, espécies vegetais, numa mesma área agrícola. As espécies escolhidas podem ter, ao mesmo tempo, propósito comercial e de recuperação do solo. A diversidade de plantas influencia na diversidade da microbiota do solo, proporcionando maior resiliência dos sistemas de produção. QUEBRA-VENTOS / BARREIRAS VEGETAIS - Plantio de árvores em intervalos regulares no entorno de lavouras e pastagens em direção perpendicular aos ventos dominantes, ou formação de barreiras vegetais. Seus benefícios principais são as alterações no microclima, o que pode levar a incrementos na produção, reduzindo a necessidade por insumos externos. O sombreamento auxilia no aumento da umidade do solo, enquanto a redução dos ventos diminui a erosão eólica. A presença de árvores também funciona como um fator atrativo para diversas espécies. FAIXAS COM VEGETAÇÃO NATURAL, ROÇADAS ALTERNADAS - Aplicável em novas áreas, onde o desmatamento parcial permite a permanência de fileiras alternadas de vegetação nativa permanente entre as culturas cultivadas. Essa vegetação nativa serve como quebra-ventos e oferece refúgio para predadores naturais de pragas. CULTURAS INTERCALARES - Podem ser utilizadas culturas comerciais ou não. O plantio de culturas de porte, ciclo e comportamento agronômico diferentes podem trazer benefícios com o aumento da biodiversidade e melhor aproveitamento dos nutrientes do solo, explorando diferentes camadas do solo. TERRACEAMENTO - Os terraços podem ser locados em nível, em desnível ou de forma mista. Os terraços em nível possuem as extremidades bloqueadas e têm a função de acumular e infiltrar a água, e são recomendados para áreas com boa permeabilidade e declividade de até 12%. Os terraços em desnível apresentam pequeno gradiente ao longo de seu comprimento e conduzem a água para as laterais, sendo mais adequados, para áreas com menor permeabilidade e/ou declividades superiores a 12%. Os terraços mistos englobam os dois tipos anteriores, ou seja, são projetados em pequeno desnível e com capacidade de acumulação de água que, ao ser excedida, escoa pelas laterais. Em encostas ou morros onde o volume e a velocidade da enxurrada são grandes, dependendo do comprimento de rampa e da declividade, o terraço em desnível é mais recomendado para se evitar que estes se rompam, podendo ser construídos com menor largura. A seleção do tipo de terraço a ser construído, assim como seu dimensionamento, sua locação e sua construção devem ser feitas por profissionais qualificados. Os terraços classificam-se ainda quanto a sua largura, em base estreita (menos de 3 m), base média (3 a 6 m) e base larga (6 a 12 m).
A276: 17 | B276: CONSERVAÇÃO DAS ESTRADAS
B277: DESCRIÇÃO Avalie a presença de estruturas de drenagem e sistemas de escoamento de águas pluviais nas estradas, bem como o estado e a manutenção das estradas dentro do imóvel rural. APLICAÇÃO 1ª ETAPA - Percorra as estradas de acesso que cruzam ou margeiam o imóvel rural, bem como as estradas internas, verificando seu estado de conservação e eventuais medidas de conservação adotadas. 2ª ETAPA - Estime o grau de adoção de medidas de conservação implementadas (item 17.1) e a proporção de buracos e sulcos de erosão (item 17.2). 3ª ETAPA - Verifique se há pontos críticos no local que possam interferir no acesso e/ou compromoter o escoamento de produtos (item 17.3).
B286: DECLIVIDADE TRANSVERSAL DA ESTRADA - Inclinação da seção transversal, a partir do eixo da estrada, para permitir o escoamento das águas superficiais para as valas laterais. LOMBADAS PARA DESVIO DE ENXURRADA - Elevações construídas transversalmente ao longo de toda a largura do leito da estrada, com o objetivo de conduzir as águas pluviais aos dispositivos (caixas de infiltração ou barraginhas) para absorvê-las e ou armazená-las. CAIXAS DE CAPTAÇÃO DE ÁGUA OU BARRAGINHAS - Estruturas para a captação da águas de chuva - pequenas barragens ou miniaçudes. BACIAS DE INFILTRAÇÃO - Depressão no terreno construída, geralmente às margens da estrada, com o objetivo de reduzir o volume das enxurradas e promover a recarga da água subterrânea.
A292: 18 | B292: VEGETAÇÃO NATIVA - FITOFISIONOMIAS E ESTADO DE CONSERVAÇÃO
B293: DESCRIÇÃO Identifica as fitofisionomias (habitats naturais) presentes no imóvel rural e avalia seu estado de conservação (estágio sucessional). Verifica o número de fragmentos de vegetação nativa existentes no imóvel rural e se esses fragmentos estão protegidos contra pastoreio e fogo. APLICAÇÃO 1ª ETAPA - Identifique os diferentes tipos de vegetação nativa (selecione a fitofisionomia no cabeçalho da tabela - item 18.1). 2ª ETAPA - Estime a área correspondente a cada fragmento de vegetação nativa e identifique seu estágio sucessional. 3ª ETAPA - Verifique a quantidade de fragmentos com vegetação nativa dentro do imóvel rural por meio de observações de campo e imagens de satélite (item 18.2). 4ª ETAPA - Verifique se algum fragmento de vegetação nativa tem conexão com a vegetação nativa de imoveis rurais vizinhos (marque com um "X" se houver) (item 18.3). 5ª ETAPA - Verifique se todos os fragmentos de vegetação nativa estão protegidos do pastoreio (com cercas suficientes) e incêndios (presença de aceiros com manutenção anual). Caso afirmativo, marque com um "X" (item 18.4).
A307: 19 | B307: ÁREAS DE PRESERVAÇÃO PERMANENTE (APPs)
B308: DESCRIÇÃO Avalie o estado de conservação das APPs. Essas áreas funcionam como zonas de amortecimento para prevenir a erosão do solo, filtrar o escoamento superficial e fornecer habitat para espécies aquáticas e terrestres APLICAÇÃO 1ª ETAPA - O lançamento dos dados é feito automaticamente no item 19.1, a partir da identificação do uso e ocupação do solo nas APPs (item 9 do questionário). 2ª ETAPA - Verifique no campo e na imagem de satélite o percentual das APPs efetivamente protegidas e com bom estado de conservação (item19.2). Considera-se APP: faixas marginais de qualquer curso d'água natural perene e intermitente; as áreas no entorno das nascentes e dos olhos d’água perenes; as áreas no entorno dos reservatórios d’água artificiais, decorrentes de barramento ou represamento de cursos d’água naturais; as encostas ou partes destas com declividade superior a 45º , equivalente a 100% (cem por cento) na linha de maior declive; as bordas dos tabuleiros ou chapadas, até a linha de ruptura do relevo; em veredas, a faixa marginal, em projeção horizontal, com largura mínima de 50 (cinquenta) metros, a partir do espaço permanentemente brejoso e encharcado; no topo de morros, montes, montanhas e serras, com altura mínima de 100 (cem) metros e inclinação média maior que 25º; as áreas em altitude superior a 1.800 (mil e oitocentos) metros, qualquer que seja a vegetação; as restingas, como fixadoras de dunas ou estabilizadoras de mangues; os manguezais, em toda a sua extensão (Código Florestal LEI 12.651 de 25 de maio de 2012).
A315: 20 | B315: RESERVA LEGAL
B316: DESCRIÇÃO Avaliar o cumprimento da exigência de Reserva Legal (RL) no imóvel rural, conforme o Novo Código Florestal. Verificar também se o imóvel rural possui área com vegetação nativa excedente à exigência para RL (considerado como um ativo ambiental). APLICAÇÃO A Verificação do cumprimento da RL é feita automaticamente para imóveis com área menor que 4 Módulos Fiscais - no campo "Áreas de/para RL não passíveis de recomposição". Para os demais imóveis rurais (>4MF), o preenchimento não será feito de forma automátca, utilizando-se os campos do item 20.1: "Área de RL fora do imóvel rural" (Se a RL, ou parte da RL, estiver localizada fora do imóvel rural); "Áreas de/para RL que necessitam de recomposição " (se a RL estiver localizada dentro do imóvel rural, verificar se a mesma possui alguma área que necessita de recomposição); "Áreas de/para RL não passíveis de recomposição".
A324: 21 | B324: BIODIVERSIDADE E ECOLOGIA DA PAISAGEM
B325: DESCRIÇÃO Avalia o grau de adoção de práticas que promovem a biodiversidade nas áreas cultivadas, bem como avalia a diversidade na escala do imóvel rural, a qual é medida automaticamente utilizando o índice de Shannon-Weaver. APLICAÇÃO 1ª ETAPA - Avalie o grau de adoção de práticas que promovem a agrobiodiversidade nas áreas de produção agrícola. Essas práticas incluem cultivos consorciados, policultivos, integração lavoura-pecuária, sistemas agroflorestais, adubação verde, barreiras vegetais, corredores ecológicos, rotação de culturas, ativação da biologia do solo e redução de perturbações à atividade biológica (por exemplo, uso indiscriminado de pesticidas, fertilizantes de alta solubilidade, mecanização intensa e pressão de monoculturas). O item 21.1 pode ser preenchido de forma semelhante ao item 16.1 do Indicador 16 (grau de adoção de práticas conservacionistas). 2ª ETAPA - O grau de diversidade na escala do imóvel rural é medido automaticamente pela avaliação da diversidade de fitofisionomias dos habitats naturais (vegetação nativa) e dos diversos usos e ocupação do solo, utilizando o índice de Shannon-Weaver. 3ª ETAPA - O grau de diversificação do uso e ocupação do imóvel e das áreas no seu entorno é avaliado, ao considerar a proporção de cultivos e usos similares ao longo das áreas fronteiriças, com o objetivo de verificar se ocorre pressão de monocultivos. Se for identificado uma alta proporção das áreas limítrofes ao imóvel rural com o mesmo uso do solo (acima de 70%), marque "sim" no item 21.3.

Sheet 1 Questionário
B1: ISA | D1: QUESTIONÁRIO
A3: 1 | B3: CROQUI DO IMÓVEL RURAL (CAR)
B32: Preencher todos os campos em amarelo
A34: 2 | B34: DATA
A36: 3 | B36: ENTREVISTADOR(A)
B38: Nome
B40: CPF
A42: 4 | B42: PRODUTOR(A) RURAL
B44: Nome
B46: CPF
B48: Idade (anos)
A50: 5 | B50: LOCALIZAÇÃO DO IMÓVEL RURAL
B52: Geolocalização*
B53: *coordenadas graus decimais
B54: Município
B56: Estado
B58: Bacia Hidrográfica*
B59: *Identificação do principal rio próximo ao imóvel rural
A60: 6 | B60: POSSE DA TERRA
B62: Posse da terra | E62: Escolha uma opção ao clicar no campo ao lado | I62: Proprietário
I63: Posseiro
B64: Sucessão* | E64: Escolha uma opção | I64: Arrendatário
B65: *Envolvimento dos filhos nos negócios; participação dos filhos em cursos de capacitação. | I65: Parceiro
B66: Participação da mulher (gestão) | E66: Escolha uma opção | I66: Assentado
I67: Usufrutuário
A68: 7 | B68: DESCRIÇÃO DO IMÓVEL RURAL
I69: Sim
B70: Identificação | I70: Não
F71: Módulos Fiscais
B72: Área - hectares (ha) | F72: =IF(D74>0,D72/D74,"") -> 
B74: Tamanho do módulo fiscal (ha)*
B75: *Tamanho do módulo fiscal no município
B76: Agricultura Familiar | E76: Escolha uma opção
B78: Outras áreas não contíguas ao imóvel rural e/ou áreas de arrendamento que integram a renda do produtor(a)
B79: Identificação
B81: Área (ha)
A83: 8 | B83: USO E OCUPAÇÃO DO SOLO NO IMÓVEL RURAL
B85: Descrição | D85: Uso atual Área (ha) | E85: Proporção em relação a área total%
B86: Lavouras permanentes | E86: =D86/'3 Relatório'!$H$5 -> 
B87: Lavouras temporárias | E87: =D87/'3 Relatório'!$H$5 -> 
B88: Pastagens | E88: =D88/'3 Relatório'!$H$5 -> 
B89: Silvicultura | E89: =D89/'3 Relatório'!$H$5 -> 
B90: Área não agrícola | E90: =D90/'3 Relatório'!$H$5 ->  | I90: =SUM(D86:D90,D94) -> 0.0
B91: Pousio | E91: =D91/'3 Relatório'!$H$5 ->  | F91: Verificação | I91: =D91 -> 0.0
B92: Corpos d'água | E92: =D92/'3 Relatório'!$H$5 ->  | I92: =D92 -> 0.0
B93: Vegetação nativa | E93: =D93/'3 Relatório'!$H$5 ->  | I93: =D93 -> 0.0
B94: Áreas inaproveitáveis* | E94: =D94/'3 Relatório'!$H$5 ->  | F94: =IF(H94>0,(H94/D72),"") ->  | G94: Total (ha) | H94: =SUM(D86:D94) -> 0.0 | I94: =SUM(I90:I93) -> 0.0
B95: *Vossorocas e outras áreas que no momento da avaliação são inaproveitáveis para atividades econômicas | I95: =SUM(I90:I93) -> 0.0
A96: 9 | B96: ÁREAS DE PRESERVAÇÃO PERMANENTE (APPs)
D98: Área (ha) | E98: Proporção em relação a área total (%) | H98: 10%
B99: Área total de APPs | E99: =IF(D99>0,D99/I94,0) -> 0.0% | H99: 20% | I99: =D99-D100 -> 0.00
B100: Área da APP a ser recuperada | E100: =IF(D100>0,D100/I94,0) -> 0.0% | H100: 30%
B101: *Área a ser recuperada para imóveis até 4MF | D101: =IF(AND(E100>0.1,F72<2),D72*0.1,IF(AND(E100>0.2,F72<4),D72*0.2,D100)) -> 0.0 | H101: 80%
A103: 10 | B103: RESERVA LEGAL (RL)
B105: Conservation Reserve Area (% of the farm area) | F105: Escolha uma opção
B106: Área com vegetação nativa excedente à area exigida para RL | E106: =IF(D93>'2 Indicadores'!D458,'1 Questionário'!D93-'2 Indicadores'!D458,0) -> 0.00
A108: 11 | B108: RECURSOS HÍDRICOS NO IMÓVEL RURAL
E109: Quantidade
B110: Cursos d´água
B111: Nascentes e olhos d'água perenes*
B112: Lagos e lagoas naturais
B113: Represas
B114: * Afloramento natural do lençol freático que apresenta perenidade e dá início a um curso d'água
B116: Fonte de água utilizada no imóvel rural:
B117: Superficial | F117: Escolha uma opção
B118: Subterrânea* | F118: Escolha uma opção
B119: * Cisternas, poço tubular (artesiano)
B121: Problemas com qualidade/disponibilidade de água* | F121: Escolha uma opção
B122: *Para consumo humano e atividades rurais
B123: Especificar (descrição do problema)
A125: 12 | B125: REGULARIZAÇÃO AMBIENTAL DO IMÓVEL RURAL
B127: Regularização do uso da água | F127: Escolha uma opção
B128: Outorga; ou cadastro de uso insignificante; ou cadastro na campanha "água: faça uso legal"; ou cadastro de pequeno núcleo populacional rural.
B129: Licenciamento ambiental | F129: Escolha uma opção
B130: Certidão de não passível (dispensa de licenciamento), Autorização Ambiental de Funcionamento (AAF), Licenciamento Ambiental.
B131: Regularização RL e APP | F131: Escolha uma opção
B132: Cadastro Ambiental Rural - CAR.
A134: 13 | B134: PONTOS CRÍTICOS - principais problemas enfrentados pelo produtor rural (na visão dele)
B136: Descrição
B138: Descrição
B140: Descrição
A143: 18
A181: 19 | B181: ATIVIDADE PECUÁRIA (opcional)
B183: 19.1 - Utiliza pastagens plantadas para a atividade pecuária | H183: caso afirmativo marque x
B184: Estimativa da área, considerando áreas próprias e arrendadas (ha)
B186: Total de UA (Unidade Animal) do empreendimento - item 12.3 => | G186: =('2 Indicadores'!C75*1.5)+'2 Indicadores'!#REF!+'2 Indicadores'!#REF!+('2 Indicadores'!#REF!*0.75)+('2 Indicadores'!#REF!*0.75)+('2 Indicadores'!#REF!*0.5)+('2 Indicadores'!#REF!*0.5) -> 
B187: Estimativa da taxa média de lotação das áreas com pastagem | G187: =IF(G183="x",(G186/G184),"") -> 
B189: Proporção das pastagens no imóvel rural que apresentam processo de degradação dos solos e baixa capacidade de suporte de animais (%)
A192: 20 | B192: ADUBAÇÃO NITROGENADA NA LAVOURA DE MILHO (opcional)
B194: 20.1 - Possui lavoura de milho para produção de grãos
B195: Estimativa da área (ha)
B197: 20.2 - Possui lavoura de milho para produção de silagem
B198: Estimativa da área (ha)
B200: 20.3 - Estimativa da adubação nitrogenada para a lavoura de milho (kg de N/ha)*
B201: *Considerar apenas os adubos nitrogenados solúveis (NPK, ureia, sulfato de amônia, etc.)
B203: 20.4 - Produtividade da lavoura de milho para grãos (sc/ha)*
B204: Estimativa da relação: sc milho produzido (60 Kg)/kg de N via adubação/ha | I204: =IF(I194="x",(I203/I200),"") -> 
B206: 20.5 - Produtividade da lavoura de milho para silagem (t/ha)*
B207: Estimativa da relação: tonelada (t) de milho produzido (silagem)/kg de N via adubação/ha | I207: =IF(I197="x",(I206/I200),"") -> 

Sheet 2 Indicadores
B1: ISA | C1: INDICADORES
B3: Preencher todos os campos em amarelo
A5: 1 | B5: PRODUTIVIDADE E PREÇOS DE VENDA
B7: 1.1 Renda bruta anual estimada agropecuária (ordem decrescente)
C8: Escolha uma opção | D8: Valor estimado anual (R$)
B9: Atividade 1 (> receita) | E9: =(D9/($D$9+$D$10+$D$11+D29+$D$30+$D$31+'2 Indicadores'!$D$35+'2 Indicadores'!D36)) -> 
B10: Atividade 2 | E10: =(D10/($D$9+$D$10+$D$11+D29+$D$30+$D$31+'2 Indicadores'!$D$35+'2 Indicadores'!D36)) -> 
B11: Outras atividades | E11: =(D11/($D$9+$D$10+$D$11+$D$29+$D$30+$D$31+'2 Indicadores'!$D$35+D36)) -> 
B12: *Atividades agrícolas, de pecuária e/ou silvicultura conduzidas no imóvel rural
B14: 1.2 Produtividade das principais atividades | D14: Atividade 1 | E14: Atividade 2 | F14: Atividade 3
B15: Atividades (selecione) | G15: Fator de ponderação
B16: Unidades de medida (selecione) | G16: > 20% | H16: 0.9
B17: Produtividade média atual | G17: produção ou preço de venda = ao regionall | H17: 0.7
B18: Preço médio de venda (R$/unidade de venda)
B19: Produtividade média na região* | G19: < 20% | H19: 0.5
B20: Média de preço da região (R$/unidade de venda)* | G20: < 40% | H20: 0.3
B21: * Base de dados - Cooperativa no município, Emater, IBGE, etc.
B23: Resultado | C23: =IF(D17>0,Fórmulas!G15,0) -> 0.00 | D23: Referência: Depontti (2001); Correa (2007); Mattos Filho (2004); Lopez e Ridaura (2001).
A25: 2 | B25: DIVERSIDADE DE RENDA
B27: 2.1 Renda bruta anual estimada - outras atividades no imóvel rural*
C28: Descrição das atividades | D28: Valor estimado no ano (R$)
B29: Atividade 1 | E29: =(D29/($D$9+$D$10+$D$11+$D$30+$D$31+'2 Indicadores'!$D$35+D29+D36)) -> 
B30: Atividade 2 | E30: =(D30/($D$9+$D$10+$D$11+$D$30+$D$31+'2 Indicadores'!$D$35+'2 Indicadores'!D36+D29)) -> 
B31: Outras atividades | E31: =(D31/($D$9+$D$10+$D$11+$D$29+$D$30+$D$31+'2 Indicadores'!$D$35+'2 Indicadores'!D36)) -> 
B32: *Turismo, artesanato, agroindústria, produção de cachaça, alimentos processados, aplicações financeiras do capital de giro do imóvel rural, etc.
B34: 2.2 Renda bruta anual estimada fora imóvel rural*
B35: Pensão, aposentadoria, ajudas financeiras (R$) | E35: =(D35/('2 Indicadores'!$D$9+'2 Indicadores'!$D$10+'2 Indicadores'!$D$11+$D$29+'2 Indicadores'!$D$30+'2 Indicadores'!$D$31+$D$35+'2 Indicadores'!D36)) -> 
B36: Outras atividades/prestação de serviços (R$) | E36: =(D36/('2 Indicadores'!$D$9+'2 Indicadores'!$D$10+'2 Indicadores'!$D$11+$D$29+'2 Indicadores'!$D$30+'2 Indicadores'!$D$31+$D$36+'2 Indicadores'!D35)) -> 
B37: *De todas as rendas das pessoas com vínculo direto com o estabelecimento (locação de máquinas, emprego fora do estabelecimento, prestação de serviços, etc.)
B39: 2.3 Diversidade de Renda | F39: Proporção da renda (%) | G39: Fator de ponderação
B40: Atividades agrícolas, pecuárias e florestais realizadas no estabelecimento | F40: =(E11+E10+E9) ->  | G40: 2.0
B41: Outras atividades realizadas no estabelecimento | F41: =(E31+E30+E29) ->  | G41: 2.0
B42: Atividades realizadas fora do estabelecimento | F42: ='2 Indicadores'!E36 ->  | G42: 1.0
B43: Aposentadoria; Pensão; Ajuda Financeira; Outras fontes de renda | F43: ='2 Indicadores'!E35 ->  | G43: 0.3
B44: Concentração numa única atividade no imóvel rural (> 80% da receita total) | F44: =IF('2 Indicadores'!E9>0.8,"sim","não") ->  | G44: Verificação da proporção de renda | H44: =F40+F41+F42+F43 -> 
B46: Resultado | C46: =IF(H44<0.99,"",Fórmulas!H32) ->  | D46: Adaptação APOIA-NovoRural (Rodrigues et al, 2010), Deponti (2002).
A48: 3 | B48: EVOLUÇÃO PATRIMONIAL DO IMÓVEL RURAL
B50: 3.1 Período da evolução patrimonial (anos) | D50: 1.0
B52: 3.2 Avaliação dos bens do imóvel rural
B53: 3.2.1 Construções/ Reformas (período recente)*
B54: Descrição | C54: Valor estimado ($)
C55: R$ 0.00
B56: *período de avaliação definido no item 3.1
B58: 3.2.2 Construcões existentes no imóvel rural*
B59: Descrição | C59: Valor estimado ($) | G59: =IF(C60>0,((1+0.04167)^'2 Indicadores'!$D$50*C60)," ") -> R$ 0.00
C60: R$ 0.00 | E60: Valor Histórico*
B61: *Depreciação vida útil 40 anos | C61: Total | D61: =C60+C55 -> $0.00 | E61: =SUM(G59:G59) -> $0.00
B63: 3.2.3 Equipamentos adquiridos (período recente)* | G63: Valor histórico*
B64: Descrição | C64: Valor estimado ($)
C65: R$ 0.00
B66: *período de avaliação definido no item 3.1
B68: 3.2.4 Equipamentos já existentes no imóvel*
B69: Descrição | C69: Valor estimado ($) | G69: =IF(C70>0,((1+0.052632)^'2 Indicadores'!$D$50*C70)," ") -> R$ 0.00
C70: R$ 0.00 | E70: Valor Histórico*
B71: *Depreciação vida útil 20 anos | C71: Total | D71: =C70+C65 -> $0.00 | E71: =SUM(G69:G69) -> $0.00
B73: 3.3 Avaliação semoventes / estoque* | E73: Histórico (anterior - período item 3.1)
B74: Descrição (selecione) | C74: Quantidade (un.) | D74: Valor atual ($) | E74: Quantidade (un.) | F74: Valor histórico ($)
D76: R$ 0.00 | F76: R$ 0.00
B77: *Milho, soja, café, entre outros. | C77: Total | D77: =SUM(D75:D76) -> R$ 0.00 | E77: Total | F77: =SUM(F75:F76) -> R$ 0.00
B79: 3.4 Sistemas de irrigação | D79: Uso histótico (ha)*
B80: Tipo de irrigação | C80: Área total irrigada (ha)
B82: *Anterior ao período de avaliação item 3.1
B84: 3.5 Uso do solo | C84: Uso atual (ha) | D84: Uso histótico (ha)*
B85: Lavouras permanentes | C85: ='1 Questionário'!D86 -> 0 | D85: =C85 -> 0.00
B86: Lavouras temporárias | C86: ='1 Questionário'!D87 -> 0 | D86: =C86 -> 0.00
B87: Pastagens | C87: ='1 Questionário'!D88 -> 0 | D87: 0.00
B88: Silvicultura | C88: ='1 Questionário'!D89 -> 0 | D88: 0.00
B89: Área não agrícola | C89: ='1 Questionário'!D90 -> 0 | D89: 0.00
B90: Pousio | C90: ='1 Questionário'!D91 -> 0 | D90: 0.00
B91: Espelho/cursos d'água | C91: ='1 Questionário'!D92 -> 0 | D91: 0.00
B92: Vegetação nativa | C92: ='1 Questionário'!D93 -> 0 | D92: 0.00
B93: Áreas inaproveitáveis | C93: ='1 Questionário'!D94 -> 0 | D93: 0.00
B94: Total (ha) | C94: =SUM(C85:C93) -> 0.00 | D94: =SUM(D85:D93) -> 0.00
B95: *período de avaliação item 3.1
B97: 3.6 Valor da terra | C97: Atual ($/ha) | D97: Histórico ($/ha)*
B98: Valor de referência na região
B99: *Período de avaliação item 3.1
B101: Estimativa patrimonial do imóvel rural** | C101: Current ($/ha) | D101: Historical ($/ha)*
C102: =Fórmulas!E51+Fórmulas!E52+Fórmulas!E53+Fórmulas!E54+Fórmulas!E55+'2 Indicadores'!D77+'2 Indicadores'!D71+'2 Indicadores'!D61 ->  | D102: =Fórmulas!I51+Fórmulas!I52+Fórmulas!I53+Fórmulas!I54+Fórmulas!I55+'2 Indicadores'!E61+'2 Indicadores'!E71+'2 Indicadores'!F77 -> 
B103: ** (Somatória de benfeitorias, máquinas, equipamentos, animais e valor da terra)
B105: Evolução Patrimonial | F105: Evolução no período (%) | G105: Fator de ponderação
B107: Fator externo | C107: Valor da terra na região | F107: =IF('2 Indicadores'!C98>0,('2 Indicadores'!C98/'2 Indicadores'!D98-1),"") ->  | G107: 0.7
B108: Fatores internos em relação ao imóvel rural | C108: Benfeitorias | F108: =IF('2 Indicadores'!D61>0,('2 Indicadores'!D61/'2 Indicadores'!E61-1),"") -> 92.0% | G108: 1.0
C109: Equipamentos | F109: =IF('2 Indicadores'!D71>0,('2 Indicadores'!D71/'2 Indicadores'!E71-1),"") -> 90.0% | G109: 1.0
C110: Semoventes / Estoque de grãos | F110: =IF('2 Indicadores'!D77>0,('2 Indicadores'!D77/'2 Indicadores'!F77-1),"") -> 0.0% | G110: 1.0
C111: Ampliação da área de lavoura e/ou agricultura irrigada | F111: =+Fórmulas!H59 ->  | G111: 1.0
B112: Média anual da Evolução Patrimonial total (%) | F112: =(+Fórmulas!H63)/D50 -> 
B113: Média anual da Evolução Patrimonial (sem valorização da terra) (%) | F113: =(Fórmulas!H61)/D50 -> 
B115: Resultado | C115: =IF(Fórmulas!I39>1,1,Fórmulas!I39) ->  | D115: Referência: Rodrigues et al, 2010; Gitman and Zutter (2015).
A117: 4 | B117: GRAU DE ENDIVIDAMENTO
F118: % dívidas/valor pat. | G118: Fator de ponderação
B119: 4.1 Total de financiamentos em relação à estimativa patrimonial | F119: 0-7,5% | G119: 07 - 1 (y = 0,04x + 0,7)
B120: Valor Total - financiamentos e outros compromissos financeiros | F120: 7,5-30% | G120: 1 - 01 (y = -0,04x + 1,3)
B121: Total de dívidas/valor patrimonial estimado (%) | E121: =E120/C102 ->  | F121: >30% | G121: 0.1
B123: Resultado | C123: =Fórmulas!G68 ->  | D123: Adaptação APOIA-NovoRural (Rodrigues et al, 2010), Deponti (2002).
A125: 5 | B125: SERVIÇOS BÁSICOS DISPONÍVEIS PARA O IMÓVEL RURAL
B127: 5.1 Total de residências no imóvel rural
D129: Escolha uma opção: 1 (atende satisfatoriamente); 0,5 (parcialmente); 0 (inexistente)
B130: 5.2 Serviços básicos disponíveis | D130: Residência rural (1) | E130: Outras residências | F130: Fator de ponderação
B131: Disponibilidade de água (quantidade e qualidade) | F131: 1.0
B132: Acesso a energia elétrica | F132: 1.0
B133: Acesso regular para escoamento da produção | F133: 1.0
B134: Acesso ao serviço de saúde* | F134: 1.0
B135: Acesso regular ao transporte escolar | F135: 1.0
B136: Segurança no campo | F136: 1.0
B137: Internet | F137: 1.0
B138: Coleta pública de lixo | F138: 1.0
B139: * Produtor atendido pelo Programa Saúde da Família - PSF
B140: Resultado Parcial | C140: =IF('1 Questionário'!E121="sim",(Fórmulas!H77/10),(Fórmulas!H77/8)) -> 0.00 | D140: Adaptação APOIA-NovoRural (Rodrigues et al, 2010).
B142: 5.3 Produção própria de alimentos (somente para imóveis rurais ≤ 4MF) | D142: Escolha uma opção: 1 (atende satisfatoriamente); 0,5 (parcialmente); 0 (inexistente)
D143: Residência rural (1) | E143: Outras residências | F143: Fator de ponderação
B144: Hortaliças, grãos e tubérculos | F144: 1.0
B145: Pomar | F145: 1.0
B146: Criação de animais (carne, leite, ovos) | F146: 1.0
B147: Resultado Parcial | C147: =IF('1 Questionário'!D76="Não","",Fórmulas!F89/3) -> 0.00 | D147: Referência- Correa (2007).
B149: Resultado | C149: =IF(C147="",C140,(((C140*2)+C147)/3)) -> 0.00
A151: 6 | B151: ESCOLARIDADE & CURSOS DIRECIONADOS ÀS PRINCIPAIS ATIVIDADES
D152: Marque o nº de pessoas em cada campo
B153: 6.1 Grau de escolaridade | D153: Membros da família | E153: Funcionários
B154: Número de adultos no imóvel rural | F154: Fator de ponderação
B155: Menos de 9 anos de estudo | F155: 0.7
B156: Ensino Fundamental completo | F156: 1.0
B157: Ensino Médio completo | F157: 1.2
B158: Curso superior | F158: 1.5
D160: Marque o nº de pessoas em cada campo
B161: 6.2 Cursos direcionados às atividades rurais | D161: Membros da família | E161: Funcionários | F161: Fator de ponderação
B162: Capacitação curta temporada | F162: 0.5
B163: Capacitação longa temporada | F163: 0.8
D165: Marque o nº de pessoas em cada campo
B166: 6.3 Frequência da rede de ensino dos dependentes | D166: Integrantes da família (6 - 18 anos) | E166: Filhos de funcionários residentes imóvel rural (6 - 18 anos)
B168: Número de dependentes no imóvel rural | F168: Fator de ponderação
B169: Frequenta rede de ensino | F169: 1.0
B171: Resultado | C171: =IF(Fórmulas!K96>1,1,Fórmulas!K96) ->  | D171: Referência: Calorio (1997), Correa (2007) e Rodrigues et al. (2003).
A173: 7 | B173: OCUPAÇÃO & EMPREGO
E174: Marque o nº de pessoas em cada campo
B175: 7.1 Cumprimento da Legislação Trabalhista | E175: Funcionários permanentes | F175: Funcionários temporários | G175: Fator de ponderação
B177: Número de funcionários no imóvel rural
B178: Registro de funcionários (carteira de trabalho) | G178: 1.0
B179: Pagamento de hora extra / banco de horas / ausência de hora extra | G179: 1.0
E181: Marque o nº de pessoas em cada campo
B182: 7.2 Adoção de benefícios / observância das recomendações/determinações do Ministério do Trabalho | E182: Funcionários permanentes | F182: Funcionários temporários | G182: Fator de ponderação
B184: Acima de 1 salário mínimo | G184: 1.0
B185: Auxílio alimentação | G185: 1.0
B186: Auxílio moradia | G186: 1.0
B187: Auxílio educação e transporte | G187: 1.0
B188: Participação nos lucros | G188: 5.0
B189: Seguro contra acidentes | G189: 3.0
B190: Acesso a lazer | G190: 1.0
B191: Espaço para cultivo de alimentos | G191: 3.0
B193: Resultado | C193: =IF(Fórmulas!H108>1,1,Fórmulas!H108) -> 0.70 | D193: Adaptação APOIA-NovoRural (Rodrigues et al, 2010).
A195: 8 | B195: GESTÃO DO EMPREENDIMENTO
C197: Escolha uma opção: 1 (atende satisfatoriamente); 0,5 (parcialmente); 0 (inexistente) | F197: Fator de ponderação
B198: 8.1 Controle administrativo | C198: Fluxo de caixa (receita/despesa) | F198: 1.0
C199: Custo de produção das atividades | F199: 1.0
B200: 8.2 Acesso à assistência técnica (particular ou pública)* | F200: 1.0
B201: 8.3 Participação - formas associativas - ativa (1) ou passiva (0,5) | F201: 1.0
B202: 8.4 Regularização ambiental (Uso da água, CAR e Licenciamento) | F202: 2.0
B203: 8.5 Financiamento | C203: Acessa crédito para investimento | F203: 0.4
C204: Acessa crédito para custeio | F204: 0.4
C205: Acessa crédito para comercialização | F205: 0.2
B206: * Não considerar assistência técnica de revendas de insumos.
B208: Resultado | C208: =((+E198*F198+E199*F199+E200+E201+E202*2+E203*F203+E204*F204+E205*F205)/7) -> 0.00 | D208: Referência: Correa (2007).
A210: 9 | B210: COMERCIALIZAÇÃO & INOVAÇÃO
B212: 9.1 Comercialização | E212: Escolha uma opção | F212: Fator de ponderação
B213: Diversificação de compradores, busca de preços, preços pré-venda | F213: 0.4
B214: Produtos certificados, agrega valor, mercado institucional | F214: 0.4
B216: 9.2 Inovação | E216: Escolha uma opção
B217: Adoção de técnicas inovadoras* | F217: 0.3
B218: Descrição
B219: Capacidade de inovação ou liderança na comunidade | F219: 0.4
B220: Descrição
B221: * Conceito, ideia, prática ou tecnologia, percebidas como nova pelo indivíduo e/ou grupo social. Conhecimento científico e tecnológico transformados em boas práticas.
B223: 9.3 Adoção de práticas regenerativas (opcional) | D223: Escolha uma opção | E223: Caso afirmativo, qual a proporção da área de produção que adota esta prática (%)
B224: Uso de bioinsumos nas áreas de produção agropecuária
B225: Uso de plantas de cobertura / arbóreas - sombreamento**
B226: ** Estratégias para cobertura permanente do solo; aumentar a biodiversidade e/ou bem estar animal
B228: Resultado | C228: =IF(Fórmulas!F128>1,1,Fórmulas!F128) -> 0.00
A230: 10 | B230: GERENCIAMENTO DE RESÍDUOS E EFLUENTES GERADOS NO IMÓVEL RURAL
D232: Escolha uma opção ao clicar no campo abaixo | H232: Fator de ponderação
D233: Residência rural (1) | E233: Outras residências
B234: 10.1.Destinação do esgoto residencial | F234: =Fórmulas!M144 ->  | H234: 1.0
B235: 10.2.Destinação do lixo domiciliar e das atividades | F235: =Fórmulas!M150 ->  | H235: 1.0
B237: Preenchimento obrigatório | F237: (%)
B238: 10.3.Resíduos sólidos orgânicos - compostagem e/ou reaproveitamento no campo | H238: 1.0
B240: Deixar o campo em branco quando não houver geração de efluentes líquidos e/ou gasosos | F240: (%)
B241: 10.4.Efluentes líquidos (quando existentes) - tratamento / destinação adequada | G241: =IF(ISBLANK(F241),Fórmulas!$K$136," ") -> Não se aplica | H241: 1.0
B242: 10.5.Efluentes gasosos (quando existentes) - tratamento / destinação adequada | G242: =IF(ISBLANK(F242),Fórmulas!$K$136," ") -> Não se aplica | H242: 1.0
B243: * Estação de tratamento; biodigestor; compostagem; etc.
F244: Escolha uma opção
B245: 10.6 Imóvel rural possui pontos críticos com relação à gestão de resíduos e efluentes*
D246: *Situação crítica - especificar
B248: Resultado | C248: =IF(Fórmulas!H136=0,0.7,+Fórmulas!F137) -> 0.70 | D248: Adaptação APOIA-NovoRural (Rodrigues et al, 2010).
A250: 11 | B250: SEGURANÇA DO TRABALHO REFERENTE AO USO DE AGROTÓXICOS
E252: Número de pessoas | F252: Fator de ponderação
B253: Quantas pessoas fazem o manuseio de agrotóxicos | F253: 1.0
B254: Quantas pessoas utilizam EPI adequadamente | F254: 1.0
E255: Escolha uma opção
B256: Armazenamento adequado das embalagens | F256: 1.0 | G256: Sim
B257: Devolução das embalagens de agrotóxicos | F257: 1.0 | G257: Não
B259: Resultado | C259: =Fórmulas!G157 -> 0.70 | D259: Adaptação APOIA-NovoRural (Rodrigues et al, 2010).
... 188 more rows

Sheet 3 Relatório
A1: ISA | D1: RELATÓRIO
F3: Data de aplicação | H3: =IF('1 Questionário'!C34="","",'1 Questionário'!C34) -> 
B4: ÍNDICE FINAL | D4: ='3 Relatório'!Q68 ->  | F4: Descrição do Imóvel rural | H4: ='1 Questionário'!D70 -> 0
B5: Desvio padrão | D5: =STDEV(Q69:Q89) ->  | F5: Área (ha) | H5: ='1 Questionário'!D72 -> 0.0
C23: Uso e ocupação do solo | H23: Uso e ocupação do solo
H24: APPs (% área total) | K24: ='1 Questionário'!E99 -> 0.0%
H25: Área a ser recuperada - APPs (% área total) | K25: =Fórmulas!G576 -> 
H26: Área a ser recuperada - APPs (ha) | K26: ='1 Questionário'!D100 -> 0
H27: Área com vegetação nativa excedente a RL(ha) | K27: ='1 Questionário'!E106 -> 0
H28: Nº de fragmentos com vegetação nativa | K28: =+'2 Indicadores'!F435 -> 0
H29: Nº de cursos d'água | K29: ='1 Questionário'!E110 -> 0
H30: Nº de nascentes | K30: ='1 Questionário'!E111 -> 0
H31: Nº de lagos e lagoas naturais | K31: ='1 Questionário'!E112 -> 0
H32: Nº de represas | K32: ='1 Questionário'!E113 -> 0
H33: Área com irrigação (ha) | K33: =+'2 Indicadores'!C81 -> 0
H35: Problemas com abastecimento de água | K35: =IF('1 Questionário'!E121="x","Sim","Não") -> Não
B38: Fertilidade do solo | H38: Gestão
B39: Matéria orgânica do solo (dag kg-1) | E39: ='2 Indicadores'!C266 -> 0.0 | H39: Renda bruta (R$/ano) | K39: =+K42/('1 Questionário'!D72+'1 Questionário'!D81) -> 
B40: Fósforo (mg dm-3) | E40: ='2 Indicadores'!C267 -> 0.0 | H40: Débitos / estimativa patrimonial | K40: ='2 Indicadores'!E121 -> 
B41: Cálcio (cmolc dm-3) | E41: ='2 Indicadores'!C268 -> 0.0 | H41: Receita bruta anual / estimativa patrimonial | K41: =K42/'2 Indicadores'!C102 -> 
B42: Magnésio (cmolc dm-3) | E42: ='2 Indicadores'!C269 -> 0.0 | H42: Receita bruta (R$/ano) | K42: =SUM('2 Indicadores'!D9:D11)+SUM('2 Indicadores'!D29:E31) -> 
B43: Potássio (mg dm-3) | E43: ='2 Indicadores'!C270 -> 0.0 | H43: Proporção principal atividade / receita bruta | K43: =+'2 Indicadores'!E9 -> 
B44: Acidez ativa (pH) | E44: ='2 Indicadores'!C271 -> 0.0
B45: Alumínio (cmolc dm-3) | E45: ='2 Indicadores'!C272 -> 0.0 | H45: Média anual evolução patrimonial total (%) | K45: ='2 Indicadores'!F112 -> 
B46: CTC (cmolc dm-3) | E46: ='2 Indicadores'!C273 -> 0.0 | H46: Média anual evol. Pat. (s/ valor. da terra) (%) | K46: ='2 Indicadores'!F113 -> 
B47: Saturação por bases (%) | E47: ='2 Indicadores'!C274 -> 0.0
B48: K/CTC (%) (referência 3 - 5%) | E48: =IF(E43>0,((E43/1000*2.5577)/E46*100),"") ->  | H48: Participação da mulher na gestão | K48: ='1 Questionário'!D66 -> 0.0%
B49: Ca/CTC (%) (referência 40 - 60%) | E49: =IF(E41>0,E41/E46*100,"") ->  | H49: Processo sucessório | K49: ='1 Questionário'!D64 -> 0.0%
B50: Mg/CTC (%) (referência 10 - 20%) | E50: =IF(E42>0,E42/E46*100,"") -> 
H51: Qte de agrotóxicos / área cultivada (L/ha/ano) | K51: =Fórmulas!D483 -> 
B52: Produtividade | H52: Volume anual de pesticidas (L) | K52: =Fórmulas!D480 -> 
B53: Descrição da cultura | E53: ='2 Indicadores'!D15 -> 0.0% | H53: Índice Final EIQ cumulativo (agrotóxicos) | K53: =SUM('2 Indicadores'!D365:F365,Fórmulas!D409:L409,Fórmulas!D438:L438,Fórmulas!D466:I466) -> 0
B54: Unidade | E54: ='2 Indicadores'!D16 -> 0
B55: Produtividade | E55: ='2 Indicadores'!D17 -> 0 | H55: Biologia do solo
H56: Arilsulfatase (mg p-nitrofenol kg-1 h-1) | K56: =IF('2 Indicadores'!C278="","",'2 Indicadores'!C278) -> 
B57: Erosão do solo | H57: ß-glicosidase (mg p-nitrofenol kg-1 h-1) | K57: =IF('2 Indicadores'!C279="","",'2 Indicadores'!C279) -> 
B58: Erosão do solo - área | E58: ='2 Indicadores'!E384 -> 0 | H58: IQS biológico | K58: =IF('2 Indicadores'!C281="","",'2 Indicadores'!C281) -> 
B59: Erosão do solo - intensidade | E59: ='2 Indicadores'!D384 -> 0 | H59: IQS química do solo | K59: =IF('2 Indicadores'!C284="","",'2 Indicadores'!C284) -> 
B60: Erosão do solo - comportamento (tendência) | E60: ='2 Indicadores'!D387 -> 0 | H60: IQS Fertbio | K60: =IF('2 Indicadores'!C285="","",'2 Indicadores'!C285) -> 
B62: Descrição técnicas inovadoras adotadas | E62: =IF('2 Indicadores'!E218="","",'2 Indicadores'!E218) -> 
Q65: DATA
Q66: =H3 -> 
N67: Desvio Padrão | P67: =STDEV(Q69:Q79,Q80:Q89) ->  | Q67: Atual | R67: Histórico I | S67: Histórico II
N68: Índice de sustentabilidade | Q68: =IF(Q69>0,AVERAGE(Q69:Q89),"") ->  | R68: =IF(R69>0,AVERAGE(R69:R89),"") ->  | S68: =IF(S69>0,AVERAGE(S69:S89),"") -> 
M69: Aspectos socioeconômicos | N69: 1.Produtividade & preço de venda | Q69: ='2 Indicadores'!C23 -> 0.00 | T69: 0.7
N70: 2.Diversificação da renda | Q70: ='2 Indicadores'!C46 ->  | T70: 0.7
N71: 3.Evolução patrimonial | Q71: ='2 Indicadores'!C115 ->  | T71: 0.7
N72: 4.Grau de endividamento | Q72: ='2 Indicadores'!C123 ->  | T72: 0.7
N73: 5.Serviços básicos | Q73: ='2 Indicadores'!C149 -> 0.00 | T73: 0.7
N74: 6.Escolaridade & Cursos | Q74: ='2 Indicadores'!C171 ->  | T74: 0.7
N75: 7.Emprego | Q75: ='2 Indicadores'!C193 -> 0.70 | T75: 0.7
N76: 8.Gestão | Q76: ='2 Indicadores'!C208 -> 0.00 | T76: 0.7
N77: 9.Comercialização & Inovação | Q77: ='2 Indicadores'!C228 -> 0.00 | T77: 0.7
M78: Aspectos ambientais | N78: 10.Gerenciamento de resíduos | Q78: ='2 Indicadores'!C248 -> 0.70 | T78: 0.7
N79: 11.Segurança do trabalho | Q79: ='2 Indicadores'!C259 -> 0.70 | T79: 0.7
N80: 12. Qualidade do solo | Q80: ='2 Indicadores'!C295 -> 0.00 | T80: 0.7
N81: 13. Qualidade da água | Q81: ='2 Indicadores'!C343 -> 0.00 | T81: 0.7
N82: 14.Risco de contaminação - água | Q82: ='2 Indicadores'!C379 -> 1.00 | T82: 0.7
N83: 15. Erosão do solo | Q83: ='2 Indicadores'!C390 -> 0.70 | T83: 0.7
N84: 16.Conservação solo e água | Q84: ='2 Indicadores'!C407 ->  | T84: 0.7
N85: 17.Conservação estradas | Q85: ='2 Indicadores'!C424 -> 0.00 | T85: 0.7
N86: 18.Vegetação nativa | Q86: ='2 Indicadores'!C443 -> 0.00 | T86: 0.7
N87: 19. APPs | Q87: ='2 Indicadores'!C454 -> 0.00 | T87: 0.7
N88: 20. Reserva Legal | Q88: ='2 Indicadores'!C468 ->  | T88: 0.7
N89: 21.Conservação biodiversidade | Q89: ='2 Indicadores'!C488 ->  | T89: 0.7

Sheet 4 Plano de adequação
D1: PLANO DE ADEQUAÇÃO
B2: ISA
B5: PRODUTOR(A) | D5: =IF('1 Questionário'!C44="","",'1 Questionário'!C44) -> 
B6: MUNICÍPIO | D6: =IF('1 Questionário'!C54="","",'1 Questionário'!C54) -> 
B7: DATA DA APLICAÇÃO | D7: =IF('1 Questionário'!C34="","",'1 Questionário'!C34) -> 
B9: TECHNICAL REGISTRATION | D9: =IF('1 Questionário'!C38="","",'1 Questionário'!C38) -> 
B11: ITEM | C11: ÍNDICE | D11: PROPOSIÇÕES | E11: PERÍODO DE EXECUÇÃO
B12: ='3 Relatório'!N69 -> 1.Produtividade & preço de venda | C12: ='3 Relatório'!Q69 -> 0.00
B13: ='3 Relatório'!N78 -> 10.Gerenciamento de resíduos | C13: ='3 Relatório'!Q78 -> 0.70
B14: ='3 Relatório'!N79 -> 11.Segurança do trabalho | C14: ='3 Relatório'!Q79 -> 0.70
B15: ='3 Relatório'!N80 -> 12. Qualidade do solo | C15: ='3 Relatório'!Q80 -> 0.00
B16: ='3 Relatório'!N81 -> 13. Qualidade da água | C16: ='3 Relatório'!Q81 -> 0.00
B17: ='3 Relatório'!N82 -> 14.Risco de contaminação - água | C17: ='3 Relatório'!Q82 -> 1.00
B18: ='3 Relatório'!N83 -> 15. Erosão do solo | C18: ='3 Relatório'!Q83 -> 0.70
B19: ='3 Relatório'!N84 -> 16.Conservação solo e água | C19: ='3 Relatório'!Q84 -> 
B20: ='3 Relatório'!N85 -> 17.Conservação estradas | C20: ='3 Relatório'!Q85 -> 0.00
B21: ='3 Relatório'!N86 -> 18.Vegetação nativa | C21: ='3 Relatório'!Q86 -> 0.00
B22: ='3 Relatório'!N87 -> 19. APPs | C22: ='3 Relatório'!Q87 -> 0.00
B23: ='3 Relatório'!N70 -> 2.Diversificação da renda | C23: ='3 Relatório'!Q70 -> 
B24: ='3 Relatório'!N88 -> 20. Reserva Legal | C24: ='3 Relatório'!Q88 -> 
B25: ='3 Relatório'!N89 -> 21.Conservação biodiversidade | C25: ='3 Relatório'!Q89 -> 
B26: ='3 Relatório'!N71 -> 3.Evolução patrimonial | C26: ='3 Relatório'!Q71 -> 
B27: ='3 Relatório'!N72 -> 4.Grau de endividamento | C27: ='3 Relatório'!Q72 -> 
B28: ='3 Relatório'!N73 -> 5.Serviços básicos | C28: ='3 Relatório'!Q73 -> 0.00
B29: ='3 Relatório'!N74 -> 6.Escolaridade & Cursos | C29: ='3 Relatório'!Q74 -> 
B30: ='3 Relatório'!N75 -> 7.Emprego | C30: ='3 Relatório'!Q75 -> 0.70
B31: ='3 Relatório'!N76 -> 8.Gestão | C31: ='3 Relatório'!Q76 -> 0.00
B32: ='3 Relatório'!N77 -> 9.Comercialização & Inovação | C32: ='3 Relatório'!Q77 -> 0.00
B33: Regularização ambiental do empreendimento | C33: ='1 Questionário'!E129 -> 0.00
B34: Regularização do uso da água | C34: ='1 Questionário'!E127 -> 0.00

Sheet Plan1 (hidden)

Sheet Sheet3 (hidden)

Sheet Sheet4 (hidden)

Sheet Sheet5 (hidden)

Sheet Sheet6 (hidden)

Sheet Relatório de Assist (2) (hidden)
L1: RELATÓRIO DE ASSISTÊNCIA TÉCNICA AO PRODUTOR RURAL | R1: =C9 -> Visita N° | S1: =D9 -> 1
K3: Formulário atualizado em: UPEC–05/01/2012
B5: Produtor: | O5: CPF:
B6: Município: | K6: Comunidade:
B7: Convênio: | J7: META: | L7: Nº Convênio:
B8: Nome do Técnico / Matrícula:
C9: Visita N° | D9: 1
G10: ORIENTAÇÃO TÉCNICA (Situação Atual, Orientações e Recomendações)
B43: Assinaturas
C47: Data | I47: Técnico Responsável / Nº Conselho | L47: Produtor
B48: MOD.230-07 E MAPA/EMBRAPA | L48: Formulário atualizado em: UPEC–13/03/2013

Sheet Fórmulas
B1: ISA | D1: FÓRMULAS
B4: INDICADORES
A6: 1 | B6: Fator de Ponderação | F6: Fórmulas
B7: > 20% | D7: 0.9 | F7: Fórmula (R parcial) = Yo + ax | J7: UNIDADES I | L7: UNIDADES II
B8: produtividade ou preço de venda = a regional | D8: 0.7 | J8: Algodão | L8: Sc/ha
F9: yo | G9: -0.30 | J9: Arroz | L9: Ton./ha
B10: < 20% | D10: 0.5 | F10: a | G10: 0.01 | J10: Avicultura | L10: Kg/ha
B11: < 40% | D11: 0.3 | F11: =IF(ISBLANK('2 Indicadores'!D17),"",(G9+G10*(100+(Fórmulas!E17*100)))) ->  | G11: =IF(ISBLANK('2 Indicadores'!E17),"",(G9+G10*(100+(Fórmulas!F17*100)))) ->  | H11: =IF(ISBLANK('2 Indicadores'!F17),"",(G9+G10*(100+(Fórmulas!G17*100)))) ->  | J11: Batata | L11: @/ha/ano
F12: =IF(ISBLANK('2 Indicadores'!D18),"",(G9+G10*(100+(Fórmulas!E18*100)))) ->  | G12: =IF(ISBLANK('2 Indicadores'!E18),"",(G9+G10*(100+(Fórmulas!F18*100)))) ->  | H12: =IF(ISBLANK('2 Indicadores'!F18),"",(G9+G10*(100+(Fórmulas!G18*100)))) ->  | J12: Café | L12: L de leite/ha/ano
J13: Cana de açúcar | L13: L de leite/vaca/dia
F14: =AVERAGE(Fórmulas!E20:G21) ->  | J14: Floricultura | L14: Kg/dia
F15: =IF('3 Relatório'!K39<300,Fórmulas!F14*0.7,Fórmulas!F14) ->  | G15: =IF(F15<0,0,F15) ->  | J15: Fruticultura | L15: Kg de alimento/kg de carne produzida
J16: Grãos | L16: Leitões comercializados/porca/ano
B17: Variação do item 1.3 em relação ao item 1.5 | E17: =IF('2 Indicadores'!D17>0,(('2 Indicadores'!D17/'2 Indicadores'!D19)-1),"") ->  | F17: =IF('2 Indicadores'!E17>0,(('2 Indicadores'!E17/'2 Indicadores'!E19)-1),"") ->  | G17: =IF('2 Indicadores'!F17>0,(('2 Indicadores'!F17/'2 Indicadores'!F19)-1),"") ->  | H17: 1.0 | J17: Hortaliças | L17: Ovos/galinha/ano
B18: Variação do item 1.4 em relação ao item 1.6 | E18: =IF('2 Indicadores'!D18>0,(('2 Indicadores'!D18/'2 Indicadores'!D20)-1),"") ->  | F18: =IF('2 Indicadores'!E18>0,(('2 Indicadores'!E18/'2 Indicadores'!E20)-1),"") ->  | G18: =IF('2 Indicadores'!F18>0,(('2 Indicadores'!F18/'2 Indicadores'!F20)-1),"") ->  | H18: 1.0 | J18: Milho | L18: Conversão Alimentar/dúzia de ovos
E19: 1.0 | F19: 1.0 | G19: 1.0 | H19: Matriz de ponderação | J19: Óleo de palma | L19: Conversão Alimentar/Kg
B20: Resultado parcial | C20: Produtividade | E20: =IF(ISBLANK('2 Indicadores'!D17),"",IF(Fórmulas!F11>1,1,Fórmulas!F11)) ->  | F20: =IF(ISBLANK('2 Indicadores'!E17),"",IF(Fórmulas!G11>1,1,Fórmulas!G11)) ->  | G20: =IF(ISBLANK('2 Indicadores'!F17),"",IF(Fórmulas!H11>1,1,Fórmulas!H11)) ->  | J20: Outros | L20: Percentagem de postura
C21: Preço de venda | E21: =IF(ISBLANK('2 Indicadores'!D18),"",IF(Fórmulas!F12>1,1,Fórmulas!F12)) ->  | F21: =IF(ISBLANK('2 Indicadores'!E18),"",IF(Fórmulas!G12>1,1,Fórmulas!G12)) ->  | G21: =IF(ISBLANK('2 Indicadores'!F18),"",IF(Fórmulas!H12>1,1,Fórmulas!H12)) ->  | J21: Ovos
J22: Pecuária
J23: Pecuária de corte
J24: Pecuária de leite
J25: Pisicultura
J26: Silvicultura
J27: Soja
J28: Suínocultura
J29: Trigo
A31: 2 | B31: Fator de Ponderação | F31: Fórmulas | K31: 0.3
B32: item 2.3 | C32: 1 - (F362 *0,3) | F32: =1-(('2 Indicadores'!F40^2*Fórmulas!K31)+('2 Indicadores'!F41^2*Fórmulas!K32)+('2 Indicadores'!F42^2*Fórmulas!K33)+('2 Indicadores'!F43^2*Fórmulas!K34)) ->  | G32: =IF(AND('2 Indicadores'!F40>80%,'2 Indicadores'!F44="sim"),F32-10%,F32) ->  | H32: =IF(Fórmulas!G32<0.1,0.1,Fórmulas!G32) ->  | K32: 0.3
B33: item 2.3 | C33: 1 - (F372 *0,3) | K33: 1.0
B34: item 2.3 | C34: 1 - (F382 *1) | K34: 2.0
B35: item 2.3 | C35: 1 - (F392 *2)
A38: 3 | B38: Fator de Ponderação | F38: Fórmulas | K38: =+Fórmulas!M38 ->  | M38: =(+(Fórmulas!E57-Fórmulas!J57)/('2 Indicadores'!C102-'2 Indicadores'!D102)) -> 
B39: item 3.1 | C39: 0.67 | F39: =(Fórmulas!M38*'2 Indicadores'!G107+Fórmulas!M39*'2 Indicadores'!G108+Fórmulas!M40*'2 Indicadores'!G109+Fórmulas!M41*'2 Indicadores'!G110+Fórmulas!M42*'2 Indicadores'!G111) ->  | G39: =IF('2 Indicadores'!F113>26%,F39*((1+('2 Indicadores'!F113-0.26))),F39) ->  | H39: =IF('2 Indicadores'!F112>0,G39,1-(0.3-10*'2 Indicadores'!F112)) ->  | I39: =IF(H39<0,0,H39) ->  | K39: =+Fórmulas!M39 ->  | M39: =('2 Indicadores'!$D$61-'2 Indicadores'!$E$61)/('2 Indicadores'!$C$102-'2 Indicadores'!$D$102) -> 
B40: item 3.2 | C40: 1.00 | K40: =+Fórmulas!M40 ->  | M40: =('2 Indicadores'!$D$71-'2 Indicadores'!$E$71)/('2 Indicadores'!$C$102-'2 Indicadores'!$D$102) -> 
B41: item 3.3 | C41: 1.00 | K41: =+Fórmulas!M41 ->  | M41: =('2 Indicadores'!$D$77-'2 Indicadores'!$F$77)/('2 Indicadores'!$C$102-'2 Indicadores'!$D$102) -> 
B42: item 3.4 | C42: 1.00
B43: UNIDADES III | M43: =M42+M41+M40+M39+M38 -> 
B44: Aspersão | J44: Verificação | K44: =SUM(Fórmulas!M38:M42) -> 
B45: Gotejamento/microaspersão
B46: Pivô central
B47: Outras categorias | D47: Item 3.2
B48: Diversos tipos de irrigação | D48: Fórmula - VR(valor residual) = (1-T)N x VI, em que: T = taxa de depreciação; N = tempo (nº de anos); e VI = valor inicial
M49: UNIDADES IV
B50: Categorias | D50: Ponderação | E50: Valor total atual | G50: Área total | H50: Ponderação | I50: Valor histórico | K50: Área total (%) | M50: Estoque de grãos
B51: Vegetação nativa e outros | D51: 1.00 | E51: =('2 Indicadores'!C98*D51)*G51*('3 Relatório'!$H$5) ->  | G51: ='1 Questionário'!E90+'1 Questionário'!E91+'1 Questionário'!E92+'1 Questionário'!E93+'1 Questionário'!E94 ->  | H51: =+D51 -> 1.00 | I51: =(K51*H51)*'3 Relatório'!H5*'2 Indicadores'!D98 ->  | K51: =+('2 Indicadores'!D90+'2 Indicadores'!D89+'2 Indicadores'!D91+'2 Indicadores'!D92+'2 Indicadores'!D93)/'2 Indicadores'!D94 ->  | M51: Bovinos
B52: Pastagens | D52: 1.00 | E52: =('2 Indicadores'!C98*D52)*G52*('3 Relatório'!$H$5) ->  | G52: ='1 Questionário'!E88 ->  | H52: =+D52 -> 1.00 | I52: =(K52*H52)*'3 Relatório'!H5*'2 Indicadores'!D98 ->  | K52: =+'2 Indicadores'!D87/'2 Indicadores'!D94 ->  | M52: Equinos/Moares
B53: Lavoura temporária | D53: 1.00 | E53: =('2 Indicadores'!C98*D53)*G53*('3 Relatório'!$H$5) ->  | G53: ='1 Questionário'!E87 ->  | H53: =+D53 -> 1.00 | I53: =K53*'3 Relatório'!H5*('2 Indicadores'!D98*H53) ->  | K53: =+'2 Indicadores'!D86/'2 Indicadores'!D94 ->  | M53: Suínos
B54: Irrigação (R$1.000,00/ha) | D54: 5,000.00 | E54: =+'3 Relatório'!H5*G54*D54 ->  | G54: ='2 Indicadores'!C81/'3 Relatório'!H5 ->  | H54: =+D54 -> 5,000.00 | I54: =+'3 Relatório'!H5*K54*H54 ->  | K54: =+'2 Indicadores'!D81/'3 Relatório'!H5 ->  | M54: Caprinos/Ovinos
B55: Lav. perene/silvicutura | D55: 1.00 | E55: =('2 Indicadores'!C98*D55)*G55*('3 Relatório'!$H$5) ->  | G55: ='1 Questionário'!E86+'1 Questionário'!E89 ->  | H55: =+D55 -> 1.00 | I55: =K55*'3 Relatório'!H5*('2 Indicadores'!D98*H55) ->  | K55: =+('2 Indicadores'!D85+'2 Indicadores'!D88)/'2 Indicadores'!D94 ->  | M55: Aves
G56: =+G55+G53+G52+G51 ->  | J56: Histórico | K56: =+K55+K53+K52+K51 ->  | M56: Outros
B57: Valor Total da terra | E57: =E51+E52+E53+E54+E55 ->  | J57: =I51+I52+I53+I54+I55 -> 
B59: Evolução decorrente da modificação do uso do solo | H59: =J59/'2 Indicadores'!C102 ->  | J59: =(((Fórmulas!G53-Fórmulas!K53)*'3 Relatório'!H5*'2 Indicadores'!C98*1.1)+((Fórmulas!G54-Fórmulas!K54)*'3 Relatório'!H5*('2 Indicadores'!C98+1000))+((Fórmulas!G55-Fórmulas!K55)*'3 Relatório'!H5*'2 Indicadores'!C98*1.3)) -> 
J60: =('2 Indicadores'!$C$98*Fórmulas!D51)*Fórmulas!K51*'3 Relatório'!$H$5 -> 
B61: Evolução patrimonial (sem a valorização do preço da terra) | H61: =IF('2 Indicadores'!D102>0,('2 Indicadores'!C102/L65-1),"") ->  | J61: =('2 Indicadores'!$C$98*Fórmulas!D52)*Fórmulas!K52*'3 Relatório'!$H$5 -> 
J62: =('2 Indicadores'!$C$98*Fórmulas!D53)*Fórmulas!K53*'3 Relatório'!$H$5 -> 
B63: Evolução patrimonial total | H63: =IF('2 Indicadores'!C102>0,('2 Indicadores'!C102/'2 Indicadores'!D102-1),"") ->  | J63: =Fórmulas!I54 -> 
J64: =('2 Indicadores'!$C$98*Fórmulas!D55)*Fórmulas!K55*'3 Relatório'!$H$5 -> 
J65: =SUM(J60:K64) ->  | L65: =+J65+'2 Indicadores'!E61+'2 Indicadores'!E71+'2 Indicadores'!F77 -> 
A67: 4 | B67: Fator de Ponderação | F67: Fórmulas
B68: 0% | C68: 0.7 | F68: =IF('2 Indicadores'!E121=0,0.7,0) ->  | G68: =SUM(F68:F71) -> 
B69: 0-7,5% | C69: y = 0,04x + 0,7 | F69: =IF('2 Indicadores'!E121>0,G69,0) ->  | G69: =IF('2 Indicadores'!E121>=0.075,0,H69) ->  | H69: =0.04*('2 Indicadores'!E121*100)+0.7 -> 
B70: 7,5-30% | C70: y = -0,04x + 1,3 | F70: =IF('2 Indicadores'!E121>=0.075,G70,0) ->  | G70: =IF('2 Indicadores'!E121>0.3,0,H70) ->  | H70: =-0.04*('2 Indicadores'!E121*100)+1.3 -> 
B71: 15-30% | C71: y = -0,4x + 1,29 | F71: =IF('2 Indicadores'!E121>0.3,0.1,0) -> 
B72: >30% | C72: 0.1
B73: >25% | C73: 0.1
A76: 5 | B76: Fator de Ponderação | F76: Fórmulas
B77: Água | C77: 1.0 | F77: =IF(G77>0,1,0) -> 0 | G77: =+'2 Indicadores'!D137+'2 Indicadores'!D134+'2 Indicadores'!D133+'2 Indicadores'!D132+'2 Indicadores'!D131*I77+'2 Indicadores'!D138+'2 Indicadores'!D135+'2 Indicadores'!D136 -> 0 | H77: =(('2 Indicadores'!D131*I77+'2 Indicadores'!D132+'2 Indicadores'!D133+'2 Indicadores'!D134+'2 Indicadores'!D135+'2 Indicadores'!D136+'2 Indicadores'!D137+'2 Indicadores'!D138)+('2 Indicadores'!E131*I77+'2 Indicadores'!E132+'2 Indicadores'!E133+'2 Indicadores'!E134+'2 Indicadores'!E135+'2 Indicadores'!E136+'2 Indicadores'!E137+'2 Indicadores'!E138))/H79 -> 0 | I77: 1 | K77: 1
B78: Eletricidade | C78: 1.0 | F78: =IF(G78>0,1,0) -> 0 | G78: =+'2 Indicadores'!E137+'2 Indicadores'!E134+'2 Indicadores'!E133+'2 Indicadores'!E132+'2 Indicadores'!E131*I77+'2 Indicadores'!E138+'2 Indicadores'!E135+'2 Indicadores'!E136 -> 0 | H78: =+F80+F79+F78+F77 -> 0 | K78: 0.5
B79: Estrada | C79: 1.0 | H79: =IF(H78=0,1,H78) -> 1.00 | K79: 0
B80: Saúde | C80: 1.0
B81: Transporte | C81: 1.0
B82: Segurança | C82: 1.0
B83: Internet | C83: 1.0
B84: Coleta de lixo | C84: 1.0
B86: Fator de Ponderação | F86: Fórmulas
B87: Hortaliças | C87: 1.0 | F87: =IF(G87>0,1,0) -> 0 | G87: ='2 Indicadores'!D144+'2 Indicadores'!D145+'2 Indicadores'!D146 -> 0
B88: Pomar | C88: 1.0 | F88: =IF(G88>0,1,0) -> 0 | G88: ='2 Indicadores'!E144+'2 Indicadores'!E145+'2 Indicadores'!E146 -> 0
B89: Leite, ovos, carne | C89: 1.0 | F89: =IF(('2 Indicadores'!D144+'2 Indicadores'!D145+'2 Indicadores'!D146)=0,0,(('2 Indicadores'!D144+'2 Indicadores'!D145+'2 Indicadores'!D146)+('2 Indicadores'!E144+'2 Indicadores'!E145+'2 Indicadores'!E146))/F90) -> 0
F90: =SUM(F87:F88) -> 0
A93: 6 | B93: Fator de Ponderação | F93: Fórmulas
B94: =+'2 Indicadores'!B155:C155 -> Menos de 9 anos de estudo | C94: 0.7 | F94: Fórmula: limiar de sustentabilidade (0,7) => adultos com no mínimo 5 anos de escolaridade (equivalente a 4 anos na grade escolar antiga) e crianças na rede de ensino. Cursos de capacitação direcionados para a atividade e mão de obra qualificada => acréscimo máx. 0,3 nota final
B95: =+'2 Indicadores'!B156:C156 -> Ensino Fundamental completo | C95: 1.0 | F95: =IF('2 Indicadores'!D154>0,((('2 Indicadores'!D155*'2 Indicadores'!F155+'2 Indicadores'!D156*'2 Indicadores'!F156+'2 Indicadores'!D157*'2 Indicadores'!F157+'2 Indicadores'!D158*'2 Indicadores'!F158))*0.7),0) -> 0 | G95: =IF('2 Indicadores'!D154>0,(('2 Indicadores'!D162*'2 Indicadores'!F162+'2 Indicadores'!D163*'2 Indicadores'!F163))*0.3,0) -> 0 | H95: =+'2 Indicadores'!D154+'2 Indicadores'!E154 -> 0 | I95: =IF('2 Indicadores'!D168>0,(('2 Indicadores'!D169*'2 Indicadores'!F169)*0.7),0) -> 0 | K95: =I97+G97 -> 
B96: =+'2 Indicadores'!B157:C157 -> Ensino Médio completo | C96: 1.2 | F96: =IF('2 Indicadores'!E154>0,((('2 Indicadores'!E155*'2 Indicadores'!F155+'2 Indicadores'!E156*'2 Indicadores'!F156+'2 Indicadores'!E157*'2 Indicadores'!F157+'2 Indicadores'!E158*'2 Indicadores'!F158))*0.7),0) -> 0 | G96: =IF('2 Indicadores'!E154>0,(('2 Indicadores'!E162*'2 Indicadores'!F162+'2 Indicadores'!E163*'2 Indicadores'!F163))*0.3,0) -> 0 | H96: =+'2 Indicadores'!D168+'2 Indicadores'!E168 -> 0 | I96: =IF('2 Indicadores'!E168>0,(('2 Indicadores'!E169*'2 Indicadores'!F169))*0.7,0) -> 0 | K96: =K95 -> 
B97: =+'2 Indicadores'!B158:C158 -> Curso superior | C97: 1.5 | F97: =(F95+F96)/H95 ->  | G97: =(G95+G96)/H95 ->  | H97: =(I95+I96)/H96 ->  | I97: =IF(OR('2 Indicadores'!D168>0,'2 Indicadores'!E168>0),((H97+F97)/2),F97) -> 
B98: =+'2 Indicadores'!B162:C162 -> Capacitação curta temporada | C98: 0.5
B99: =+'2 Indicadores'!B163:C163 -> Capacitação longa temporada | C99: 0.8
B100: =+'2 Indicadores'!B169:C169 -> Frequenta rede de ensino | C100: 1.0
A103: 7 | B103: Fator de Ponderação | F103: Formulas
B104: =+'2 Indicadores'!B178:D178 -> Registro de funcionários (carteira de trabalho) | C104: 1.0 | F104: Fórmula: = 0,7 se houver o cumprimento da lei referente ao registro e pagamento de hora extra de todos os funcionários; auxílios e benefícios acréscimo - máx.0,3
B105: =+'2 Indicadores'!B179:D179 -> Pagamento de hora extra / banco de horas / ausência de hora extra | C105: 1.0
B106: =+'2 Indicadores'!B184:D184 -> Acima de 1 salário mínimo | C106: 1.0 | F106: =IF('2 Indicadores'!E177>0,((('2 Indicadores'!E178*'2 Indicadores'!$G$178+'2 Indicadores'!E179*'2 Indicadores'!$G$179)/('2 Indicadores'!E177*2))*0.7),0.7) -> 0.70 | G106: =IF('2 Indicadores'!E177>0,(('2 Indicadores'!E184*'2 Indicadores'!$G$184+'2 Indicadores'!E185*'2 Indicadores'!$G$185+'2 Indicadores'!E186*'2 Indicadores'!$G$186+'2 Indicadores'!E187*'2 Indicadores'!$G$187+'2 Indicadores'!E188*'2 Indicadores'!$G$188+'2 Indicadores'!E189*'2 Indicadores'!$G$189+'2 Indicadores'!E190*'2 Indicadores'!$G$190+'2 Indicadores'!E191*'2 Indicadores'!$G$191)/('2 Indicadores'!E177*8)*0.3),0) -> 0 | H106: =(F106+G106) -> 0.70
B107: =+'2 Indicadores'!B185:D185 -> Auxílio alimentação | C107: 1.0 | F107: =IF('2 Indicadores'!F177>0,((('2 Indicadores'!F178*'2 Indicadores'!$G$178+'2 Indicadores'!F179*'2 Indicadores'!$G$179)/('2 Indicadores'!F177*2))*0.7),0.7) -> 0.70 | G107: =IF('2 Indicadores'!F177>0,(('2 Indicadores'!F184*'2 Indicadores'!$G$184+'2 Indicadores'!F185*'2 Indicadores'!$G$185+'2 Indicadores'!F186*'2 Indicadores'!$G$186+'2 Indicadores'!F187*'2 Indicadores'!$G$187+'2 Indicadores'!F188*'2 Indicadores'!$G$188+'2 Indicadores'!F189*'2 Indicadores'!$G$189+'2 Indicadores'!F190*'2 Indicadores'!$G$190+'2 Indicadores'!F191*'2 Indicadores'!$G$191)/('2 Indicadores'!F177*8)*0.3),0) -> 0 | H107: =(F107+G107) -> 0.70
B108: =+'2 Indicadores'!B186:D186 -> Auxílio moradia | C108: 1.0 | F108: =+H106 -> 0.70 | G108: =IF('2 Indicadores'!F177>0,(H107+F108)/2,F108) -> 0.70 | H108: =IF(SUM('2 Indicadores'!E177:F177)=0,0.7,Fórmulas!G108) -> 0.70
B109: =+'2 Indicadores'!B187:D187 -> Auxílio educação e transporte | C109: 1.0
B110: =+'2 Indicadores'!B188:D188 -> Participação nos lucros | C110: 5.0
B111: =+'2 Indicadores'!B189:D189 -> Seguro contra acidentes | C111: 3.0
B112: =+'2 Indicadores'!B190:D190 -> Acesso a lazer | C112: 1.0
B113: =+'2 Indicadores'!B191:D191 -> Espaço para cultivo de alimentos | C113: 3.0
A116: 8 | B116: Fator de Ponderação
B117: Fluxi de caixa | C117: 0.5
B118: Custo de produção | C118: 0.5
B119: Assistência Técnica | C119: 1.0
B120: Associação | C120: 1.0
B121: Regularização ambiental | C121: 1.0
B122: Crédito investimento | C122: 0.4
B123: Crédito custeio | C123: 0.4
B124: Crédito comercialização | C124: 0.2
A127: 9 | B127: Fator de Ponderação | F127: Fórmulas
B128: =+'2 Indicadores'!B213:D213 -> Diversificação de compradores, busca de preços, preços pré-venda | C128: 0.4 | F128: =(G128*C128+G129*C129+G130*C130+G131*C131) -> 0.00 | G128: =IF('2 Indicadores'!E213="Sim",1,0) -> 0
B129: =+'2 Indicadores'!B214:D214 -> Produtos certificados, agrega valor, mercado institucional | C129: 0.4 | G129: =IF('2 Indicadores'!E214="Sim",1,0) -> 0
B130: =+'2 Indicadores'!B217:D217 -> Adoção de técnicas inovadoras* | C130: 0.3 | G130: =IF('2 Indicadores'!E217="Sim",1,0) -> 0
B131: =+'2 Indicadores'!B219:D219 -> Capacidade de inovação ou liderança na comunidade | C131: 0.4 | G131: =IF('2 Indicadores'!E219="Sim",1,0) -> 0
A135: 10 | B135: Fator de Ponderação | F135: Fórmulas
B136: Esgoto residências | C136: 1.0 | F136: =IF(G136>1,1,G136) ->  | G136: =IF(H136>0,I136/H136,I136) ->  | H136: =COUNTIF('2 Indicadores'!F234:G242,">=0") -> 0 | I136: ='2 Indicadores'!F234+'2 Indicadores'!F235+'2 Indicadores'!F238+'2 Indicadores'!F241+'2 Indicadores'!F242 ->  | K136: Não se aplica
B137: Lixo | C137: 1.0 | F137: =IF('2 Indicadores'!F245="Sim",Fórmulas!F136*0.7,Fórmulas!F136) -> 
B138: Resíduo orgânico | C138: 1.0
B139: Efluentes líquidos | C139: 1.0
B140: Efluentes gasosos | C140: 1.0
B142: UNIDADES V | F142: Fator de ponderação
B143: Ausência de coleta e tratamento de esgoto | F143: 0.00 | G143: =IF('2 Indicadores'!$D$234=Fórmulas!B143,1,0) -> 0 | H143: =G143*F143 -> 0 | I143: =IF('2 Indicadores'!$E$234=Fórmulas!B143,1,0) -> 0 | J143: =I143*F143 -> 0 | K143: =SUM(G143:G147) -> 0 | L143: =SUM(I143:I147) -> 0 | M143: =L143+K143 -> 0
B144: Fossa rudimentar; fossa negra sem revestimento | F144: 0.25 | G144: =IF('2 Indicadores'!$D$234=Fórmulas!B144,1,0) -> 0 | H144: =G144*F144 -> 0 | I144: =IF('2 Indicadores'!$E$234=Fórmulas!B144,1,0) -> 0 | J144: =I144*F144 -> 0 | K144: =SUM(H143:H147) -> 0 | L144: =SUM(J143:J147) -> 0 | M144: =SUM(K144:L144)/M143 -> 
B145: Fossa, filtro, sumidouro | F145: 0.70 | G145: =IF('2 Indicadores'!$D$234=Fórmulas!B145,1,0) -> 0 | H145: =G145*F145 -> 0 | I145: =IF('2 Indicadores'!$E$234=Fórmulas!B145,1,0) -> 0 | J145: =I145*F145 -> 0
B146: Fossa séptica com manutenção | F146: 0.80 | G146: =IF('2 Indicadores'!$D$234=Fórmulas!B146,1,0) -> 0 | H146: =G146*F146 -> 0 | I146: =IF('2 Indicadores'!$E$234=Fórmulas!B146,1,0) -> 0 | J146: =I146*F146 -> 0
B147: Fossa Biodigestora, Fossa TEVAP; separação e tratamento águas cinzas | F147: 1.00 | G147: =IF('2 Indicadores'!$D$234=Fórmulas!B147,1,0) -> 0 | H147: =G147*F147 -> 0 | I147: =IF('2 Indicadores'!$E$234=Fórmulas!B147,1,0) -> 0 | J147: =I147*F147 -> 0
B148: UNIDADES VI
B149: Queimado/descartado em local inapropriado | F149: 0.00 | G149: =IF('2 Indicadores'!$D$235=Fórmulas!B149,1,0) -> 0 | H149: =G149*F149 -> 0 | I149: =IF('2 Indicadores'!$E$235=Fórmulas!B149,1,0) -> 0 | J149: =I149*F149 -> 0 | K149: =SUM(G149:G152) -> 0 | L149: =SUM(I149:I152) -> 0 | M149: =L149+K149 -> 0
B150: Enterrado no imóvel rural | F150: 0.30 | G150: =IF('2 Indicadores'!$D$235=Fórmulas!B150,1,0) -> 0 | H150: =G150*F150 -> 0 | I150: =IF('2 Indicadores'!$E$235=Fórmulas!B150,1,0) -> 0 | J150: =I150*F150 -> 0 | K150: =SUM(H149:H152) -> 0 | L150: =SUM(J149:J152) -> 0 | M150: =SUM(K150:L150)/M149 -> 
B151: Lixo levado pelo produtor | F151: 0.80 | G151: =IF('2 Indicadores'!$D$235=Fórmulas!B151,1,0) -> 0 | H151: =G151*F151 -> 0 | I151: =IF('2 Indicadores'!$E$235=Fórmulas!B151,1,0) -> 0 | J151: =I151*F151 -> 0
B152: Lixo coletado pela prefeitura | F152: 1.00 | G152: =IF('2 Indicadores'!$D$235=Fórmulas!B152,1,0) -> 0 | H152: =G152*F152 -> 0 | I152: =IF('2 Indicadores'!$E$235=Fórmulas!B152,1,0) -> 0 | J152: =I152*F152 -> 0
A154: 11 | B154: Fator de Ponderação | F154: Fórmulas
B155: =+'2 Indicadores'!B253:D253 -> Quantas pessoas fazem o manuseio de agrotóxicos | C155: 1.0 | F155: Fórmula: 0,7, se atende todas as regras, conforme legislação ambiental vigente (EPI; armazenamento e devolução de embalagens)
B156: =+'2 Indicadores'!B254:D254 -> Quantas pessoas utilizam EPI adequadamente | C156: 1.0
B157: =+'2 Indicadores'!B256:D256 -> Armazenamento adequado das embalagens | C157: 1.0 | F157: =IF('2 Indicadores'!E253>0,('2 Indicadores'!E254/'2 Indicadores'!E253),0.7) -> 0.70 | G157: =IF('2 Indicadores'!E253>0,(H157+H158+F157)/3*0.7,0.7) -> 0.70 | H157: =IF('2 Indicadores'!E256="Sim",1,0) -> 0
B158: =+'2 Indicadores'!B257:D257 -> Devolução das embalagens de agrotóxicos | C158: 1.0 | H158: =IF('2 Indicadores'!E257="Sim",1,0) -> 0
A160: 12 | B160: MOS - Fator Ponderação
B161: Classificação | F161: Ponderação | H161: Classes de textura (dag kg-1 de argila)
B162: Arenosa | C162: Média | D162: Argilosa | E162: Muito Argilosa | H162: Arenosa | J162: ≤ 15
B163: 0.00 | C163: 0.00 | D163: 0.00 | E163: 0.00 | F163: 0.10 | H163: Média | J163: 16 a 34
B164: 0.80 | C164: 1.60 | D164: 2.40 | E164: 2.80 | F164: 0.50 | H164: Argilosa | J164: 35 a 60
B165: 1.10 | C165: 2.10 | D165: 3.10 | E165: 3.60 | F165: 0.70 | H165: Muito argilosa | J165: > 60
B166: 1.50 | C166: 3.00 | D166: 4.50 | E166: 5.20 | F166: 1.00
B167: 4.50 | C167: 9.00 | D167: 13.50 | E167: 15.60 | F167: 0.70
B169: MOS - Fórmulas
B170: Arenosa | C170: Yo + ax + bx2 + cx3 | E170: Fórmula2 = Yo + ax | G170: Média | H170: Yo + ax + bx2 + cx3 | J170: Fórmula2 = Yo + ax | M170: =IF(AND('2 Indicadores'!E265="Arenosa"),IF('2 Indicadores'!C266<1.5,Fórmulas!E173,Fórmulas!F173),0) -> 0.00
C171: Yo | D171: 0.100 | E171: Yo | F171: 1.15 | H171: Yo | I171: 0.100 | J171: Yo | K171: 1.15 | M171: =IF(AND('2 Indicadores'!E265="Média"),IF('2 Indicadores'!C266<3,Fórmulas!J173,Fórmulas!K173),0) -> 0.00
C172: a | D172: 0.360 | E172: a | F172: -0.10 | H172: a | I172: 0.002 | J172: a | K172: -0.05 | M172: =IF(AND('2 Indicadores'!E265="Argilosa"),IF('2 Indicadores'!C266<4.5,Fórmulas!E178,Fórmulas!F178),0) -> 0.00
C173: b | D173: 0.193 | E173: =D171+D172*'2 Indicadores'!C266+D173*'2 Indicadores'!C266^2+D174*'2 Indicadores'!C266^3 -> 0.10 | F173: =F171+F172*'2 Indicadores'!C266 -> 1.15 | H173: b | I173: 0.218 | J173: =I171+I172*'2 Indicadores'!C266+I173*'2 Indicadores'!C266^2+I174*'2 Indicadores'!C266^3 -> 0.10 | K173: =K171+K172*'2 Indicadores'!C266 -> 1.15 | M173: =IF(AND('2 Indicadores'!E265="Muito argilosa"),IF('2 Indicadores'!C266<5.2,Fórmulas!J178,Fórmulas!K178),0) -> 0.00
C174: c | D174: -0.022 | H174: c | I174: -0.040 | M174: =(M170+M171+M172+M173) -> 0.00
B175: Argilosa | C175: Yo + ax + bx2 + cx3 | E175: Fórmula2 = Yo + ax | G175: Muito argilosa | H175: Yo + ax + bx2 + cx3 | J175: Fórmula2 = Yo + ax
C176: Yo | D176: 0.100 | E176: Yo | F176: 1.15 | H176: Yo | I176: 0.100 | J176: Yo | K176: 1.15
C177: a | D177: -0.045 | E177: a | F177: -0.03 | H177: a | I177: -0.049 | J177: a | K177: -0.03
C178: b | D178: 0.127 | E178: =D176+D177*'2 Indicadores'!C266+D178*'2 Indicadores'!C266^2+D179*'2 Indicadores'!C266^3 -> 0.10 | F178: =F176+F177*'2 Indicadores'!C266 -> 1.15 | H178: b | I178: 0.098 | J178: =I176+I177*'2 Indicadores'!C266+I178*'2 Indicadores'!C266^2+I179*'2 Indicadores'!C266^3 -> 0.10 | K178: =K176+K177*'2 Indicadores'!C266 -> 1.15
C179: c | D179: -0.016 | H179: c | I179: -0.011
B182: P - Fator Ponderação
B183: Classificação | F183: Ponderação
B184: Arenosa | C184: Média | D184: Argilosa | E184: Muito Argilosa
B185: 0.00 | C185: 0.00 | D185: 0.00 | E185: 0.00 | F185: 0.10
B186: 12.10 | C186: 10.10 | D186: 5.10 | E186: 3.10 | F186: 0.25
B187: 18.10 | C187: 15.10 | D187: 8.10 | E187: 4.10 | F187: 0.50
B188: 25.10 | C188: 20.10 | D188: 12.10 | E188: 6.10 | F188: 0.70
B189: 40.00 | C189: 30.00 | D189: 18.00 | E189: 9.00 | F189: 1.00
B190: 400.00 | C190: 300.00 | D190: 180.00 | E190: 90.00 | F190: 0.70
A192: P - Fórmulas
A193: Arenosa | B193: Yo + ax | D193: F2 = Yo + ax + bx2 | F193: F3 = Yo + ax | H193: Média | I193: F1 = Yo + ax + bx2 | K193: F2 = Yo + ax + bx2 | M193: F3 = Yo + ax
B194: Yo | C194: 0.10 | D194: Yo | E194: -0.47 | F194: Yo | G194: 1.02 | I194: Yo | J194: 0.10 | K194: Yo | L194: -0.30 | M194: Yo | N194: 1.03
B195: a | C195: 0.01 | D195: a | E195: 0.07 | F195: a | G195: -0.00 | I195: a | J195: -0.01 | K195: a | L195: 0.06 | M195: a | N195: -0.00
D196: b | E196: -0.00 | I196: b | J196: 0.00 | K196: b | L196: -0.00
A197: Argilosa | B197: F1 = Yo + ax + bx2 | D197: F2 = Yo + ax + bx2 | F197: F3 = Yo + ax | H197: Muito argilosa | I197: F1 = Yo + ax + bx2 | K197: F2 = Yo + ax + bx2 | M197: F3 = Yo + ax
B198: Yo | C198: 0.10 | D198: Yo | E198: 0.10 | F198: Yo | G198: 1.04 | I198: Yo | J198: 0.10 | K198: Yo | L198: 0.11 | M198: Yo | N198: 1.03
B199: a | C199: -0.00 | D199: a | E199: 0.05 | F199: a | G199: -0.00 | I199: a | J199: -0.10 | K199: a | L199: 0.09 | M199: a | N199: -0.00
B200: b | C200: 0.01 | D200: b | E200: 0.00 | I200: b | J200: 0.05 | K200: b | L200: 0.00
B201: =C194+C195*'2 Indicadores'!C267 -> 0.10 | C201: =E194+E195*'2 Indicadores'!C267+E196*'2 Indicadores'!C267^2 -> -0.47 | D201: =0.1946+0.0201*'2 Indicadores'!C267 -> 0.19 | E201: =G194+G195*'2 Indicadores'!C267 -> 1.02 | F201: =IF('2 Indicadores'!C267<=12.1,B201,IF(AND('2 Indicadores'!C267>12.1,'2 Indicadores'!C267<25.1),C201,IF('2 Indicadores'!C267>40,E201,D201))) -> 0.10 | J201: =J194+J195*'2 Indicadores'!C267+J196*'2 Indicadores'!C267^2 -> 0.10 | K201: =L194+L195*'2 Indicadores'!C267+L196*'2 Indicadores'!C267^2 -> -0.30 | L201: =N194+N195*'2 Indicadores'!C267 -> 1.03 | M201: =IF(AND('2 Indicadores'!C267>15.1,'2 Indicadores'!C267<30),K201,IF('2 Indicadores'!C267>=30,L201,J201)) -> 0.10
B202: =C198+C199*'2 Indicadores'!C267+C200*'2 Indicadores'!C267^2 -> 0.10 | C202: =E198+E199*'2 Indicadores'!C267+E200*'2 Indicadores'!C267^2 -> 0.10 | D202: =G198+G199*'2 Indicadores'!C267 -> 1.04 | E202: =IF(AND('2 Indicadores'!C267>8.1,'2 Indicadores'!C267<18),C202,IF('2 Indicadores'!C267>=18,D202,B202)) -> 0.10 | J202: =J198+J199*'2 Indicadores'!C267+J200*'2 Indicadores'!C267^2 -> 0.10 | K202: =L198+L199*'2 Indicadores'!C267+L200*'2 Indicadores'!C267^2 -> 0.11 | L202: =N198+N199*'2 Indicadores'!C267 -> 1.03 | M202: =IF(AND('2 Indicadores'!C267>4.1,'2 Indicadores'!C267<9),K202,IF('2 Indicadores'!C267>=9,L202,J202)) -> 0.10
B203: =IF(AND('2 Indicadores'!E265="Arenosa"),IF('2 Indicadores'!C267<0,0,IF(Fórmulas!F201>1,1,Fórmulas!F201)),0) -> 0.00 | C203: =IF(AND('2 Indicadores'!E265="Média"),IF('2 Indicadores'!C267<0,0,IF(Fórmulas!M201>1,1,Fórmulas!M201)),0) -> 0.00 | D203: =IF(AND('2 Indicadores'!E265="Argilosa"),IF('2 Indicadores'!C267<0,0,IF(Fórmulas!E202>1,1,Fórmulas!E202)),0) -> 0.00 | E203: =IF(AND('2 Indicadores'!E265="Muito argilosa"),IF('2 Indicadores'!C267<0,0,IF(Fórmulas!M202>1,1,Fórmulas!M202)),0) -> 0.00 | F203: =(B203+C203+D203+E203) -> 0.00
B205: Ca - Fator Ponderação | E205: Ca - Fórmulas
B206: Classificação | C206: Ponderação | E206: F1 = Yo + ax + bx2 | H206: F2 = Yo + ax + bx2 | J206: F3 = Yo + ax
B207: 0.00 | C207: 0.10 | E207: Yo | F207: 0.10 | H207: Yo | I207: 0.32 | J207: Yo | K207: 1.08
B208: 0.41 | C208: 0.25 | E208: a | F208: 0.38 | H208: a | I208: 0.14 | J208: a | K208: -0.02
B209: 1.21 | C209: 0.50 | E209: b | F209: -0.04 | H209: b | I209: 0.01
B210: 2.41 | C210: 0.70
B211: 4.00 | C211: 1.00 | F211: =F207+F208*'2 Indicadores'!C268+F209*'2 Indicadores'!C268^2 -> 0.10 | G211: =I207+I208*'2 Indicadores'!C268+I209*'2 Indicadores'!C268^2 -> 0.32 | H211: =K207+K208*'2 Indicadores'!C268 -> 1.08 | I211: =IF(AND('2 Indicadores'!C268>1.21,'2 Indicadores'!C268<4),G211,IF('2 Indicadores'!C268>=4,H211,F211)) -> 0.10
B212: 20.00 | C212: 0.70
B215: Mg - Fator Ponderação | E215: Mg - Fórmulas
B216: Classificação | C216: Ponderação | E216: F1 = Yo + ax + bx2 | H216: F2 = Yo + ax + bx2 | J216: F3 = Yo + ax
B217: 0.00 | C217: 0.10 | E217: Yo | F217: 0.10 | H217: Yo | I217: 0.32 | J217: Yo | K217: 1.08
B218: 0.16 | C218: 0.25 | E218: a | F218: 0.97 | H218: a | I218: 0.36 | J218: a | K218: -0.05
B219: 0.46 | C219: 0.50 | E219: b | F219: -0.23 | H219: b | I219: 0.06
B220: 0.91 | C220: 0.70 | F220: =F217+F218*'2 Indicadores'!C269+F219*'2 Indicadores'!C269^2 -> 0.10 | G220: =I217+I218*'2 Indicadores'!C269+I219*'2 Indicadores'!C269^2 -> 0.32 | H220: =K217+K218*'2 Indicadores'!C269 -> 1.08 | I220: =IF(AND('2 Indicadores'!C269>0.46,'2 Indicadores'!C269<1.5),G220,IF('2 Indicadores'!C269>=1.5,H220,F220)) -> 0.10
B221: 1.50 | C221: 1.00
B222: 7.50 | C222: 0.70
B224: K - Fator Ponderação | E224: K - Fórmulas
B225: Classificação | C225: Ponderação | E225: F1 = Yo + ax + bx2 | H225: F2 = Yo + ax + bx2 | J225: F3 = Yo + ax
B226: 0.00 | C226: 0.10 | E226: Yo | F226: 0.10 | H226: Yo | I226: 0.21 | J226: Yo | K226: 1.08
B227: 16.00 | C227: 0.25 | E227: a | F227: 0.01 | H227: a | I227: 0.01 | J227: a | K227: -0.00
B228: 41.00 | C228: 0.50 | E228: b | F228: 0.00 | H228: b | I228: -0.00
B229: 71.00 | C229: 0.70 | F229: =F226+F227*'2 Indicadores'!C270+F228*'2 Indicadores'!C270^2 -> 0.10 | G229: =I226+I227*'2 Indicadores'!C270+I228*'2 Indicadores'!C270^2 -> 0.21 | H229: =K226+K227*'2 Indicadores'!C270 -> 1.08 | I229: =IF(AND('2 Indicadores'!C270>41,'2 Indicadores'!C270<120),G229,IF('2 Indicadores'!C270>=120,H229,F229)) -> 0.10
B230: 120.00 | C230: 1.00
B231: 600.00 | C231: 0.70
B233: pH - Fator Ponderação | E233: pH em água - Fórmulas
B234: Classificação | C234: Ponderação | E234: F1 = Yo + ax + bx2 | H234: F2 = Yo + ax + bx2
... 308 more rows

Sheet Base de dados
A1: ISA | C1: BASE DE DADOS
A2: AGROTÓXICOS | C2: =COUNTA(C3:ZC3) -> 677
A3: Ação | C3: Herbicida | D3: Fungicida | E3: Inseticida | F3: Herbicida | G3: Herbicida | H3: Inseticida | I3: Inseticida | J3: Inseticida | K3: Inseticida | L3: Herbicida | M3: Fungicida | N3: Herbicida | O3: Inseticida | P3: Fungicida | Q3: Inseticida | R3: Herbicida | S3: Herbicida | T3: Herbicida | U3: Inseticida | V3: Fungicida | W3: Fungicida | X3: Herbicida | Y3: Herbicida | Z3: Herbicida | AA3: Fungicida | AB3: Inseticida | AC3: Fungicida | AD3: Herbicida | AE3: Herbicida | AF3: Inseticida | AG3: Fungicida | AH3: Inseticida | AI3: Inseticida | AJ3: Fungicida | AK3: Herbicida | AL3: Herbicida | AM3: Herbicida | AN3: Herbicida | AO3: Herbicida | AP3: Fungicida | AQ3: Inseticida | AR3: Inseticida | AS3: Herbicida | AT3: Fungicida | AU3: Fungicida | AV3: Inseticida | AW3: Inseticida | AX3: Fungicida | AY3: Fungicida | AZ3: Herbicida | BA3: Herbicida | BB3: Herbicida | BC3: Fungicida | BD3: Herbicida | BE3: Herbicida | BF3: Inseticida | BG3: Fungicida | BH3: Herbicida | BI3: Herbicida | BJ3: Herbicida | BK3: Herbicida | BL3: Fungicida | BM3: Herbicida | BN3: Herbicida | BO3: Herbicida | BP3: Inseticida | BQ3: Inseticida | BR3: Inseticida | BS3: Inseticida | BT3: Herbicida | BU3: Fungicida | BV3: Fungicida | BW3: Herbicida | BX3: Fungicida | BY3: Fungicida | BZ3: Inseticida | CA3: Inseticida | CB3: Fungicida | CC3: Fungicida | CD3: Fungicida | CE3: Inseticida | CF3: Inseticida | CG3: Inseticida | CH3: Herbicida | CI3: Fungicida | CJ3: Inseticida | CK3: Fungicida | CL3: Inseticida | CM3: Fungicida | CN3: Inseticida | CO3: Inseticida | CP3: Fungicida | CQ3: Fungicida | CR3: Herbicida | CS3: Inseticida | CT3: Inseticida | CU3: Inseticida | CV3: Herbicida | CW3: Inseticida | CX3: Herbicida | CY3: Fungicida | CZ3: Fungicida | DA3: Inseticida | DB3: Herbicida | DC3: Fungicida | DD3: Fungicida | DE3: Inseticida | DF3: Herbicida | DG3: Inseticida | DH3: Herbicida | DI3: Inseticida | DJ3: Herbicida | DK3: Inseticida | DL3: Herbicida | DM3: Fungicida | DN3: Fungicida | DO3: Fungicida | DP3: Inseticida | DQ3: Inseticida | DR3: Inseticida | DS3: Fungicida | DT3: Fungicida | DU3: Inseticida | DV3: Fungicida | DW3: Inseticida | DX3: Fungicida | DY3: Herbicida | DZ3: Inseticida | EA3: Inseticida | EB3: Inseticida | EC3: Fungicida | ED3: Inseticida | EE3: Inseticida | EF3: Fungicida | EG3: Fungicida | EH3: Herbicida | EI3: Fungicida | EJ3: Fungicida | EK3: Inseticida | EL3: Fungicida | EM3: Inseticida | EN3: Inseticida | EO3: Inseticida | EP3: Fungicida | EQ3: Inseticida | ER3: Herbicida | ES3: Inseticida | ET3: Inseticida | EU3: Fungicida | EV3: Inseticida | EW3: Fungicida | EX3: Fungicida | EY3: Inseticida | EZ3: Herbicida | FA3: Herbicida | FB3: Herbicida | FC3: Herbicida | FD3: Herbicida | FE3: Inseticida | FF3: Inseticida | FG3: Inseticida | FH3: Fungicida | FI3: Herbicida | FJ3: Herbicida | FK3: Herbicida | FL3: Fungicida | FM3: Inseticida | FN3: Inseticida | FO3: Fungicida | FP3: Inseticida | FQ3: Fungicida | FR3: Fungicida | FS3: Inseticida | FT3: Fungicida | FU3: Herbicida | FV3: Inseticida | FW3: Inseticida | FX3: Herbicida | FY3: Fungicida | FZ3: Inseticida | GA3: Inseticida | GB3: Fungicida | GC3: Inseticida | GD3: Inseticida | GE3: Fungicida | GF3: Fungicida | GG3: Fungicida | GH3: Inseticida | GI3: Fungicida | GJ3: Inseticida | GK3: Fungicida | GL3: Inseticida | GM3: Inseticida | GN3: Fungicida | GO3: Fungicida | GP3: Inseticida | GQ3: Herbicida | GR3: Herbicida | GS3: Herbicida | GT3: Herbicida | GU3: Fungicida | GV3: Inseticida | GW3: Inseticida | GX3: Inseticida | GY3: Fungicida | GZ3: Inseticida | HA3: Inseticida | HB3: Herbicida | HC3: Inseticida | HD3: Herbicida | HE3: Herbicida | HF3: Fungicida | HG3: Fungicida | HH3: Herbicida | HI3: Herbicida | HJ3: Herbicida | HK3: Fungicida | HL3: Fungicida | HM3: Herbicida | HN3: Herbicida | HO3: Fungicida | HP3: Fungicida | HQ3: Inseticida | HR3: Fungicida | HS3: Inseticida | HT3: Inseticida | HU3: Herbicida | HV3: Fungicida | HW3: Fungicida | HX3: Fungicida | HY3: Fungicida | HZ3: Herbicida | IA3: Fungicida | IB3: Inseticida | IC3: Inseticida | ID3: Inseticida | IE3: Inseticida | IF3: Inseticida | IG3: Inseticida | IH3: Inseticida | II3: Herbicida | IJ3: Fungicida | IK3: Inseticida | IL3: Inseticida | IM3: Inseticida | IN3: Herbicida | IO3: Herbicida | IP3: Herbicida | IQ3: Fungicida | IR3: Herbicida | IS3: Inseticida | IT3: Fungicida | IU3: Inseticida | IV3: Herbicida | IW3: Fungicida | IX3: Inseticida | IY3: Inseticida | IZ3: Fungicida | JA3: Inseticida | JB3: Inseticida | JC3: Herbicida | JD3: Inseticida | JE3: Fungicida | JF3: Herbicida | JG3: Herbicida | JH3: Fungicida | JI3: Inseticida | JJ3: Herbicida | JK3: Herbicida | JL3: Fungicida | JM3: Inseticida | JN3: Fungicida | JO3: Inseticida | JP3: Herbicida | JQ3: Herbicida | JR3: Herbicida | JS3: Herbicida | JT3: Fungicida | JU3: Fungicida | JV3: Inseticida | JW3: Fungicida | JX3: Herbicida | JY3: Fungicida | JZ3: Fungicida | KA3: Fungicida | KB3: Fungicida | KC3: Fungicida | KD3: Fungicida | KE3: Herbicida | KF3: Herbicida | KG3: Inseticida | KH3: Fungicida | KI3: Fungicida | KJ3: Inseticida | KK3: Inseticida | KL3: Inseticida | KM3: Fungicida | KN3: Fungicida | KO3: Fungicida | KP3: Fungicida | KQ3: Inseticida | KR3: Fungicida | KS3: Herbicida | KT3: Herbicida | KU3: Inseticida | KV3: Fungicida | KW3: Inseticida | KX3: Inseticida | KY3: Inseticida | KZ3: Herbicida | LA3: Inseticida | LB3: Herbicida | LC3: Herbicida | LD3: Herbicida | LE3: Herbicida | LF3: Fungicida | LG3: Herbicida | LH3: Herbicida | LI3: Herbicida | LJ3: Herbicida | LK3: Herbicida | LL3: Inseticida | LM3: Herbicida | LN3: Herbicida | LO3: Herbicida | LP3: Herbicida | LQ3: Fungicida | LR3: Inseticida | LS3: Inseticida | LT3: Herbicida | LU3: Herbicida | LV3: Herbicida | LW3: Inseticida | LX3: Herbicida | LY3: Herbicida | LZ3: Inseticida | MA3: Fungicida | MB3: Fungicida | MC3: Herbicida | MD3: Fungicida | ME3: Fungicida | MF3: Fungicida | MG3: Herbicida | MH3: Herbicida | MI3: Herbicida | MJ3: Herbicida | MK3: Herbicida | ML3: Fungicida | MM3: Inseticida | MN3: Inseticida | MO3: Fungicida | MP3: Fungicida | MQ3: Inseticida | MR3: Herbicida | MS3: Inseticida | MT3: Fungicida | MU3: Inseticida | MV3: Inseticida | MW3: Herbicida | MX3: Herbicida | MY3: Fungicida | MZ3: Fungicida | NA3: Fungicida | NB3: Fungicida | NC3: Herbicida | ND3: Fungicida | NE3: Inseticida | NF3: Inseticida | NG3: Herbicida | NH3: Fungicida | NI3: Inseticida | NJ3: Herbicida | NK3: Fungicida | NL3: Herbicida | NM3: Herbicida | NN3: Fungicida | NO3: Herbicida | NP3: Inseticida | NQ3: Herbicida | NR3: Fungicida | NS3: Herbicida | NT3: Herbicida | NU3: Inseticida | NV3: Inseticida | NW3: Inseticida | NX3: Herbicida | NY3: Herbicida | NZ3: Herbicida | OA3: Inseticida | OB3: Inseticida | OC3: Fungicida | OD3: Herbicida | OE3: Inseticida | OF3: Fungicida | OG3: Fungicida | OH3: Fungicida | OI3: Fungicida | OJ3: Fungicida | OK3: Inseticida | OL3: Inseticida | OM3: Fungicida | ON3: Fungicida | OO3: Inseticida | OP3: Herbicida | OQ3: Fungicida | OR3: Inseticida | OS3: Fungicida | OT3: Fungicida | OU3: Herbicida | OV3: Inseticida | OW3: Inseticida | OX3: Fungicida | OY3: Herbicida | OZ3: Fungicida | PA3: Inseticida | PB3: Fungicida | PC3: Herbicida | PD3: Inseticida | PE3: Inseticida | PF3: Herbicida | PG3: Herbicida | PH3: Herbicida | PI3: Fungicida | PJ3: Inseticida | PK3: Fungicida | PL3: Inseticida | PM3: Fungicida | PN3: Fungicida | PO3: Herbicida | PP3: Herbicida | PQ3: Fungicida | PR3: Inseticida | PS3: Herbicida | PT3: Inseticida | PU3: Inseticida | PV3: Inseticida | PW3: Inseticida | PX3: Herbicida | PY3: Inseticida | PZ3: Inseticida | QA3: Inseticida | QB3: Herbicida | QC3: Herbicida | QD3: Fungicida | QE3: Fungicida | QF3: Fungicida | QG3: Inseticida | QH3: Fungicida | QI3: Herbicida | QJ3: Inseticida | QK3: Herbicida | QL3: Fungicida | QM3: Fungicida | QN3: Herbicida | QO3: Herbicida | QP3: Herbicida | QQ3: Herbicida | QR3: Herbicida | QS3: Herbicida | QT3: Fungicida | QU3: Herbicida | QV3: Herbicida | QW3: Inseticida | QX3: Fungicida | QY3: Herbicida | QZ3: Fungicida | RA3: Fungicida | RB3: Herbicida | RC3: Inseticida | RD3: Fungicida | RE3: Inseticida | RF3: Inseticida | RG3: Inseticida | RH3: Fungicida | RI3: Inseticida | RJ3: Inseticida | RK3: Herbicida | RL3: Herbicida | RM3: Herbicida | RN3: Herbicida | RO3: Inseticida | RP3: Fungicida | RQ3: Inseticida | RR3: Herbicida | RS3: Herbicida | RT3: Inseticida | RU3: Herbicida | RV3: Inseticida | RW3: Fungicida | RX3: Herbicida | RY3: Herbicida | RZ3: Herbicida | SA3: Herbicida | SB3: Herbicida | SC3: Herbicida | SD3: Fungicida | SE3: Fungicida | SF3: Fungicida | SG3: Inseticida | SH3: Fungicida | SI3: Inseticida | SJ3: Inseticida | SK3: Herbicida | SL3: Fungicida | SM3: Herbicida | SN3: Herbicida | SO3: Inseticida | SP3: Fungicida | SQ3: Fungicida | SR3: Fungicida | SS3: Fungicida | ST3: Herbicida | SU3: Herbicida | SV3: Herbicida | SW3: Herbicida | SX3: Herbicida | SY3: Herbicida | SZ3: Herbicida | TA3: Herbicida | TB3: Fungicida | TC3: Inseticida | TD3: Herbicida | TE3: Herbicida | TF3: Herbicida | TG3: Herbicida | TH3: Inseticida | TI3: Inseticida | TJ3: Herbicida | TK3: Herbicida | TL3: Fungicida | TM3: Fungicida | TN3: Fungicida | TO3: Inseticida | TP3: Herbicida | TQ3: Herbicida | TR3: Fungicida | TS3: Herbicida | TT3: Fungicida | TU3: Inseticida | TV3: Inseticida | TW3: Inseticida | TX3: Herbicida | TY3: Inseticida | TZ3: Herbicida | UA3: Herbicida | UB3: Fungicida | UC3: Herbicida | UD3: Herbicida | UE3: Herbicida | UF3: Inseticida | UG3: Herbicida | UH3: Herbicida | UI3: Herbicida | UJ3: Herbicida | UK3: Inseticida | UL3: Herbicida | UM3: Inseticida | UN3: Fungicida | UO3: Inseticida | UP3: Herbicida | UQ3: Herbicida | UR3: Inseticida | US3: Inseticida | UT3: Fungicida | UU3: Herbicida | UV3: Herbicida | UW3: Fungicida | UX3: Herbicida | UY3: Inseticida | UZ3: Herbicida | VA3: Inseticida | VB3: Herbicida | VC3: Inseticida | VD3: Herbicida | VE3: Fungicida | VF3: Fungicida | VG3: Fungicida | VH3: Herbicida | VI3: Inseticida | VJ3: Herbicida | VK3: Inseticida | VL3: Inseticida | VM3: Inseticida | VN3: Inseticida | VO3: Fungicida | VP3: Fungicida | VQ3: Inseticida | VR3: Herbicida | VS3: Fungicida | VT3: Inseticida | VU3: Herbicida | VV3: Fungicida | VW3: Inseticida | VX3: Inseticida | VY3: Inseticida | VZ3: Herbicida | WA3: Fungicida | WB3: Fungicida | WC3: Fungicida | WD3: Inseticida | WE3: Herbicida | WF3: Fungicida | WG3: Inseticida | WH3: Herbicida | WI3: Herbicida | WJ3: Herbicida | WK3: Inseticida | WL3: Herbicida | WM3: Herbicida | WN3: Fungicida | WO3: Fungicida | WP3: Herbicida | WQ3: Inseticida | WR3: Fungicida | WS3: Inseticida | WT3: Inseticida | WU3: Herbicida | WV3: Inseticida | WW3: Fungicida | WX3: Inseticida | WY3: Fungicida | WZ3: Fungicida | XA3: Herbicida | XB3: Herbicida | XC3: Inseticida | XD3: Herbicida | XE3: Fungicida | XF3: Herbicida | XG3: Fungicida | XH3: Fungicida | XI3: Fungicida | XJ3: Inseticida | XK3: Fungicida | XL3: Fungicida | XM3: Herbicida | XN3: Fungicida | XO3: Fungicida | XP3: Fungicida | XQ3: Herbicida | XR3: Fungicida | XS3: Inseticida | XT3: Herbicida | XU3: Inseticida | XV3: Herbicida | XW3: Fungicida | XX3: Herbicida | XY3: Herbicida | XZ3: Fungicida | YA3: Inseticida | YB3: Herbicida | YC3: Herbicida | YD3: Fungicida | YE3: Fungicida | YF3: Fungicida | YG3: Herbicida | YH3: Inseticida | YI3: Inseticida | YJ3: Fungicida | YK3: Inseticida | YL3: Inseticida | YM3: Fungicida | YN3: Fungicida | YO3: Herbicida | YP3: Herbicida | YQ3: Inseticida | YR3: Fungicida | YS3: Herbicida | YT3: Fungicida | YU3: Fungicida | YV3: Herbicida | YW3: Herbicida | YX3: Fungicida | YY3: Fungicida | YZ3: Herbicida | ZA3: Fungicida | ZB3: Fungicida | ZC3: Fungicida | ANY3: =COUNTA(AIP3:ANW3) -> 0
A4: Grupo Químico | C4: Ácido Ariloxialcanóico | D4: Triazol | E4: Avermectina | F4: Sulfonylurea herbicide; Pyrimidinylsulfonylurea herbicide | G4: Sulfoniluréia | H4: Organofosforado | I4: Organofosforado | J4: Organofosforado | K4: Neonicotinóide | L4: Cloracetanilida | M4: Benzotiadiazol | N4: éter difenílico | O4: piretróide | P4: Estrobilurina | Q4: Neonicotinoide | R4: Triazolona | S4: Uréia | T4: Triazolona | U4: ácido tetramico | V4: Estrobilurina | W4: Dicarboximida | X4: ácido ariloxialcanóico | Y4: Cloracetanilida | Z4: Cloracetanilida | AA4: pirazol carboxamida | AB4: Piretroide | AC4: fosfonato | AD4: Alquilazina | AE4: Sulfoniluréia | AF4: Antranilamida | AG4: Triazol | AH4: Semicarbazona | AI4: Piretróide | AJ4: Pirimidilamina | AK4: Triazina | AL4: Triazina | AM4: triazolinona | AN4: Ácido Ariloxialcanóico | AO4: ácido piridiniloxialcanóico | AP4: Estrobilurina | AQ4: arilformamidina | AR4: Avermectina | AS4: Imidazolinonas | AT4: Dimetilditiocarbamato | AU4: alquilenobis | AV4: Benzoiluréia | AW4: tiadiazinona | AX4: Triazol | AY4: estrobilurina | AZ4: oxima ciclohexanodiona | BA4: ácido piridiniloxialcanóico | BB4: ácido piridiniloxialcanóico | BC4: Triazol | BD4: sulfanililcarbamato | BE4: sulfanililcarbamato | BF4: benzoiluréia | BG4: Triazol | BH4: Triazina | BI4: Triazina | BJ4: Triazina | BK4: Triazina | BL4: Dicarboximida | BM4: oxima ciclohexanodiona | BN4: Triazolona | BO4: Uréia | BP4: Organofosforado | BQ4: Oxadiazina | BR4: Tetranortriterpenóide | BS4: Tetranortriterpenóide | BT4: sulfoniluréia | BU4: Estrobilurina | BV4: Estrobilurina | BW4: Benzotiadiazinona | BX4: Isotiocianato de metila | BY4: Triazol | BZ4: metilcarbamato de oxima | CA4: Diamida do ácido fitálico | CB4: triazol | CC4: acilalaninato | CD4: Benzimidazóis | CE4: Antranilamida | CF4: Metilcarbamato de benzofuranila | CG4: Metilcarbamato de benzofuranila | CH4: Benzotiadiazinona | CI4: Valinamida carbamato | CJ4: avermectina | CK4: pirazol carboxamida | CL4: Piretróide | CM4: Composto inorgânico | CN4: Piretróide | CO4: Piretróide | CP4: benzotiazol | CQ4: Benzotiadiazol | CR4: ácido pirimidiniloxibenzóico | CS4: Piretróide | CT4: benzoiluréia | CU4: Éter piridiloxipropílico | CV4: éter difenílico | CW4: Piretróide | CX4: Triazolona | CY4: Anilida | CZ4: Anilida | DA4: metilcarbamato de oxima | DB4: Uracila | DC4: alifático halogenado | DD4: triazol | DE4: Piretróide | DF4: isotiocianato de metila | DG4: tiadiazinona | DH4: Uréia | DI4: organofosforado | DJ4: Tricetona | DK4: neonicotinóide | DL4: ácido piridinocarboxílico | DM4: Anilida | DN4: Dicarboximida | DO4: Dicarboximida | DP4: Carbamato | DQ4: Piretróide | DR4: Metilcarbamato de naftila | DS4: Benzimidazóis | DT4: Benzimidazóis | DU4: nicotinóide | DV4: Benzimidazóis | DW4: metilcarbamato de benzofuranila | DX4: carboxanilida | DY4: Triazolona | DZ4: tiocarbamato | EA4: tiocarbamato | EB4: Benzoiluréia | EC4: antibioótico | ED4: Organofosforado | EE4: Organofosforado | EF4: Triazol | EG4: Fenamidona | EH4: Oxima ciclohexanodiona | EI4: Benzimidazóis | EJ4: Carbonitrilas | EK4: Benzoiluréia | EL4: Dicarboximida | EM4: Pirazol | EN4: piridina azometina | EO4: Antranilamida | EP4: imidazol | EQ4: antranilamida | ER4: sulfoniluréia | ES4: organofosforado | ET4: Benzoilacetonitrila | EU4: acetamida | EV4: Piretróide | EW4: Triazol | EX4: anilinopirimidina | EY4: Triazinamina | EZ4: Sulfoniluréia | FA4: Oxima ciclohexanodiona | FB4: ácido ariloxifenoxipropiônico | FC4: isoxazolidinona | FD4: sulfonanilida triazolopirimidina | FE4: Antranilamida | FF4: análogo de pirazol | FG4: benzoiluréia | FH4: Carbamate fungicide | FI4: Sulfoniluréia | FJ4: Sulfoniluréia | FK4: Sulfoniluréia | FL4: Carbonitrilas | FM4: Organofosforado | FN4: Neocotinoide | FO4: Estrobilurina | FP4: Piretróide | FQ4: Fenilpiridinilamina | FR4: triazol | FS4: Neonicotinóide | FT4: Composto inorgânico | FU4: Imidazolinonas | FV4: Éter piridiloxipropílico | FW4: organofosforado | FX4: Triazina | FY4: Triazol | FZ4: Neonicotinóide | GA4: Neonicotinoide | GB4: Carbonitrilas | GC4: Benzoiluréia | GD4: Organofosforado | GE4: Carbonitrilas | GF4: Carbonitrilas | GG4: Carbonitrilas | GH4: Piretróide | GI4: Isotiocianato de metila | GJ4: Piretróide | GK4: quinona | GL4: Piretróide | GM4: Antranilamida | GN4: Benzimidazóis | GO4: Benzimidazóis | GP4: feniltiouréia | GQ4: Quarternary ammonium herbicide | GR4: Ácido Benzóico | GS4: Bipiridílio | GT4: Sulfonanilida triazolopirimidina | GU4: Triazol | GV4: Benzoiluréia | GW4: Benzoiluréia | GX4: organofosforado | GY4: morfolina | GZ4: organofosforado | HA4: Benzoiluréia | HB4: triazolinona | HC4: Neonicotinóide | HD4: Amônia Quaternária | HE4: Uréia | HF4: Alquilenobis (ditiocarbamato) | HG4: quinona | HH4: Uréia | HI4: Ácido Ariloxialcanóico | HJ4: Benzotiadiazinona | HK4: guanidina | HL4: guanidina | HM4: Éter difenílico | HN4: Cloroacetanilida | HO4: Triazol | HP4: Estrobilurina | HQ4: Piretróide | HR4: Triazol | HS4: Neonicotinoide | HT4: cetoenol | HU4: sulfoniluréia | HV4: Composto inorgânico | HW4: Triazol | HX4: acetamida | HY4: oxazolidinadiona | HZ4: Sulfoniluréia | IA4: anilinopirimidina | IB4: Piretróide | IC4: espinosinas | ID4: espinosinas | IE4: cetoenol | IF4: cetoenol | IG4: Piretróide | IH4: difenil oxazoline | II4: sulfoniluréia | IJ4: éter tiadiazólico | IK4: Organofosforado | IL4: espinosinas | IM4: sulfoxaminas | IN4: Triazina | IO4: Triazina | IP4: ácido quinolinocarboxílico | IQ4: oxazolidinadiona | IR4: Homoalanina substituída | IS4: Piretroide | IT4: Fenamidona | IU4: Organophosphate | IV4: Aryloxyphenoxypropionat herbicide | IW4: Pirazol | IX4: pirazol | IY4: Piretróide | IZ4: Morfolina | JA4: Piretróide | JB4: Piretróide | JC4: Homoalanina substituída | JD4: Fenilpirazol | JE4: Triazol | JF4: Sulfoniluréia | JG4: Éter difenílico | JH4: Estrobilurina | JI4: nicotinóide | JJ4: Arilpicolinato | JK4: Ácido ariloxifenoxipropiônico | JL4: Fenilpiridinilamina | JM4: Diamida do ácido fitálico | JN4: fenilpirrol | JO4: Benzoiluréia | JP4: Sulfonanilida triazolopirimidina | JQ4: Ciclohexenodicarboximida | JR4: Flumioxazin herbicide | JS4: Flumioxazin herbicide | JT4: Ciclohexenodicarboximida | JU4: Benzamida | JV4: Butenolida | JW4: Triazol | JX4: ácido piridiniloxialcanóico | JY4: carboxamida | JZ4: Triazol | KA4: Carboxamida | KB4: Triazol | KC4: Dicarboximida | KD4: Dicarboximida | KE4: Éter difenílico | KF4: Sulfoniluréia | KG4: Antranilamida | KH4: morfolina | KI4: fosfonato | KJ4: Composto inorgânico | KK4: organofosforado | KL4: organofosforado | KM4: Triazolintiona | KN4: Fenilpiridinilamina | KO4: Benzimidazóis | KP4: Carbonitrilas | KQ4: Piretróide | KR4: Triazol | KS4: Éter difenílico | KT4: Ácido ariloxifenoxipropiônico | KU4: Carbamato | KV4: acilalaninato | KW4: Éter difenílico | KX4: Piretróide | KY4: Benzoiluréia | KZ4: Arilpicolinato | LA4: Composto inorgânico | LB4: triazina | LC4: Triazina | LD4: Triazina | LE4: sulfoniluréia | LF4: Carbonitrilas | LG4: Glicina Substituída | LH4: Homoalanina substituída | LI4: Glicina Substituída | LJ4: Éter difenílico | LK4: Bipiridílio | LL4: Organofosforado | LM4: sulfoniluréia | LN4: ácido piridinocarboxílico | LO4: sulfoniluréia | LP4: ácido ariloxifenoxipropiônico | LQ4: imidazol | LR4: benzoiluréia | LS4: antranilamida | LT4: pirimidinadiona | LU4: Dinitroanilina | LV4: Triazina | LW4: Piretróide | LX4: Triazinona | LY4: Triazinona | LZ4: iazolidinacarboxamida | MA4: Composto inorgânico | MB4: Organoestânico | MC4: Hussar | MD4: Carbonitrilas | ME4: Imidazol | MF4: Imidazol | MG4: Imidazolinonas | MH4: Imidazolinonas | MI4: Imidazolinonas | MJ4: Imidazolinonas | MK4: imidazolinona | ML4: Triazol | MM4: Neonicotinóide | MN4: organofosforado | MO4: Triazol | MP4: carboxamida | MQ4: Benzoiluréia | MR4: Alquilazina | MS4: Oxadiazina | MT4: Carbamate fungicide | MU4: Piretróide | MV4: Diacilhidrazina | MW4: sulfoniluréia | MX4: Hussar | MY4: Triazol | MZ4: Dicarboximida | NA4: Carbonitrilas | NB4: phenyloxoethyl thiophene amida, | NC4: Isoxazol herbicide | ND4: Triazol | NE4: Piretróide | NF4: Piretróide | NG4: Cloracetanilida | NH4: Composto inorgânico | NI4: Piretróide | NJ4: Uréia | NK4: antibioótico | NL4: Sulfoniluréia | NM4: sulfoniluréia | NN4: phenyloxoethyl thiophene amida, | NO4: Triazolona | NP4: Organofosforado | NQ4: Uracila | NR4: Composto inorgânico | NS4: Cloracetanilida | NT4: Éter difenílico | NU4: Piretróide | NV4: metilcarbamato de oxima | NW4: Carbamato | NX4: Uréia | NY4: Homoalanina substituída | NZ4: Uréia | OA4: Organofosforado | OB4: Benzoiluréia | OC4: Imidazol | OD4: Triazinona | OE4: Organofosforado | OF4: Triazol | OG4: Alquilenobis (ditiocarbamato) | OH4: Alquilenobis (ditiocarbamato) | OI4: éter mandelamida | OJ4: Alquilenobis (ditiocarbamato) | OK4: metilcarbamato de benzofuranila | OL4: Benzoiluréia | OM4: Acilalaninato | ON4: fenilpirrol | OO4: Neonicotinóide | OP4: ácido ariloxialcanóico | OQ4: triazol | OR4: Piretróide | OS4: Dicarboximida | OT4: Organoestânico | OU4: Tricetona | OV4: Semicarbazona | OW4: Semicarbazona | OX4: Acilalaninato | OY4: isotiocianato de metila | OZ4: triazol | PA4: organofosforado | PB4: alquilenobis | PC4: Cloroacetanilida | PD4: metilcarbamato de oxima | PE4: Diacilhidrazina | PF4: Triazinona | PG4: Alquilazina | PH4: Sulfoniluréia | PI4: Triazol | PJ4: diacilhidrazina | PK4: carboxamida | PL4: sulfonamida fluoroalifática | PM4: feniluréia | PN4: carboxamida | PO4: organoarsênico | PP4: Éter difenílico | PQ4: Triazol | PR4: espinosinas | PS4: Sulfonylurea herbicide; Pyrimidinylsulfonylurea herbicide | PT4: Benzoiluréia | PU4: Organofosforado | PV4: Éter difenílico | PW4: Organofosforado | PX4: Sulfoniluréia | PY4: cetoenol | PZ4: Benzoilacetonitrila | QA4: sulfito de alquila | QB4: Imidazolinonas | QC4: Imidazolinonas | QD4: Triazol | QE4: triazol | QF4: Carboxamida | QG4: Organofosforado | QH4: Dicarboximida | QI4: sulfoniluréia | QJ4: pirazol | QK4: oxadiazolona | QL4: Piperidinil Tiazol Izoxazolina | QM4: Composto inorgânico | QN4: Éter difenílico | QO4: sulfonanilida triazolopirimidina | QP4: ácido ariloxifenoxipropiônico | QQ4: Sulfoniluréia | QR4: Bipiridílio | QS4: Homoalanina substituída | QT4: feniluréia | QU4: Dinitroanilina | QV4: sulfonanilida triazolopirimidina | QW4: Piretróide | QX4: Triazol | QY4: ácido piridinocarboxílico | QZ4: estrobilurina | RA4: carboxamida | RB4: Ácido ariloxifenoxipropiônico | RC4: piridina azometina | RD4: Estrobilurina | RE4: análogo de pirazol | RF4: Piretróide | RG4: piridazinona | RH4: anilinopirimidina | RI4: Organofosforado | RJ4: Éter piridiloxipropílico | RK4: análogo de ácido pirimidiniloxibenzóico | RL4: Pirazol | RM4: oxima ciclohexanodiona | RN4: Aryloxyphenoxypropionat herbicide | RO4: feniltiouréia | RP4: alquilenobis | RQ4: Neocotinoide | RR4: Triazolona | RS4: Oxima ciclohexanodiona | RT4: Metilcarbamato de benzofuranila | RU4: Dinitroanilina | RV4: Antranilamida | RW4: triazol | RX4: Sulfonanilida triazolopirimidina | RY4: Triazina | RZ4: Triazina | SA4: Triazina | SB4: Triazina | SC4: Triazina | SD4: Estrobilurina | SE4: Estrobilurina | SF4: Triazol | SG4: Éter piridiloxipropílico | SH4: Dicarboximida | SI4: avermectina | SJ4: Organofosforado | SK4: oxima ciclohexanodiona | SL4: Pirazol | SM4: triazina | SN4: Anilida | SO4: sulfito de alquila | SP4: Triazol | SQ4: alquilenobis | SR4: Triazol | SS4: Triazolintiona | ST4: Isoxazol herbicide | SU4: Alquilazina | SV4: ácido quinolinocarboxílico | SW4: Ácido ariloxifenoxipropiônico | SX4: ácido ariloxifenoxipropiônico | SY4: Ciclohexenodicarboximida | SZ4: Triazolona | TA4: Ácido Benzóico | TB4: Triazol | TC4: Organofosforado | TD4: Aryloxyphenoxypropionat herbicide | TE4: Imidazolinonas | TF4: sulfonanilida triazolopirimidina | TG4: isoxazolidinona | TH4: Organofosforado | TI4: Fenilpirazol | TJ4: Amônia Quaternária | TK4: Ciclohexenodicarboximida | TL4: éter mandelamida | TM4: Dimetilditiocarbamato | TN4: Alquilenobis (ditiocarbamato) | TO4: Éter difenílico | TP4: ácido pirimidiniloxibenzóico | TQ4: oxadiazolona | TR4: Dicarboximida | TS4: Glicina Substituída | TT4: Dicarboximida | TU4: piretróide | TV4: organofosforado | TW4: Piretróide | TX4: pirimidinadiona | TY4: piridazinona | TZ4: Sulfonylurea herbicide; Pyrimidinylsulfonylurea herbicide | UA4: Triazolona | UB4: Triazol | UC4: Sulfonanilida triazolopirimidina | UD4: Oxima ciclohexanodiona | UE4: Aryloxyphenoxypropionat herbicide | UF4: Carbamato | UG4: sulfoniluréia | UH4: Triazinona | UI4: Cloroacetanilida | UJ4: oxima ciclohexanodiona | UK4: Metilcarbamato de naftila | UL4: Triazina | UM4: Butenolida | UN4: Triazol | UO4: difenil oxazoline | UP4: Benzoilciclohexanodiona | UQ4: Triazolona | UR4: Neonicotinóide | US4: Piretróide | UT4: Triazol | UU4: Sulfonanilida triazolopirimidina | UV4: Uréia | UW4: Anilida | UX4: Triazolona | UY4: Piretróide | UZ4: Anilida | VA4: Fenilpirazol | VB4: análogo de ácido pirimidiniloxibenzóico | VC4: Piretróide | VD4: Sulfonylurea herbicide; Pyrimidinylsulfonylurea herbicide | VE4: Triazol | VF4: carboxamida | VG4: Composto inorgânico | VH4: Triazolona | VI4: sulfonamida fluoroalifática | VJ4: Sulfoniluréia | VK4: sulfoxaminas | VL4: Piretróide | VM4: Organophosphate | VN4: Organophosphate | VO4: Dicarboximida | VP4: Dicarboximida | VQ4: Organophosphate | VR4: Flumioxazin herbicide | VS4: Benzimidazóis | VT4: organofosforado | VU4: Cloracetanilida | VV4: Triazol | VW4: iazolidinacarboxamida | VX4: Piretróide | VY4: Piretróide | VZ4: Ácido ariloxifenoxipropiônico | WA4: Triazol | WB4: Triazol | WC4: Triazol | WD4: diacilhidrazina | WE4: Uréia | WF4: Benzimidazóis | WG4: Benzoiluréia | WH4: Benzoilciclohexanodiona | WI4: Triazinona | WJ4: oxima ciclohexanodiona | WK4: organofosforado | WL4: Triazina | WM4: Triazina | WN4: éter tiadiazólico | WO4: Triazol | WP4: ácido piridinocarboxílico | WQ4: Benzoiluréia | WR4: benzimidazol | WS4: neonicotinóide | WT4: Neonicotinoide | WU4: Triazolona | WV4: Éter piridiloxipropílico | WW4: Triazol | WX4: Carbamato | WY4: Benzimidazóis | WZ4: Dimetilditiocarbamato | XA4: Bipiridílio | XB4: Triazinona | XC4: Pirazol | XD4: ácido ariloxifenoxipropiônico | XE4: Benzimidazóis | XF4: ácido piridiniloxialcanóico | XG4: Triazol | XH4: Valinamida carbamato | XI4: Carbonitrilas | XJ4: Piretróide | XK4: Triazol | XL4: benzotiazol | XM4: ácido piridiniloxialcanóico | XN4: Estrobilurina | XO4: imidazol | XP4: Estrobilurina | XQ4: sulfoniluréia | XR4: imidazol | XS4: Benzoiluréia | XT4: Dinitroanilina | XU4: Triazinamina | XV4: Ácido dioxociclohexanocarboxílico | XW4: triazol | XX4: Ácido dioxociclohexanocarboxílico | XY4: Glicina Substituída | XZ4: anilinopirimidina | YA4: Piretróide | YB4: Sulfoniluréia | YC4: Triazinona | YD4: Estrobilurina | YE4: Benzamida | YF4: Triazol | YG4: ácido ariloxifenoxipropiônico | YH4: Antranilamida | YI4: Semicarbazona | YJ4: Morfolina | YK4: Avermectina | YL4: Organofosforado | YM4: Dimetilditiocarbamato | YN4: carboxanilida | YO4: organoarsênico | YP4: Benzotiadiazinona | YQ4: Benzoiluréia | YR4: Ciclohexenodicarboximida | YS4: Pirazol | YT4: Estrobilurina | YU4: Pirimidilamina | YV4: imidazolinona | YW4: Sulfoniluréia | YX4: Carbonitrilas | YY4: Carbonitrilas | YZ4: Flumioxazin herbicide | ZA4: Triazol | ZB4: Piperidinil Tiazol Izoxazolina | ZC4: benzamida
A5: Produto (nome comercial) | C5: 2,4 D | D5: Abacus | E5: Abamectina | F5: Accent | G5: Accurate | H5: Ace | I5: Acefato | J5: Acero | K5: Acetamiprido | L5: Acetocloro | M5: Acibenzolar-S-metílico | N5: Acifluorfem-sódico | O5: Acrinatrina | P5: Acronis | Q5: Actara | R5: Adengo | S5: Afalon | T5: Affinity | U5: Afidopiropeno | V5: Agria | W5: Agricur | X5: Agritone | Y5: Alaclor | Z5: Alacloro | AA5: Alade | AB5: Alfa-Cipermetrina | AC5: Aliette | AD5: Alion | AE5: Ally | AF5: Altaco | AG5: Alto 100 | AH5: Alverde | AI5: Ametista | AJ5: Ametoctradina | AK5: Ametrex | AL5: Ametrina | AM5: Amicarbazona | AN5: Aminol 806 | AO5: Aminopiralide | AP5: Amistar | AQ5: Amitraz | AR5: Ampligo | AS5: Amplo | AT5: Anchor | AU5: Antracol | AV5: Antrimo | AW5: Applaud | AX5: Aproach | AY5: Aproach Power | AZ5: Aramo | BA5: Arbust | BB5: Arreio | BC5: Artea | BD5: Asulam | BE5: Asulox | BF5: Atabron | BG5: Atento | BH5: Atranex | BI5: Atrasimex | BJ5: Atrasimex | BK5: Atrazina | BL5: Attic | BM5: Aura | BN5: Aurora | BO5: Aval | BP5: Avant | BQ5: Avatar | BR5: Azadiractina | BS5: Azamax | BT5: Azimsulfurom | BU5: Azimut | BV5: Azoxistrobina | BW5: Basagran | BX5: Basamid | BY5: Baytan | BZ5: Bazuka | CA5: Belt | CB5: Belyan | CC5: Benalaxil | CD5: Bendazol | CE5: Benevia | CF5: Benforce | CG5: Benfuracarb | CH5: Bentazona | CI5: Bentiavalicarbe isopropílico | CJ5: Benzoato de emamectina | CK5: Benzovindiflupir | CL5: Beta-ciflutrina | CM5: Bicarbonato de potássio | CN5: Bifentrina | CO5: Biflex | CP5: Bim | CQ5: Bion | CR5: Bispirabaque | CS5: Bistar | CT5: Bistrifluron | CU5: Blade | CV5: Blazer | CW5: Bold | CX5: Boral | CY5: Boscalid | CZ5: Boscalida | DA5: Brilhamte | DB5: Bromacila | DC5: Brometo de metila | DD5: Bromuconazol | DE5: Bulldock | DF5: Bunema | DG5: Buprofezina | DH5: Butiron | DI5: Cadusafós | DJ5: Calisto | DK5: Calypso | DL5: Campestre | DM5: Cantus | DN5: Captan | DO5: Captana | DP5: Captor | DQ5: Capture | DR5: Carbaril | DS5: Carben | DT5: Carbendazim | DU5: Carbine | DV5: Carbomax | DW5: Carbossulfano | DX5: Carboxina | DY5: Carfentrazona-etílica | DZ5: Cartape | EA5: Cartarys | EB5: Cascade | EC5: Casugamicina | ED5: Catcher | EE5: Cefanol | EF5: Celeiro | EG5: Censor | EH5: Centurion | EI5: Cercobin | EJ5: Cerconil | EK5: Certero | EL5: Certus | EM5: Chaser | EN5: Chess | EO5: Ciantraniliprole | EP5: Ciazofamida | EQ5: Ciclaniliprole | ER5: Ciclossulfamurom | ES5: Cierto | ET5: Ciflumetofen | EU5: Cimoxanil | EV5: Cipermetrina | EW5: Ciproconazol | EX5: Ciprodinil | EY5: Ciromazina | EZ5: Classic | FA5: Cletodim | FB5: Clodinafope-Propargil | FC5: Clomazona | FD5: Cloransulam-metílico | FE5: Clorantraniliprole | FF5: Clorfenapir | FG5: Clorfuazurom | FH5: Cloridrato de propamocarbe | FI5: Clorim | FJ5: Clorimurom-etílico | FK5: Clorimuron | FL5: Clorotalonil | FM5: Clorpirifós | FN5: Clotianidina | FO5: Comet | FP5: Commanche | FQ5: Completo | FR5: Condor | FS5: Connect | FT5: Contact | FU5: Contain | FV5: Cordial | FW5: Counter | FX5: Coyote | FY5: Cronnos | FZ5: Cropstar; | GA5: Cruiser; | GB5: Cuprodil | GC5: Curyom | GD5: Curyom | GE5: Dacobre | GF5: Daconil | GG5: Dacostar | GH5: Danimen | GI5: Dazomete | GJ5: Decis | GK5: Delan | GL5: Deltametrina | GM5: Demarcor | GN5: Derosal | GO5: Derox | GP5: Diafenturiom | GQ5: Dibrometo de Diquate | GR5: Dicamba | GS5: Dicloreto de Paraquate | GT5: Diclosulam | GU5: Difenoconazol | GV5: Diflubenzurom | GW5: Diflumax | GX5: Dimetoato | GY5: Dimetomorfe | GZ5: Dimexion | HA5: Dimilim | HB5: Dinamic | HC5: Dinofeturam | HD5: Diquate | HE5: Direx | HF5: Dithane | HG5: Ditianona | HH5: Diurom | HI5: DMA | HJ5: Doble | HK5: Dodex | HL5: Dodina | HM5: Drible | HN5: Dual Gold | HO5: Egan | HP5: Elatus | HQ5: Eleitto | HR5: Eminent | HS5: Engeo | HT5: Envidor | HU5: Envoke | HV5: Enxofre | HW5: Epoxiconazol | HX5: Equation | HY5: Equation | HZ5: Equip Plus | IA5: Erune | IB5: Esfenvalerato | IC5: Espinetoram | ID5: Espinosade | IE5: Espirodiclofeno | IF5: Espiromesifeno | IG5: Etofenproxi | IH5: Etoxazol | II5: Etoxissulfurom | IJ5: Etridiazol | IK5: Evolution | IL5: Exalt | IM5: Expedition | IN5: Extrazin | IO5: Facero | IP5: Facet | IQ5: Famoxadona | IR5: Fascinate | IS5: Fastac | IT5: Fenamidona | IU5: Fenitrotiona | IV5: Fenoxaprop-P-ethyl | IW5: Fenpirazamina | IX5: Fenpiroximato | IY5: Fenpropatrina | IZ5: Fenpropimorfe | JA5: Fentrol | JB5: Fersol | JC5: Finale | JD5: Fipronil | JE5: Flair | JF5: Flazassulfurom | JG5: Flex | JH5: Flint | JI5: Flonicamida | JJ5: Florpirauxifen-benzil | JK5: Fluazifope-p-butil | JL5: Fluazinam | JM5: Flubendiamida | JN5: Fludioxonil | JO5: Flufenoxurom | JP5: Flumetsulam | JQ5: Flumicloraque-pentílico | JR5: Flumioxazina | JS5: Flumyzin | JT5: Fluopicolide | JU5: Fluopiram | JV5: Flupiradifurona | JW5: Fluquinconazol | JX5: Fluroxipir | JY5: Flutolanil | JZ5: Flutriafol | KA5: Fluxapiroxade | KB5: Folicur; | KC5: Folpan | KD5: Folpete | KE5: Fomesafem | KF5: Foransulfurom | KG5: Fortenza | KH5: Forum | KI5: Fosetil | KJ5: Fosfeto de alúminio | KK5: Fosmete | KL5: Fostiazato | KM5: Fox | KN5: Frowncide | KO5: Fungicarb | KP5: Funginil | KQ5: Fury | KR5: Fusão | KS5: Fusiflex | KT5: Fusilade | KU5: Futur | KV5: Galben | KW5: Gallaxy | KX5: Gama-Cialotrina | KY5: Game | KZ5: Gapper | LA5: Gastoxin | LB5: Gesagard | LC5: Gesapax | LD5: Gesaprim | LE5: Gladium | LF5: Glider | LG5: Glifosato | LH5: Glufosinato de amônio | LI5: Glyphotal | LJ5: Goal | LK5: Gramoxone | LL5: Graolin | LM5: Gulliver | LN5: Halauxifen-metíl | LO5: Halossulfurom-metílico | LP5: Haloxifope-P-metílico | LQ5: Hanami | LR5: Hanaro | LS5: Hayate | LT5: Heat | LU5: Herbadox | LV5: Herbipak | LW5: Hero | LX5: Hexanil | LY5: Hexazinona | LZ5: Hexitiazox | MA5: Hidróxido de cobre | MB5: Hidróxido de Fentina | MC5: Hussar | MD5: Ichiban | ME5: Imazacure | MF5: Imazalil | MG5: Imazamoxi | MH5: Imazapique | MI5: Imazapir | MJ5: Imazaquim | MK5: Imazetapir | ML5: Imibenconazol | MM5: Imidacloprido | MN5: Imidam | MO5: Impact | MP5: Impirfluxam | MQ5: Imunit | MR5: Indaziflam | MS5: Indoxacarb | MT5: Infinito | MU5: Insemat | MV5: Intrepid | MW5: Invest | MX5: Iodossulfurom-metílico-sódico | MY5: Ipconazol | MZ5: Iprodiona | NA5: Isatalonil | NB5: Isofetamida | NC5: Isoxaflutol | ND5: Juno | NE5: K-Obiol | NF5: K-Othrine | NG5: Kadett | NH5: Kaligreen | NI5: Karate zeon | NJ5: Karmex | NK5: Kasumin | NL5: Katana | NM5: Kelion | NN5: Kenja | NO5: Kicker | NP5: Klorpan | NQ5: Krovar | NR5: Kumulus | NS5: Laço | NT5: Lactofem | NU5: Lambda-Cialotrina | NV5: Lannate | NW5: Larvim | NX5: Lava | NY5: Liberty | NZ5: Linurom | OA5: Lorsban | OB5: Lufenuron | OC5: Magnate | OD5: Magnus | OE5: Malation | OF5: Manage | OG5: Mancozeb | OH5: Mancozebe | OI5: Mandipropamida | OJ5: Manzate | OK5: Marshal | OL5: Match | OM5: Maxim | ON5: Maxim XL | OO5: Maxsan | OP5: MCPA | OQ5: Mefentrifluconazol | OR5: Meothrin | OS5: Merpan | OT5: Mertin | OU5: Mesotriona | OV5: Metaflimizona | OW5: Metaflumizone | OX5: Metalaxil-M | OY5: Metam-sódico | OZ5: Metconazol | PA5: Metidationa | PB5: Metiram | PC5: Metolacloro | PD5: Metomil | PE5: Metoxifenozida | PF5: Metribuzim | PG5: Metribuzin | PH5: Metsulfurom-metílico | PI5: Miclobutanil | PJ5: Mimic | PK5: Miravis | PL5: Mirex S | PM5: Moceren | PN5: Moncut | PO5: MSMA | PP5: Naja | PQ5: Nativo | PR5: Natular | PS5: Nicossulfurom | PT5: Nomolt | PU5: Nordick | PV5: Novalurom | PW5: Nufos | PX5: Nufuron; | PY5: Oberon | PZ5: Okay | QA5: Omite | QB5: Oneshot | QC5: Only | QD5: Ópera | QE5: Ópera Ultra | QF5: Orkestra | QG5: Orthene | QH5: Orthocide | QI5: Orthosulfamuron | QJ5: Ortus | QK5: Oxadiazona | QL5: Oxatiapiprolina | QM5: Oxicloreto de cobre | QN5: Oxyfluorfem | QO5: Pacto | QP5: Panther | QQ5: Panzer | QR5: Paraquat | QS5: Patrol | QT5: Pencicurom | QU5: Pendimetalina | QV5: Penoxsulam | QW5: Permetrina | QX5: Photon | QY5: Picloram | QZ5: Picoxistrobina | RA5: Pidiflumetofen | RB5: Pilot | RC5: Pimetrozina | RD5: Piraclostrobina | RE5: Pirate | RF5: Pirephos | RG5: Piridabem | RH5: Pirimetanil | RI5: Pirimifós-metílico | RJ5: Piriproxifem | RK5: Piritiobaque-sódico | RL5: Piroxassulfona | RM5: Poast | RN5: Podium | RO5: Polo | RP5: Polyram | RQ5: Poncho | RR5: Ponteiro | RS5: Poquer | RT5: Pottente | RU5: Premelin | RV5: Premio | RW5: Premis | RX5: Prevaiil | RY5: Primagram Gold | RZ5: Primaiz Gold | SA5: Primatop | SB5: Primestra Gold | SC5: Primóleo | SD5: Priori | SE5: Priori Xtra | SF5: Prisma | SG5: Privilege | SH5: Procimidona | SI5: Proclaim | SJ5: Profenofós | SK5: Profoxidim | SL5: Prolectus | SM5: Prometrina | SN5: Propanil | SO5: Propargito | SP5: Propiconazol | SQ5: Propinebe | SR5: Prospect | SS5: Protioconazol | ST5: Provence | SU5: Provence Total | SV5: Quincloraque | SW5: Quizalofop-P-ethyl | SX5: Quizalofope-P-tefurílico | SY5: Radiant | SZ5: Rage | TA5: Rainvel | TB5: Rancona | TC5: Rapel | TD5: Rapsode | TE5: Raptor | TF5: Raster | TG5: Reator | TH5: Record | TI5: Regente | TJ5: Reglone | TK5: Resource | TL5: Revus | TM5: Rhodiauram | TN5: Ridomil | TO5: Rimon | TP5: Riper | TQ5: Ronstar | TR5: Rotaxil | TS5: Roundup | TT5: Rovral | TU5: Rufast | TV5: Rugby | TW5: Safety | TX5: Saflufenacil | TY5: Sanmite | TZ5: Sanson | UA5: Savana | UB5: Score | UC5: Scorpion | UD5: Select | UE5: Selefen | UF5: Semevim | UG5: Sempra | UH5: Sencor; | UI5: Sequence | UJ5: Setoxidim | UK5: Sevin | UL5: Simazina | UM5: Sivanto | UN5: Skip | UO5: Smile | UP5: Soberan | UQ5: Solara | UR5: Sombrero | US5: Sperto | UT5: Sphere max | UU5: Spider | UV5: Spike | UW5: Spot | UX5: Spotlight | UY5: Stalion | UZ5: Stam | VA5: Standak | VB5: Staple | VC5: Starion | VD5: Stoy | VE5: Stratego | VF5: Sugoy | VG5: Sulfato de cobre | VH5: Sulfentrazona | VI5: Sulfluramida | VJ5: Sulfometuron metílico | VK5: Sulfoxaflor | VL5: Sumidan | VM5: Sumifog | VN5: Sumigran | VO5: Sumiguard | VP5: Sumilex | VQ5: Sumithion | VR5: Sumyzin | VS5: Support | VT5: Suprathion | VU5: Surpass | VV5: Systhane | VW5: Talento | VX5: Talisman | VY5: Talstar | VZ5: Targa | WA5: Tasker | WB5: Tebuco | WC5: Tebuconazol | WD5: Tebufenozida | WE5: Tebutiurom | WF5: Tebuzim | WG5: Teflubenzurom | WH5: Tembotriona | WI5: Tenace | WJ5: Tepraloxidim | WK5: Terbufós | WL5: Terbumax | WM5: Terbutilazina | WN5: Terrazole | WO5: Tetraconazol | WP5: Texaro | WQ5: Thorn | WR5: Tiabendazol | WS5: Tiacloprido | WT5: Tiametoxam | WU5: Tiencarbazona | WV5: Tiger | WW5: Tilt | WX5: Tiodicarbe | WY5: Tiofanato-metílico | WZ5: Tiram | XA5: Tocha | XB5: Token | XC5: Tolfenpirade | XD5: Topic | XE5: Topsin | XF5: Tordon Ultra | XG5: Tornado | XH5: Totalit | XI5: Totalit | XJ5: Trebon | XK5: Triadimenol | XL5: Triciclazol | XM5: Tricopir-butolítico | XN5: Tridium | XO5: Trifimine | XP5: Trifloxistrobina | XQ5: Trifloxisulfuron | XR5: Triflumizol | XS5: Triflumurom | XT5: Trifluralina | XU5: Trigard | XV5: Trinexapaque-etílico | XW5: Triticonazol | XX5: Trix | XY5: Trop | XZ5: Truzon | YA5: Turbo | YB5: Twister | YC5: Unimark | YD5: Unizeb | YE5: Verango Prime | YF5: Verdadeiro | YG5: Verdict-max | YH5: Verimark | YI5: Verismo | YJ5: Versatilis | YK5: Vertimec | YL5: Vexter | YM5: Vitavax | YN5: Vitavax Thiram | YO5: Volcane | YP5: Volt | YQ5: Wasp | YR5: Xavante | YS5: Yamato | YT5: Yoda | YU5: Zampo | YV5: Zaphir | YW5: Zartan | YX5: Zetanil | YY5: Zetaram | YZ5: Zethamaxx | ZA5: Zoom | ZB5: Zorvec | ZC5: Zoxamida
A6: 14.5 - Ingrediente Ativo do produto | C6: 2,4 D | D6: Epoxiconazol | E6: Abamectina | F6: Nicossulfurom | G6: Metsulfurom-metílico | H6: Acefato | I6: Acefato | J6: Acefato | K6: Acetamiprido | L6: Acetocloro | M6: Acibenzolar-S-metílico | N6: Acifluorfem-sódico | O6: Acrinatrina | P6: Piraclostrobina | Q6: Tiametoxam | R6: Tiencarbazona | S6: Linurom | T6: Carfentrazona-etílica | U6: Afidopiropeno | V6: Azoxistrobina | W6: Folpete | X6: MCPA | Y6: Alacloro | Z6: Alacloro | AA6: Benzovindiflupir | AB6: Alfa-Cipermetrina | AC6: Fosetil | AD6: Indaziflam | AE6: Sulfometuron metílico | AF6: Clorantraniliprole | AG6: Ciproconazol | AH6: Metaflimizona | AI6: Cipermetrina | AJ6: Ametoctradina | AK6: Ametrina | AL6: Ametrina | AM6: Amicarbazona | AN6: 2,4 D | AO6: Aminopiralide | AP6: Azoxistrobina | AQ6: Amitraz | AR6: Abamectina | AS6: Imazamoxi | AT6: Tiram | AU6: Propinebe | AV6: Teflubenzurom | AW6: Buprofezina | AX6: Ciproconazol | AY6: Picoxistrobina | AZ6: Tepraloxidim | BA6: Tricopir-butolítico | BB6: Fluroxipir | BC6: Ciproconazol | BD6: Asulam | BE6: Asulam | BF6: Clorfuazurom | BG6: Fluquinconazol | BH6: Atrazina | BI6: Atrazina | BJ6: Simazina | BK6: Atrazina | BL6: Iprodiona | BM6: Profoxidim | BN6: Carfentrazona-etílica | BO6: Tebutiurom | BP6: Acefato | BQ6: Indoxacarb | BR6: Azadiractina | BS6: Azadiractina | BT6: Azimsulfurom | BU6: Azoxistrobina | BV6: Azoxistrobina | BW6: Bentazona | BX6: Dazomete | BY6: Triadimenol | BZ6: Metomil | CA6: Flubendiamida | CB6: Mefentrifluconazol | CC6: Benalaxil | CD6: Carbendazim | CE6: Ciantraniliprole | CF6: Benfuracarbe | CG6: Benfuracarbe | CH6: Bentazona | CI6: Bentiavalicarbe isopropílico | CJ6: Benzoato de emamectina | CK6: Benzovindiflupir | CL6: Beta-ciflutrina | CM6: Bicarbonato de potássio | CN6: Bifentrina | CO6: Bifentrina | CP6: Triciclazol | CQ6: Acibenzolar-S-metílico | CR6: Bispirabaque | CS6: Bifentrina | CT6: Bistrifluron | CU6: Piriproxifem | CV6: Acifluorfem-sódico | CW6: Fenpropatrina | CX6: Sulfentrazona | CY6: Boscalida | CZ6: Boscalida | DA6: Metomil | DB6: Bromacila | DC6: Brometo de metila | DD6: Bromuconazol | DE6: Beta-ciflutrina | DF6: Metam-sódico | DG6: Buprofezina | DH6: Tebutiurom | DI6: Cadusafós | DJ6: Mesotriona | DK6: Tiacloprido | DL6: Picloram | DM6: Boscalida | DN6: Captana | DO6: Captana | DP6: Tiodicarbe | DQ6: Bifentrina | DR6: Carbaril | DS6: Carbendazim | DT6: Carbendazim | DU6: Flonicamida | DV6: Carbendazim | DW6: Carbossulfano | DX6: Carboxina | DY6: Carfentrazona-etílica | DZ6: Cartape | EA6: Cartape | EB6: Flufenoxurom | EC6: Casugamicina | ED6: Clorpirifós | EE6: Acefato | EF6: Flutriafol | EG6: Fenamidona | EH6: Cletodim | EI6: Tiofanato-metílico | EJ6: Clorotalonil | EK6: Triflumurom | EL6: Iprodiona | EM6: Tolfenpirade | EN6: Pimetrozina | EO6: Ciantraniliprole | EP6: Ciazofamida | EQ6: Ciclaniliprole | ER6: Ciclossulfamurom | ES6: Fostiazato | ET6: Ciflumetofen | EU6: Cimoxanil | EV6: Cipermetrina | EW6: Ciproconazol | EX6: Ciprodinil | EY6: Ciromazina | EZ6: Clorimurom-etílico | FA6: Cletodim | FB6: Clodinafope-Propargil | FC6: Clomazona | FD6: Cloransulam-metílico | FE6: Clorantraniliprole | FF6: Clorfenapir | FG6: Clorfuazurom | FH6: Cloridrato de propamocarbe | FI6: Clorimurom-etílico | FJ6: Clorimurom-etílico | FK6: Clorimurom-etílico | FL6: Clorotalonil | FM6: Clorpirifós | FN6: Clotianidina | FO6: Piraclostrobina | FP6: Cipermetrina | FQ6: Fluazinam | FR6: Bromuconazol | FS6: Imidacloprido | FT6: Hidróxido de cobre | FU6: Imazapir | FV6: Piriproxifem | FW6: Terbufós | FX6: Atrazina | FY6: Tebuconazol | FZ6: Imidacloprido | GA6: Tiametoxam | GB6: Clorotalonil | GC6: Lufenuron | GD6: Profenofós | GE6: Clorotalonil | GF6: Clorotalonil | GG6: Clorotalonil | GH6: Fenpropatrina | GI6: Dazomete | GJ6: Deltametrina | GK6: Ditianona | GL6: Deltametrina | GM6: Clorantraniliprole | GN6: Carbendazim | GO6: Carbendazim | GP6: Diafenturiom | GQ6: Dibrometo de Diquate | GR6: Dicamba | GS6: Dicloreto de Paraquate | GT6: Diclosulam | GU6: Difenoconazol | GV6: Diflubenzurom | GW6: Diflubenzurom | GX6: Dimetoato | GY6: Dimetomorfe | GZ6: Dimetoato | HA6: Diflubenzurom | HB6: Amicarbazona | HC6: Dinofeturam | HD6: Diquate | HE6: Diurom | HF6: Mancozebe | HG6: Ditianona | HH6: Diurom | HI6: 2,4 D | HJ6: Bentazona | HK6: Dodina | HL6: Dodina | HM6: Lactofem | HN6: Metolacloro | HO6: Tebuconazol | HP6: Azoxistrobina | HQ6: Etofenproxi | HR6: Tetraconazol | HS6: Tiametoxam | HT6: Espirodiclofeno | HU6: Trifloxisulfuron | HV6: Enxofre | HW6: Epoxiconazol | HX6: Cimoxanil | HY6: Famoxadona | HZ6: Foransulfurom | IA6: Pirimetanil | IB6: Esfenvalerato | IC6: Espinetoram | ID6: Espinosade | IE6: Espirodiclofeno | IF6: Espiromesifeno | IG6: Etofenproxi | IH6: Etoxazol | II6: Etoxissulfurom | IJ6: Etridiazol | IK6: Acefato | IL6: Espinetoram | IM6: Sulfoxaflor | IN6: Atrazina | IO6: Atrazina | IP6: Quincloraque | IQ6: Famoxadona | IR6: Glufosinato de amônio | IS6: Alfa-Cipermetrina | IT6: Fenamidona | IU6: Fenitrotiona | IV6: Fenoxaprop-P-ethyl | IW6: Fenpirazamina | IX6: Fenpiroximato | IY6: Fenpropatrina | IZ6: Fenpropimorfe | JA6: Gama-Cialotrina | JB6: Permetrina | JC6: Glufosinato de amônio | JD6: Fipronil | JE6: Difenoconazol | JF6: Flazassulfurom | JG6: Fomesafem | JH6: Trifloxistrobina | JI6: Flonicamida | JJ6: Florpirauxifen-benzil | JK6: Fluazifope-p-butil | JL6: Fluazinam | JM6: Flubendiamida | JN6: Fludioxonil | JO6: Flufenoxurom | JP6: Flumetsulam | JQ6: Flumicloraque-pentílico | JR6: Flumioxazina | JS6: Flumioxazina | JT6: Fluopicolide | JU6: Fluopiram | JV6: Flupiradifurona | JW6: Fluquinconazol | JX6: Fluroxipir | JY6: Flutolanil | JZ6: Flutriafol | KA6: Fluxapiroxade | KB6: Tebuconazol | KC6: Folpete | KD6: Folpete | KE6: Fomesafem | KF6: Foransulfurom | KG6: Ciantraniliprole | KH6: Dimetomorfe | KI6: Fosetil | KJ6: Fosfeto de alúminio | KK6: Fosmete | KL6: Fostiazato | KM6: Protioconazol | KN6: Fluazinam | KO6: Carbendazim | KP6: Clorotalonil | KQ6: Cipermetrina | KR6: Tebuconazol | KS6: Fomesafem | KT6: Fluazifope-p-butil | KU6: Tiodicarbe | KV6: Benalaxil | KW6: Novalurom | KX6: Gama-Cialotrina | KY6: Lufenuron | KZ6: Florpirauxifen-benzil | LA6: Fosfeto de alúminio | LB6: Prometrina | LC6: Ametrina | LD6: Atrazina | LE6: Etoxissulfurom | LF6: Clorotalonil | LG6: Glifosato | LH6: Glufosinato de amônio | LI6: Glifosato | LJ6: Oxyfluorfem | LK6: Dicloreto de Paraquate | LL6: Pirimifós-metílico | LM6: Azimsulfurom | LN6: Halauxifen-metíl | LO6: Halossulfurom-metílico | LP6: Haloxifope-P-metílico | LQ6: Ciazofamida | LR6: Bistrifluron | LS6: Ciclaniliprole | LT6: Saflufenacil | LU6: Pendimetalina | LV6: Ametrina | LW6: Cipermetrina | LX6: Hexazinona | LY6: Hexazinona | LZ6: Hexitiazox | MA6: Hidróxido de cobre | MB6: Hidróxido de Fentina | MC6: Iodossulfurom-metílico-sódico | MD6: Clorotalonil | ME6: Imazalil | MF6: Imazalil | MG6: Imazamoxi | MH6: Imazapique | MI6: Imazapir | MJ6: Imazaquim | MK6: Imazetapir | ML6: Imibenconazol | MM6: Imidacloprido | MN6: Fosmete | MO6: Flutriafol | MP6: Impirfluxam | MQ6: Teflubenzurom | MR6: Indaziflam | MS6: Indoxacarb | MT6: Cloridrato de propamocarbe | MU6: Bifentrina | MV6: Metoxifenozida | MW6: Ciclossulfamurom | MX6: Iodossulfurom-metílico-sódico | MY6: Ipconazol | MZ6: Iprodiona | NA6: Clorotalonil | NB6: Isofetamida | NC6: Isoxaflutol | ND6: Propiconazol | NE6: Deltametrina | NF6: Deltametrina | NG6: Acetocloro | NH6: Bicarbonato de potássio | NI6: Lambda-Cialotrina | NJ6: Diurom | NK6: Casugamicina | NL6: Flazassulfurom | NM6: Orthosulfamuron | NN6: Isofetamida | NO6: Sulfentrazona | NP6: Clorpirifós | NQ6: Bromacila | NR6: Enxofre | NS6: Alacloro | NT6: Lactofem | NU6: Lambda-Cialotrina | NV6: Metomil | NW6: Tiodicarbe | NX6: Tebutiurom | NY6: Glufosinato de amônio | NZ6: Linurom | OA6: Clorpirifós | OB6: Lufenuron | OC6: Imazalil | OD6: Hexazinona | OE6: Malation | OF6: Imibenconazol | OG6: Mancozebe | OH6: Mancozebe | OI6: Mandipropamida | OJ6: Mancozebe | OK6: Carbossulfano | OL6: Lufenuron | OM6: Metalaxil-M | ON6: Fludioxonil | OO6: Dinofeturam | OP6: MCPA | OQ6: Mefentrifluconazol | OR6: Fenpropatrina | OS6: Captana | OT6: Hidróxido de Fentina | OU6: Mesotriona | OV6: Metaflimizona | OW6: Metaflimizona | OX6: Metalaxil-M | OY6: Metam-sódico | OZ6: Metconazol | PA6: Metidationa | PB6: Metiram | PC6: Metolacloro | PD6: Metomil | PE6: Metoxifenozida | PF6: Metribuzim | PG6: Indaziflam | PH6: Metsulfurom-metílico | PI6: Miclobutanil | PJ6: Tebufenozida | PK6: Pidiflumetofen | PL6: Sulfluramida | PM6: Pencicurom | PN6: Flutolanil | PO6: MSMA | PP6: Lactofem | PQ6: Tebuconazol | PR6: Espinosade | PS6: Nicossulfurom | PT6: Teflubenzurom | PU6: Malation | PV6: Novalurom | PW6: Clorpirifós | PX6: Metsulfurom-metílico | PY6: Espiromesifeno | PZ6: Ciflumetofen | QA6: Propargito | QB6: Imazaquim | QC6: Imazapique | QD6: Epoxiconazol | QE6: Metconazol | QF6: Fluxapiroxade | QG6: Acefato | QH6: Captana | QI6: Orthosulfamuron | QJ6: Fenpiroximato | QK6: Oxadiazona | QL6: Oxatiapiprolina | QM6: Oxicloreto de cobre | QN6: Oxyfluorfem | QO6: Cloransulam-metílico | QP6: Quizalofope-P-tefurílico | QQ6: Clorimurom-etílico | QR6: Dicloreto de Paraquate | QS6: Glufosinato de amônio | QT6: Pencicurom | QU6: Pendimetalina | QV6: Penoxsulam | QW6: Permetrina | QX6: Triadimenol | QY6: Picloram | QZ6: Picoxistrobina | RA6: Pidiflumetofen | RB6: Fluazifope-p-butil | RC6: Pimetrozina | RD6: Piraclostrobina | RE6: Clorfenapir | RF6: Esfenvalerato | RG6: Piridabem | RH6: Pirimetanil | RI6: Pirimifós-metílico | RJ6: Piriproxifem | RK6: Piritiobaque-sódico | RL6: Piroxassulfona | RM6: Setoxidim | RN6: Fenoxaprop-P-ethyl | RO6: Diafenturiom | RP6: Metiram | RQ6: Clotianidina | RR6: Sulfentrazona | RS6: Cletodim | RT6: Benfuracarbe | RU6: Trifluralina | RV6: Clorantraniliprole | RW6: Triticonazol | RX6: Flumetsulam | RY6: Atrazina | RZ6: Atrazina | SA6: Atrazina | SB6: Atrazina | SC6: Atrazina | SD6: Azoxistrobina | SE6: Azoxistrobina | SF6: Difenoconazol | SG6: Piriproxifem | SH6: Procimidona | SI6: Benzoato de emamectina | SJ6: Profenofós | SK6: Profoxidim | SL6: Fenpirazamina | SM6: Prometrina | SN6: Propanil | SO6: Propargito | SP6: Propiconazol | SQ6: Propinebe | SR6: Epoxiconazol | SS6: Protioconazol | ST6: Isoxaflutol | SU6: Indaziflam | SV6: Quincloraque | SW6: Quizalofop-P-ethyl | SX6: Quizalofope-P-tefurílico | SY6: Flumicloraque-pentílico | SZ6: Carfentrazona-etílica | TA6: Dicamba | TB6: Ipconazol | TC6: Acefato | TD6: Fenoxaprop-P-ethyl | TE6: Imazamoxi | TF6: Penoxsulam | TG6: Clomazona | TH6: Clorpirifós | TI6: Fipronil | TJ6: Diquate | TK6: Flumicloraque-pentílico | TL6: Mandipropamida | TM6: Tiram | TN6: Mancozebe | TO6: Novalurom | TP6: Bispirabaque | TQ6: Oxadiazona | TR6: Procimidona | TS6: Glifosato | TT6: Iprodiona | TU6: Acrinatrina | TV6: Cadusafós | TW6: Etofenproxi | TX6: Saflufenacil | TY6: Piridabem | TZ6: Nicossulfurom | UA6: Carfentrazona-etílica | UB6: Difenoconazol | UC6: Flumetsulam | UD6: Cletodim | UE6: Fenoxaprop-P-ethyl | UF6: Tiodicarbe | UG6: Halossulfurom-metílico | UH6: Metribuzim | UI6: Metolacloro | UJ6: Setoxidim | UK6: Carbaril | UL6: Simazina | UM6: Flupiradifurona | UN6: Flutriafol | UO6: Etoxazol | UP6: Tembotriona | UQ6: Sulfentrazona | UR6: Imidacloprido | US6: Bifentrina | UT6: Ciproconazol | UU6: Diclosulam | UV6: Tebutiurom | UW6: Boscalida | UX6: Carfentrazona-etílica | UY6: Gama-Cialotrina | UZ6: Propanil | VA6: Fipronil | VB6: Piritiobaque-sódico | VC6: Bifentrina | VD6: Nicossulfurom | VE6: Propiconazol | VF6: Impirfluxam | VG6: Sulfato de cobre | VH6: Sulfentrazona | VI6: Sulfluramida | VJ6: Sulfometuron metílico | VK6: Sulfoxaflor | VL6: Esfenvalerato | VM6: Fenitrotiona | VN6: Fenitrotiona | VO6: Procimidona | VP6: Procimidona | VQ6: Fenitrotiona | VR6: Flumioxazina | VS6: Tiofanato-metílico | VT6: Metidationa | VU6: Acetocloro | VV6: Miclobutanil | VW6: Hexitiazox | VX6: Bifentrina | VY6: Bifentrina | VZ6: Quizalofop-P-ethyl | WA6: Flutriafol | WB6: Tebuconazol | WC6: Tebuconazol | WD6: Tebufenozida | WE6: Tebutiurom | WF6: Carbendazim | WG6: Teflubenzurom | WH6: Tembotriona | WI6: Metribuzim | WJ6: Tepraloxidim | WK6: Terbufós | WL6: Terbutilazina | WM6: Terbutilazina | WN6: Etridiazol | WO6: Tetraconazol | WP6: Halauxifen-metíl | WQ6: Triflumurom | WR6: Tiabendazol | WS6: Tiacloprido | WT6: Tiametoxam | WU6: Tiencarbazona | WV6: Piriproxifem | WW6: Propiconazol | WX6: Tiodicarbe | WY6: Tiofanato-metílico | WZ6: Tiram | XA6: Dicloreto de Paraquate | XB6: Hexazinona | XC6: Tolfenpirade | XD6: Clodinafope-Propargil | XE6: Tiofanato-metílico | XF6: Aminopiralide | XG6: Flutriafol | XH6: Bentiavalicarbe isopropílico | XI6: Clorotalonil | XJ6: Etofenproxi | XK6: Triadimenol | XL6: Triciclazol | XM6: Tricopir-butolítico | XN6: Azoxistrobina | XO6: Triflumizol | XP6: Trifloxistrobina | XQ6: Trifloxisulfuron | XR6: Triflumizol | XS6: Triflumurom | XT6: Trifluralina | XU6: Ciromazina | XV6: Trinexapaque-etílico | XW6: Triticonazol | XX6: Trinexapaque-etílico | XY6: Glifosato | XZ6: Ciprodinil | YA6: Beta-ciflutrina | YB6: Clorimurom-etílico | YC6: Metribuzim | YD6: Azoxistrobina | YE6: Fluopiram | YF6: Ciproconazol | YG6: Haloxifope-P-metílico | YH6: Ciantraniliprole | YI6: Metaflimizona | YJ6: Fenpropimorfe | YK6: Abamectina | YL6: Clorpirifós | YM6: Tiram | YN6: Carboxina | YO6: MSMA | YP6: Bentazona | YQ6: Triflumurom | YR6: Fluopicolide | YS6: Piroxassulfona | YT6: Azoxistrobina | YU6: Ametoctradina | YV6: Imazetapir | YW6: Metsulfurom-metílico | YX6: Clorotalonil | YY6: Clorotalonil | YZ6: Flumioxazina | ZA6: Flutriafol | ZB6: Oxatiapiprolina | ZC6: Zoxamida
A7: 14.6 - Toxicidade para peixes - 96h LC50 (mg l-1) | C7: 63.4 | D7: 3.14 | E7: 0.0036 | F7: 65.7 | G7: 150 | H7: 0.63 | I7: 0.63 | J7: 0.63 | K7: 100 | L7: 0.36 | N7: 17 | O7: 0.0061 | P7: 0.006 | Q7: 125 | R7: 104 | S7: 3.15 | T7: 1.6 | U7: 18.3 | V7: 0.47 | W7: 0.233 | X7: 100 | Y7: 1.8 | Z7: 1.8 | AA7: 0.0035 | AB7: 0.0018 | AC7: 122 | AD7: 0.42 | AE7: 12.5 | AF7: 12 | AG7: 19 | AH7: 0.228 | AI7: 0.0028 | AJ7: 0.065 | AK7: 5 | AL7: 5 | AM7: 120 | AN7: 63.4 | AO7: 100 | AP7: 0.47 | AQ7: 0.74 | AR7: 0.0036 | AS7: 122 | AT7: 0.171 | AU7: 0.33 | AV7: 0.0065 | AW7: 0.33 | AX7: 19 | AY7: 0.075 | AZ7: 82.5 | BA7: 1.3 | BB7: 14.3 | BC7: 19 | BD7: 91.3 | BE7: 91.3 | BF7: 300 | BG7: 1.9 | BH7: 4.5 | BI7: 4.5 | BJ7: 90 | BK7: 4.5 | BL7: 36.2 | BM7: 15 | BN7: 1.6 | BO7: 87 | BP7: 0.63 | BQ7: 0.17 | BT7: 154 | BU7: 0.47 | BV7: 0.47 | BW7: 100 | BX7: 0.3 | BY7: 21.3 | BZ7: 0.63 | CA7: 0.06 | CB7: 0.532 | CC7: 3.75 | CD7: 0.19 | CE7: 12.6 | CF7: 0.038 | CG7: 0.038 | CH7: 100 | CI7: 10 | CK7: 0.0035 | CL7: 6.8e-05 | CM7: 1200 | CN7: 0.00026 | CO7: 0.00026 | CP7: 7.3 | CR7: 95 | CS7: 0.00026 | CT7: 0.5 | CU7: 0.27 | CV7: 17 | CW7: 0.0023 | CX7: 93.8 | CY7: 2.7 | CZ7: 2.7 | DA7: 0.63 | DB7: 36 | DD7: 1.7 | DE7: 6.8e-05 | DF7: 0.175 | DG7: 0.33 | DH7: 87 | DI7: 0.13 | DJ7: 120 | DK7: 90.1 | DL7: 8.8 | DM7: 2.7 | DN7: 0.186 | DO7: 0.186 | DP7: 1.4 | DQ7: 0.00026 | DR7: 2.6 | DS7: 0.19 | DT7: 0.19 | DU7: 100 | DV7: 0.19 | DW7: 0.015 | DX7: 2.3 | DY7: 1.6 | DZ7: 1.6 | EA7: 1.6 | EB7: 0.0049 | ED7: 0.0013 | EE7: 0.63 | EF7: 33 | EG7: 0.74 | EH7: 25 | EI7: 11 | EJ7: 0.038 | EK7: 0.021 | EL7: 36.2 | EM7: 0.049 | EN7: 100 | EO7: 12.6 | EP7: 0.56 | EQ7: 0.195 | ER7: 7.7 | ES7: 114 | ET7: 0.63 | EU7: 29 | EV7: 0.0028 | EW7: 19 | EX7: 2.41 | EY7: 100 | EZ7: 8.4 | FA7: 25 | FB7: 0.21 | FC7: 14.4 | FD7: 86 | FE7: 12 | FF7: 0.007 | FG7: 300 | FH7: 99 | FI7: 8.4 | FJ7: 8.4 | FK7: 8.4 | FL7: 0.038 | FM7: 0.0013 | FN7: 104.2 | FO7: 0.006 | FP7: 0.0028 | FQ7: 0.055 | FR7: 1.7 | FS7: 211 | FT7: 0.017 | FU7: 100 | FV7: 0.27 | FW7: 0.004 | FX7: 4.5 | FY7: 4.4 | FZ7: 211 | GA7: 125 | GB7: 0.038 | GC7: 29 | GD7: 0.08 | GE7: 0.038 | GF7: 0.038 | GG7: 0.038 | GH7: 0.0023 | GI7: 0.3 | GJ7: 0.00026 | GK7: 0.07 | GL7: 0.00026 | GM7: 12 | GN7: 0.19 | GO7: 0.19 | GP7: 0.007 | GQ7: 67 | GR7: 98.85 | GS7: 19 | GT7: 110 | GU7: 1.1 | GV7: 0.13 | GW7: 0.13 | GX7: 30.2 | GY7: 6.1 | GZ7: 30.2 | HA7: 0.13 | HB7: 120 | HC7: 100 | HD7: 21 | HE7: 6.7 | HF7: 0.074 | HG7: 0.07 | HH7: 6.7 | HI7: 63.4 | HJ7: 100 | HK7: 0.57 | HL7: 0.57 | HM7: 0.1 | HN7: 1.23 | HO7: 4.4 | HP7: 0.47 | HQ7: 0.0027 | HR7: 4.3 | HS7: 125 | HT7: 0.035 | HU7: 730 | HV7: 0.063 | HW7: 3.14 | HX7: 29 | HY7: 0.011 | HZ7: 100 | IA7: 10.56 | IB7: 0.0001 | IC7: 2.69 | IE7: 0.035 | IF7: 0.016 | IG7: 0.0027 | II7: 80 | IJ7: 2.4 | IK7: 0.63 | IL7: 2.69 | IM7: 101 | IN7: 4.5 | IO7: 4.5 | IP7: 100 | IQ7: 0.011 | IR7: 710 | IS7: 0.0018 | IT7: 0.74 | IU7: 1.3 | IV7: 0.19 | IW7: 5.2 | IX7: 0.00105 | IY7: 0.0023 | IZ7: 2.3 | JA7: 0.00035 | JB7: 0.0125 | JC7: 710 | JD7: 0.248 | JE7: 1.1 | JF7: 22 | JG7: 170 | JH7: 0.022 | JI7: 100 | JJ7: 100 | JK7: 1.41 | JL7: 0.055 | JM7: 0.06 | JN7: 0.23 | JO7: 0.0049 | JP7: 300 | JQ7: 1.1 | JR7: 2.3 | JS7: 2.3 | JT7: 0.36 | JU7: 0.98 | JV7: 70.5 | JW7: 1.9 | JX7: 14.3 | JY7: 5.4 | JZ7: 33 | KA7: 546 | KB7: 4.4 | KC7: 0.233 | KD7: 0.233 | KE7: 170 | KF7: 100 | KG7: 12.6 | KH7: 6.1 | KI7: 122 | KJ7: 0.0097 | KK7: 0.24 | KL7: 114 | KM7: 1.83 | KN7: 0.055 | KO7: 0.19 | KP7: 0.038 | KQ7: 0.0028 | KR7: 4.4 | KS7: 170 | KT7: 1.41 | KU7: 1.4 | KV7: 3.75 | KW7: 1 | KX7: 0.00035 | KY7: 29 | KZ7: 100 | LA7: 0.0097 | LB7: 5.5 | LC7: 5 | LD7: 4.5 | LE7: 80 | LF7: 0.038 | LG7: 38 | LH7: 710 | LI7: 38 | LJ7: 0.25 | LK7: 19 | LL7: 0.404 | LM7: 154 | LN7: 1.33 | LO7: 118 | LP7: 0.088 | LQ7: 0.56 | LR7: 0.5 | LS7: 0.195 | LT7: 98 | LU7: 0,196 | LV7: 5 | LW7: 0.0028 | LX7: 320 | LY7: 320 | LZ7: 3.2 | MA7: 0.017 | MB7: 0.05 | MC7: 100 | MD7: 0.038 | ME7: 1.48 | MF7: 1.48 | MG7: 122 | MH7: 100 | MI7: 100 | MJ7: 100 | MK7: 340 | ML7: 0.0085 | MM7: 211 | MN7: 0.24 | MO7: 33 | MQ7: 0.0065 | MR7: 0.42 | MS7: 0.17 | MT7: 99 | MU7: 0.00026 | MV7: 4.2 | MW7: 7.7 | MX7: 100 | MY7: 1.5 | MZ7: 36.2 | NA7: 0.038 | NB7: 2.27 | NC7: 1.7 | ND7: 2.6 | NE7: 0.00026 | NF7: 0.00026 | NG7: 0.36 | NH7: 1200 | NI7: 0.00021 | NJ7: 6.7 | NL7: 22 | NM7: 100 | NN7: 2.27 | NO7: 93.8 | NP7: 0.0013 | NQ7: 36 | NR7: 0.063 | NS7: 1.8 | NT7: 0.1 | NU7: 0.00021 | NV7: 0.63 | NW7: 1.4 | NX7: 87 | NY7: 710 | NZ7: 3.15 | OA7: 0.0013 | OB7: 29 | OC7: 1.48 | OD7: 320 | OE7: 0.018 | OF7: 0.0085 | OG7: 0.074 | OH7: 0.074 | OI7: 2.9 | OJ7: 0.074 | OK7: 0.015 | OL7: 29 | OM7: 100 | ON7: 0.23 | OO7: 100 | OP7: 100 | OQ7: 0.532 | OR7: 0.0023 | OS7: 0.186 | OT7: 0.05 | OU7: 120 | OV7: 0.228 | OW7: 0.228 | OX7: 100 | OY7: 0.175 | OZ7: 2.1 | PA7: 0.01 | PB7: 0.336 | PC7: 1.23 | PD7: 0.63 | PE7: 4.2 | PF7: 74.6 | PG7: 0.42 | PH7: 150 | PI7: 2 | PJ7: 3 | PK7: 0.18 | PL7: 8 | PM7: 0.3 | PN7: 5.4 | PP7: 0.1 | PQ7: 4.4 | PS7: 65.7 | PT7: 0.0065 | PU7: 0.018 | PV7: 1 | PW7: 0.0013 | PX7: 150 | PY7: 0.016 | PZ7: 0.63 | QA7: 0.043 | QB7: 100 | QC7: 100 | QD7: 3.14 | QE7: 2.1 | QF7: 546 | QG7: 0.63 | QH7: 0.186 | QI7: 100 | QJ7: 0.00105 | QK7: 1.2 | QL7: 0.69 | QM7: 43.8 | QN7: 0.25 | QO7: 86 | QP7: 0.23 | QQ7: 8.4 | QR7: 19 | QS7: 710 | QT7: 0.3 | QU7: 0,196 | QV7: 100 | QW7: 0.0125 | QX7: 21.3 | QY7: 8.8 | QZ7: 0.075 | RA7: 0.18 | RB7: 1.41 | RC7: 100 | RD7: 0.006 | RE7: 0.007 | RF7: 0.0001 | RG7: 0.0007 | RH7: 10.56 | RI7: 0.404 | RJ7: 0.27 | RK7: 930 | RL7: 2.2 | RM7: 170 | RN7: 0.19 | RO7: 0.007 | RP7: 0.336 | RQ7: 104.2 | RR7: 93.8 | RS7: 25 | RT7: 0.038 | RU7: 0.088 | RV7: 12 | RW7: 3.6 | RX7: 300 | RY7: 4.5 | RZ7: 4.5 | SA7: 4.5 | SB7: 4.5 | SC7: 4.5 | SD7: 0.47 | SE7: 0.47 | SF7: 1.1 | SG7: 0.27 | SH7: 7.22 | SJ7: 0.08 | SK7: 15 | SL7: 5.2 | SM7: 5.5 | SN7: 5.4 | SO7: 0.043 | SP7: 2.6 | SQ7: 0.33 | SR7: 3.14 | SS7: 1.83 | ST7: 1.7 | SU7: 0.42 | SV7: 100 | SW7: 0.21 | SX7: 0.23 | SY7: 1.1 | SZ7: 1.6 | TA7: 98.85 | TB7: 1.5 | TC7: 0.63 | TD7: 0.19 | TE7: 122 | TF7: 100 | TG7: 14.4 | TH7: 0.0013 | TI7: 0.248 | TJ7: 21 | TK7: 1.1 | TL7: 2.9 | TM7: 0.171 | TN7: 0.074 | TO7: 1 | TP7: 95 | TQ7: 1.2 | TR7: 7.22 | TS7: 38 | TT7: 36.2 | TU7: 0.0061 | TV7: 0.13 | TW7: 0.0027 | TX7: 98 | TY7: 0.0007 | TZ7: 65.7 | UA7: 1.6 | UB7: 1.1 | UC7: 300 | UD7: 25 | UE7: 0.19 | UF7: 1.4 | UG7: 118 | UH7: 74.6 | UI7: 1.23 | UJ7: 170 | UK7: 2.6 | UL7: 90 | UM7: 70.5 | UN7: 33 | UP7: 100 | UQ7: 93.8 | UR7: 211 | US7: 0.00026 | UT7: 19 | UU7: 110 | UV7: 87 | UW7: 2.7 | UX7: 1.6 | UY7: 0.00035 | UZ7: 5.4 | VA7: 0.248 | VB7: 930 | VC7: 0.00026 | VD7: 65.7 | VE7: 2.6 | VG7: 13.2 | VH7: 93.8 | VI7: 8 | VJ7: 12.5 | VK7: 101 | VL7: 0.0001 | VM7: 1.3 | VN7: 1.3 | VO7: 7.22 | VP7: 7.22 | VQ7: 1.3 | VR7: 2.3 | VS7: 11 | VT7: 0.01 | VU7: 0.36 | VV7: 2 | VW7: 3.2 | VX7: 0.00026 | VY7: 0.00026 | VZ7: 0.21 | WA7: 33 | WB7: 4.4 | WC7: 4.4 | WD7: 3 | WE7: 87 | WF7: 0.19 | WG7: 0.0065 | WH7: 100 | WI7: 74.6 | WJ7: 82.5 | WK7: 0.004 | WL7: 2.2 | WM7: 2.2 | WN7: 2.4 | WO7: 4.3 | WP7: 1.33 | WQ7: 0.021 | WR7: 0.55 | WS7: 90.1 | WT7: 125 | WU7: 104 | WV7: 0.27 | WW7: 2.6 | WX7: 1.4 | WY7: 11 | WZ7: 0.171 | XA7: 19 | XB7: 320 | XC7: 0.049 | XD7: 0.21 | XE7: 11 | XF7: 100 | XG7: 33 | XH7: 10 | XI7: 0.038 | XJ7: 0.0027 | XK7: 21.3 | XL7: 7.3 | XM7: 1.3 | XN7: 0.47 | XO7: 0.57 | XP7: 0.022 | XQ7: 730 | XR7: 0.57 | XS7: 0.021 | XT7: 0.088 | XU7: 100 | XW7: 3.6 | XY7: 38 | XZ7: 2.41 | YA7: 6.8e-05 | YB7: 8.4 | YC7: 74.6 | YD7: 0.47 | YE7: 0.98 | YF7: 19 | YG7: 0.088 | YH7: 12.6 | YI7: 0.228 | YJ7: 2.3 | YK7: 0.0036 | YL7: 0.0013 | YM7: 0.171 | YN7: 2.3 | YP7: 100 | YQ7: 0.021 | YR7: 0.36 | YS7: 2.2 | YT7: 0.47 | YU7: 0.065 | YV7: 340 | YW7: 150 | YX7: 0.038 | YY7: 0.038 | YZ7: 2.3 | ZA7: 33 | ZB7: 0.69 | ZC7: 0.16
A8: 14.7 - Toxicidade - DAH (mg kg-1 day-1) | C8: 0.050 | D8: 0.008 | E8: 0.003 | F8: 2.000 | G8: 0.220 | H8: 0.003 | I8: 0.003 | J8: 0.003 | K8: 0.025 | L8: 0.004 | O8: 0.010 | P8: 0.030 | Q8: 0.026 | R8: 0.230 | S8: 0.003 | T8: 0.030 | V8: 0.200 | W8: 0.100 | X8: 0.050 | Y8: 0.010 | Z8: 0.010 | AA8: 0.050 | AB8: 0.015 | AC8: 1.000 | AF8: 1.580 | AG8: 0.020 | AH8: 0.030 | AI8: 0.050 | AJ8: 10.000 | AK8: 0.015 | AL8: 0.015 | AN8: 0.050 | AO8: 0.260 | AP8: 0.200 | AQ8: 0.003 | AR8: 0.003 | AS8: 9.000 | AT8: 0.010 | AU8: 0.025 | AV8: 0.010 | AW8: 0.010 | AX8: 0.020 | AZ8: 0.025 | BA8: 0.030 | BB8: 0.800 | BC8: 0.020 | BD8: 0.360 | BE8: 0.360 | BG8: 0.002 | BH8: 0.020 | BI8: 0.020 | BK8: 0.020 | BL8: 0.060 | BM8: 0.005 | BN8: 0.030 | BO8: 0.070 | BP8: 0.003 | BQ8: 0.005 | BT8: 0.100 | BU8: 0.200 | BV8: 0.200 | BW8: 0.100 | BX8: 0.010 | BY8: 0.050 | BZ8: 0.003 | CA8: 0.017 | CB8: 0.035 | CC8: 0.040 | CD8: 0.020 | CE8: 0.010 | CF8: 0.010 | CG8: 0.010 | CH8: 0.100 | CI8: 0.100 | CK8: 0.050 | CL8: 0.003 | CN8: 0.015 | CO8: 0.015 | CR8: 0.010 | CS8: 0.015 | CU8: 0.100 | CW8: 0.030 | CX8: 0.000 | CY8: 0.040 | CZ8: 0.040 | DA8: 0.003 | DD8: 0.010 | DE8: 0.003 | DF8: 0.001 | DG8: 0.010 | DH8: 0.070 | DI8: 0.000 | DJ8: 0.010 | DK8: 0.010 | DL8: 0.300 | DM8: 0.040 | DN8: 0.100 | DO8: 0.100 | DP8: 0,01 | DQ8: 0.015 | DR8: 0.008 | DS8: 0.020 | DT8: 0.020 | DU8: 0.025 | DV8: 0.020 | DW8: 0.005 | DX8: 0.008 | DY8: 0.030 | EB8: 0.010 | ED8: 0.010 | EE8: 0.003 | EF8: 0.010 | EG8: 0.030 | EH8: 0.160 | EI8: 0.080 | EJ8: 0.015 | EK8: 0.014 | EL8: 0.060 | EN8: 0.030 | EO8: 0.010 | EP8: 0.170 | ES8: 0.004 | ET8: 0.170 | EU8: 0.013 | EV8: 0.050 | EW8: 0.020 | EX8: 0.030 | EY8: 0.060 | EZ8: 0.020 | FA8: 0.160 | FB8: 0.003 | FC8: 0.133 | FE8: 1.580 | FF8: 0.015 | FH8: 0.290 | FI8: 0.020 | FJ8: 0.020 | FK8: 0.020 | FL8: 0.015 | FM8: 0.010 | FN8: 0.097 | FO8: 0.030 | FP8: 0.050 | FQ8: 0.010 | FR8: 0.010 | FS8: 0.060 | FT8: 0.150 | FU8: 0.000 | FV8: 0.100 | FW8: 0.001 | FX8: 0.020 | FY8: 0.030 | FZ8: 0.060 | GA8: 0.026 | GB8: 0.015 | GC8: 0.016 | GD8: 0.030 | GE8: 0.015 | GF8: 0.015 | GG8: 0.015 | GH8: 0.030 | GI8: 0.010 | GJ8: 0.010 | GK8: 0.010 | GL8: 0.010 | GM8: 1.580 | GN8: 0.020 | GO8: 0.020 | GQ8: 0,0024 | GR8: 0.300 | GS8: 0.004 | GT8: 0.050 | GU8: 0.010 | GV8: 0.100 | GW8: 0.100 | GY8: 0.050 | HA8: 0.100 | HD8: 0.002 | HE8: 0.007 | HF8: 0.050 | HG8: 0.010 | HH8: 0.007 | HI8: 0.050 | HJ8: 0.100 | HK8: 0.100 | HL8: 0.100 | HM8: 0.002 | HN8: 0.100 | HO8: 0.030 | HP8: 0.200 | HQ8: 0.030 | HR8: 0.004 | HS8: 0.026 | HT8: 0.015 | HU8: 0.040 | HW8: 0.008 | HX8: 0.013 | HY8: 0.006 | HZ8: 0.250 | IA8: 0.170 | IB8: 0.018 | IC8: 0.025 | IE8: 0.015 | IF8: 0.030 | IG8: 0.030 | II8: 0.040 | IJ8: 0.015 | IK8: 0.003 | IL8: 0.025 | IM8: 0.040 | IN8: 0.020 | IO8: 0.020 | IQ8: 0.006 | IR8: 0.021 | IS8: 0.015 | IT8: 0.030 | IU8: 0.005 | IV8: 0.010 | IW8: 0.130 | IX8: 0.010 | IY8: 0.030 | IZ8: 0.003 | JA8: 0.001 | JC8: 0.021 | JD8: 0.000 | JE8: 0.010 | JF8: 0.013 | JG8: 0.003 | JH8: 0.100 | JI8: 0.025 | JJ8: 0.500 | JK8: 0.010 | JL8: 0.010 | JM8: 0.017 | JN8: 0.370 | JO8: 0.010 | JP8: 0.000 | JQ8: 0.000 | JR8: 0.009 | JS8: 0.009 | JT8: 0.080 | JU8: 0.012 | JV8: 64.000 | JW8: 0.002 | JX8: 0.800 | JY8: 0.090 | JZ8: 0.010 | KA8: 0.020 | KB8: 0.030 | KC8: 0.100 | KD8: 0.100 | KE8: 0.003 | KF8: 0.250 | KG8: 0.010 | KH8: 0.050 | KI8: 1.000 | KJ8: 0.019 | KK8: 0.001 | KL8: 0.004 | KM8: 0.050 | KN8: 0.010 | KO8: 0.020 | KP8: 0.015 | KQ8: 0.050 | KR8: 0.030 | KS8: 0.003 | KT8: 0.010 | KU8: 0,01 | KV8: 0.040 | KW8: 0.010 | KX8: 0.001 | KY8: 0.016 | KZ8: 0.500 | LA8: 0.019 | LC8: 0.015 | LD8: 0.020 | LE8: 0.040 | LF8: 0.015 | LG8: 0.300 | LH8: 0.021 | LI8: 0.300 | LJ8: 3.000 | LK8: 0.004 | LL8: 0.004 | LM8: 0.100 | LN8: 0.058 | LO8: 0.063 | LP8: 0.001 | LQ8: 0.170 | LU8: 0,125 | LV8: 0.015 | LW8: 0.050 | LX8: 0.050 | LY8: 0.050 | LZ8: 0.030 | MA8: 0.150 | MB8: 0.001 | MC8: 0.030 | MD8: 0.015 | ME8: 0.025 | MF8: 0.025 | MG8: 9.000 | MH8: 0.500 | MI8: 0.000 | MJ8: 0.250 | ML8: 0.670 | MM8: 0.060 | MN8: 0.001 | MO8: 0.010 | MQ8: 0.010 | MS8: 0.005 | MT8: 0.290 | MU8: 0.015 | MV8: 0.100 | MX8: 0.030 | MY8: 0.015 | MZ8: 0.060 | NA8: 0.015 | NB8: 0.020 | NC8: 0.020 | ND8: 0.040 | NE8: 0.010 | NF8: 0.010 | NG8: 0.004 | NI8: 0.005 | NJ8: 0.007 | NL8: 0.013 | NN8: 0.020 | NO8: 0.000 | NP8: 0.010 | NS8: 0.010 | NT8: 0.002 | NU8: 0.005 | NV8: 0.003 | NW8: 0,01 | NX8: 0.070 | NY8: 0.021 | NZ8: 0.003 | OA8: 0.010 | OB8: 0.016 | OC8: 0.025 | OD8: 0.050 | OE8: 0.030 | OF8: 0.670 | OG8: 0.050 | OH8: 0.050 | OI8: 0.150 | OJ8: 0.050 | OK8: 0.005 | OL8: 0.016 | OM8: 0.080 | ON8: 0.370 | OP8: 0.050 | OQ8: 0.035 | OR8: 0.030 | OS8: 0.100 | OT8: 0.001 | OU8: 0.010 | OV8: 0.030 | OW8: 0.030 | OX8: 0.080 | OY8: 0.001 | OZ8: 0.010 | PA8: 0.001 | PB8: 0.030 | PC8: 0.100 | PD8: 0.003 | PE8: 0.100 | PF8: 0.013 | PH8: 0.220 | PI8: 0.025 | PJ8: 0.020 | PK8: 0.092 | PM8: 0.200 | PN8: 0.090 | PP8: 0.002 | PQ8: 0.030 | PS8: 2.000 | PT8: 0.010 | PU8: 0.030 | PV8: 0.010 | PW8: 0.010 | PX8: 0.220 | PY8: 0.030 | PZ8: 0.170 | QA8: 0.030 | QB8: 0.250 | QC8: 0.500 | QD8: 0.008 | QE8: 0.010 | QF8: 0.020 | QG8: 0.003 | QH8: 0.100 | QJ8: 0.010 | QK8: 0.004 | QL8: 1.040 | QM8: 0.150 | QN8: 3.000 | QP8: 0.013 | QQ8: 0.020 | QR8: 0.004 | QS8: 0.021 | QT8: 0.200 | QU8: 0,125 | QV8: 0.050 | QX8: 0.050 | QY8: 0.300 | RA8: 0.092 | RB8: 0.010 | RC8: 0.030 | RD8: 0.030 | RE8: 0.015 | RF8: 0.018 | RG8: 0.010 | RH8: 0.170 | RI8: 0.004 | RJ8: 0.100 | RN8: 0.010 | RP8: 0.030 | RQ8: 0.097 | RR8: 0.000 | RS8: 0.160 | RT8: 0.010 | RU8: 15.000 | RV8: 1.580 | RW8: 0.025 | RX8: 0.000 | RY8: 0.020 | RZ8: 0.020 | SA8: 0.020 | SB8: 0.020 | SC8: 0.020 | SD8: 0.200 | SE8: 0.200 | SF8: 0.010 | SG8: 0.100 | SH8: 0.003 | SJ8: 0.030 | SK8: 0.005 | SL8: 0.130 | SN8: 0.020 | SO8: 0.030 | SP8: 0.040 | SQ8: 0.025 | SR8: 0.008 | SS8: 0.050 | ST8: 0.020 | SW8: 0.001 | SX8: 0.013 | SY8: 0.000 | SZ8: 0.030 | TA8: 0.300 | TB8: 0.015 | TC8: 0.003 | TD8: 0.010 | TE8: 9.000 | TF8: 0.050 | TG8: 0.133 | TH8: 0.010 | TI8: 0.000 | TJ8: 0.002 | TK8: 0.000 | TL8: 0.150 | TM8: 0.010 | TN8: 0.050 | TO8: 0.010 | TP8: 0.010 | TQ8: 0.004 | TR8: 0.003 | TS8: 0.300 | TT8: 0.060 | TU8: 0.010 | TV8: 0.000 | TW8: 0.030 | TY8: 0.010 | TZ8: 2.000 | UA8: 0.030 | UB8: 0.010 | UC8: 0.000 | UD8: 0.160 | UE8: 0.010 | UF8: 0,01 | UG8: 0.063 | UH8: 0.013 | UI8: 0.100 | UK8: 0.008 | UM8: 64.000 | UN8: 0.010 | UP8: 0.010 | UQ8: 0.000 | UR8: 0.060 | US8: 0.015 | UT8: 0.020 | UU8: 0.050 | UV8: 0.070 | UW8: 0.040 | UX8: 0.030 | UY8: 0.001 | UZ8: 0.020 | VA8: 0.000 | VC8: 0.015 | VD8: 2.000 | VE8: 0.040 | VG8: 0.150 | VH8: 0.000 | VK8: 0.040 | VL8: 0.018 | VM8: 0.005 | VN8: 0.005 | VO8: 0.003 | VP8: 0.003 | VQ8: 0.005 | VR8: 0.009 | VS8: 0.080 | VT8: 0.001 | VU8: 0.004 | VV8: 0.025 | VW8: 0.030 | VX8: 0.015 | VY8: 0.015 | VZ8: 0.001 | WA8: 0.010 | WB8: 0.030 | WC8: 0.030 | WD8: 0.020 | WE8: 0.070 | WF8: 0.020 | WG8: 0.010 | WH8: 0.010 | WI8: 0.013 | WJ8: 0.025 | WK8: 0.001 | WL8: 0.004 | WM8: 0.004 | WN8: 0.015 | WO8: 0.004 | WP8: 0.058 | WQ8: 0.014 | WR8: 0.100 | WS8: 0.010 | WT8: 0.026 | WU8: 0.230 | WV8: 0.100 | WW8: 0.040 | WX8: 0,01 | WY8: 0.080 | WZ8: 0.010 | XA8: 0.004 | XB8: 0.050 | XD8: 0.003 | XE8: 0.080 | XF8: 0.260 | XG8: 0.010 | XH8: 0.100 | XI8: 0.015 | XJ8: 0.030 | XK8: 0.050 | XM8: 0.030 | XN8: 0.200 | XO8: 0.050 | XP8: 0.100 | XQ8: 0.040 | XR8: 0.050 | XS8: 0.014 | XT8: 15.000 | XU8: 0.060 | XW8: 0.025 | XY8: 0.300 | XZ8: 0.030 | YA8: 0.003 | YB8: 0.020 | YC8: 0.013 | YD8: 0.200 | YE8: 0.012 | YF8: 0.020 | YG8: 0.001 | YH8: 0.010 | YI8: 0.030 | YJ8: 0.003 | YK8: 0.003 | YL8: 0.010 | YM8: 0.010 | YN8: 0.008 | YP8: 0.100 | YQ8: 0.014 | YR8: 0.080 | YT8: 0.200 | YU8: 10.000 | YW8: 0.220 | YX8: 0.015 | YY8: 0.015 | YZ8: 0.009 | ZA8: 0.010 | ZB8: 1.040 | ZC8: 0.500
A9: Índice para Toxicidade do produto (>2,5 - Alerta alto risco) | C9: 1.75 | D9: 2.80 | E9: 4.52 | F9: 0.94 | G9: 1.24 | H9: 3.40 | I9: 3.40 | J9: 3.40 | K9: 1.80 | L9: 3.44 | O9: =IF(O7>0,(((4-LOG10(O7))+(-LOG(O8)))/2),"") -> 4.11 | P9: 3.87 | Q9: 1.74 | R9: =IF(R7>0,(((4-LOG10(R7))+(-LOG(R8)))/2),"") -> 1.31 | S9: 3.01 | T9: 2.66 | V9: 2.51 | W9: 2.82 | X9: =IF(X7>0,(((4-LOG10(X7))+(-LOG(X8)))/2),"") -> 1.65 | Y9: 2.87 | Z9: 2.87 | AA9: =IF(AA7>0,(((4-LOG10(AA7))+(-LOG(AA8)))/2),"") -> 3.88 | AB9: 4.28 | AC9: =IF(AC7>0,(((4-LOG10(AC7))+(-LOG(AC8)))/2),"") -> 0.96 | AF9: 1.36 | AG9: 2.21 | AH9: 3.08 | AI9: 3.93 | AJ9: =IF(AJ7>0,(((4-LOG10(AJ7))+(-LOG(AJ8)))/2),"") -> 2.09 | AK9: 2.56 | AL9: 2.56 | AN9: 1.75 | AO9: =IF(AO7>0,(((4-LOG10(AO7))+(-LOG(AO8)))/2),"") -> 1.29 | AP9: 2.51 | AQ9: =IF(AQ7>0,(((4-LOG10(AQ7))+(-LOG(AQ8)))/2),"") -> 3.33 | AR9: 4.52 | AS9: 0.48 | AT9: 3.38 | AU9: =IF(AU7>0,(((4-LOG10(AU7))+(-LOG(AU8)))/2),"") -> 3.04 | AV9: 4.09 | AW9: =IF(AW7>0,(((4-LOG10(AW7))+(-LOG(AW8)))/2),"") -> 3.24 | AX9: 2.21 | AZ9: =IF(AZ7>0,(((4-LOG10(AZ7))+(-LOG(AZ8)))/2),"") -> 1.84 | BA9: =IF(BA7>0,(((4-LOG10(BA7))+(-LOG(BA8)))/2),"") -> 2.70 | BB9: =IF(BB7>0,(((4-LOG10(BB7))+(-LOG(BB8)))/2),"") -> 1.47 | BC9: 2.21 | BD9: =IF(BD7>0,(((4-LOG10(BD7))+(-LOG(BD8)))/2),"") -> 1.24 | BE9: =IF(BE7>0,(((4-LOG10(BE7))+(-LOG(BE8)))/2),"") -> 1.24 | BG9: =IF(BG7>0,(((4-LOG10(BG7))+(-LOG(BG8)))/2),"") -> 3.21 | BH9: 2.52 | BI9: 2.52 | BK9: 2.52 | BL9: 1.83 | BM9: =IF(BM7>0,(((4-LOG10(BM7))+(-LOG(BM8)))/2),"") -> 2.56 | BN9: 2.66 | BO9: 1.61 | BP9: 3.40 | BQ9: =IF(BQ7>0,(((4-LOG10(BQ7))+(-LOG(BQ8)))/2),"") -> 3.54 | BT9: =IF(BT7>0,(((4-LOG10(BT7))+(-LOG(BT8)))/2),"") -> 1.41 | BU9: 2.51 | BV9: 2.51 | BW9: 1.50 | BX9: =IF(BX7>0,(((4-LOG10(BX7))+(-LOG(BX8)))/2),"") -> 3.26 | BY9: 1.99 | BZ9: 3.40 | CA9: 3.50 | CB9: =IF(CB7>0,(((4-LOG10(CB7))+(-LOG(CB8)))/2),"") -> 2.87 | CC9: =IF(CC7>0,(((4-LOG10(CC7))+(-LOG(CC8)))/2),"") -> 2.41 | CD9: 3.21 | CE9: 2.45 | CF9: 3.71 | CG9: 3.71 | CH9: 1.50 | CI9: =IF(CI7>0,(((4-LOG10(CI7))+(-LOG(CI8)))/2),"") -> 2.00 | CK9: =IF(CK7>0,(((4-LOG10(CK7))+(-LOG(CK8)))/2),"") -> 3.88 | CL9: 5.35 | CN9: =IF(CN7>0,(((4-LOG10(CN7))+(-LOG(CN8)))/2),"") -> 4.70 | CO9: =IF(CO7>0,(((4-LOG10(CO7))+(-LOG(CO8)))/2),"") -> 4.70 | CR9: =IF(CR7>0,(((4-LOG10(CR7))+(-LOG(CR8)))/2),"") -> 2.01 | CS9: =IF(CS7>0,(((4-LOG10(CS7))+(-LOG(CS8)))/2),"") -> 4.70 | CU9: 2.78 | CW9: 4.08 | CX9: 3.01 | CY9: 2.48 | CZ9: 2.48 | DA9: 3.40 | DD9: =IF(DD7>0,(((4-LOG10(DD7))+(-LOG(DD8)))/2),"") -> 2.88 | DE9: 5.35 | DF9: =IF(DF7>0,(((4-LOG10(DF7))+(-LOG(DF8)))/2),"") -> 3.88 | DG9: =IF(DG7>0,(((4-LOG10(DG7))+(-LOG(DG8)))/2),"") -> 3.24 | DH9: 1.61 | DI9: =IF(DI7>0,(((4-LOG10(DI7))+(-LOG(DI8)))/2),"") -> 4.14 | DJ9: 1.96 | DK9: =IF(DK7>0,(((4-LOG10(DK7))+(-LOG(DK8)))/2),"") -> 2.02 | DL9: =IF(DL7>0,(((4-LOG10(DL7))+(-LOG(DL8)))/2),"") -> 1.79 | DM9: 2.48 | DN9: 2.87 | DO9: 2.87 | DP9: 2.93 | DQ9: =IF(DQ7>0,(((4-LOG10(DQ7))+(-LOG(DQ8)))/2),"") -> 4.70 | DR9: 2.85 | DS9: 3.21 | DT9: 3.21 | DU9: =IF(DU7>0,(((4-LOG10(DU7))+(-LOG(DU8)))/2),"") -> 1.80 | DV9: 3.21 | DW9: =IF(DW7>0,(((4-LOG10(DW7))+(-LOG(DW8)))/2),"") -> 4.06 | DX9: =IF(DX7>0,(((4-LOG10(DX7))+(-LOG(DX8)))/2),"") -> 2.87 | DY9: 2.66 | EB9: 4.15 | ED9: 4.44 | EE9: 3.40 | EF9: 2.24 | EG9: 2.83 | EH9: 1.70 | EI9: 2.03 | EJ9: 3.62 | EK9: 3.77 | EL9: 1.83 | EN9: =IF(EN7>0,(((4-LOG10(EN7))+(-LOG(EN8)))/2),"") -> 1.76 | EO9: 2.45 | EP9: =IF(EP7>0,(((4-LOG10(EP7))+(-LOG(EP8)))/2),"") -> 2.51 | ES9: =IF(ES7>0,(((4-LOG10(ES7))+(-LOG(ES8)))/2),"") -> 2.17 | ET9: =IF(ET7>0,(((4-LOG10(ET7))+(-LOG(ET8)))/2),"") -> 2.49 | EU9: =IF(EU7>0,(((4-LOG10(EU7))+(-LOG(EU8)))/2),"") -> 2.21 | EV9: 3.93 | EW9: 2.21 | EX9: =IF(EX7>0,(((4-LOG10(EX7))+(-LOG(EX8)))/2),"") -> 2.57 | EY9: 1.61 | EZ9: 2.39 | FA9: 1.70 | FB9: =IF(FB7>0,(((4-LOG10(FB7))+(-LOG(FB8)))/2),"") -> 3.60 | FC9: =IF(FC7>0,(((4-LOG10(FC7))+(-LOG(FC8)))/2),"") -> 1.86 | FE9: 1.36 | FF9: =IF(FF7>0,(((4-LOG10(FF7))+(-LOG(FF8)))/2),"") -> 3.99 | FH9: =IF(FH7>0,(((4-LOG10(FH7))+(-LOG(FH8)))/2),"") -> 1.27 | FI9: 2.39 | FJ9: 2.39 | FK9: 2.39 | FL9: 3.62 | FM9: 4.44 | FN9: =IF(FN7>0,(((4-LOG10(FN7))+(-LOG(FN8)))/2),"") -> 1.50 | FO9: 3.87 | FP9: 3.93 | FQ9: 3.63 | FR9: =IF(FR7>0,(((4-LOG10(FR7))+(-LOG(FR8)))/2),"") -> 2.88 | FS9: 1.45 | FT9: 3.30 | FU9: 3.00 | FV9: 2.78 | FW9: =IF(FW7>0,(((4-LOG10(FW7))+(-LOG(FW8)))/2),"") -> 4.81 | FX9: 2.52 | FY9: 2.44 | FZ9: 1.45 | GA9: 1.74 | GB9: 3.62 | GC9: 2.17 | GD9: =IF(GD7>0,(((4-LOG10(GD7))+(-LOG(GD8)))/2),"") -> 3.31 | GE9: 3.62 | GF9: 3.62 | GG9: 3.62 | GH9: 4.08 | GI9: =IF(GI7>0,(((4-LOG10(GI7))+(-LOG(GI8)))/2),"") -> 3.26 | GJ9: 4.79 | GK9: =IF(GK7>0,(((4-LOG10(GK7))+(-LOG(GK8)))/2),"") -> 3.58 | GL9: 4.79 | GM9: 1.36 | GN9: 3.21 | GO9: 3.21 | GQ9: 2.40 | GR9: =IF(GR7>0,(((4-LOG10(GR7))+(-LOG(GR8)))/2),"") -> 1.26 | GS9: 2.56 | GT9: 1.63 | GU9: 2.98 | GV9: 2.94 | GW9: 2.94 | GY9: =IF(GY7>0,(((4-LOG10(GY7))+(-LOG(GY8)))/2),"") -> 2.26 | HA9: 2.94 | HD9: =IF(HD7>0,(((4-LOG10(HD7))+(-LOG(HD8)))/2),"") -> 2.69 | HE9: 2.66 | HF9: 3.22 | HG9: =IF(HG7>0,(((4-LOG10(HG7))+(-LOG(HG8)))/2),"") -> 3.58 | HH9: 2.66 | HI9: 1.75 | HJ9: 1.50 | HK9: =IF(HK7>0,(((4-LOG10(HK7))+(-LOG(HK8)))/2),"") -> 2.62 | HL9: =IF(HL7>0,(((4-LOG10(HL7))+(-LOG(HL8)))/2),"") -> 2.62 | HM9: 3.91 | HN9: 2.46 | HO9: 2.44 | HP9: 2.51 | HQ9: 4.05 | HR9: 2.88 | HS9: 1.74 | HT9: =IF(HT7>0,(((4-LOG10(HT7))+(-LOG(HT8)))/2),"") -> 3.64 | HU9: =IF(HU7>0,(((4-LOG10(HU7))+(-LOG(HU8)))/2),"") -> 1.27 | HW9: 2.80 | HX9: =IF(HX7>0,(((4-LOG10(HX7))+(-LOG(HX8)))/2),"") -> 2.21 | HY9: =IF(HY7>0,(((4-LOG10(HY7))+(-LOG(HY8)))/2),"") -> 4.09 | HZ9: 1.30 | IA9: =IF(IA7>0,(((4-LOG10(IA7))+(-LOG(IA8)))/2),"") -> 1.87 | IB9: 4.88 | IC9: =IF(IC7>0,(((4-LOG10(IC7))+(-LOG(IC8)))/2),"") -> 2.59 | IE9: =IF(IE7>0,(((4-LOG10(IE7))+(-LOG(IE8)))/2),"") -> 3.64 | IF9: =IF(IF7>0,(((4-LOG10(IF7))+(-LOG(IF8)))/2),"") -> 3.66 | IG9: 4.05 | II9: =IF(II7>0,(((4-LOG10(II7))+(-LOG(II8)))/2),"") -> 1.75 | IJ9: =IF(IJ7>0,(((4-LOG10(IJ7))+(-LOG(IJ8)))/2),"") -> 2.72 | IK9: 3.40 | IL9: =IF(IL7>0,(((4-LOG10(IL7))+(-LOG(IL8)))/2),"") -> 2.59 | IM9: =IF(IM7>0,(((4-LOG10(IM7))+(-LOG(IM8)))/2),"") -> 1.70 | IN9: 2.52 | IO9: 2.52 | IQ9: =IF(IQ7>0,(((4-LOG10(IQ7))+(-LOG(IQ8)))/2),"") -> 4.09 | IR9: 1.41 | IS9: 4.28 | IT9: 2.83 | IU9: =IF(IU7>0,(((4-LOG10(IU7))+(-LOG(IU8)))/2),"") -> 3.09 | IV9: 3.36 | IW9: =IF(IW7>0,(((4-LOG10(IW7))+(-LOG(IW8)))/2),"") -> 2.09 | IX9: =IF(IX7>0,(((4-LOG10(IX7))+(-LOG(IX8)))/2),"") -> 4.49 | IY9: 4.08 | IZ9: =IF(IZ7>0,(((4-LOG10(IZ7))+(-LOG(IZ8)))/2),"") -> 3.08 | JA9: =IF(JA7>0,(((4-LOG10(JA7))+(-LOG(JA8)))/2),"") -> 5.19 | JC9: 1.41 | JD9: 4.15 | JE9: 2.98 | JF9: 2.27 | JG9: 2.15 | JH9: 3.33 | JI9: =IF(JI7>0,(((4-LOG10(JI7))+(-LOG(JI8)))/2),"") -> 1.80 | JJ9: =IF(JJ7>0,(((4-LOG10(JJ7))+(-LOG(JJ8)))/2),"") -> 1.15 | JK9: 2.93 | JL9: 3.63 | JM9: 3.50 | JN9: =IF(JN7>0,(((4-LOG10(JN7))+(-LOG(JN8)))/2),"") -> 2.54 | JO9: 4.15 | JP9: 2.76 | JQ9: 3.98 | JR9: 2.84 | JS9: 2.84 | JT9: =IF(JT7>0,(((4-LOG10(JT7))+(-LOG(JT8)))/2),"") -> 2.77 | JU9: =IF(JU7>0,(((4-LOG10(JU7))+(-LOG(JU8)))/2),"") -> 2.96 | JV9: 0.17 | JW9: =IF(JW7>0,(((4-LOG10(JW7))+(-LOG(JW8)))/2),"") -> 3.21 | JX9: =IF(JX7>0,(((4-LOG10(JX7))+(-LOG(JX8)))/2),"") -> 1.47 | JY9: =IF(JY7>0,(((4-LOG10(JY7))+(-LOG(JY8)))/2),"") -> 2.16 | JZ9: 2.24 | KA9: 1.48 | KB9: 2.44 | KC9: 2.82 | KD9: 2.82 | KE9: 2.15 | KF9: 1.30 | KG9: 2.45 | KH9: =IF(KH7>0,(((4-LOG10(KH7))+(-LOG(KH8)))/2),"") -> 2.26 | KI9: =IF(KI7>0,(((4-LOG10(KI7))+(-LOG(KI8)))/2),"") -> 0.96 | KJ9: =IF(KJ7>0,(((4-LOG10(KJ7))+(-LOG(KJ8)))/2),"") -> 3.87 | KK9: =IF(KK7>0,(((4-LOG10(KK7))+(-LOG(KK8)))/2),"") -> 3.81 | KL9: =IF(KL7>0,(((4-LOG10(KL7))+(-LOG(KL8)))/2),"") -> 2.17 | KM9: 2.52 | KN9: 3.63 | KO9: 3.21 | KP9: 3.62 | KQ9: 3.93 | KR9: 2.44 | KS9: 2.15 | KT9: 2.93 | KU9: 2.93 | KV9: =IF(KV7>0,(((4-LOG10(KV7))+(-LOG(KV8)))/2),"") -> 2.41 | KW9: 3.00 | KX9: =IF(KX7>0,(((4-LOG10(KX7))+(-LOG(KX8)))/2),"") -> 5.19 | KY9: 2.17 | KZ9: =IF(KZ7>0,(((4-LOG10(KZ7))+(-LOG(KZ8)))/2),"") -> 1.15 | LA9: =IF(LA7>0,(((4-LOG10(LA7))+(-LOG(LA8)))/2),"") -> 3.87 | LC9: 2.56 | LD9: 2.52 | LE9: =IF(LE7>0,(((4-LOG10(LE7))+(-LOG(LE8)))/2),"") -> 1.75 | LF9: 3.62 | LG9: 1.47 | LH9: 1.41 | LI9: 1.47 | LJ9: 2.06 | LK9: 2.56 | LL9: 3.40 | LM9: =IF(LM7>0,(((4-LOG10(LM7))+(-LOG(LM8)))/2),"") -> 1.41 | LN9: =IF(LN7>0,(((4-LOG10(LN7))+(-LOG(LN8)))/2),"") -> 2.56 | LO9: =IF(LO7>0,(((4-LOG10(LO7))+(-LOG(LO8)))/2),"") -> 1.56 | LP9: =IF(LP7>0,(((4-LOG10(LP7))+(-LOG(LP8)))/2),"") -> 4.12 | LQ9: =IF(LQ7>0,(((4-LOG10(LQ7))+(-LOG(LQ8)))/2),"") -> 2.51 | LU9: 2.81 | LV9: 2.56 | LW9: 3.93 | LX9: 1.40 | LY9: 1.40 | LZ9: =IF(LZ7>0,(((4-LOG10(LZ7))+(-LOG(LZ8)))/2),"") -> 2.51 | MA9: 3.30 | MB9: 4.30 | MC9: 1.76 | MD9: 3.62 | ME9: 2.72 | MF9: 2.72 | MG9: 0.48 | MH9: 1.15 | MI9: 3.00 | MJ9: 1.30 | ML9: 3.12 | MM9: 1.45 | MN9: =IF(MN7>0,(((4-LOG10(MN7))+(-LOG(MN8)))/2),"") -> 3.81 | MO9: 2.24 | MQ9: 4.09 | MS9: =IF(MS7>0,(((4-LOG10(MS7))+(-LOG(MS8)))/2),"") -> 3.54 | MT9: =IF(MT7>0,(((4-LOG10(MT7))+(-LOG(MT8)))/2),"") -> 1.27 | MU9: =IF(MU7>0,(((4-LOG10(MU7))+(-LOG(MU8)))/2),"") -> 4.70 | MV9: 2.19 | MX9: 1.76 | MY9: =IF(MY7>0,(((4-LOG10(MY7))+(-LOG(MY8)))/2),"") -> 2.82 | MZ9: 1.83 | NA9: 3.62 | NB9: =IF(NB7>0,(((4-LOG10(NB7))+(-LOG(NB8)))/2),"") -> 2.67 | NC9: 2.73 | ND9: 2.49 | NE9: 4.79 | NF9: 4.79 | NG9: 3.44 | NI9: 4.99 | NJ9: 2.66 | NL9: 2.27 | NN9: =IF(NN7>0,(((4-LOG10(NN7))+(-LOG(NN8)))/2),"") -> 2.67 | NO9: 3.01 | NP9: 4.44 | NS9: 2.87 | NT9: 3.91 | NU9: 4.99 | NV9: 3.40 | NW9: 2.93 | NX9: 1.61 | NY9: 1.41 | NZ9: 3.01 | OA9: 4.44 | OB9: 2.17 | OC9: 2.72 | OD9: 1.40 | OE9: 3.63 | OF9: 3.12 | OG9: 3.22 | OH9: 3.22 | OI9: =IF(OI7>0,(((4-LOG10(OI7))+(-LOG(OI8)))/2),"") -> 2.18 | OJ9: 3.22 | OK9: =IF(OK7>0,(((4-LOG10(OK7))+(-LOG(OK8)))/2),"") -> 4.06 | OL9: 2.17 | OM9: 1.55 | ON9: =IF(ON7>0,(((4-LOG10(ON7))+(-LOG(ON8)))/2),"") -> 2.54 | OP9: =IF(OP7>0,(((4-LOG10(OP7))+(-LOG(OP8)))/2),"") -> 1.65 | OQ9: =IF(OQ7>0,(((4-LOG10(OQ7))+(-LOG(OQ8)))/2),"") -> 2.87 | OR9: 4.08 | OS9: 2.87 | OT9: 4.30 | OU9: 1.96 | OV9: 3.08 | OW9: 3.08 | OX9: 1.55 | OY9: =IF(OY7>0,(((4-LOG10(OY7))+(-LOG(OY8)))/2),"") -> 3.88 | OZ9: =IF(OZ7>0,(((4-LOG10(OZ7))+(-LOG(OZ8)))/2),"") -> 2.84 | PA9: =IF(PA7>0,(((4-LOG10(PA7))+(-LOG(PA8)))/2),"") -> 4.50 | PB9: =IF(PB7>0,(((4-LOG10(PB7))+(-LOG(PB8)))/2),"") -> 3.00 | PC9: 2.46 | PD9: 3.40 | PE9: 2.19 | PF9: 2.01 | PH9: 1.24 | PI9: 2.65 | PJ9: =IF(PJ7>0,(((4-LOG10(PJ7))+(-LOG(PJ8)))/2),"") -> 2.61 | PK9: =IF(PK7>0,(((4-LOG10(PK7))+(-LOG(PK8)))/2),"") -> 2.89 | PM9: =IF(PM7>0,(((4-LOG10(PM7))+(-LOG(PM8)))/2),"") -> 2.61 | PN9: =IF(PN7>0,(((4-LOG10(PN7))+(-LOG(PN8)))/2),"") -> 2.16 | PP9: 3.91 | PQ9: 2.44 | PS9: 0.94 | PT9: 4.09 | PU9: 3.63 | PV9: 3.00 | PW9: 4.44 | PX9: 1.24 | PY9: =IF(PY7>0,(((4-LOG10(PY7))+(-LOG(PY8)))/2),"") -> 3.66 | PZ9: =IF(PZ7>0,(((4-LOG10(PZ7))+(-LOG(PZ8)))/2),"") -> 2.49 | QA9: =IF(QA7>0,(((4-LOG10(QA7))+(-LOG(QA8)))/2),"") -> 3.44 | QB9: 1.30 | QC9: 1.15 | QD9: 2.80 | QE9: =IF(QE7>0,(((4-LOG10(QE7))+(-LOG(QE8)))/2),"") -> 2.84 | QF9: 1.48 | QG9: 3.40 | QH9: 2.87 | QJ9: =IF(QJ7>0,(((4-LOG10(QJ7))+(-LOG(QJ8)))/2),"") -> 4.49 | QK9: =IF(QK7>0,(((4-LOG10(QK7))+(-LOG(QK8)))/2),"") -> 3.18 | QL9: =IF(QL7>0,(((4-LOG10(QL7))+(-LOG(QL8)))/2),"") -> 2.07 | QM9: =IF(QM7>0,(((4-LOG10(QM7))+(-LOG(QM8)))/2),"") -> 1.59 | QN9: 2.06 | QP9: =IF(QP7>0,(((4-LOG10(QP7))+(-LOG(QP8)))/2),"") -> 3.26 | QQ9: 2.39 | QR9: 2.56 | QS9: 1.41 | QT9: =IF(QT7>0,(((4-LOG10(QT7))+(-LOG(QT8)))/2),"") -> 2.61 | QU9: 2.81 | QV9: =IF(QV7>0,(((4-LOG10(QV7))+(-LOG(QV8)))/2),"") -> 1.65 | QX9: 1.99 | QY9: =IF(QY7>0,(((4-LOG10(QY7))+(-LOG(QY8)))/2),"") -> 1.79 | RA9: =IF(RA7>0,(((4-LOG10(RA7))+(-LOG(RA8)))/2),"") -> 2.89 | RB9: 2.93 | RC9: =IF(RC7>0,(((4-LOG10(RC7))+(-LOG(RC8)))/2),"") -> 1.76 | RD9: 3.87 | RE9: =IF(RE7>0,(((4-LOG10(RE7))+(-LOG(RE8)))/2),"") -> 3.99 | RF9: 4.88 | RG9: =IF(RG7>0,(((4-LOG10(RG7))+(-LOG(RG8)))/2),"") -> 4.58 | RH9: =IF(RH7>0,(((4-LOG10(RH7))+(-LOG(RH8)))/2),"") -> 1.87 | RI9: 3.40 | RJ9: 2.78 | RN9: 3.36 | RP9: =IF(RP7>0,(((4-LOG10(RP7))+(-LOG(RP8)))/2),"") -> 3.00 | RQ9: =IF(RQ7>0,(((4-LOG10(RQ7))+(-LOG(RQ8)))/2),"") -> 1.50 | RR9: 3.01 | RS9: 1.70 | RT9: 3.71 | RU9: 1.94 | RV9: 1.36 | RW9: =IF(RW7>0,(((4-LOG10(RW7))+(-LOG(RW8)))/2),"") -> 2.52 | RX9: 2.76 | RY9: 2.52 | RZ9: 2.52 | SA9: 2.52 | SB9: 2.52 | SC9: 2.52 | SD9: 2.51 | SE9: 2.51 | SF9: 2.98 | SG9: 2.78 | SH9: 2.85 | SJ9: =IF(SJ7>0,(((4-LOG10(SJ7))+(-LOG(SJ8)))/2),"") -> 3.31 | SK9: =IF(SK7>0,(((4-LOG10(SK7))+(-LOG(SK8)))/2),"") -> 2.56 | SL9: =IF(SL7>0,(((4-LOG10(SL7))+(-LOG(SL8)))/2),"") -> 2.09 | SN9: =IF(SN7>0,(((4-LOG10(SN7))+(-LOG(SN8)))/2),"") -> 2.48 | SO9: =IF(SO7>0,(((4-LOG10(SO7))+(-LOG(SO8)))/2),"") -> 3.44 | SP9: 2.49 | SQ9: =IF(SQ7>0,(((4-LOG10(SQ7))+(-LOG(SQ8)))/2),"") -> 3.04 | SR9: 2.80 | SS9: 2.52 | ST9: 2.73 | SW9: 3.78 | SX9: =IF(SX7>0,(((4-LOG10(SX7))+(-LOG(SX8)))/2),"") -> 3.26 | SY9: 3.98 | SZ9: 2.66 | TA9: =IF(TA7>0,(((4-LOG10(TA7))+(-LOG(TA8)))/2),"") -> 1.26 | TB9: =IF(TB7>0,(((4-LOG10(TB7))+(-LOG(TB8)))/2),"") -> 2.82 | TC9: 3.40 | TD9: 3.36 | TE9: 0.48 | TF9: =IF(TF7>0,(((4-LOG10(TF7))+(-LOG(TF8)))/2),"") -> 1.65 | TG9: =IF(TG7>0,(((4-LOG10(TG7))+(-LOG(TG8)))/2),"") -> 1.86 | TH9: 4.44 | TI9: 4.15 | TJ9: =IF(TJ7>0,(((4-LOG10(TJ7))+(-LOG(TJ8)))/2),"") -> 2.69 | TK9: 3.98 | TL9: =IF(TL7>0,(((4-LOG10(TL7))+(-LOG(TL8)))/2),"") -> 2.18 | TM9: 3.38 | TN9: 3.22 | TO9: 3.00 | TP9: =IF(TP7>0,(((4-LOG10(TP7))+(-LOG(TP8)))/2),"") -> 2.01 | TQ9: =IF(TQ7>0,(((4-LOG10(TQ7))+(-LOG(TQ8)))/2),"") -> 3.18 | TR9: 2.85 | TS9: 1.47 | TT9: 1.83 | TU9: =IF(TU7>0,(((4-LOG10(TU7))+(-LOG(TU8)))/2),"") -> 4.11 | TV9: =IF(TV7>0,(((4-LOG10(TV7))+(-LOG(TV8)))/2),"") -> 4.14 | TW9: 4.05 | TY9: =IF(TY7>0,(((4-LOG10(TY7))+(-LOG(TY8)))/2),"") -> 4.58 | TZ9: 0.94 | UA9: 2.66 | UB9: 2.98 | UC9: 2.76 | UD9: 1.70 | UE9: 3.36 | UF9: 2.93 | UG9: =IF(UG7>0,(((4-LOG10(UG7))+(-LOG(UG8)))/2),"") -> 1.56 | UH9: 2.01 | UI9: 2.46 | UK9: 2.85 | UM9: 0.17 | UN9: 2.24 | UP9: 2.00 | UQ9: 3.01 | UR9: 1.45 | US9: =IF(US7>0,(((4-LOG10(US7))+(-LOG(US8)))/2),"") -> 4.70 | UT9: 2.21 | UU9: 1.63 | UV9: 1.61 | UW9: 2.48 | UX9: 2.66 | UY9: =IF(UY7>0,(((4-LOG10(UY7))+(-LOG(UY8)))/2),"") -> 5.19 | UZ9: =IF(UZ7>0,(((4-LOG10(UZ7))+(-LOG(UZ8)))/2),"") -> 2.48 | VA9: 4.15 | VC9: =IF(VC7>0,(((4-LOG10(VC7))+(-LOG(VC8)))/2),"") -> 4.70 | VD9: 0.94 | VE9: 2.49 | VG9: =IF(VG7>0,(((4-LOG10(VG7))+(-LOG(VG8)))/2),"") -> 1.85 | VH9: 3.01 | VK9: =IF(VK7>0,(((4-LOG10(VK7))+(-LOG(VK8)))/2),"") -> 1.70 | VL9: 4.88 | VM9: =IF(VM7>0,(((4-LOG10(VM7))+(-LOG(VM8)))/2),"") -> 3.09 | VN9: =IF(VN7>0,(((4-LOG10(VN7))+(-LOG(VN8)))/2),"") -> 3.09 | VO9: 2.85 | VP9: 2.85 | VQ9: =IF(VQ7>0,(((4-LOG10(VQ7))+(-LOG(VQ8)))/2),"") -> 3.09 | VR9: 2.84 | VS9: 2.03 | VT9: =IF(VT7>0,(((4-LOG10(VT7))+(-LOG(VT8)))/2),"") -> 4.50 | VU9: 3.44 | VV9: 2.65 | VW9: =IF(VW7>0,(((4-LOG10(VW7))+(-LOG(VW8)))/2),"") -> 2.51 | VX9: =IF(VX7>0,(((4-LOG10(VX7))+(-LOG(VX8)))/2),"") -> 4.70 | VY9: =IF(VY7>0,(((4-LOG10(VY7))+(-LOG(VY8)))/2),"") -> 4.70 | VZ9: 3.78 | WA9: 2.24 | WB9: 2.44 | WC9: 2.44 | WD9: =IF(WD7>0,(((4-LOG10(WD7))+(-LOG(WD8)))/2),"") -> 2.61 | WE9: 1.61 | WF9: 3.21 | WG9: 4.09 | WH9: 2.00 | WI9: 2.01 | WJ9: =IF(WJ7>0,(((4-LOG10(WJ7))+(-LOG(WJ8)))/2),"") -> 1.84 | WK9: =IF(WK7>0,(((4-LOG10(WK7))+(-LOG(WK8)))/2),"") -> 4.81 | WL9: =IF(WL7>0,(((4-LOG10(WL7))+(-LOG(WL8)))/2),"") -> 3.03 | WM9: =IF(WM7>0,(((4-LOG10(WM7))+(-LOG(WM8)))/2),"") -> 3.03 | WN9: =IF(WN7>0,(((4-LOG10(WN7))+(-LOG(WN8)))/2),"") -> 2.72 | WO9: 2.88 | WP9: =IF(WP7>0,(((4-LOG10(WP7))+(-LOG(WP8)))/2),"") -> 2.56 | WQ9: 3.77 | WR9: =IF(WR7>0,(((4-LOG10(WR7))+(-LOG(WR8)))/2),"") -> 2.63 | WS9: =IF(WS7>0,(((4-LOG10(WS7))+(-LOG(WS8)))/2),"") -> 2.02 | WT9: 1.74 | WU9: =IF(WU7>0,(((4-LOG10(WU7))+(-LOG(WU8)))/2),"") -> 1.31 | WV9: 2.78 | WW9: 2.49 | WX9: 2.93 | WY9: 2.03 | WZ9: 3.38 | XA9: 2.56 | XB9: 1.40 | XD9: =IF(XD7>0,(((4-LOG10(XD7))+(-LOG(XD8)))/2),"") -> 3.60 | XE9: 2.03 | XF9: =IF(XF7>0,(((4-LOG10(XF7))+(-LOG(XF8)))/2),"") -> 1.29 | XG9: 2.24 | XH9: =IF(XH7>0,(((4-LOG10(XH7))+(-LOG(XH8)))/2),"") -> 2.00 | XI9: 3.62 | XJ9: 4.05 | XK9: 1.99 | XM9: =IF(XM7>0,(((4-LOG10(XM7))+(-LOG(XM8)))/2),"") -> 2.70 | XN9: 2.51 | XO9: =IF(XO7>0,(((4-LOG10(XO7))+(-LOG(XO8)))/2),"") -> 2.77 | XP9: 3.33 | XQ9: =IF(XQ7>0,(((4-LOG10(XQ7))+(-LOG(XQ8)))/2),"") -> 1.27 | XR9: =IF(XR7>0,(((4-LOG10(XR7))+(-LOG(XR8)))/2),"") -> 2.77 | XS9: 3.77 | XT9: 1.94 | XU9: 1.61 | XW9: =IF(XW7>0,(((4-LOG10(XW7))+(-LOG(XW8)))/2),"") -> 2.52 | XY9: 1.47 | XZ9: =IF(XZ7>0,(((4-LOG10(XZ7))+(-LOG(XZ8)))/2),"") -> 2.57 | YA9: 5.35 | YB9: 2.39 | YC9: 2.01 | YD9: 2.51 | YE9: =IF(YE7>0,(((4-LOG10(YE7))+(-LOG(YE8)))/2),"") -> 2.96 | YF9: 2.21 | YG9: =IF(YG7>0,(((4-LOG10(YG7))+(-LOG(YG8)))/2),"") -> 4.12 | YH9: 2.45 | YI9: 3.08 | YJ9: =IF(YJ7>0,(((4-LOG10(YJ7))+(-LOG(YJ8)))/2),"") -> 3.08 | YK9: 4.52 | YL9: 4.44 | YM9: 3.38 | YN9: =IF(YN7>0,(((4-LOG10(YN7))+(-LOG(YN8)))/2),"") -> 2.87 | YP9: 1.50 | YQ9: 3.77 | YR9: =IF(YR7>0,(((4-LOG10(YR7))+(-LOG(YR8)))/2),"") -> 2.77 | YT9: 2.51 | YU9: =IF(YU7>0,(((4-LOG10(YU7))+(-LOG(YU8)))/2),"") -> 2.09 | YW9: 1.24 | YX9: 3.62 | YY9: 3.62 | YZ9: 2.84 | ZA9: 2.24 | ZB9: =IF(ZB7>0,(((4-LOG10(ZB7))+(-LOG(ZB8)))/2),"") -> 2.07 | ZC9: =IF(ZC7>0,(((4-LOG10(ZC7))+(-LOG(ZC8)))/2),"") -> 2.55
A10: 14.8 - Koc | C10: 242 | D10: 1,073 | E10: 6,631 | F10: 30 | G10: 40 | H10: 72 | I10: 72 | J10: 72 | K10: 200 | L10: 156 | O10: 744 | P10: 9,315 | Q10: 56 | S10: 620 | T10: 866 | V10: 589 | W10: 304 | X10: 74 | Y10: 335 | Z10: 335 | AB10: 288,735 | AD10: 1,000 | AE10: 85 | AF10: 301 | AG10: 364 | AH10: 30,714 | AI10: 156,250 | AJ10: 90 | AK10: 316 | AL10: 316 | AM10: 30 | AN10: 242 | AP10: 589 | AQ10: 1,000 | AR10: 6,631 | AS10: 12 | AT10: 9,629 | AV10: 26,062 | AW10: 5,363 | AX10: 364 | AY10: 965 | BB10: 0 | BC10: 364 | BF10: 20,800 | BH10: 174 | BI10: 174 | BJ10: 130 | BK10: 174 | BL10: 700 | BN10: 866 | BO10: 80 | BP10: 72 | BQ10: 4,483 | BT10: 74 | BU10: 589 | BV10: 589 | BW10: 86 | BX10: 10 | BY10: 750 | BZ10: 25 | CA10: 2,197 | CC10: 4,998 | CD10: 225 | CE10: 241 | CF10: 9,100 | CG10: 9,100 | CH10: 86 | CI10: 245 | CL10: 64,300 | CN10: 236,610 | CO10: 236,610 | CP10: 169 | CS10: 236,610 | CT10: 37,480 | CU10: 21,175 | CW10: 35,660 | CX10: 43 | CY10: 772 | CZ10: 772 | DA10: 25 | DB10: 32 | DD10: 872 | DE10: 64,300 | DF10: 18 | DG10: 5,363 | DH10: 80 | DJ10: 112 | DL10: 13 | DM10: 772 | DN10: 200 | DO10: 200 | DP10: 1 | DQ10: 236,610 | DR10: 300 | DS10: 225 | DT10: 225 | DU10: 2 | DV10: 225 | DX10: 99 | DY10: 866 | EB10: 157,643 | ED10: 8,151 | EE10: 72 | EF10: 205 | EG10: 388 | EH10: 23 | EI10: 220 | EJ10: 850 | EK10: 2,967 | EL10: 700 | EM10: 63,300 | EO10: 241 | ER10: 1,440 | ES10: 239 | ET10: 173,900 | EV10: 156,250 | EW10: 364 | EY10: 409 | EZ10: 106 | FA10: 23 | FC10: 300 | FD10: 30 | FE10: 301 | FF10: 12,000 | FG10: 20,800 | FI10: 106 | FJ10: 106 | FK10: 106 | FL10: 850 | FM10: 8,151 | FN10: 123 | FO10: 9,315 | FP10: 156,250 | FQ10: 220 | FR10: 872 | FS10: 225 | FT10: 12,000 | FU10: 125 | FV10: 21,175 | FW10: 500 | FX10: 174 | FY10: 769 | FZ10: 225 | GA10: 56 | GB10: 850 | GC10: 41,182 | GD10: 2,016 | GE10: 850 | GF10: 850 | GG10: 850 | GH10: 35,660 | GI10: 10 | GJ10: 10,240,000 | GK10: 3,627 | GL10: 10,240,000 | GM10: 301 | GN10: 225 | GO10: 225 | GP10: 43,546 | GQ10: 2,184,750 | GR10: - | GS10: 1,000,000 | GT10: 90 | GU10: 3,760 | GV10: 4,620 | GW10: 4,620 | HA10: 4,620 | HB10: 30 | HC10: 26 | HD10: 2,185,000 | HE10: 1,067 | HF10: 998 | HG10: 3,627 | HH10: 1,067 | HI10: 242 | HJ10: 86 | HK10: 4,236,500 | HL10: 4,236,500 | HM10: 10,000 | HN10: 226 | HO10: 769 | HP10: 589 | HQ10: 17,757 | HR10: 1,152 | HS10: 56 | HT10: 31,037 | HV10: 1,950 | HW10: 1,073 | HY10: 3,847 | HZ10: 78 | IB10: 251,717 | IC10: 22,836 | IE10: 31,037 | IF10: 30,900 | IG10: 17,757 | II10: 134 | IJ10: 1,000 | IK10: 72 | IL10: 22,836 | IM10: 41 | IN10: 174 | IO10: 174 | IP10: 50 | IQ10: 3,847 | IR10: 600 | IS10: 288,735 | IT10: 388 | IU10: 2,000 | IV10: 11,354 | IY10: 35,660 | JA10: 59,677 | JB10: 100,000 | JC10: 600 | JD10: 727 | JE10: 3,760 | JF10: 46 | JG10: 228 | JH10: 2,287 | JI10: 2 | JJ10: 105 | JK10: 3,394 | JL10: 220 | JM10: 2,197 | JN10: 145,600 | JO10: 157,643 | JP10: 28 | JQ10: 30 | JR10: 889 | JS10: 889 | JV10: 98 | JX10: 0 | JZ10: 205 | KA10: 728 | KB10: 769 | KC10: 304 | KD10: 304 | KE10: 228 | KF10: 78 | KG10: 241 | KK10: 3,534 | KL10: 239 | KM10: 2,556 | KN10: 220 | KO10: 225 | KP10: 850 | KQ10: 156,250 | KR10: 769 | KS10: 228 | KT10: 3,394 | KU10: 1 | KV10: 4,998 | KW10: 9,598 | KX10: 59,677 | KY10: 41,182 | KZ10: 105 | LB10: 400 | LC10: 316 | LD10: 174 | LE10: 134 | LF10: 850 | LG10: 28,700 | LH10: 600 | LI10: 28,700 | LJ10: 7,566 | LK10: 1,000,000 | LL10: 1,100 | LM10: 74 | LN10: 1,417 | LO10: 109 | LR10: 37,480 | LT10: 20 | LU10: 17,491 | LV10: 316 | LW10: 156,250 | LX10: 54 | LY10: 54 | MA10: 12,000 | MB10: 3,104 | MC10: 45 | MD10: 850 | ME10: 4,753 | MF10: 4,753 | MG10: 12 | MH10: 137 | MI10: 125 | MJ10: 18 | MK10: 52 | ML10: 13,120 | MM10: 225 | MN10: 3,534 | MO10: 205 | MQ10: 26,062 | MR10: 1,000 | MS10: 4,483 | MU10: 236,610 | MV10: 402 | MW10: 1,440 | MX10: 45 | MZ10: 700 | NA10: 850 | NC10: 145 | ND10: 2,252 | NE10: 10,240,000 | NF10: 10,240,000 | NG10: 156 | NI10: 157,450 | NJ10: 1,067 | NL10: 46 | NM10: 353 | NO10: 43 | NP10: 8,151 | NQ10: 32 | NR10: 1,950 | NS10: 335 | NT10: 10,000 | NU10: 157,450 | NV10: 25 | NW10: 1 | NX10: 80 | NY10: 600 | NZ10: 620 | OA10: 8,151 | OB10: 41,182 | OC10: 4,753 | OD10: 54 | OE10: 217 | OF10: 13,120 | OG10: 998 | OH10: 998 | OJ10: 998 | OL10: 41,182 | OM10: 79 | ON10: 145,600 | OO10: 26 | OP10: 74 | OR10: 35,660 | OS10: 200 | OT10: 3,104 | OU10: 112 | OV10: 30,714 | OW10: 30,714 | OX10: 79 | OY10: 18 | PA10: 400 | PB10: 903,012 | PC10: 226 | PD10: 25 | PE10: 402 | PF10: 38 | PG10: 1,000 | PH10: 40 | PI10: 517 | PL10: 3,500,000 | PP10: 10,000 | PQ10: 769 | PS10: 30 | PT10: 26,062 | PU10: 217 | PV10: 9,598 | PW10: 8,151 | PX10: 40 | PY10: 30,900 | PZ10: 173,900 | QB10: 18 | QC10: 137 | QD10: 1,073 | QF10: 728 | QG10: 72 | QH10: 200 | QI10: 353 | QK10: 3,200 | QL10: 165 | QM10: 1,000 | QN10: 7,566 | QO10: 30 | QP10: 477 | QQ10: 106 | QR10: 1,000,000 | QS10: 600 | QU10: 17,491 | QV10: 73 | QW10: 100,000 | QX10: 750 | QY10: 13 | QZ10: 965 | RB10: 3,394 | RD10: 9,315 | RE10: 12,000 | RF10: 251,717 | RI10: 1,100 | RJ10: 21,175 | RL10: 223 | RM10: 75 | RN10: 11,354 | RO10: 43,546 | RP10: 903,012 | RQ10: 123 | RR10: 43 | RS10: 23 | RT10: 9,100 | RU10: 15,800 | RV10: 301 | RW10: 374 | RX10: 28 | RY10: 174 | RZ10: 174 | SA10: 174 | SB10: 174 | SC10: 174 | SD10: 589 | SE10: 589 | SF10: 3,760 | SG10: 21,175 | SH10: 378 | SJ10: 2,016 | SM10: 400 | SN10: 149 | SP10: 2,252 | SR10: 1,073 | SS10: 2,556 | ST10: 145 | SU10: 1,000 | SV10: 50 | SW10: 1,816 | SX10: 477 | SY10: 30 | SZ10: 866 | TA10: - | TC10: 72 | TD10: 11,354 | TE10: 12 | TF10: 73 | TG10: 300 | TH10: 8,151 | TI10: 727 | TJ10: 2,185,000 | TK10: 30 | TM10: 9,629 | TN10: 998 | TO10: 9,598 | TQ10: 3,200 | TR10: 378 | TS10: 28,700 | TT10: 700 | TU10: 744 | TW10: 17,757 | TX10: 20 | TZ10: 30 | UA10: 866 | UB10: 3,760 | UC10: 28 | UD10: 23 | UE10: 11,354 | UF10: 1 | UG10: 109 | UH10: 38 | UI10: 226 | UJ10: 75 | UK10: 300 | UL10: 130 | UM10: 98 | UN10: 205 | UP10: 66 | UQ10: 43 | UR10: 225 | US10: 236,610 | UT10: 364 | UU10: 90 | UV10: 80 | UW10: 772 | UX10: 866 | UY10: 59,677 | UZ10: 149 | VA10: 727 | VC10: 236,610 | VD10: 30 | VE10: 2,252 | VG10: 9,500 | VH10: 43 | VI10: 3,500,000 | VJ10: 85 | VK10: 41 | VL10: 251,717 | VM10: 2,000 | VN10: 2,000 | VO10: 378 | VP10: 378 | VQ10: 2,000 | VR10: 889 | VS10: 220 | VT10: 400 | VU10: 156 | VV10: 517 | VX10: 236,610 | VY10: 236,610 | VZ10: 1,816 | WA10: 205 | WB10: 769 | WC10: 769 | WE10: 80 | WF10: 225 | WG10: 26,062 | WH10: 66 | WI10: 38 | WK10: 500 | WN10: 1,000 | WO10: 1,152 | WP10: 1,417 | WQ10: 2,967 | WR10: 3,983 | WT10: 56 | WV10: 21,175 | WW10: 2,252 | WX10: 1 | WY10: 220 | WZ10: 9,629 | XA10: 1,000,000 | XB10: 54 | XC10: 63,300 | XE10: 220 | XG10: 205 | XH10: 245 | XI10: 850 | XJ10: 17,757 | XK10: 750 | XL10: 169 | XN10: 589 | XO10: 1,373 | XP10: 2,287 | XR10: 1,373 | XS10: 2,967 | XT10: 15,800 | XU10: 409 | XW10: 374 | XY10: 28,700 | YA10: 64,300 | YB10: 106 | YC10: 38 | YD10: 589 | YF10: 364 | YH10: 241 | YI10: 30,714 | YK10: 6,631 | YL10: 8,151 | YM10: 9,629 | YN10: 99 | YP10: 86 | YQ10: 2,967 | YS10: 223 | YT10: 589 | YU10: 90 | YV10: 52 | YW10: 40 | YX10: 850 | YY10: 850 | YZ10: 889 | ZA10: 205 | ZB10: 165 | ZC10: 1,224
A11: 14.9 - t1/2 (DT50) | C11: 10.0 | D11: 354.0 | E11: 30.0 | F11: 26.0 | G11: 10.0 | H11: 7.0 | I11: 7.0 | J11: 7.0 | K11: 1.6 | L11: 14.0 | N11: 59.0 | O11: 39.2 | P11: 32.0 | Q11: 50.0 | R11: 11.6 | S11: 48.0 | T11: 1.0 | U11: 8.8 | V11: 78.0 | W11: 4.7 | X11: 12.1 | Y11: 14.0 | Z11: 14.0 | AA11: 908.0 | AB11: 23.0 | AC11: 0.1 | AD11: 150.0 | AE11: 24.0 | AF11: 597.0 | AG11: 142.0 | AH11: 141.0 | AI11: 60.0 | AJ11: 1.8 | AK11: 37.0 | AL11: 37.0 | AM11: 21.0 | AN11: 10.0 | AO11: 35.0 | AP11: 78.0 | AQ11: 0.2 | AR11: 30.0 | AS11: 200.2 | AT11: 4.9 | AU11: 4.3 | AV11: 92.0 | AW11: 55.4 | AX11: 142.0 | AY11: 24.4 | AZ11: 10.0 | BA11: 1.5 | BB11: 13.1 | BC11: 142.0 | BD11: 3.2 | BE11: 3.2 | BF11: 90.0 | BG11: 350.0 | BH11: 75.0 | BI11: 75.0 | BJ11: 60.0 | BK11: 75.0 | BL11: 3.7 | BM11: 8.0 | BN11: 1.0 | BO11: 400.0 | BP11: 7.0 | BQ11: 113.2 | BT11: 64.0 | BU11: 78.0 | BV11: 78.0 | BW11: 13.0 | BX11: 0.5 | BY11: 250.0 | BZ11: 7.0 | CA11: 8.0 | CB11: 268.0 | CC11: 33.2 | CD11: 40.0 | CE11: 34.4 | CF11: 0.5 | CG11: 0.5 | CH11: 13.0 | CI11: 13.8 | CK11: 908.0 | CL11: 13.0 | CM11: 0.1 | CN11: 26.0 | CO11: 26.0 | CP11: 450.0 | CR11: 13.0 | CS11: 26.0 | CT11: 80.5 | CU11: 10.0 | CV11: 59.0 | CW11: 34.0 | CX11: 541.0 | CY11: 200.0 | CZ11: 200.0 | DA11: 7.0 | DB11: 60.0 | DD11: 190.0 | DE11: 13.0 | DF11: 7.0 | DG11: 55.4 | DH11: 400.0 | DI11: 38.0 | DJ11: 19.6 | DK11: 0.9 | DL11: 23.0 | DM11: 200.0 | DN11: 0.8 | DO11: 0.8 | DP11: 0.7 | DQ11: 26.0 | DR11: 16.0 | DS11: 40.0 | DT11: 40.0 | DU11: 3.1 | DV11: 40.0 | DW11: 21.0 | DX11: 0.5 | DY11: 1.0 | EB11: 42.0 | ED11: 50.0 | EE11: 7.0 | EF11: 1,358.0 | EG11: 8.5 | EH11: 0.6 | EI11: 0.5 | EJ11: 22.0 | EK11: 22.0 | EL11: 3.7 | EM11: 4.0 | EN11: 5.0 | EO11: 34.4 | EP11: 10.0 | EQ11: 1,161.0 | ER11: 15.0 | ES11: 13.0 | ET11: 9.0 | EU11: 1.7 | EV11: 60.0 | EW11: 142.0 | EX11: 37.0 | EY11: 93.0 | EZ11: 40.0 | FA11: 0.6 | FB11: 0.8 | FC11: 22.6 | FD11: 11.0 | FE11: 597.0 | FF11: 1.4 | FG11: 90.0 | FH11: 39.3 | FI11: 40.0 | FJ11: 40.0 | FK11: 40.0 | FL11: 22.0 | FM11: 50.0 | FN11: 545.0 | FO11: 32.0 | FP11: 60.0 | FQ11: 11.0 | FR11: 190.0 | FS11: 191.0 | FT11: 10,000.0 | FU11: 11.0 | FV11: 10.0 | FW11: 8.0 | FX11: 75.0 | FY11: 63.0 | FZ11: 191.0 | GA11: 50.0 | GB11: 22.0 | GC11: 16.3 | GD11: 7.0 | GE11: 22.0 | GF11: 22.0 | GG11: 22.0 | GH11: 34.0 | GI11: 0.5 | GJ11: 13.0 | GK11: 10.5 | GL11: 13.0 | GM11: 597.0 | GN11: 40.0 | GO11: 40.0 | GP11: 0.5 | GQ11: 2,345.0 | GR11: 9.6 | GS11: 3,000.0 | GT11: 49.0 | GU11: 130.0 | GV11: 3.0 | GW11: 3.0 | GX11: 2.5 | GY11: 72.7 | GZ11: 2.5 | HA11: 3.0 | HB11: 21.0 | HC11: 82.0 | HD11: 2,345.0 | HE11: 75.5 | HF11: 0.1 | HG11: 10.5 | HH11: 75.5 | HI11: 10.0 | HJ11: 13.0 | HK11: 4.7 | HL11: 4.7 | HM11: 4.0 | HN11: 15.0 | HO11: 63.0 | HP11: 78.0 | HQ11: 11.0 | HR11: 61.0 | HS11: 50.0 | HT11: 7.0 | HU11: 6.5 | HV11: 30.0 | HW11: 354.0 | HX11: 1.7 | HY11: 41.1 | HZ11: 25.4 | IA11: 50.9 | IB11: 66.6 | IC11: 16.1 | IE11: 7.0 | IF11: 4.1 | IG11: 11.0 | II11: 18.0 | IJ11: 20.0 | IK11: 7.0 | IL11: 16.1 | IM11: 2.2 | IN11: 75.0 | IO11: 75.0 | IP11: 450.0 | IQ11: 41.1 | IR11: 7.4 | IS11: 23.0 | IT11: 8.5 | IU11: 2.7 | IV11: 0.4 | IW11: 99.6 | IX11: 135.1 | IY11: 34.0 | IZ11: 35.0 | JA11: 26.8 | JB11: 13.0 | JC11: 7.4 | JD11: 142.0 | JE11: 130.0 | JF11: 41.2 | JG11: 86.0 | JH11: 0.3 | JI11: 3.1 | JJ11: 39.8 | JK11: 1.0 | JL11: 11.0 | JM11: 8.0 | JN11: 164.0 | JO11: 42.0 | JP11: 45.0 | JQ11: 2.5 | JR11: 21.9 | JS11: 21.9 | JT11: 271.0 | JU11: 309.0 | JV11: 57.1 | JW11: 350.0 | JX11: 13.1 | JY11: 400.0 | JZ11: 1,358.0 | KA11: 183.0 | KB11: 63.0 | KC11: 4.7 | KD11: 4.7 | KE11: 86.0 | KF11: 25.4 | KG11: 34.4 | KH11: 72.7 | KI11: 0.1 | KK11: 3.2 | KL11: 13.0 | KM11: 0.5 | KN11: 11.0 | KO11: 40.0 | KP11: 22.0 | KQ11: 60.0 | KR11: 63.0 | KS11: 86.0 | KT11: 1.0 | KU11: 0.7 | KV11: 33.2 | KW11: 72.0 | KX11: 26.8 | KY11: 16.3 | KZ11: 39.8 | LB11: 41.0 | LC11: 37.0 | LD11: 75.0 | LE11: 18.0 | LF11: 22.0 | LG11: 12.0 | LH11: 7.4 | LI11: 12.0 | LJ11: 35.0 | LK11: 3,000.0 | LL11: 39.0 | LM11: 64.0 | LN11: 1.3 | LO11: 26.7 | LP11: 0.5 | LQ11: 10.0 | LR11: 80.5 | LS11: 1,161.0 | LU11: 182.3 | LV11: 37.0 | LW11: 60.0 | LX11: 105.0 | LY11: 105.0 | LZ11: 30.0 | MA11: 10,000.0 | MB11: 26.0 | MC11: 2.7 | MD11: 22.0 | ME11: 76.3 | MF11: 76.3 | MG11: 200.2 | MH11: 120.0 | MI11: 11.0 | MJ11: 60.0 | MK11: 90.0 | ML11: 15.0 | MM11: 191.0 | MN11: 3.2 | MO11: 1,358.0 | MQ11: 92.0 | MR11: 150.0 | MS11: 113.2 | MT11: 39.3 | MU11: 26.0 | MV11: 146.0 | MW11: 15.0 | MX11: 2.7 | MY11: 50.0 | MZ11: 3.7 | NA11: 22.0 | NB11: 37.1 | NC11: 0.9 | ND11: 214.0 | NE11: 13.0 | NF11: 13.0 | NG11: 14.0 | NH11: 0.1 | NI11: 25.0 | NJ11: 75.5 | NL11: 41.2 | NM11: 12.5 | NN11: 37.1 | NO11: 541.0 | NP11: 50.0 | NQ11: 60.0 | NR11: 30.0 | NS11: 14.0 | NT11: 4.0 | NU11: 25.0 | NV11: 7.0 | NW11: 0.7 | NX11: 400.0 | NY11: 7.4 | NZ11: 48.0 | OA11: 50.0 | OB11: 16.3 | OC11: 76.3 | OD11: 105.0 | OE11: 0.2 | OF11: 15.0 | OG11: 0.1 | OH11: 0.1 | OI11: 49.1 | OJ11: 0.1 | OK11: 21.0 | OL11: 16.3 | OM11: 6.5 | ON11: 164.0 | OO11: 82.0 | OP11: 12.1 | OQ11: 268.0 | OR11: 34.0 | OS11: 0.8 | OT11: 26.0 | OU11: 19.6 | OV11: 141.0 | OW11: 141.0 | OX11: 6.5 | OY11: 7.0 | OZ11: 142.2 | PA11: 10.0 | PB11: 1.3 | PC11: 15.0 | PD11: 7.0 | PE11: 146.0 | PF11: 11.5 | PG11: 150.0 | PH11: 10.0 | PI11: 560.0 | PJ11: 400.0 | PK11: 2,416.0 | PM11: 82.4 | PN11: 400.0 | PP11: 4.0 | PQ11: 63.0 | PS11: 26.0 | PT11: 92.0 | PU11: 0.2 | PV11: 72.0 | PW11: 50.0 | PX11: 10.0 | PY11: 4.1 | PZ11: 9.0 | QA11: 56.0 | QB11: 60.0 | QC11: 120.0 | QD11: 354.0 | QE11: 142.2 | QF11: 183.0 | QG11: 7.0 | QH11: 0.8 | QI11: 12.5 | QJ11: 135.1 | QK11: 502.0 | QL11: 121.2 | QM11: 0.1 | QN11: 35.0 | QO11: 11.0 | QP11: 0.2 | QQ11: 40.0 | QR11: 3,000.0 | QS11: 7.4 | QT11: 82.4 | QU11: 182.3 | QV11: 21.7 | QW11: 13.0 | QX11: 250.0 | QY11: 23.0 | QZ11: 24.4 | RA11: 2,416.0 | RB11: 1.0 | RC11: 5.0 | RD11: 32.0 | RE11: 1.4 | RF11: 66.6 | RG11: 55.0 | RH11: 50.9 | RI11: 39.0 | RJ11: 10.0 | RK11: 60.0 | RL11: 22.0 | RM11: 1.2 | RN11: 0.4 | RO11: 0.5 | RP11: 1.3 | RQ11: 545.0 | RR11: 541.0 | RS11: 0.6 | RT11: 0.5 | RU11: 181.0 | RV11: 597.0 | RW11: 237.0 | RX11: 45.0 | RY11: 75.0 | RZ11: 75.0 | SA11: 75.0 | SB11: 75.0 | SC11: 75.0 | SD11: 78.0 | SE11: 78.0 | SF11: 130.0 | SG11: 10.0 | SH11: 7.0 | SJ11: 7.0 | SK11: 8.0 | SL11: 99.6 | SM11: 41.0 | SN11: 0.4 | SO11: 56.0 | SP11: 214.0 | SQ11: 4.3 | SR11: 354.0 | SS11: 0.5 | ST11: 0.9 | SU11: 150.0 | SV11: 450.0 | SW11: 2.0 | SX11: 0.2 | SY11: 2.5 | SZ11: 1.0 | TA11: 9.6 | TB11: 50.0 | TC11: 7.0 | TD11: 0.4 | TE11: 200.2 | TF11: 21.7 | TG11: 22.6 | TH11: 50.0 | TI11: 142.0 | TJ11: 2,345.0 | TK11: 2.5 | TL11: 49.1 | TM11: 4.9 | TN11: 0.1 | TO11: 72.0 | TP11: 13.0 | TQ11: 502.0 | TR11: 7.0 | TS11: 12.0 | TT11: 3.7 | TU11: 39.2 | TV11: 38.0 | TW11: 11.0 | TY11: 55.0 | TZ11: 26.0 | UA11: 1.0 | UB11: 130.0 | UC11: 45.0 | UD11: 0.6 | UE11: 0.4 | UF11: 0.7 | UG11: 26.7 | UH11: 11.5 | UI11: 15.0 | UJ11: 1.2 | UK11: 16.0 | UL11: 60.0 | UM11: 57.1 | UN11: 1,358.0 | UP11: 30.0 | UQ11: 541.0 | UR11: 191.0 | US11: 26.0 | UT11: 142.0 | UU11: 49.0 | UV11: 400.0 | UW11: 200.0 | UX11: 1.0 | UY11: 26.8 | UZ11: 0.4 | VA11: 142.0 | VB11: 60.0 | VC11: 26.0 | VD11: 26.0 | VE11: 214.0 | VG11: 0.1 | VH11: 541.0 | VJ11: 24.0 | VK11: 2.2 | VL11: 66.6 | VM11: 2.7 | VN11: 2.7 | VO11: 7.0 | VP11: 7.0 | VQ11: 2.7 | VR11: 21.9 | VS11: 0.5 | VT11: 10.0 | VU11: 14.0 | VV11: 560.0 | VW11: 30.0 | VX11: 26.0 | VY11: 26.0 | VZ11: 2.0 | WA11: 1,358.0 | WB11: 63.0 | WC11: 63.0 | WD11: 400.0 | WE11: 400.0 | WF11: 40.0 | WG11: 92.0 | WH11: 30.0 | WI11: 11.5 | WJ11: 10.0 | WK11: 8.0 | WL11: 72.0 | WM11: 72.0 | WN11: 20.0 | WO11: 61.0 | WP11: 1.3 | WQ11: 22.0 | WR11: 500.0 | WS11: 0.9 | WT11: 50.0 | WU11: 11.6 | WV11: 10.0 | WW11: 214.0 | WX11: 0.7 | WY11: 0.5 | WZ11: 4.9 | XA11: 3,000.0 | XB11: 105.0 | XC11: 4.0 | XD11: 0.8 | XE11: 0.5 | XF11: 35.0 | XG11: 1,358.0 | XH11: 13.8 | XI11: 22.0 | XJ11: 11.0 | XK11: 250.0 | XL11: 450.0 | XM11: 1.5 | XN11: 78.0 | XO11: 13.0 | XP11: 0.3 | XQ11: 6.5 | XR11: 13.0 | XS11: 22.0 | XT11: 181.0 | XU11: 93.0 | XW11: 237.0 | XY11: 12.0 | XZ11: 37.0 | YA11: 13.0 | YB11: 40.0 | YC11: 11.5 | YD11: 78.0 | YE11: 309.0 | YF11: 142.0 | YG11: 0.5 | YH11: 34.4 | YI11: 141.0 | YJ11: 35.0 | YK11: 30.0 | YL11: 50.0 | YM11: 4.9 | YN11: 0.5 | YP11: 13.0 | YQ11: 22.0 | YR11: 271.0 | YS11: 22.0 | YT11: 78.0 | YU11: 1.8 | YV11: 90.0 | YW11: 10.0 | YX11: 22.0 | YY11: 22.0 | YZ11: 21.9 | ZA11: 1,358.0 | ZB11: 121.2 | ZC11: 5.5
A12: Índice de vulnerabilidade GUS (IUPAC) (>2 - Alerta alto risco) | C12: 1.62 | D12: 2.47 | E12: 0.26 | F12: 3.25 | G12: 2.40 | H12: 1.81 | I12: 1.81 | J12: 1.81 | K12: 2.18 | L12: 1.58 | N12: 3.15 | O12: -0.92 | P12: 0.05 | Q12: 3.82 | R12: 3.42 | S12: 2.03 | T12: 0.00 | V12: 2.65 | W12: 1.02 | X12: 3.13 | Y12: 1.08 | Z12: 1.08 | AA12: 0.91 | AB12: -2.00 | AD12: 2.18 | AE12: 3.92 | AF12: 4.22 | AG12: 3.10 | AH12: -1.05 | AI12: -2.12 | AJ12: 0.55 | AK12: 0.52 | AL12: 0.52 | AM12: 4.89 | AN12: 1.62 | AO12: 3.34 | AP12: 2.65 | AQ12: 0.00 | AR12: 0.26 | AS12: 6.76 | AT12: 0.01 | AV12: -0.82 | AW12: 1.21 | AX12: 3.10 | AY12: 1.35 | AZ12: 4.77 | BB12: 1.03 | BC12: 3.10 | BD12: 2.58 | BE12: 2.58 | BF12: -0.62 | BG12: 2.30 | BH12: 3.30 | BI12: 3.30 | BJ12: 2.20 | BK12: 3.30 | BL12: 0.58 | BM12: 0.47 | BN12: 0.00 | BO12: 5.46 | BP12: 1.81 | BQ12: 0.27 | BT12: 1.18 | BU12: 2.65 | BV12: 2.65 | BW12: 2.30 | BX12: 0.13 | BY12: 3.34 | BZ12: 2.20 | CA12: 3.98 | CB12: 1.06 | CC12: 2.29 | CD12: 2.53 | CE12: 2.63 | CF12: -0.03 | CG12: -0.03 | CH12: 2.30 | CI12: 1.99 | CK12: 0.91 | CL12: -0.90 | CM12: -4.00 | CN12: -2.66 | CO12: -2.66 | CP12: 3.89 | CR12: 1.21 | CS12: -2.66 | CT12: -1.09 | CU12: -0.27 | CV12: 3.15 | CW12: -0.85 | CX12: 6.16 | CY12: 2.66 | CZ12: 2.66 | DA12: 2.20 | DB12: 3.44 | DD12: 2.23 | DE12: -0.90 | DF12: 2.32 | DG12: 1.21 | DH12: 5.46 | DI12: 2.62 | DJ12: 2.69 | DK12: 1.10 | DL12: 4.14 | DM12: 2.66 | DN12: 0.00 | DO12: 0.00 | DP12: -0.56 | DQ12: -2.66 | DR12: 2.02 | DS12: 2.53 | DT12: 2.53 | DU12: 1.87 | DV12: 2.53 | DW12: 0.89 | DX12: 2.01 | DY12: 0.00 | EB12: -3.14 | ED12: 0.15 | EE12: 1.81 | EF12: 5.40 | EG12: 1.31 | EH12: -0.69 | EI12: -0.50 | EJ12: 1.44 | EK12: -0.05 | EL12: 0.58 | EM12: -0.48 | EN12: 1.33 | EO12: 2.63 | EP12: 0.57 | EQ12: 2.56 | ER12: 0.99 | ES12: 2.48 | ET12: -1.17 | EU12: 1.47 | EV12: -2.12 | EW12: 3.10 | EX12: 1.06 | EY12: 2.09 | EZ12: 3.16 | FA12: -0.69 | FB12: -0.08 | FC12: 2.72 | FD12: 2.52 | FE12: 4.22 | FF12: -0.01 | FG12: -0.62 | FH12: 1.50 | FI12: 3.16 | FJ12: 3.16 | FK12: 3.16 | FL12: 1.44 | FM12: 0.15 | FN12: 3.74 | FO12: 0.05 | FP12: -2.12 | FQ12: 1.73 | FR12: 2.23 | FS12: 3.76 | FT12: -0.32 | FU12: 1.98 | FV12: -0.27 | FW12: 1.25 | FX12: 3.30 | FY12: 2.85 | FZ12: 3.76 | GA12: 3.82 | GB12: 1.44 | GC12: -0.75 | GD12: 0.59 | GE12: 1.44 | GF12: 1.44 | GG12: 1.44 | GH12: -0.85 | GI12: 0.13 | GJ12: -3.35 | GK12: 0.68 | GL12: -3.35 | GM12: 4.22 | GN12: 2.53 | GO12: 2.53 | GP12: 0.19 | GQ12: -2.29 | GR12: 1.94 | GS12: -6.95 | GT12: 3.46 | GU12: 0.90 | GV12: 0.16 | GW12: 0.16 | GX12: 2.18 | GY12: 2.26 | GZ12: 2.18 | HA12: 0.16 | HB12: 4.89 | HC12: 4.85 | HD12: -7.60 | HE12: 1.83 | HF12: -1.00 | HG12: 0.68 | HH12: 1.83 | HI12: 1.62 | HJ12: 2.30 | HK12: -2.95 | HL12: -2.95 | HM12: 0.00 | HN12: 1.94 | HO12: 2.85 | HP12: 2.65 | HQ12: -0.30 | HR12: 1.81 | HS12: 3.82 | HT12: -0.42 | HU12: 1.81 | HV12: -0.71 | HW12: 2.47 | HX12: 1.47 | HY12: 1.09 | HZ12: 2.95 | IA12: 2.17 | IB12: -2.55 | IC12: 0.27 | IE12: -0.42 | IF12: -0.16 | IG12: -0.30 | II12: 2.33 | IJ12: 1.47 | IK12: 1.81 | IL12: 0.27 | IM12: 1.35 | IN12: 3.30 | IO12: 3.30 | IP12: 6.29 | IQ12: 1.09 | IR12: 1.06 | IS12: -2.00 | IT12: 1.31 | IU12: 0.48 | IV12: 0.02 | IW12: 1.98 | IX12: 0.26 | IY12: -0.85 | IZ12: 0.50 | JA12: -1.10 | JB12: -1.62 | JC12: 1.06 | JD12: 2.45 | JE12: 0.90 | JF12: 2.50 | JG12: 3.18 | JH12: -0.30 | JI12: 1.87 | JJ12: 3.38 | JK12: 0.00 | JL12: 1.73 | JM12: 3.98 | JN12: -1.35 | JO12: -3.14 | JP12: 4.22 | JQ12: 1.00 | JR12: 1.41 | JS12: 1.41 | JT12: 3.20 | JU12: 3.23 | JV12: 3.53 | JW12: 2.30 | JX12: 1.03 | JY12: 2.29 | JZ12: 5.40 | KA12: 2.57 | KB12: 2.85 | KC12: 1.02 | KD12: 1.02 | KE12: 3.18 | KF12: 2.95 | KG12: 2.63 | KH12: 2.26 | KK12: 0.48 | KL12: 2.48 | KM12: -0.18 | KN12: 1.73 | KO12: 2.53 | KP12: 1.44 | KQ12: -2.12 | KR12: 2.85 | KS12: 3.18 | KT12: 0.00 | KU12: -0.56 | KV12: 2.29 | KW12: 0.02 | KX12: -1.10 | KY12: -0.75 | KZ12: 3.38 | LB12: 0.59 | LC12: 0.52 | LD12: 3.30 | LE12: 2.33 | LF12: 1.44 | LG12: -0.49 | LH12: 1.06 | LI12: -0.49 | LJ12: 0.26 | LK12: -6.95 | LL12: 1.03 | LM12: 1.18 | LN12: 1.64 | LO12: 2.25 | LQ12: 0.57 | LR12: -1.09 | LS12: 2.56 | LU12: -0.32 | LV12: 0.52 | LW12: -2.12 | LX12: 4.58 | LY12: 4.58 | LZ12: 0.03 | MA12: -0.32 | MB12: 0.72 | MC12: 1.01 | MD12: 1.44 | ME12: 0.61 | MF12: 0.61 | MG12: 6.76 | MH12: 3.87 | MI12: 1.98 | MJ12: 5.42 | MK12: 3.90 | ML12: -0.13 | MM12: 3.76 | MN12: 0.48 | MO12: 5.40 | MQ12: -0.82 | MR12: 2.18 | MS12: 0.27 | MT12: 1.50 | MU12: -2.66 | MV12: 3.02 | MW12: 0.99 | MX12: 1.01 | MY12: 1.30 | MZ12: 0.58 | NA12: 1.44 | NB12: 1.99 | NC12: -0.10 | ND12: 1.51 | NE12: -3.35 | NF12: -3.35 | NG12: 1.58 | NH12: -4.00 | NI12: -1.67 | NJ12: 1.83 | NL12: 2.50 | NM12: 1.59 | NN12: 1.99 | NO12: 6.16 | NP12: 0.15 | NQ12: 3.44 | NR12: -0.71 | NS12: 1.08 | NT12: 0.00 | NU12: -1.67 | NV12: 2.20 | NW12: -0.56 | NX12: 5.46 | NY12: 1.06 | NZ12: 2.03 | OA12: 0.15 | OB12: -0.75 | OC12: 0.61 | OD12: 4.58 | OE12: 0.00 | OF12: -0.13 | OG12: -1.00 | OH12: -1.00 | OI12: 1.22 | OJ12: -1.00 | OK12: 0.89 | OL12: -0.75 | OM12: 1.71 | ON12: -1.35 | OO12: 4.85 | OP12: 3.13 | OQ12: 1.06 | OR12: -0.85 | OS12: 0.00 | OT12: 0.72 | OU12: 2.69 | OV12: -1.05 | OW12: -1.05 | OX12: 1.71 | OY12: 2.32 | OZ12: 2.03 | PA12: 1.18 | PB12: -1.65 | PC12: 1.94 | PD12: 2.20 | PE12: 3.02 | PF12: 2.57 | PG12: 2.18 | PH12: 2.40 | PI12: 3.30 | PJ12: 1.72 | PK12: 2.57 | PM12: 0.49 | PN12: 2.29 | PP12: 0.00 | PQ12: 2.85 | PS12: 3.25 | PT12: -0.82 | PU12: 0.00 | PV12: 0.02 | PW12: 0.15 | PX12: 2.40 | PY12: -0.16 | PZ12: -1.17 | QA12: -0.86 | QB12: 5.42 | QC12: 3.87 | QD12: 2.47 | QE12: 2.03 | QF12: 2.57 | QG12: 1.81 | QH12: 0.00 | QI12: 1.59 | QJ12: 0.26 | QK12: 1.97 | QL12: 0.38 | QM12: -1.00 | QN12: 0.26 | QO12: 2.52 | QP12: -0.11 | QQ12: 3.16 | QR12: -6.95 | QS12: 1.06 | QT12: 0.49 | QU12: -0.32 | QV12: 1.56 | QW12: -1.62 | QX12: 3.34 | QY12: 4.14 | QZ12: 1.35 | RA12: 2.57 | RB12: 0.00 | RC12: 1.33 | RD12: 0.05 | RE12: -0.01 | RF12: -2.55 | RG12: -1.20 | RH12: 2.17 | RI12: 1.03 | RJ12: -0.27 | RL12: 2.22 | RM12: 1.49 | RN12: 0.02 | RO12: 0.19 | RP12: -1.65 | RQ12: 3.74 | RR12: 6.16 | RS12: -0.69 | RT12: -0.03 | RU12: 0.13 | RV12: 4.22 | RW12: 2.70 | RX12: 4.22 | RY12: 3.30 | RZ12: 3.30 | SA12: 3.30 | SB12: 3.30 | SC12: 3.30 | SD12: 2.65 | SE12: 2.65 | SF12: 0.90 | SG12: -0.27 | SH12: 4.12 | SJ12: 0.59 | SK12: 0.47 | SL12: 1.98 | SM12: 0.59 | SN12: -0.51 | SO12: -0.86 | SP12: 1.51 | SR12: 2.47 | SS12: -0.18 | ST12: -0.10 | SU12: 2.18 | SV12: 6.29 | SW12: -0.29 | SX12: -0.11 | SY12: 1.00 | SZ12: 0.00 | TA12: 1.94 | TB12: 1.30 | TC12: 1.81 | TD12: 0.02 | TE12: 6.76 | TF12: 1.56 | TG12: 2.72 | TH12: 0.15 | TI12: 2.45 | TJ12: -7.60 | TK12: 1.00 | TL12: 1.22 | TM12: 0.01 | TN12: -1.00 | TO12: 0.02 | TP12: 1.21 | TQ12: 1.97 | TR12: 4.12 | TS12: -0.49 | TT12: 0.58 | TU12: -0.92 | TV12: 2.62 | TW12: -0.30 | TY12: -1.20 | TZ12: 3.25 | UA12: 0.00 | UB12: 0.90 | UC12: 4.22 | UD12: -0.69 | UE12: 0.02 | UF12: -0.56 | UG12: 2.25 | UH12: 2.57 | UI12: 1.94 | UJ12: 1.49 | UK12: 2.02 | UL12: 2.20 | UM12: 3.53 | UN12: 5.40 | UP12: 3.22 | UQ12: 6.16 | UR12: 3.76 | US12: -2.66 | UT12: 3.10 | UU12: 3.46 | UV12: 5.46 | UW12: 2.66 | UX12: 0.00 | UY12: -1.10 | UZ12: -0.51 | VA12: 2.45 | VC12: -2.66 | VD12: 3.25 | VE12: 1.51 | VG12: -0.02 | VH12: 6.16 | VJ12: 3.92 | VK12: 1.35 | VL12: -2.55 | VM12: 0.48 | VN12: 0.48 | VO12: 4.12 | VP12: 4.12 | VQ12: 0.48 | VR12: 1.41 | VS12: -0.50 | VT12: 1.18 | VU12: 1.58 | VV12: 3.30 | VW12: 0.03 | VX12: -2.66 | VY12: -2.66 | VZ12: -0.29 | WA12: 5.40 | WB12: 2.85 | WC12: 2.85 | WD12: 1.72 | WE12: 5.46 | WF12: 2.53 | WG12: -0.82 | WH12: 3.22 | WI12: 2.57 | WJ12: 4.77 | WK12: 1.25 | WL12: 2.19 | WM12: 2.19 | WN12: 1.47 | WO12: 1.81 | WP12: 1.64 | WQ12: -0.05 | WR12: 1.94 | WS12: 1.10 | WT12: 3.82 | WU12: 3.42 | WV12: -0.27 | WW12: 1.51 | WX12: -0.56 | WY12: -0.50 | WZ12: 0.01 | XA12: -6.95 | XB12: 4.58 | XC12: -0.48 | XD12: -0.08 | XE12: -0.50 | XF12: 3.34 | XG12: 5.40 | XH12: 1.99 | XI12: 1.44 | XJ12: -0.30 | XK12: 3.34 | XL12: 3.89 | XN12: 2.65 | XO12: 0.96 | XP12: -0.30 | XQ12: 1.81 | XR12: 0.96 | XS12: -0.05 | XT12: 0.13 | XU12: 2.09 | XW12: 2.70 | XY12: -0.49 | XZ12: 1.06 | YA12: -0.90 | YB12: 3.16 | YC12: 2.57 | YD12: 2.65 | YE12: 3.23 | YF12: 3.10 | YH12: 2.63 | YI12: -1.05 | YJ12: 0.50 | YK12: 0.26 | YL12: 0.15 | YM12: 0.01 | YN12: 2.01 | YP12: 2.30 | YQ12: -0.05 | YR12: 3.20 | YS12: 2.22 | YT12: 2.65 | YU12: 0.55 | YV12: 3.90 | YW12: 2.40 | YX12: 1.44 | YY12: 1.44 | YZ12: 1.41 | ZA12: 5.40 | ZB12: 0.38 | ZC12: 0.71
A13: Potencial de contaminação (1; 2 - médio risco; 3 - alto risco) | C13: 1 | D13: 3 | E13: 3 | F13: 2 | G13: 1 | H13: 2 | I13: 2 | J13: 2 | K13: 1 | L13: 3 | N13: 3 | O13: 3 | P13: 3 | Q13: 3 | R13: 3 | S13: 3 | T13: 1 | U13: 3 | V13: 3 | W13: 1 | X13: 2 | Y13: 2 | Z13: 2 | AA13: 3 | AB13: 2 | AC13: 3 | AD13: 1 | AE13: 1 | AF13: 2 | AG13: 3 | AH13: 2 | AI13: 2 | AJ13: 1 | AK13: 2 | AL13: 2 | AM13: 1 | AN13: 1 | AO13: 3 | AP13: 3 | AQ13: 1 | AR13: 3 | AS13: 2 | AT13: 1 | AU13: 3 | AV13: 3 | AW13: 1 | AX13: 3 | AY13: 1 | AZ13: 3 | BA13: 3 | BB13: 3 | BC13: 3 | BD13: 3 | BE13: 3 | BF13: 1 | BG13: 3 | BH13: 3 | BI13: 3 | BJ13: 1 | BK13: 3 | BL13: 1 | BM13: 3 | BN13: 1 | BO13: 3 | BP13: 2 | BQ13: 3 | BT13: 2 | BU13: 3 | BV13: 3 | BW13: 2 | BX13: 1 | BY13: 2 | BZ13: 3 | CA13: 2 | CB13: 3 | CC13: 2 | CD13: 3 | CE13: 2 | CF13: 1 | CG13: 1 | CH13: 2 | CI13: 2 | CK13: 3 | CL13: 2 | CM13: 3 | CN13: 2 | CO13: 2 | CP13: 1 | CR13: 3 | CS13: 2 | CT13: 1 | CU13: 1 | CV13: 3 | CW13: 2 | CX13: 3 | CY13: 3 | CZ13: 3 | DA13: 3 | DB13: 1 | DD13: 3 | DE13: 2 | DF13: 3 | DG13: 1 | DH13: 3 | DI13: 3 | DJ13: 2 | DK13: 3 | DL13: 3 | DM13: 3 | DN13: 1 | DO13: 1 | DP13: 1 | DQ13: 2 | DR13: 2 | DS13: 3 | DT13: 3 | DU13: 3 | DV13: 3 | DW13: 3 | DX13: 1 | DY13: 1 | EB13: 2 | ED13: 3 | EE13: 2 | EF13: 3 | EG13: 2 | EH13: 1 | EI13: 1 | EJ13: 2 | EK13: 2 | EL13: 1 | EM13: 1 | EN13: 3 | EO13: 2 | EP13: 3 | EQ13: 3 | ER13: 1 | ES13: 2 | ET13: 1 | EU13: 3 | EV13: 2 | EW13: 3 | EX13: 3 | EY13: 2 | EZ13: 3 | FA13: 1 | FB13: 3 | FC13: 2 | FD13: 1 | FE13: 2 | FF13: 1 | FG13: 1 | FH13: 3 | FI13: 3 | FJ13: 3 | FK13: 3 | FL13: 2 | FM13: 3 | FN13: 3 | FO13: 3 | FP13: 2 | FQ13: 2 | FR13: 3 | FS13: 2 | FT13: 3 | FU13: 2 | FV13: 1 | FW13: 2 | FX13: 3 | FY13: 2 | FZ13: 2 | GA13: 3 | GB13: 2 | GC13: 1 | GD13: 2 | GE13: 2 | GF13: 2 | GG13: 2 | GH13: 2 | GI13: 1 | GJ13: 1 | GK13: 2 | GL13: 1 | GM13: 2 | GN13: 3 | GO13: 3 | GP13: 1 | GQ13: 2 | GR13: 3 | GS13: 2 | GT13: 2 | GU13: 3 | GV13: 1 | GW13: 1 | GX13: 3 | GY13: 3 | GZ13: 3 | HA13: 1 | HB13: 1 | HC13: 1 | HD13: 2 | HE13: 2 | HF13: 1 | HG13: 2 | HH13: 2 | HI13: 1 | HJ13: 2 | HK13: 1 | HL13: 1 | HM13: 1 | HN13: 2 | HO13: 2 | HP13: 3 | HQ13: 2 | HR13: 3 | HS13: 3 | HT13: 1 | HU13: 3 | HV13: 1 | HW13: 3 | HX13: 3 | HY13: 3 | HZ13: 2 | IA13: 3 | IB13: 2 | IC13: 1 | IE13: 1 | IF13: 1 | IG13: 2 | II13: 2 | IJ13: 2 | IK13: 2 | IL13: 1 | IM13: 1 | IN13: 3 | IO13: 3 | IP13: 1 | IQ13: 3 | IR13: 1 | IS13: 2 | IT13: 2 | IU13: 1 | IV13: 1 | IW13: 3 | IX13: 3 | IY13: 2 | IZ13: 3 | JA13: 2 | JB13: 1 | JC13: 1 | JD13: 3 | JE13: 3 | JF13: 3 | JG13: 3 | JH13: 1 | JI13: 3 | JJ13: 2 | JK13: 1 | JL13: 2 | JM13: 2 | JN13: 2 | JO13: 2 | JP13: 3 | JQ13: 2 | JR13: 2 | JS13: 2 | JT13: 3 | JU13: 3 | JV13: 1 | JW13: 3 | JX13: 3 | JY13: 3 | JZ13: 3 | KA13: 2 | KB13: 2 | KC13: 1 | KD13: 1 | KE13: 3 | KF13: 2 | KG13: 2 | KH13: 3 | KI13: 3 | KJ13: 3 | KK13: 1 | KL13: 2 | KM13: 1 | KN13: 2 | KO13: 3 | KP13: 2 | KQ13: 2 | KR13: 2 | KS13: 3 | KT13: 1 | KU13: 1 | KV13: 2 | KW13: 2 | KX13: 2 | KY13: 1 | KZ13: 2 | LA13: 3 | LB13: 1 | LC13: 2 | LD13: 3 | LE13: 2 | LF13: 2 | LG13: 1 | LH13: 1 | LI13: 1 | LJ13: 1 | LK13: 2 | LL13: 3 | LM13: 2 | LN13: 1 | LO13: 2 | LP13: 3 | LQ13: 3 | LR13: 1 | LS13: 3 | LU13: 2 | LV13: 2 | LW13: 2 | LX13: 2 | LY13: 2 | LZ13: 3 | MA13: 3 | MB13: 3 | MC13: 1 | MD13: 2 | ME13: 2 | MF13: 2 | MG13: 2 | MH13: 2 | MI13: 2 | MJ13: 3 | MK13: 1 | ML13: 2 | MM13: 2 | MN13: 1 | MO13: 3 | MQ13: 3 | MR13: 1 | MS13: 3 | MT13: 3 | MU13: 2 | MV13: 3 | MW13: 1 | MX13: 1 | MY13: 3 | MZ13: 1 | NA13: 2 | NB13: 3 | NC13: 1 | ND13: 3 | NE13: 1 | NF13: 1 | NG13: 3 | NH13: 3 | NI13: 2 | NJ13: 2 | NL13: 3 | NM13: 1 | NN13: 3 | NO13: 3 | NP13: 3 | NQ13: 1 | NR13: 1 | NS13: 2 | NT13: 1 | NU13: 2 | NV13: 3 | NW13: 1 | NX13: 3 | NY13: 1 | NZ13: 3 | OA13: 3 | OB13: 1 | OC13: 2 | OD13: 2 | OE13: 1 | OF13: 2 | OG13: 1 | OH13: 1 | OI13: 3 | OJ13: 1 | OK13: 3 | OL13: 1 | OM13: 1 | ON13: 2 | OO13: 1 | OP13: 2 | OQ13: 3 | OR13: 2 | OS13: 1 | OT13: 3 | OU13: 2 | OV13: 2 | OW13: 2 | OX13: 1 | OY13: 3 | OZ13: 3 | PA13: 3 | PB13: 1 | PC13: 2 | PD13: 3 | PE13: 3 | PF13: 2 | PG13: 1 | PH13: 1 | PI13: 3 | PJ13: 3 | PK13: 3 | PM13: 3 | PN13: 3 | PP13: 1 | PQ13: 2 | PS13: 2 | PT13: 3 | PU13: 1 | PV13: 2 | PW13: 3 | PX13: 1 | PY13: 1 | PZ13: 1 | QA13: 3 | QB13: 3 | QC13: 2 | QD13: 3 | QE13: 3 | QF13: 2 | QG13: 2 | QH13: 1 | QI13: 1 | QJ13: 3 | QK13: 3 | QL13: 3 | QM13: 1 | QN13: 1 | QO13: 1 | QP13: 1 | QQ13: 3 | QR13: 2 | QS13: 1 | QT13: 3 | QU13: 2 | QV13: 2 | QW13: 1 | QX13: 2 | QY13: 3 | QZ13: 1 | RA13: 3 | RB13: 1 | RC13: 3 | RD13: 3 | RE13: 1 | RF13: 2 | RG13: 3 | RH13: 3 | RI13: 3 | RJ13: 1 | RK13: 3 | RL13: 1 | RM13: 1 | RN13: 1 | RO13: 1 | RP13: 1 | RQ13: 3 | RR13: 3 | RS13: 1 | RT13: 1 | RU13: 2 | RV13: 2 | RW13: 3 | RX13: 3 | RY13: 3 | RZ13: 3 | SA13: 3 | SB13: 3 | SC13: 3 | SD13: 3 | SE13: 3 | SF13: 3 | SG13: 1 | SH13: 2 | SJ13: 2 | SK13: 3 | SL13: 3 | SM13: 1 | SN13: 1 | SO13: 3 | SP13: 3 | SQ13: 3 | SR13: 3 | SS13: 1 | ST13: 1 | SU13: 1 | SV13: 1 | SW13: 1 | SX13: 1 | SY13: 2 | SZ13: 1 | TA13: 3 | TB13: 3 | TC13: 2 | TD13: 1 | TE13: 2 | TF13: 2 | TG13: 2 | TH13: 3 | TI13: 3 | TJ13: 2 | TK13: 2 | TL13: 3 | TM13: 1 | TN13: 1 | TO13: 2 | TP13: 3 | TQ13: 3 | TR13: 2 | TS13: 1 | TT13: 1 | TU13: 3 | TV13: 3 | TW13: 2 | TY13: 3 | TZ13: 2 | UA13: 1 | UB13: 3 | UC13: 3 | UD13: 1 | UE13: 1 | UF13: 1 | UG13: 2 | UH13: 2 | UI13: 2 | UJ13: 1 | UK13: 2 | UL13: 1 | UM13: 1 | UN13: 3 | UP13: 2 | UQ13: 3 | UR13: 2 | US13: 2 | UT13: 3 | UU13: 2 | UV13: 3 | UW13: 3 | UX13: 1 | UY13: 2 | UZ13: 1 | VA13: 3 | VB13: 3 | VC13: 2 | VD13: 2 | VE13: 3 | VG13: 1 | VH13: 3 | VJ13: 1 | VK13: 1 | VL13: 2 | VM13: 1 | VN13: 1 | VO13: 2 | VP13: 2 | VQ13: 1 | VR13: 2 | VS13: 1 | VT13: 3 | VU13: 3 | VV13: 3 | VW13: 3 | VX13: 2 | VY13: 2 | VZ13: 1 | WA13: 3 | WB13: 2 | WC13: 2 | WD13: 3 | WE13: 3 | WF13: 3 | WG13: 3 | WH13: 2 | WI13: 2 | WJ13: 3 | WK13: 2 | WL13: 3 | WM13: 3 | WN13: 2 | WO13: 3 | WP13: 1 | WQ13: 2 | WR13: 3 | WS13: 3 | WT13: 3 | WU13: 3 | WV13: 1 | WW13: 3 | WX13: 1 | WY13: 1 | WZ13: 1 | XA13: 2 | XB13: 2 | XC13: 1 | XD13: 3 | XE13: 1 | XF13: 3 | XG13: 3 | XH13: 2 | XI13: 2 | XJ13: 2 | XK13: 2 | XL13: 1 | XM13: 3 | XN13: 3 | XO13: 2 | XP13: 1 | XQ13: 3 | XR13: 2 | XS13: 2 | XT13: 2 | XU13: 2 | XW13: 3 | XY13: 1 | XZ13: 3 | YA13: 2 | YB13: 3 | YC13: 2 | YD13: 3 | YE13: 3 | YF13: 3 | YG13: 3 | YH13: 2 | YI13: 2 | YJ13: 3 | YK13: 3 | YL13: 3 | YM13: 1 | YN13: 1 | YP13: 2 | YQ13: 2 | YR13: 3 | YS13: 1 | YT13: 3 | YU13: 1 | YV13: 1 | YW13: 1 | YX13: 2 | YY13: 2 | YZ13: 2 | ZA13: 3 | ZB13: 3 | ZC13: 1
A14: Nome comercial | C14: 2,4 D; Aminol; DMA | D14: Epoxiconazol; Abacus; Ópera; Prospect | E14: Abamectina; Ampligo; Vertimec | F14: Nicossulfurom; Accent; Sanson; Stoy | G14: Metsulfurom-metílico; Accurate; Nufuron; Zartan | H14: Acefato; Acero; Orthene; Ace; Avant; Cefanol; Evolution; Orthene; Rapel | I14: Acefato; Acero; Orthene; Ace; Avant; Cefanol; Evolution; Orthene; Rapel | J14: Acefato; Acero; Orthene; Ace; Avant; Cefanol; Evolution; Orthene; Rapel | K14: Acetamiprido, Autêntico | L14: Acetacloro, Kadette; Surpass | M14: Acibenzolar-S-metílico; Bion | N14: Acifluorfem-sódico; Blazer | O14: Acrinatrina; Rufast | P14: Piraclostrobina; Acronis; Comet | Q14: Tiametoxam; Actara; Cruiser; Engeo | R14: Tiencarbazona; Adengo | S14: Linurom; Afalon | T14: Carfentrazona-etílica; Aurora; Rage; Savana; Affinity; Spotlight | U14: Afidopiropeno | V14: Azoxistrobina; Amistar; Elatus; Priori; Unizeb; Agria; Azimut; Priori Xtra; Tridium; Yoda | W14: Folpete; Folpan Agricur | X14: MCPA; Agritone | Y14: Alacloro; Alaclor; Laço | Z14: Alacloro; Alaclor; Laço | AA14: Benzovindiflupir; Alade | AB14: Alfa-Cipermetrina; Fastac | AC14: Fosetil; Aliette | AD14: Indaziflam; Alion; Metribuzin; Provence Total | AE14: Sulfometuron metílico; Ally | AF14: Clorantraniliprole; Altacor; Dermacor; Premio | AG14: Ciproconazol; Alto 100; Aproach; Artea; Sphere max; Verdadeiro | AH14: Metaflumizone; Alverde; Metaflimizona; Verismo | AI14: Cipermetrina; Ametista; Commanche; Fury; Hero | AJ14: Ametoctradina; Zampo | AK14: Ametrina; Ametrex; Gesapax; Herbipak | AL14: Ametrina; Ametrex; Gesapax; Herbipak | AM14: Amicarbazona; Dinamic | AN14: 2,4 D; Aminol; DMA | AO14: Aminopiralide; Tordon Ultra | AP14: Azoxistrobina; Amistar; Elatus; Priori; Unizeb; Agria; Azimut; Priori Xtra; Tridium; Yoda | AQ14: Amitraz | AR14: Abamectina; Ampligo; Vertimec | AS14: Imazamoxi; Amplo; Raptor | AT14: Tiram; Anchor; Rhodiauram; Vitavax | AU14: Propinebe; Antracol | AV14: Teflubenzurom; Antrimo; Imunit; Nomolt | AW14: Buprofezina; Applaud | AX14: Ciproconazol; Alto 100; Aproach; Artea; Sphere max; Verdadeiro | AY14: Picoxistrobina; Aproach Power | AZ14: Tepraloxidim; Aramo | BA14: Tricopir-butolítico; Arbust | BB14: Fluroxipir; Arreio | BC14: Ciproconazol; Alto 100; Aproach; Artea; Sphere max; Verdadeiro | BD14: Asulam; Asulox | BE14: Asulam; Asulox | BF14: Clorfuazurom; Atabron | BG14: Fluquinconazol; Atento | BH14: Atrazina; Primestra; Gesaprim; Atranex; Atrasimex; Coyote; Extrazin; Facero; Primagram Gold; Primaiz Gold; Primatop; Primóleo | BI14: Atrazina; Primestra; Gesaprim; Atranex; Atrasimex; Coyote; Extrazin; Facero; Primagram Gold; Primaiz Gold; Primatop; Primóleo | BJ14: Simazina; Atrasimex | BK14: Atrazina; Primestra; Gesaprim; Atranex; Atrasimex; Coyote; Extrazin; Facero; Primagram Gold; Primaiz Gold; Primatop; Primóleo | BL14: Iprodiona; Attic; Certus; Rovral | BM14: Profoxidim; Aura | BN14: Carfentrazona-etílica; Aurora; Rage; Savana; Affinity; Spotlight | BO14: Tebutiurom; Aval; Butiron; Lava; Spike | BP14: Acefato; Acero; Orthene; Ace; Avant; Cefanol; Evolution; Orthene; Rapel | BQ14: Indoxacarb; Avatar | BR14: Azadiractina; Azamax | BS14: Azadiractina; Azamax | BT14: Azimsulfurom; Gulliver | BU14: Azoxistrobina; Amistar; Elatus; Priori; Unizeb; Agria; Azimut; Priori Xtra; Tridium; Yoda | BV14: Azoxistrobina; Amistar; Elatus; Priori; Unizeb; Agria; Azimut; Priori Xtra; Tridium; Yoda | BW14: Bentazona; Basagran; Doble; Volt | BX14: Dazomete; Basamid | BY14: Triadimenol; Baytan; Photon | BZ14: Metomil; Bazuka; Brilhamte; Lannate | CA14: Flubendiamida; Belt | CB14: Mefentrifluconazol; Belyan | CC14: Benalaxil; Galben | CD14: Carbendazim; Derosal; Fungicarb; Tebuzin; Bendazol; Carben; Carbomax; Derox; | CE14: Ciantraniliprole; Benevia; Fortenza; Verimark | CF14: Benfuracarbe; Benforce; Pottente | CG14: Benfuracarbe; Benforce; Pottente | CH14: Bentazona; Basagran; Doble; Volt | CI14: Bentiavalicarbe isopropílico; Totalit | CJ14: Benzoato de emamectina; Proclaim | CK14: Benzovindiflupir; Alade | CL14: Beta-ciflutrina; Bulldock ; Turbo | CM14: Bicarbonato de potássio; Kaligreen | CN14: Bifentrina; Capture; Sperto; Talisman; Biflex; Bistar; Insemat; Starion; Talstar | CO14: Bifentrina; Capture; Sperto; Talisman; Biflex; Bistar; Insemat; Starion; Talstar | CP14: Triciclazol; Bim | CQ14: Acibenzolar-S-metílico; Bion | CR14: Bispirabaque; Riper | CS14: Bifentrina; Capture; Sperto; Talisman; Biflex; Bistar; Insemat; Starion; Talstar | CT14: Bistrifluron; Hanaro | CU14: Piriproxifem; Blade; Cordial; Privilege; Tiger | CV14: Acifluorfem-sódico; Blazer | CW14: Fenpropatrina; Bold; Danimen; Meothrin | CX14: Sulfentrazona; Boral; Kicker; Ponteiro; Solara | CY14: Boscalida; Boscalid; Cantus; Spot | CZ14: Boscalida; Boscalid; Cantus; Spot | DA14: Metomil; Bazuka; Brilhamte; Lannate | DB14: Bromacila; Krovar | DC14: Brometo de metila | DD14: Bromuconazol; Condor | DE14: Beta-ciflutrina; Bulldock ; Turbo | DF14: Metam-sódico; Bunema | DG14: Buprofezina; Applaud | DH14: Tebutiurom; Aval; Butiron; Lava; Spike | DI14: Cadusafós; Rugby | DJ14: Mesotriona; Calisto | DK14: Tiacloprido; Calypso | DL14: Picloram; Campestre | DM14: Boscalida; Boscalid; Cantus; Spot | DN14: Captana; Captan; Merpan; Orthocide | DO14: Captana; Captan; Merpan; Orthocide | DP14: Tiodicarbe; Captor; Futur; Larvim; Semevim | DQ14: Bifentrina; Capture; Sperto; Talisman; Biflex; Bistar; Insemat; Starion; Talstar | DR14: Carbaril; Sevin | DS14: Carbendazim; Derosal; Fungicarb; Tebuzin; Bendazol; Carben; Carbomax; Derox; | DT14: Carbendazim; Derosal; Fungicarb; Tebuzin; Bendazol; Carben; Carbomax; Derox; | DU14: Flonicamida; Carbine | DV14: Carbendazim; Derosal; Fungicarb; Tebuzin; Bendazol; Carben; Carbomax; Derox; | DW14: Carbossulfano; Marshal | DX14: Carboxina; Vitavax Thiram | DY14: Carfentrazona-etílica; Aurora; Rage; Savana; Affinity; Spotlight | DZ14: Cartape; Cartarys | EA14: Cartape; Cartarys | EB14: Flufenoxurom; Cascade | EC14: Casugamicina; Kasumin | ED14: Clorpirifós; Klorpan; Losban; Catcher; Nufos; Record; Vexter | EE14: Acefato; Acero; Orthene; Ace; Avant; Cefanol; Evolution; Orthene; Rapel | EF14: Flutriafol; Celeiro; Impact; Skip; Tasker; Tornado; Zoom | EG14: Fenamidona; Censor | EH14: Cletodim; Centurion; Poquer; Select | EI14: Tiofanato-metílico; Cercobin; Support; Topsin | EJ14: Clorotalonil; Cerconil; Cuprodil; Daconil; Glider; Zetanil; Dacobre; Dacostar; Funginil; Ichiban; Isatalonil; Totalit; Zetaran | EK14: Triflumurom; Certero; Thorn; Wasp | EL14: Iprodiona; Attic; Certus; Rovral | EM14: Tolfenpirade; Chaser | EN14: Pimetrozina; Chess | EO14: Ciantraniliprole; Benevia; Fortenza; Verimark | EP14: Ciazofamida; Hanami | EQ14: Ciclaniliprol; Hayate | ER14: Ciclossulfamurom; Invest | ES14: Fostiazato; Cierto | ET14: Ciflumetofen; Okay | EU14: Cimoxanil; Equation | EV14: Cipermetrina; Ametista; Commanche; Fury; Hero | EW14: Ciproconazol; Alto 100; Aproach; Artea; Sphere max; Verdadeiro | EX14: Ciprodinil; Truzon | EY14: Ciromazina; Trigard | EZ14: Clorimurom-etílico; Classic; Panzer; Twister; Clorim; Clorimuron; | FA14: Cletodim; Centurion; Poquer; Select | FB14: Clodinafope-Propargil; Topic | FC14: Clomazona; Reator | FD14: Cloransulam-metílico; Pacto | FE14: Clorantraniliprole; Altacor; Dermacor; Premio | FF14: Clorfenapir; Pirate | FG14: Clorfuazurom; Atabron | FH14: Cloridrato de propamocarbe; Infinito | FI14: Clorimurom-etílico; Classic; Panzer; Twister; Clorim; Clorimuron; | FJ14: Clorimurom-etílico; Classic; Panzer; Twister; Clorim; Clorimuron; | FK14: Clorimurom-etílico; Classic; Panzer; Twister; Clorim; Clorimuron; | FL14: Clorotalonil; Cerconil; Cuprodil; Daconil; Glider; Zetanil; Dacobre; Dacostar; Funginil; Ichiban; Isatalonil; Totalit; Zetaran | FM14: Clorpirifós; Klorpan; Losban; Catcher; Nufos; Record; Vexter | FN14: Clotianidina; Poncho | FO14: Piraclostrobina; Acronis; Comet | FP14: Cipermetrina; Ametista; Commanche; Fury; Hero | FQ14: Fluazinam; Completo; Frowncide | FR14: Bromuconazol; Condor | FS14: Imidacloprido; Connect; Cropstar; Sombrero | FT14: Hidróxido de cobre; Contact | FU14: Imazapir; Contain | FV14: Piriproxifem; Blade; Cordial; Privilege; Tiger | FW14: Terbufós; Counter | FX14: Atrazina; Primestra; Gesaprim; Atranex; Atrasimex; Coyote; Extrazin; Facero; Primagram Gold; Primaiz Gold; Primatop; Primóleo | FY14: Tebuconazol; Cronnos; Egan; Folicur; Fusão; Nativo; Tebuco | FZ14: Imidacloprido; Connect; Cropstar; Sombrero | GA14: Tiametoxam; Actara; Cruiser; Engeo | GB14: Clorotalonil; Cerconil; Cuprodil; Daconil; Glider; Zetanil; Dacobre; Dacostar; Funginil; Ichiban; Isatalonil; Totalit; Zetaran | GC14: Lufenuron; Curyom; Game; Match | GD14: Profenofós; Curyom | GE14: Clorotalonil; Cerconil; Cuprodil; Daconil; Glider; Zetanil; Dacobre; Dacostar; Funginil; Ichiban; Isatalonil; Totalit; Zetaran | GF14: Clorotalonil; Cerconil; Cuprodil; Daconil; Glider; Zetanil; Dacobre; Dacostar; Funginil; Ichiban; Isatalonil; Totalit; Zetaran | GG14: Clorotalonil; Cerconil; Cuprodil; Daconil; Glider; Zetanil; Dacobre; Dacostar; Funginil; Ichiban; Isatalonil; Totalit; Zetaran | GH14: Fenpropatrina; Bold; Danimen; Meothrin | GI14: Dazomete; Basamid | GJ14: Deltametrina; Decis; K-Obiol; K-Othrine | GK14: Ditianona; Delan | GL14: Deltametrina; Decis; K-Obiol; K-Othrine | GM14: Clorantraniliprole; Altacor; Dermacor; Premio | GN14: Carbendazim; Derosal; Fungicarb; Tebuzin; Bendazol; Carben; Carbomax; Derox; | GO14: Carbendazim; Derosal; Fungicarb; Tebuzin; Bendazol; Carben; Carbomax; Derox; | GP14: Diafentiuron; Polo | GQ14: Dibrometo de Diquate | GR14: Dicamba; Rainvel | GS14: Dicloreto de Paraquate; Gramoxone; Paraquat; Tocha | GT14: Diclosulam; Spider | GU14: Difenoconazol; Flair; Prisma; Score | GV14: Diflubenzurom; Diflumax; Dimilim | GW14: Diflubenzurom; Diflumax; Dimilim | GX14: Dimetoato; Dimexion | GY14: Dimetomorfe; Forum | GZ14: Dimetoato; Dimexion | HA14: Diflubenzurom; Diflumax; Dimilim | HB14: Amicarbazona; Dinamic | HC14: Dinofeturam; Maxsan | HD14: Diquate; Reglone | HE14: Diurom; Direx; Karmex | HF14: Mancozebe; Dithane; Mancozeb; Manzate; Ridomil | HG14: Ditianona; Delan | HH14: Diurom; Direx; Karmex | HI14: 2,4 D; Aminol; DMA | HJ14: Bentazona; Basagran; Doble; Volt | HK14: Dodina; Dodex | HL14: Dodina; Dodex | HM14: Lactofem; Drible; Naja | HN14: Metolacloro; Dual Gold; Sequence | HO14: Tebuconazol; Cronnos; Egan; Folicur; Fusão; Nativo; Tebuco | HP14: Azoxistrobina; Amistar; Elatus; Priori; Unizeb; Agria; Azimut; Priori Xtra; Tridium; Yoda | HQ14: Etofenproxi; Eleitto; Safety; Trebon | HR14: Tetraconazol; Eminent | HS14: Tiametoxam; Actara; Cruiser; Engeo | HT14: Espirodiclofeno; Envidor | HU14: Trifloxisulfuron; Envoke | HV14: Enxofre; Kumulus | HW14: Epoxiconazol; Abacus; Ópera; Prospect | HX14: Cimoxanil; Equation | HY14: Famoxadona; Equation | HZ14: Foransulfurom; Equip Plus | IA14: Pirimetanil; Erune | IB14: Esfenvalerato; Pirephos; Sumidan | IC14: Espinetoram; Exalt | ID14: Espinosade; Natular | IE14: Espirodiclofeno; Envidor | IF14: Espiromesifeno; Oberon | IG14: Etofenproxi; Eleitto; Safety; Trebon | IH14: Etoxazol; Smite | II14: Etoxissulfurom; Gladium | IJ14: Etridiazol; Terrazole | IK14: Acefato; Acero; Orthene; Ace; Avant; Cefanol; Evolution; Orthene; Rapel | IL14: Espinetoram; Exalt | IM14: Sulfoxaflor; Expedition | IN14: Atrazina; Primestra; Gesaprim; Atranex; Atrasimex; Coyote; Extrazin; Facero; Primagram Gold; Primaiz Gold; Primatop; Primóleo | IO14: Atrazina; Primestra; Gesaprim; Atranex; Atrasimex; Coyote; Extrazin; Facero; Primagram Gold; Primaiz Gold; Primatop; Primóleo | IP14: Quincloraque; Facet | IQ14: Famoxadona; Equation | IR14: Glufosinato de amônio; Fascinate; Finale; Liberty; Patrol | IS14: Alfa-Cipermetrina; Fastac | IT14: Fenamidona; Censor | IU14: Fenitrotiona; Sumifog; Sumigran; Sumithion | IV14: Fenoxaprop-P-ethyl; Podium; Rapsode; Selefen | IW14: Fenpirazamina; Prolectus | IX14: Fenpiroximato; Ortus | IY14: Fenpropatrina; Bold; Danimen; Meothrin | IZ14: Fenpropimorfe; Versatilis | JA14: Gama-Cialotrina; Fentrol; Stalion | JB14: Permetrina; Fersol | JC14: Glufosinato de amônio; Fascinate; Finale; Liberty; Patrol | JD14: Fipronil; Regente; Standak | JE14: Difenoconazol; Flair; Prisma; Score | JF14: Flazassulfurom; Katana | JG14: Fomesafem; Flex; Fusiflex | JH14: Trifloxistrobina; Flint | JI14: Flonicamida; Carbine | JJ14: Florpirauxifen-benzil; Gapper | JK14: Fluazifope-p-butil; Fusilade; Pilot | JL14: Fluazinam; Completo; Frowncide | JM14: Flubendiamida; Belt | JN14: Fludioxonil; Maxim XL | JO14: Flufenoxurom; Cascade | JP14: Flumetsulam; Prevaiil; Scorpion | JQ14: Flumicloraque-pentílico; Radiant; Resource | JR14: Flumioxazina; Flumyzin; Sumyzin; Zethamaxx | JS14: Flumioxazina; Flumyzin; Sumyzin; Zethamaxx | JT14: Fluopicolide; Xavante | JU14: Fluopiram; Verango Prime | JV14: Flupiradifurona; Sivanto | JW14: Fluquinconazol; Atento | JX14: Fluroxipir; Arreio | JY14: Flutolanil; Moncut | JZ14: Flutriafol; Celeiro; Impact; Skip; Tasker; Tornado; Zoom | KA14: Fluxapiroxade; Orkestra | KB14: Tebuconazol; Cronnos; Egan; Folicur; Fusão; Nativo; Tebuco | KC14: Folpete; Folpan Agricur | KD14: Folpete; Folpan Agricur | KE14: Fomesafem; Flex; Fusiflex | KF14: Foransulfurom; Equip Plus | KG14: Ciantraniliprole; Benevia; Fortenza; Verimark | KH14: Dimetomorfe; Forum | KI14: Fosetil; Aliette | KJ14: Fosfeto de alúminio; Gastoxin | KK14: Fosmete; Imidam | KL14: Fostiazato; Cierto | KM14: Protioconazol; Fox | KN14: Fluazinam; Completo; Frowncide | KO14: Carbendazim; Derosal; Fungicarb; Tebuzin; Bendazol; Carben; Carbomax; Derox; | KP14: Clorotalonil; Cerconil; Cuprodil; Daconil; Glider; Zetanil; Dacobre; Dacostar; Funginil; Ichiban; Isatalonil; Totalit; Zetaran | KQ14: Cipermetrina; Ametista; Commanche; Fury; Hero | KR14: Tebuconazol; Cronnos; Egan; Folicur; Fusão; Nativo; Tebuco | KS14: Fomesafem; Flex; Fusiflex | KT14: Fluazifope-p-butil; Fusilade; Pilot | KU14: Tiodicarbe; Captor; Futur; Larvim; Semevim | KV14: Benalaxil; Galben | KW14: Novalurom; Gallaxy; Rimon | KX14: Gama-Cialotrina; Fentrol; Stalion | KY14: Lufenuron; Curyom; Game; Match | KZ14: Florpirauxifen-benzil; Gapper | LA14: Fosfeto de alúminio; Gastoxin | LB14: Prometrina; Gesagard | LC14: Ametrina; Ametrex; Gesapax; Herbipak | LD14: Atrazina; Primestra; Gesaprim; Atranex; Atrasimex; Coyote; Extrazin; Facero; Primagram Gold; Primaiz Gold; Primatop; Primóleo | LE14: Etoxissulfurom; Gladium | LF14: Clorotalonil; Cerconil; Cuprodil; Daconil; Glider; Zetanil; Dacobre; Dacostar; Funginil; Ichiban; Isatalonil; Totalit; Zetaran | LG14: Glifosato; Glyphotal; Roundup; Trop | LH14: Glufosinato de amônio; Fascinate; Finale; Liberty; Patrol | LI14: Glifosato; Glyphotal; Roundup; Trop | LJ14: Oxyfluorfem; Goal | LK14: Dicloreto de Paraquate; Gramoxone; Paraquat; Tocha | LL14: Pirimifós-metílico; Graolin | LM14: Azimsulfurom; Gulliver | LN14: Halauxifen-metíl; Texaro | LO14: Halossulfurom-metílico; Sempra | LP14: Haloxifope-P-metílico; Verdict-max | LQ14: Ciazofamida; Hanami | LR14: Bistrifluron; Hanaro | LS14: Ciclaniliprol; Hayate | LT14: Saflufenacil; Heat | LU14: Pendimetalina; Herbadox | LV14: Ametrina; Ametrex; Gesapax; Herbipak | LW14: Cipermetrina; Ametista; Commanche; Fury; Hero | LX14: Hexazinona; Hexanil; Magnus; Token | LY14: Hexazinona; Hexanil; Magnus; Token | LZ14: Hexitiazox; Talento | MA14: Hidróxido de cobre; Contact | MB14: Hidróxido de Fentina; Mertin | MC14: Iodossulfurom-metílico-sódico; Hussar | MD14: Clorotalonil; Cerconil; Cuprodil; Daconil; Glider; Zetanil; Dacobre; Dacostar; Funginil; Ichiban; Isatalonil; Totalit; Zetaran | ME14: Imazalil; Imazacure; Magnate | MF14: Imazalil; Imazacure; Magnate | MG14: Imazamoxi; Amplo; Raptor | MH14: Imazapique; Only | MI14: Imazapir; Contain | MJ14: Imazaquim; Oneshot | MK14: Imazetapir; Zaphir | ML14: Imibenconazol; Manage | MM14: Imidacloprido; Connect; Cropstar; Sombrero | MN14: Fosmete; Imidam | MO14: Flutriafol; Celeiro; Impact; Skip; Tasker; Tornado; Zoom | MP14: Impirfluxam; Sugoy | MQ14: Teflubenzurom; Antrimo; Imunit; Nomolt | MR14: Indaziflam; Alion; Metribuzin; Provence Total | MS14: Indoxacarb; Avatar | MT14: Cloridrato de propamocarbe; Infinito | MU14: Bifentrina; Capture; Sperto; Talisman; Biflex; Bistar; Insemat; Starion; Talstar | MV14: Metoxifenozida; Intrepid | MW14: Ciclossulfamurom; Invest | MX14: Iodossulfurom-metílico-sódico; Hussar | MY14: Ipconazol; Rancona | MZ14: Iprodiona; Attic; Certus; Rovral | NA14: Clorotalonil; Cerconil; Cuprodil; Daconil; Glider; Zetanil; Dacobre; Dacostar; Funginil; Ichiban; Isatalonil; Totalit; Zetaran | NB14: Isofetamida; Kenja | NC14: Isoxaflutol; Provence | ND14: Propiconazol; Juno; Stratego; Tilt | NE14: Deltametrina; Decis; K-Obiol; K-Othrine | NF14: Deltametrina; Decis; K-Obiol; K-Othrine | NG14: Acetacloro, Kadette; Surpass | NH14: Bicarbonato de potássio; Kaligreen | NI14: Lambda-Cialotrina; Karate zeon | NJ14: Diurom; Direx; Karmex | NK14: Casugamicina; Kasumin | NL14: Flazassulfurom; Katana | NM14: Orthosulfamuron; Kelion | NN14: Isofetamida; Kenja | NO14: Sulfentrazona; Boral; Kicker; Ponteiro; Solara | NP14: Clorpirifós; Klorpan; Losban; Catcher; Nufos; Record; Vexter | NQ14: Bromacila; Krovar | NR14: Enxofre; Kumulus | NS14: Alacloro; Alaclor; Laço | NT14: Lactofem; Drible; Naja | NU14: Lambda-Cialotrina; Karate zeon | NV14: Metomil; Bazuka; Brilhamte; Lannate | NW14: Tiodicarbe; Captor; Futur; Larvim; Semevim | NX14: Tebutiurom; Aval; Butiron; Lava; Spike | NY14: Glufosinato de amônio; Fascinate; Finale; Liberty; Patrol | NZ14: Linurom; Afalon | OA14: Clorpirifós; Klorpan; Losban; Catcher; Nufos; Record; Vexter | OB14: Lufenuron; Curyom; Game; Match | OC14: Imazalil; Imazacure; Magnate | OD14: Hexazinona; Hexanil; Magnus; Token | OE14: Malation; Nordick | OF14: Imibenconazol; Manage | OG14: Mancozebe; Dithane; Mancozeb; Manzate; Ridomil | OH14: Mancozebe; Dithane; Mancozeb; Manzate; Ridomil | OI14: Mandipropamida; Revus | OJ14: Mancozebe; Dithane; Mancozeb; Manzate; Ridomil | OK14: Carbossulfano; Marshal | OL14: Lufenuron; Curyom; Game; Match | OM14: Metalaxil-M; Maxim | ON14: Fludioxonil; Maxim XL | OO14: Dinofeturam; Maxsan | OP14: MCPA; Agritone | OQ14: Mefentrifluconazol; Belyan | OR14: Fenpropatrina; Bold; Danimen; Meothrin | OS14: Captana; Captan; Merpan; Orthocide | OT14: Hidróxido de Fentina; Mertin | OU14: Mesotriona; Calisto | OV14: Metaflumizone; Alverde; Metaflimizona; Verismo | OW14: Metaflumizone; Alverde; Metaflimizona; Verismo | OX14: Metalaxil-M; Maxim | OY14: Metam-sódico; Bunema | OZ14: Metconazol; Ópera Ultra | PA14: Metidationa; Suprathion | PB14: Metiram; Polyram | PC14: Metolacloro; Dual Gold; Sequence | PD14: Metomil; Bazuka; Brilhamte; Lannate | PE14: Metoxifenozida; Intrepid | PF14: Metribuzim; Sencor; Tenace; Unimark | PG14: Indaziflam; Alion; Metribuzin; Provence Total | PH14: Metsulfurom-metílico; Accurate; Nufuron; Zartan | PI14: Miclobutanil; Systhane | PJ14: Tebufenozida; Mimic | PK14: Pidiflumetofen; Miravis | PL14: Sulfluramida; Mirex S | PM14: Pencicurom; Moceren | PN14: Flutolanil; Moncut | PO14: MSMA; Volcane | PP14: Lactofem; Drible; Naja | PQ14: Tebuconazol; Cronnos; Egan; Folicur; Fusão; Nativo; Tebuco | PR14: Espinosade; Natular | PS14: Nicossulfurom; Accent; Sanson; Stoy | PT14: Teflubenzurom; Antrimo; Imunit; Nomolt | PU14: Malation; Nordick | PV14: Novalurom; Gallaxy; Rimon | PW14: Clorpirifós; Klorpan; Losban; Catcher; Nufos; Record; Vexter | PX14: Metsulfurom-metílico; Accurate; Nufuron; Zartan | PY14: Espiromesifeno; Oberon | PZ14: Ciflumetofen; Okay | QA14: Propargito; Omite | QB14: Imazaquim; Oneshot | QC14: Imazapique; Only | QD14: Epoxiconazol; Abacus; Ópera; Prospect | QE14: Metconazol; Ópera Ultra | QF14: Fluxapiroxade; Orkestra | QG14: Acefato; Acero; Orthene; Ace; Avant; Cefanol; Evolution; Orthene; Rapel | QH14: Captana; Captan; Merpan; Orthocide | QI14: Orthosulfamuron; Kelion | QJ14: Fenpiroximato; Ortus | QK14: Oxadiazona; Ronstar | QL14: Oxatiapiprolina; Zorvec | QM14: Oxicloreto de cobre | QN14: Oxyfluorfem; Goal | QO14: Cloransulam-metílico; Pacto | QP14: Quizalofope-P-tefurílico; Panther | QQ14: Clorimurom-etílico; Classic; Panzer; Twister; Clorim; Clorimuron; | QR14: Dicloreto de Paraquate; Gramoxone; Paraquat; Tocha | QS14: Glufosinato de amônio; Fascinate; Finale; Liberty; Patrol | QT14: Pencicurom; Moceren | QU14: Pendimetalina; Herbadox | QV14: Penoxsulam; Raster | QW14: Permetrina; Fersol | QX14: Triadimenol; Baytan; Photon | QY14: Picloram; Campestre | QZ14: Picoxistrobina; Aproach Power | RA14: Pidiflumetofen; Miravis | RB14: Fluazifope-p-butil; Fusilade; Pilot | RC14: Pimetrozina; Chess | RD14: Piraclostrobina; Acronis; Comet | RE14: Clorfenapir; Pirate | RF14: Esfenvalerato; Pirephos; Sumidan | RG14: Piridabem; Sanmite | RH14: Pirimetanil; Erune | RI14: Pirimifós-metílico; Graolin | RJ14: Piriproxifem; Blade; Cordial; Privilege; Tiger | RK14: Piritiobaque-sódico; Staple | RL14: Piroxassulfona; Yamato | RM14: Setoxidim; Poast | RN14: Fenoxaprop-P-ethyl; Podium; Rapsode; Selefen | RO14: Diafentiuron; Polo | RP14: Metiram; Polyram | RQ14: Clotianidina; Poncho | RR14: Sulfentrazona; Boral; Kicker; Ponteiro; Solara | RS14: Cletodim; Centurion; Poquer; Select | RT14: Benfuracarbe; Benforce; Pottente | RU14: Trifluralina; Premelin | RV14: Clorantraniliprole; Altacor; Dermacor; Premio | RW14: Triticonazol; Premis | RX14: Flumetsulam; Prevaiil; Scorpion | RY14: Atrazina; Primestra; Gesaprim; Atranex; Atrasimex; Coyote; Extrazin; Facero; Primagram Gold; Primaiz Gold; Primatop; Primóleo | RZ14: Atrazina; Primestra; Gesaprim; Atranex; Atrasimex; Coyote; Extrazin; Facero; Primagram Gold; Primaiz Gold; Primatop; Primóleo | SA14: Atrazina; Primestra; Gesaprim; Atranex; Atrasimex; Coyote; Extrazin; Facero; Primagram Gold; Primaiz Gold; Primatop; Primóleo | SB14: Atrazina; Primestra; Gesaprim; Atranex; Atrasimex; Coyote; Extrazin; Facero; Primagram Gold; Primaiz Gold; Primatop; Primóleo | SC14: Atrazina; Primestra; Gesaprim; Atranex; Atrasimex; Coyote; Extrazin; Facero; Primagram Gold; Primaiz Gold; Primatop; Primóleo | SD14: Azoxistrobina; Amistar; Elatus; Priori; Unizeb; Agria; Azimut; Priori Xtra; Tridium; Yoda | SE14: Azoxistrobina; Amistar; Elatus; Priori; Unizeb; Agria; Azimut; Priori Xtra; Tridium; Yoda | SF14: Difenoconazol; Flair; Prisma; Score | SG14: Piriproxifem; Blade; Cordial; Privilege; Tiger | SH14: Procimidona; Rotaxil; Sumiguard; Sumilex | SI14: Benzoato de emamectina; Proclaim | SJ14: Profenofós; Curyom | SK14: Profoxidim; Aura | SL14: Fenpirazamina; Prolectus | SM14: Prometrina; Gesagard | SN14: Propanil; Stam | SO14: Propargito; Omite | SP14: Propiconazol; Juno; Stratego; Tilt | SQ14: Propinebe; Antracol | SR14: Epoxiconazol; Abacus; Ópera; Prospect | SS14: Protioconazol; Fox | ST14: Isoxaflutol; Provence | SU14: Indaziflam; Alion; Metribuzin; Provence Total | SV14: Quincloraque; Facet | SW14: Quizalofop-P-ethyl; Targa | SX14: Quizalofope-P-tefurílico; Panther | SY14: Flumicloraque-pentílico; Radiant; Resource | SZ14: Carfentrazona-etílica; Aurora; Rage; Savana; Affinity; Spotlight | TA14: Dicamba; Rainvel | TB14: Ipconazol; Rancona | TC14: Acefato; Acero; Orthene; Ace; Avant; Cefanol; Evolution; Orthene; Rapel | TD14: Fenoxaprop-P-ethyl; Podium; Rapsode; Selefen | TE14: Imazamoxi; Amplo; Raptor | TF14: Penoxsulam; Raster | TG14: Clomazona; Reator | TH14: Clorpirifós; Klorpan; Losban; Catcher; Nufos; Record; Vexter | TI14: Fipronil; Regente; Standak | TJ14: Diquate; Reglone | TK14: Flumicloraque-pentílico; Radiant; Resource | TL14: Mandipropamida; Revus | TM14: Tiram; Anchor; Rhodiauram; Vitavax | TN14: Mancozebe; Dithane; Mancozeb; Manzate; Ridomil | TO14: Novalurom; Gallaxy; Rimon | TP14: Bispirabaque; Riper | TQ14: Oxadiazona; Ronstar | TR14: Procimidona; Rotaxil; Sumiguard; Sumilex | TS14: Glifosato; Glyphotal; Roundup; Trop | TT14: Iprodiona; Attic; Certus; Rovral | TU14: Acrinatrina; Rufast | TV14: Rugby | TW14: Etofenproxi; Eleitto; Safety; Trebon | TX14: Saflufenacil; Heat | TY14: Piridabem; Sanmite | TZ14: Nicossulfurom; Accent; Sanson; Stoy | UA14: Carfentrazona-etílica; Aurora; Rage; Savana; Affinity; Spotlight | UB14: Difenoconazol; Flair; Prisma; Score | UC14: Flumetsulam; Prevaiil; Scorpion | UD14: Cletodim; Centurion; Poquer; Select | UE14: Fenoxaprop-P-ethyl; Podium; Rapsode; Selefen | UF14: Tiodicarbe; Captor; Futur; Larvim; Semevim | UG14: Halossulfurom-metílico; Sempra | UH14: Metribuzim; Sencor; Tenace; Unimark | UI14: Metolacloro; Dual Gold; Sequence | UJ14: Setoxidim; Poast | UK14: Carbaril; Sevin | UL14: Simazina; Atrasimex | UM14: Flupiradifurona; Sivanto | UN14: Flutriafol; Celeiro; Impact; Skip; Tasker; Tornado; Zoom | UO14: Etoxazol; Smite | UP14: Tembotriona; Soberan | UQ14: Sulfentrazona; Boral; Kicker; Ponteiro; Solara | UR14: Imidacloprido; Connect; Cropstar; Sombrero | US14: Bifentrina; Capture; Sperto; Talisman; Biflex; Bistar; Insemat; Starion; Talstar | UT14: Ciproconazol; Alto 100; Aproach; Artea; Sphere max; Verdadeiro | UU14: Diclosulam; Spider | UV14: Tebutiurom; Aval; Butiron; Lava; Spike | UW14: Boscalida; Boscalid; Cantus; Spot | UX14: Carfentrazona-etílica; Aurora; Rage; Savana; Affinity; Spotlight | UY14: Gama-Cialotrina; Fentrol; Stalion | UZ14: Propanil; Stam | VA14: Fipronil; Regente; Standak | VB14: Piritiobaque-sódico; Staple | VC14: Bifentrina; Capture; Sperto; Talisman; Biflex; Bistar; Insemat; Starion; Talstar | VD14: Nicossulfurom; Accent; Sanson; Stoy | VE14: Propiconazol; Juno; Stratego; Tilt | VF14: Impirfluxam; Sugoy | VG14: Sulfato de cobre | VH14: Sulfentrazona; Boral; Kicker; Ponteiro; Solara | VI14: Sulfluramida; Mirex S | VJ14: Sulfometuron metílico; Ally | VK14: Sulfoxaflor; Expedition | VL14: Esfenvalerato; Pirephos; Sumidan | VM14: Fenitrotiona; Sumifog; Sumigran; Sumithion | VN14: Fenitrotiona; Sumifog; Sumigran; Sumithion | VO14: Procimidona; Rotaxil; Sumiguard; Sumilex | VP14: Procimidona; Rotaxil; Sumiguard; Sumilex | VQ14: Fenitrotiona; Sumifog; Sumigran; Sumithion | VR14: Flumioxazina; Flumyzin; Sumyzin; Zethamaxx | VS14: Tiofanato-metílico; Cercobin; Support; Topsin | VT14: Metidationa; Suprathion | VU14: Acetacloro, Kadette; Surpass | VV14: Miclobutanil; Systhane | VW14: Hexitiazox; Talento | VX14: Bifentrina; Capture; Sperto; Talisman; Biflex; Bistar; Insemat; Starion; Talstar | VY14: Bifentrina; Capture; Sperto; Talisman; Biflex; Bistar; Insemat; Starion; Talstar | VZ14: Quizalofop-P-ethyl; Targa | WA14: Flutriafol; Celeiro; Impact; Skip; Tasker; Tornado; Zoom | WB14: Tebuconazol; Cronnos; Egan; Folicur; Fusão; Nativo; Tebuco | WC14: Tebuconazol; Cronnos; Egan; Folicur; Fusão; Nativo; Tebuco | WD14: Tebufenozida; Mimic | WE14: Tebutiurom; Aval; Butiron; Lava; Spike | WF14: Carbendazim; Derosal; Fungicarb; Tebuzin; Bendazol; Carben; Carbomax; Derox; | WG14: Teflubenzurom; Antrimo; Imunit; Nomolt | WH14: Tembotriona; Soberan | WI14: Metribuzim; Sencor; Tenace; Unimark | WJ14: Tepraloxidim; Aramo | WK14: Terbufós; Counter | WL14: Terbutilazina; Terbumax | WM14: Terbutilazina; Terbumax | WN14: Etridiazol; Terrazole | WO14: Tetraconazol; Eminent | WP14: Halauxifen-metíl; Texaro | WQ14: Triflumurom; Certero; Thorn; Wasp | WR14: Tiabendazol; Tecto | WS14: Tiacloprido; Calypso | WT14: Tiametoxam; Actara; Cruiser; Engeo | WU14: Tiencarbazona; Adengo | WV14: Piriproxifem; Blade; Cordial; Privilege; Tiger | WW14: Propiconazol; Juno; Stratego; Tilt | WX14: Tiodicarbe; Captor; Futur; Larvim; Semevim | WY14: Tiofanato-metílico; Cercobin; Support; Topsin | WZ14: Tiram; Anchor; Rhodiauram; Vitavax | XA14: Dicloreto de Paraquate; Gramoxone; Paraquat; Tocha | XB14: Hexazinona; Hexanil; Magnus; Token | XC14: Tolfenpirade; Chaser | XD14: Clodinafope-Propargil; Topic | XE14: Tiofanato-metílico; Cercobin; Support; Topsin | XF14: Aminopiralide; Tordon Ultra | XG14: Flutriafol; Celeiro; Impact; Skip; Tasker; Tornado; Zoom | XH14: Bentiavalicarbe isopropílico; Totalit | XI14: Clorotalonil; Cerconil; Cuprodil; Daconil; Glider; Zetanil; Dacobre; Dacostar; Funginil; Ichiban; Isatalonil; Totalit; Zetaran | XJ14: Etofenproxi; Eleitto; Safety; Trebon | XK14: Triadimenol; Baytan; Photon | XL14: Triciclazol; Bim | XM14: Tricopir-butolítico; Arbust | XN14: Azoxistrobina; Amistar; Elatus; Priori; Unizeb; Agria; Azimut; Priori Xtra; Tridium; Yoda | XO14: Triflumizol; Trifimine | XP14: Trifloxistrobina; Flint | XQ14: Trifloxisulfuron; Envoke | XR14: Triflumizol; Trifimine | XS14: Triflumurom; Certero; Thorn; Wasp | XT14: Trifluralina; Premelin | XU14: Ciromazina; Trigard | XV14: Trinexapaque-etílico; Trix | XW14: Triticonazol; Premis | XX14: Trinexapaque-etílico; Trix | XY14: Glifosato; Glyphotal; Roundup; Trop | XZ14: Ciprodinil; Truzon | YA14: Beta-ciflutrina; Bulldock ; Turbo | YB14: Clorimurom-etílico; Classic; Panzer; Twister; Clorim; Clorimuron; | YC14: Metribuzim; Sencor; Tenace; Unimark | YD14: Azoxistrobina; Amistar; Elatus; Priori; Unizeb; Agria; Azimut; Priori Xtra; Tridium; Yoda | YE14: Fluopiram; Verango Prime | YF14: Ciproconazol; Alto 100; Aproach; Artea; Sphere max; Verdadeiro | YG14: Haloxifope-P-metílico; Verdict-max | YH14: Ciantraniliprole; Benevia; Fortenza; Verimark | YI14: Metaflumizone; Alverde; Metaflimizona; Verismo | YJ14: Fenpropimorfe; Versatilis | YK14: Abamectina; Ampligo; Vertimec | YL14: Clorpirifós; Klorpan; Losban; Catcher; Nufos; Record; Vexter | YM14: Tiram; Anchor; Rhodiauram; Vitavax | YN14: Carboxina; Vitavax Thiram | YO14: MSMA; Volcane | YP14: Bentazona; Basagran; Doble; Volt | YQ14: Triflumurom; Certero; Thorn; Wasp | YR14: Fluopicolide; Xavante | YS14: Piroxassulfona; Yamato | YT14: Azoxistrobina; Amistar; Elatus; Priori; Unizeb; Agria; Azimut; Priori Xtra; Tridium; Yoda | YU14: Ametoctradina; Zampo | YV14: Imazetapir; Zaphir | YW14: Metsulfurom-metílico; Accurate; Nufuron; Zartan | YX14: Clorotalonil; Cerconil; Cuprodil; Daconil; Glider; Zetanil; Dacobre; Dacostar; Funginil; Ichiban; Isatalonil; Totalit; Zetaran | YY14: Clorotalonil; Cerconil; Cuprodil; Daconil; Glider; Zetanil; Dacobre; Dacostar; Funginil; Ichiban; Isatalonil; Totalit; Zetaran | YZ14: Flumioxazina; Flumyzin; Sumyzin; Zethamaxx | ZA14: Flutriafol; Celeiro; Impact; Skip; Tasker; Tornado; Zoom | ZB14: Oxatiapiprolina; Zorvec | ZC14: Zoxamida
A15: EIQ (<58,33; 58,33 - 94,46; > 94,46) | C15: 38.7 | D15: 94.3 | E15: 108.2 | F15: 28.7 | G15: 32.0 | H15: 47.3 | I15: 47.3 | J15: 47.3 | K15: 37.7 | L15: 32.7 | M15: 52.7 | N15: 31.7 | O15: 50.0 | P15: 67.0 | Q15: 34.3 | R15: 52.3 | S15: 56.7 | T15: 36.0 | U15: 34.0 | V15: 63.0 | W15: 48.7 | X15: 38.7 | Y15: 19.3 | Z15: 19.3 | AA15: 70.7 | AB15: 63.0 | AC15: 37.7 | AD15: 39.2 | AE15: 25.7 | AF15: 42.0 | AG15: 89.3 | AH15: 50.7 | AI15: 63.0 | AJ15: 39.3 | AK15: 21.5 | AL15: 21.5 | AN15: 38.7 | AO15: 54.5 | AP15: 63.0 | AQ15: 56.3 | AR15: 108.2 | AS15: 75.3 | AT15: 39.0 | AU15: 32.2 | AV15: 74.8 | AW15: 54.7 | AX15: 89.3 | AY15: 59.0 | AZ15: 40.7 | BA15: 48.2 | BB15: 42.7 | BC15: 89.3 | BD15: 41.0 | BE15: 41.0 | BF15: 30.8 | BH15: 50.0 | BI15: 50.0 | BJ15: 32.3 | BK15: 50.0 | BL15: 55.0 | BN15: 36.0 | BO15: 51.3 | BP15: 47.3 | BQ15: 65.3 | BR15: 38.7 | BS15: 38.7 | BT15: 36.3 | BU15: 63.0 | BV15: 63.0 | BW15: 25.0 | BX15: 40.3 | BY15: 91.3 | BZ15: 53.8 | CA15: 60.5 | CB15: 86.0 | CC15: 41.3 | CD15: 60.7 | CE15: 57.8 | CF15: 70.0 | CG15: 70.0 | CH15: 25.0 | CI15: 43.0 | CJ15: 64.0 | CK15: 70.7 | CL15: 50.7 | CM15: 22.0 | CN15: 69.5 | CO15: 69.5 | CP15: 47.3 | CQ15: 52.7 | CR15: 23.0 | CS15: 69.5 | CT15: 30.7 | CU15: 59.7 | CV15: 31.7 | CW15: 51.0 | CX15: 51.0 | CY15: 74.7 | CZ15: 74.7 | DA15: 53.8 | DB15: 33.3 | DC15: 53.6 | DD15: 75.7 | DE15: 50.7 | DF15: 34.7 | DG15: 54.7 | DH15: 51.3 | DI15: 143.2 | DJ15: 44.0 | DK15: 54.5 | DL15: 50.3 | DM15: 74.7 | DN15: 51.2 | DO15: 51.2 | DP15: 74.0 | DQ15: 69.5 | DR15: 58.0 | DS15: 60.7 | DT15: 60.7 | DU15: 33.0 | DV15: 60.7 | DW15: 68.7 | DX15: 40.7 | DY15: 36.0 | EB15: 70.7 | EC15: 43.0 | ED15: 87.2 | EE15: 47.3 | EF15: 118.0 | EG15: 37.7 | EH15: 37.3 | EI15: 62.3 | EJ15: 47.3 | EK15: 56.7 | EL15: 55.0 | EM15: 42.7 | EN15: 31.7 | EO15: 57.8 | EP15: 50.7 | EQ15: 101.7 | ER15: 26.7 | ES15: 49.0 | ET15: 39.0 | EU15: 33.0 | EV15: 63.0 | EW15: 89.3 | EX15: 56.7 | EY15: 61.8 | EZ15: 36.2 | FA15: 37.3 | FB15: 29.3 | FC15: 34.0 | FD15: 22.7 | FE15: 42.0 | FG15: 30.8 | FH15: 64.0 | FI15: 36.2 | FJ15: 36.2 | FK15: 36.2 | FL15: 47.3 | FM15: 87.2 | FN15: 115.3 | FO15: 67.0 | FP15: 63.0 | FQ15: 56.7 | FR15: 75.7 | FS15: 70.0 | FT15: 50.0 | FU15: 22.3 | FV15: 59.7 | FW15: 102.7 | FX15: 50.0 | FY15: 50.5 | FZ15: 70.0 | GA15: 34.3 | GB15: 47.3 | GC15: 49.7 | GD15: 50.0 | GE15: 47.3 | GF15: 47.3 | GG15: 47.3 | GH15: 51.0 | GI15: 40.3 | GJ15: 67.3 | GK15: 55.0 | GL15: 67.3 | GM15: 42.0 | GN15: 60.7 | GO15: 60.7 | GP15: 33.0 | GQ15: 47.0 | GR15: 42.5 | GS15: 54.3 | GT15: 29.7 | GU15: 64.7 | GV15: 65.3 | GW15: 65.3 | GX15: 52.5 | GY15: 56.0 | GZ15: 52.5 | HA15: 65.3 | HC15: 90.7 | HD15: 52.3 | HE15: 46.2 | HF15: 46.0 | HG15: 55.0 | HH15: 46.2 | HI15: 38.7 | HJ15: 25.0 | HK15: 39.7 | HL15: 39.7 | HN15: 36.2 | HO15: 50.5 | HP15: 63.0 | HQ15: 40.3 | HR15: 59.0 | HS15: 34.3 | HT15: 46.0 | HU15: 32.7 | HV15: 29.7 | HW15: 94.3 | HX15: 33.0 | HY15: 88.0 | HZ15: 29.0 | IA15: 54.3 | IB15: 56.0 | IC15: 45.7 | ID15: 68.3 | IE15: 46.0 | IF15: 40.7 | IG15: 40.3 | IH15: 36.7 | II15: 35.0 | IK15: 47.3 | IL15: 45.7 | IM15: 44.7 | IN15: 50.0 | IO15: 50.0 | IP15: 45.3 | IQ15: 88.0 | IR15: 27.7 | IS15: 63.0 | IT15: 37.7 | IU15: 89.3 | IV15: 30.3 | IW15: 52.0 | IX15: 57.0 | IY15: 51.0 | IZ15: 36.7 | JA15: 78.8 | JB15: 66.3 | JC15: 27.7 | JD15: 80.0 | JE15: 64.7 | JF15: 52.3 | JG15: 49.2 | JH15: 54.0 | JI15: 33.0 | JJ15: 32.2 | JK15: 36.7 | JL15: 56.7 | JM15: 60.5 | JN15: 55.0 | JO15: 70.7 | JP15: 23.7 | JQ15: 23.3 | JR15: 46.3 | JS15: 46.3 | JT15: 64.3 | JU15: 65.0 | JV15: 69.0 | JX15: 42.7 | JY15: 57.3 | JZ15: 118.0 | KA15: 65.0 | KB15: 50.5 | KC15: 48.7 | KD15: 48.7 | KE15: 49.2 | KF15: 29.0 | KG15: 57.8 | KH15: 56.0 | KI15: 37.7 | KK15: 47.7 | KL15: 49.0 | KM15: 49.3 | KN15: 56.7 | KO15: 60.7 | KP15: 47.3 | KQ15: 63.0 | KR15: 50.5 | KS15: 49.2 | KT15: 36.7 | KU15: 74.0 | KV15: 41.3 | KW15: 36.7 | KX15: 78.8 | KY15: 49.7 | KZ15: 32.2 | LB15: 50.7 | LC15: 21.5 | LD15: 50.0 | LE15: 35.0 | LF15: 47.3 | LG15: 41.3 | LH15: 27.7 | LI15: 41.3 | LJ15: 34.0 | LK15: 54.3 | LL15: 52.7 | LM15: 36.3 | LN15: 42.7 | LO15: 29.3 | LP15: 19.3 | LQ15: 50.7 | LR15: 30.7 | LS15: 101.7 | LT15: 37.0 | LU15: 68.7 | LV15: 21.5 | LW15: 63.0 | LZ15: 54.0 | MA15: 50.0 | MB15: 69.8 | MC15: 40.7 | MD15: 47.3 | ME15: 80.0 | MF15: 80.0 | MG15: 75.3 | MI15: 22.3 | MJ15: 62.7 | MK15: 25.5 | ML15: 27.7 | MM15: 70.0 | MN15: 47.7 | MO15: 118.0 | MQ15: 74.8 | MR15: 39.2 | MS15: 65.3 | MT15: 64.0 | MU15: 69.5 | MV15: 52.7 | MW15: 26.7 | MX15: 40.7 | MY15: 64.3 | MZ15: 55.0 | NA15: 47.3 | NB15: 49.5 | NC15: 26.3 | ND15: 61.3 | NE15: 67.3 | NF15: 67.3 | NG15: 32.7 | NH15: 22.0 | NI15: 69.8 | NJ15: 46.2 | NK15: 43.0 | NL15: 52.3 | NM15: 41.0 | NN15: 49.5 | NO15: 51.0 | NP15: 87.2 | NQ15: 33.3 | NR15: 29.7 | NS15: 19.3 | NU15: 69.8 | NV15: 53.8 | NW15: 74.0 | NX15: 51.3 | NY15: 27.7 | NZ15: 56.7 | OA15: 87.2 | OB15: 49.7 | OC15: 80.0 | OE15: 40.0 | OF15: 27.7 | OG15: 46.0 | OH15: 46.0 | OI15: 26.3 | OJ15: 46.0 | OK15: 68.7 | OL15: 49.7 | OM15: 32.0 | ON15: 55.0 | OO15: 90.7 | OP15: 38.7 | OQ15: 86.0 | OR15: 51.0 | OS15: 51.2 | OT15: 69.8 | OU15: 44.0 | OV15: 50.7 | OW15: 50.7 | OX15: 32.0 | OY15: 34.7 | OZ15: 62.0 | PA15: 77.3 | PB15: 46.7 | PC15: 36.2 | PD15: 53.8 | PE15: 52.7 | PF15: 44.7 | PG15: 39.2 | PH15: 32.0 | PI15: 76.7 | PJ15: 43.7 | PK15: 63.0 | PM15: 35.3 | PN15: 57.3 | PQ15: 50.5 | PR15: 68.3 | PS15: 28.7 | PT15: 74.8 | PU15: 40.0 | PV15: 36.7 | PW15: 87.2 | PX15: 32.0 | PY15: 40.7 | PZ15: 39.0 | QA15: 61.0 | QB15: 62.7 | QD15: 94.3 | QE15: 62.0 | QF15: 65.0 | QG15: 47.3 | QH15: 51.2 | QI15: 41.0 | QJ15: 57.0 | QK15: 48.7 | QL15: 51.8 | QM15: 44.3 | QN15: 34.0 | QO15: 22.7 | QP15: 31.7 | QQ15: 36.2 | QR15: 54.3 | QS15: 27.7 | QT15: 35.3 | QU15: 68.7 | QV15: 37.3 | QW15: 66.3 | QX15: 91.3 | QY15: 50.3 | QZ15: 59.0 | RA15: 63.0 | RB15: 36.7 | RC15: 31.7 | RD15: 67.0 | RF15: 56.0 | RG15: 61.0 | RH15: 54.3 | RI15: 52.7 | RJ15: 59.7 | RL15: 30.5 | RM15: 28.0 | RN15: 30.3 | RO15: 33.0 | RP15: 46.7 | RQ15: 115.3 | RR15: 51.0 | RS15: 37.3 | RT15: 70.0 | RU15: 54.0 | RV15: 42.0 | RW15: 80.7 | RX15: 23.7 | RY15: 50.0 | RZ15: 50.0 | SA15: 50.0 | SB15: 50.0 | SC15: 50.0 | SD15: 63.0 | SE15: 63.0 | SF15: 64.7 | SG15: 59.7 | SH15: 54.0 | SI15: 64.0 | SJ15: 50.0 | SL15: 52.0 | SM15: 50.7 | SN15: 46.0 | SO15: 61.0 | SP15: 61.3 | SQ15: 32.2 | SR15: 94.3 | SS15: 49.3 | ST15: 26.3 | SU15: 39.2 | SV15: 45.3 | SW15: 37.3 | SX15: 31.7 | SY15: 23.3 | SZ15: 36.0 | TA15: 42.5 | TB15: 64.3 | TC15: 47.3 | TD15: 30.3 | TE15: 75.3 | TF15: 37.3 | TG15: 34.0 | TH15: 87.2 | TI15: 80.0 | TJ15: 52.3 | TK15: 23.3 | TL15: 26.3 | TM15: 39.0 | TN15: 46.0 | TO15: 36.7 | TP15: 23.0 | TQ15: 48.7 | TR15: 54.0 | TS15: 41.3 | TT15: 55.0 | TU15: 50.0 | TV15: 143.2 | TW15: 40.3 | TX15: 37.0 | TY15: 61.0 | TZ15: 28.7 | UA15: 36.0 | UB15: 64.7 | UC15: 23.7 | UD15: 37.3 | UE15: 30.3 | UF15: 74.0 | UG15: 29.3 | UH15: 44.7 | UI15: 36.2 | UJ15: 28.0 | UK15: 58.0 | UL15: 32.3 | UM15: 69.0 | UN15: 118.0 | UO15: 36.7 | UP15: 23.0 | UQ15: 51.0 | UR15: 70.0 | US15: 69.5 | UT15: 89.3 | UU15: 29.7 | UV15: 51.3 | UW15: 74.7 | UX15: 36.0 | UY15: 78.8 | UZ15: 46.0 | VA15: 80.0 | VC15: 69.5 | VD15: 28.7 | VE15: 61.3 | VG15: 39.3 | VH15: 51.0 | VJ15: 25.7 | VK15: 44.7 | VL15: 56.0 | VM15: 89.3 | VN15: 89.3 | VO15: 54.0 | VP15: 54.0 | VQ15: 89.3 | VR15: 46.3 | VS15: 62.3 | VT15: 77.3 | VU15: 32.7 | VV15: 76.7 | VW15: 54.0 | VX15: 69.5 | VY15: 69.5 | VZ15: 37.3 | WA15: 118.0 | WB15: 50.5 | WC15: 50.5 | WD15: 43.7 | WE15: 51.3 | WF15: 60.7 | WG15: 74.8 | WH15: 23.0 | WI15: 44.7 | WJ15: 40.7 | WK15: 102.7 | WL15: 47.3 | WM15: 47.3 | WO15: 59.0 | WP15: 42.7 | WQ15: 56.7 | WR15: 71.3 | WS15: 54.5 | WT15: 34.3 | WU15: 52.3 | WV15: 59.7 | WW15: 61.3 | WX15: 74.0 | WY15: 62.3 | WZ15: 39.0 | XA15: 54.3 | XC15: 42.7 | XD15: 29.3 | XE15: 62.3 | XF15: 54.5 | XG15: 118.0 | XH15: 43.0 | XI15: 47.3 | XJ15: 40.3 | XK15: 91.3 | XL15: 47.3 | XM15: 48.2 | XN15: 63.0 | XP15: 54.0 | XQ15: 32.7 | XS15: 56.7 | XT15: 54.0 | XU15: 61.8 | XV15: 17.7 | XW15: 80.7 | XX15: 17.7 | XY15: 41.3 | XZ15: 56.7 | YA15: 50.7 | YB15: 36.2 | YC15: 44.7 | YD15: 63.0 | YE15: 65.0 | YF15: 89.3 | YG15: 19.3 | YH15: 57.8 | YI15: 50.7 | YJ15: 36.7 | YK15: 108.2 | YL15: 87.2 | YM15: 39.0 | YN15: 40.7 | YP15: 25.0 | YQ15: 56.7 | YR15: 64.3 | YS15: 30.5 | YT15: 63.0 | YU15: 39.3 | YV15: 25.5 | YW15: 32.0 | YX15: 47.3 | YY15: 47.3 | YZ15: 46.3 | ZA15: 118.0 | ZB15: 51.8 | ZC15: 26.0
A16: EIQ Impacto trabalhador rural (< 80; 80 - 128; > 128) | C16: 90.0 | D16: 100.0 | E16: 150.0 | F16: 48.0 | G16: 64.0 | H16: 40.0 | I16: 40.0 | J16: 40.0 | K16: 32.0 | L16: 60.0 | M16: 80.0 | N16: 48.0 | O16: 56.0 | P16: 80.0 | Q16: 28.0 | R16: 100.0 | S16: 80.0 | T16: 64.0 | U16: 56.0 | V16: 72.0 | W16: 90.0 | X16: 64.0 | Y16: 24.0 | Z16: 24.0 | AA16: 64.0 | AB16: 80.0 | AC16: 64.0 | AD16: 60.0 | AE16: 36.0 | AF16: 48.0 | AG16: 100.0 | AH16: 60.0 | AI16: 80.0 | AJ16: 64.0 | AK16: 24.0 | AL16: 24.0 | AN16: 90.0 | AO16: 80.0 | AP16: 72.0 | AQ16: 120.0 | AR16: 150.0 | AS16: 80.0 | AT16: 64.0 | AU16: 56.0 | AV16: 80.0 | AW16: 72.0 | AX16: 100.0 | AY16: 72.0 | AZ16: 80.0 | BA16: 90.0 | BB16: 80.0 | BC16: 100.0 | BD16: 80.0 | BE16: 80.0 | BF16: 48.0 | BH16: 80.0 | BI16: 80.0 | BJ16: 60.0 | BK16: 80.0 | BL16: 90.0 | BN16: 64.0 | BO16: 64.0 | BP16: 40.0 | BQ16: 70.0 | BR16: 56.0 | BS16: 56.0 | BT16: 64.0 | BU16: 72.0 | BV16: 72.0 | BW16: 32.0 | BX16: 72.0 | BY16: 100.0 | BZ16: 70.0 | CA16: 70.0 | CB16: 72.0 | CC16: 56.0 | CD16: 80.0 | CE16: 40.0 | CF16: 80.0 | CG16: 80.0 | CH16: 32.0 | CI16: 80.0 | CJ16: 72.0 | CK16: 64.0 | CL16: 60.0 | CM16: 32.0 | CN16: 80.0 | CO16: 80.0 | CP16: 40.0 | CQ16: 80.0 | CR16: 32.0 | CS16: 80.0 | CT16: 32.0 | CU16: 80.0 | CV16: 48.0 | CW16: 48.0 | CX16: 80.0 | CY16: 72.0 | CZ16: 72.0 | DA16: 70.0 | DB16: 48.0 | DC16: 74.0 | DD16: 80.0 | DE16: 60.0 | DF16: 60.0 | DG16: 72.0 | DH16: 64.0 | DI16: 250.0 | DJ16: 80.0 | DK16: 90.0 | DL16: 90.0 | DM16: 72.0 | DN16: 90.0 | DO16: 90.0 | DP16: 100.0 | DQ16: 80.0 | DR16: 80.0 | DS16: 80.0 | DT16: 80.0 | DU16: 56.0 | DV16: 80.0 | DW16: 70.0 | DX16: 64.0 | DY16: 64.0 | EB16: 100.0 | EC16: 80.0 | ED16: 105.0 | EE16: 40.0 | EF16: 150.0 | EG16: 56.0 | EH16: 64.0 | EI16: 100.0 | EJ16: 80.0 | EK16: 80.0 | EL16: 90.0 | EM16: 32.0 | EN16: 60.0 | EO16: 40.0 | EP16: 80.0 | EQ16: 80.0 | ER16: 32.0 | ES16: 90.0 | ET16: 64.0 | EU16: 60.0 | EV16: 80.0 | EW16: 100.0 | EX16: 72.0 | EY16: 100.0 | EZ16: 64.0 | FA16: 64.0 | FB16: 48.0 | FC16: 60.0 | FD16: 32.0 | FE16: 48.0 | FG16: 48.0 | FH16: 90.0 | FI16: 64.0 | FJ16: 64.0 | FK16: 64.0 | FL16: 80.0 | FM16: 105.0 | FN16: 100.0 | FO16: 80.0 | FP16: 80.0 | FQ16: 64.0 | FR16: 80.0 | FS16: 60.0 | FT16: 64.0 | FU16: 32.0 | FV16: 80.0 | FW16: 200.0 | FX16: 80.0 | FY16: 70.0 | FZ16: 60.0 | GA16: 28.0 | GB16: 80.0 | GC16: 72.0 | GD16: 90.0 | GE16: 80.0 | GF16: 80.0 | GG16: 80.0 | GH16: 48.0 | GI16: 72.0 | GJ16: 80.0 | GK16: 80.0 | GL16: 80.0 | GM16: 48.0 | GN16: 80.0 | GO16: 80.0 | GP16: 28.0 | GQ16: 32.0 | GR16: 72.0 | GS16: 64.0 | GT16: 32.0 | GU16: 72.0 | GV16: 100.0 | GW16: 100.0 | GX16: 70.0 | GY16: 64.0 | GZ16: 70.0 | HA16: 100.0 | HC16: 72.0 | HD16: 48.0 | HE16: 60.0 | HF16: 80.0 | HG16: 80.0 | HH16: 60.0 | HI16: 90.0 | HJ16: 32.0 | HK16: 56.0 | HL16: 56.0 | HN16: 30.0 | HO16: 70.0 | HP16: 72.0 | HQ16: 60.0 | HR16: 64.0 | HS16: 28.0 | HT16: 72.0 | HU16: 32.0 | HV16: 32.0 | HW16: 100.0 | HX16: 60.0 | HY16: 80.0 | HZ16: 32.0 | IA16: 64.0 | IB16: 60.0 | IC16: 70.0 | ID16: 80.0 | IE16: 72.0 | IF16: 64.0 | IG16: 60.0 | IH16: 64.0 | II16: 64.0 | IK16: 40.0 | IL16: 70.0 | IM16: 56.0 | IN16: 80.0 | IO16: 80.0 | IP16: 64.0 | IQ16: 80.0 | IR16: 60.0 | IS16: 80.0 | IT16: 56.0 | IU16: 135.0 | IV16: 48.0 | IW16: 64.0 | IX16: 70.0 | IY16: 48.0 | IZ16: 48.0 | JA16: 120.0 | JB16: 90.0 | JC16: 60.0 | JD16: 105.0 | JE16: 72.0 | JF16: 80.0 | JG16: 96.0 | JH16: 80.0 | JI16: 56.0 | JJ16: 32.0 | JK16: 64.0 | JL16: 64.0 | JM16: 70.0 | JN16: 72.0 | JO16: 100.0 | JP16: 32.0 | JQ16: 32.0 | JR16: 80.0 | JS16: 80.0 | JT16: 64.0 | JU16: 72.0 | JV16: 64.0 | JX16: 80.0 | JY16: 40.0 | JZ16: 150.0 | KA16: 72.0 | KB16: 70.0 | KC16: 90.0 | KD16: 90.0 | KE16: 96.0 | KF16: 32.0 | KG16: 40.0 | KH16: 64.0 | KI16: 64.0 | KK16: 90.0 | KL16: 90.0 | KM16: 80.0 | KN16: 64.0 | KO16: 80.0 | KP16: 80.0 | KQ16: 80.0 | KR16: 70.0 | KS16: 96.0 | KT16: 64.0 | KU16: 100.0 | KV16: 56.0 | KW16: 40.0 | KX16: 120.0 | KY16: 72.0 | KZ16: 32.0 | LB16: 80.0 | LC16: 24.0 | LD16: 80.0 | LE16: 64.0 | LF16: 80.0 | LG16: 80.0 | LH16: 60.0 | LI16: 80.0 | LJ16: 48.0 | LK16: 64.0 | LL16: 70.0 | LM16: 64.0 | LN16: 80.0 | LO16: 56.0 | LP16: 24.0 | LQ16: 80.0 | LR16: 32.0 | LS16: 80.0 | LT16: 64.0 | LU16: 100.0 | LV16: 24.0 | LW16: 80.0 | LZ16: 80.0 | MA16: 64.0 | MB16: 128.0 | MC16: 80.0 | MD16: 80.0 | ME16: 100.0 | MF16: 100.0 | MG16: 80.0 | MI16: 32.0 | MJ16: 80.0 | MK16: 32.0 | ML16: 32.0 | MM16: 60.0 | MN16: 90.0 | MO16: 150.0 | MQ16: 80.0 | MR16: 60.0 | MS16: 70.0 | MT16: 90.0 | MU16: 80.0 | MV16: 64.0 | MW16: 32.0 | MX16: 80.0 | MY16: 80.0 | MZ16: 90.0 | NA16: 80.0 | NB16: 80.0 | NC16: 48.0 | ND16: 80.0 | NE16: 80.0 | NF16: 80.0 | NG16: 60.0 | NH16: 32.0 | NI16: 84.0 | NJ16: 60.0 | NK16: 80.0 | NL16: 80.0 | NM16: 80.0 | NN16: 80.0 | NO16: 80.0 | NP16: 105.0 | NQ16: 48.0 | NR16: 32.0 | NS16: 24.0 | NU16: 84.0 | NV16: 70.0 | NW16: 100.0 | NX16: 64.0 | NY16: 60.0 | NZ16: 80.0 | OA16: 105.0 | OB16: 72.0 | OC16: 100.0 | OE16: 60.0 | OF16: 32.0 | OG16: 80.0 | OH16: 80.0 | OI16: 14.0 | OJ16: 80.0 | OK16: 70.0 | OL16: 72.0 | OM16: 36.0 | ON16: 72.0 | OO16: 72.0 | OP16: 64.0 | OQ16: 72.0 | OR16: 48.0 | OS16: 90.0 | OT16: 128.0 | OU16: 80.0 | OV16: 60.0 | OW16: 60.0 | OX16: 36.0 | OY16: 60.0 | OZ16: 64.0 | PA16: 120.0 | PB16: 80.0 | PC16: 30.0 | PD16: 70.0 | PE16: 64.0 | PF16: 80.0 | PG16: 60.0 | PH16: 64.0 | PI16: 80.0 | PJ16: 40.0 | PK16: 96.0 | PM16: 48.0 | PN16: 40.0 | PQ16: 70.0 | PR16: 80.0 | PS16: 48.0 | PT16: 80.0 | PU16: 60.0 | PV16: 40.0 | PW16: 105.0 | PX16: 64.0 | PY16: 64.0 | PZ16: 64.0 | QA16: 90.0 | QB16: 80.0 | QD16: 100.0 | QE16: 64.0 | QF16: 72.0 | QG16: 40.0 | QH16: 90.0 | QI16: 80.0 | QJ16: 70.0 | QK16: 60.0 | QL16: 64.0 | QM16: 64.0 | QN16: 48.0 | QO16: 32.0 | QP16: 60.0 | QQ16: 64.0 | QR16: 64.0 | QS16: 60.0 | QT16: 48.0 | QU16: 100.0 | QV16: 64.0 | QW16: 90.0 | QX16: 100.0 | QY16: 90.0 | QZ16: 72.0 | RA16: 96.0 | RB16: 64.0 | RC16: 60.0 | RD16: 80.0 | RF16: 60.0 | RG16: 64.0 | RH16: 64.0 | RI16: 70.0 | RJ16: 80.0 | RL16: 48.0 | RM16: 32.0 | RN16: 48.0 | RO16: 28.0 | RP16: 80.0 | RQ16: 100.0 | RR16: 80.0 | RS16: 64.0 | RT16: 80.0 | RU16: 70.0 | RV16: 48.0 | RW16: 80.0 | RX16: 32.0 | RY16: 80.0 | RZ16: 80.0 | SA16: 80.0 | SB16: 80.0 | SC16: 80.0 | SD16: 72.0 | SE16: 72.0 | SF16: 72.0 | SG16: 80.0 | SH16: 90.0 | SI16: 72.0 | SJ16: 90.0 | SL16: 64.0 | SM16: 80.0 | SN16: 80.0 | SO16: 90.0 | SP16: 80.0 | SQ16: 56.0 | SR16: 100.0 | SS16: 80.0 | ST16: 48.0 | SU16: 60.0 | SV16: 64.0 | SW16: 60.0 | SX16: 60.0 | SY16: 32.0 | SZ16: 64.0 | TA16: 72.0 | TB16: 80.0 | TC16: 40.0 | TD16: 48.0 | TE16: 80.0 | TF16: 64.0 | TG16: 60.0 | TH16: 105.0 | TI16: 105.0 | TJ16: 48.0 | TK16: 32.0 | TL16: 14.0 | TM16: 64.0 | TN16: 80.0 | TO16: 40.0 | TP16: 32.0 | TQ16: 60.0 | TR16: 90.0 | TS16: 80.0 | TT16: 90.0 | TU16: 56.0 | TV16: 250.0 | TW16: 60.0 | TX16: 64.0 | TY16: 64.0 | TZ16: 48.0 | UA16: 64.0 | UB16: 72.0 | UC16: 32.0 | UD16: 64.0 | UE16: 48.0 | UF16: 100.0 | UG16: 56.0 | UH16: 80.0 | UI16: 30.0 | UJ16: 32.0 | UK16: 80.0 | UL16: 60.0 | UM16: 64.0 | UN16: 150.0 | UO16: 64.0 | UP16: 48.0 | UQ16: 80.0 | UR16: 60.0 | US16: 80.0 | UT16: 100.0 | UU16: 32.0 | UV16: 64.0 | UW16: 72.0 | UX16: 64.0 | UY16: 120.0 | UZ16: 80.0 | VA16: 105.0 | VC16: 80.0 | VD16: 48.0 | VE16: 80.0 | VG16: 64.0 | VH16: 80.0 | VJ16: 36.0 | VK16: 56.0 | VL16: 60.0 | VM16: 135.0 | VN16: 135.0 | VO16: 90.0 | VP16: 90.0 | VQ16: 135.0 | VR16: 80.0 | VS16: 100.0 | VT16: 120.0 | VU16: 60.0 | VV16: 80.0 | VW16: 80.0 | VX16: 80.0 | VY16: 80.0 | VZ16: 60.0 | WA16: 150.0 | WB16: 70.0 | WC16: 70.0 | WD16: 40.0 | WE16: 64.0 | WF16: 80.0 | WG16: 80.0 | WH16: 48.0 | WI16: 80.0 | WJ16: 80.0 | WK16: 200.0 | WL16: 64.0 | WM16: 64.0 | WO16: 64.0 | WP16: 80.0 | WQ16: 80.0 | WR16: 64.0 | WS16: 90.0 | WT16: 28.0 | WU16: 100.0 | WV16: 80.0 | WW16: 80.0 | WX16: 100.0 | WY16: 100.0 | WZ16: 64.0 | XA16: 64.0 | XC16: 32.0 | XD16: 48.0 | XE16: 100.0 | XF16: 80.0 | XG16: 150.0 | XH16: 80.0 | XI16: 80.0 | XJ16: 60.0 | XK16: 100.0 | XL16: 40.0 | XM16: 90.0 | XN16: 72.0 | XP16: 80.0 | XQ16: 32.0 | XS16: 80.0 | XT16: 70.0 | XU16: 100.0 | XV16: 24.0 | XW16: 80.0 | XX16: 24.0 | XY16: 80.0 | XZ16: 72.0 | YA16: 60.0 | YB16: 64.0 | YC16: 80.0 | YD16: 72.0 | YE16: 72.0 | YF16: 100.0 | YG16: 24.0 | YH16: 40.0 | YI16: 60.0 | YJ16: 48.0 | YK16: 150.0 | YL16: 105.0 | YM16: 64.0 | YN16: 64.0 | YP16: 32.0 | YQ16: 80.0 | YR16: 64.0 | YS16: 48.0 | YT16: 72.0 | YU16: 64.0 | YV16: 32.0 | YW16: 64.0 | YX16: 80.0 | YY16: 80.0 | YZ16: 80.0 | ZA16: 150.0 | ZB16: 64.0 | ZC16: 32.0
A17: EIQ Impacto consumidor (< 20,5; 20,5 - 36,25; > 36,25) | C17: 9.0 | D17: 77.0 | E17: 19.5 | F17: 10.0 | G17: 11.0 | H17: 33.0 | I17: 33.0 | J17: 33.0 | K17: 15.0 | L17: 8.0 | M17: 32.0 | N17: 11.0 | O17: 9.0 | P17: 47.0 | Q17: 19.0 | R17: 20.0 | S17: 18.0 | T17: 11.0 | U17: 20.0 | V17: 45.0 | W17: 15.5 | X17: 12.0 | Y17: 7.0 | Z17: 7.0 | AA17: 50.0 | AB17: 13.5 | AC17: 29.0 | AD17: 15.5 | AE17: 10.0 | AF17: 39.0 | AG17: 70.5 | AH17: 13.5 | AI17: 13.5 | AJ17: 10.0 | AK17: 6.0 | AL17: 6.0 | AN17: 9.0 | AO17: 18.0 | AP17: 45.0 | AQ17: 13.0 | AR17: 19.5 | AS17: 64.0 | AT17: 11.0 | AU17: 9.0 | AV17: 55.0 | AW17: 16.0 | AX17: 70.5 | AY17: 39.0 | AZ17: 14.0 | BA17: 16.5 | BB17: 14.0 | BC17: 70.5 | BD17: 13.0 | BE17: 13.0 | BF17: 8.0 | BH17: 19.0 | BI17: 19.0 | BJ17: 13.0 | BK17: 19.0 | BL17: 18.0 | BN17: 11.0 | BO17: 20.0 | BP17: 33.0 | BQ17: 17.0 | BR17: 21.0 | BS17: 21.0 | BT17: 16.0 | BU17: 45.0 | BV17: 45.0 | BW17: 9.0 | BX17: 8.0 | BY17: 78.0 | BZ17: 26.5 | CA17: 19.5 | CB17: 56.0 | CC17: 26.0 | CD17: 39.5 | CE17: 24.0 | CF17: 32.0 | CG17: 32.0 | CH17: 9.0 | CI17: 13.0 | CJ17: 13.0 | CK17: 50.0 | CL17: 8.5 | CM17: 9.0 | CN17: 13.5 | CO17: 13.5 | CP17: 33.0 | CQ17: 32.0 | CR17: 7.0 | CS17: 13.5 | CT17: 13.0 | CU17: 37.0 | CV17: 11.0 | CW17: 7.0 | CX17: 24.0 | CY17: 56.0 | CZ17: 56.0 | DA17: 26.5 | DB17: 12.0 | DC17: 10.4 | DD17: 63.0 | DE17: 8.5 | DF17: 9.0 | DG17: 16.0 | DH17: 20.0 | DI17: 20.5 | DJ17: 13.0 | DK17: 14.5 | DL17: 19.0 | DM17: 56.0 | DN17: 15.5 | DO17: 15.5 | DP17: 17.0 | DQ17: 13.5 | DR17: 13.0 | DS17: 39.5 | DT17: 39.5 | DU17: 23.0 | DV17: 39.5 | DW17: 32.0 | DX17: 28.0 | DY17: 11.0 | EB17: 21.0 | EC17: 16.0 | ED17: 19.5 | EE17: 33.0 | EF17: 78.0 | EG17: 21.0 | EH17: 10.0 | EI17: 48.0 | EJ17: 12.0 | EK17: 16.0 | EL17: 18.0 | EM17: 5.0 | EN17: 19.0 | EO17: 24.0 | EP17: 14.0 | EQ17: 63.0 | ER17: 6.0 | ES17: 18.0 | ET17: 9.0 | EU17: 18.0 | EV17: 13.5 | EW17: 70.5 | EX17: 38.0 | EY17: 25.5 | EZ17: 13.0 | FA17: 10.0 | FB17: 6.0 | FC17: 10.5 | FD17: 8.0 | FE17: 39.0 | FG17: 8.0 | FH17: 48.0 | FI17: 13.0 | FJ17: 13.0 | FK17: 13.0 | FL17: 12.0 | FM17: 19.5 | FN17: 78.0 | FO17: 47.0 | FP17: 13.5 | FQ17: 15.0 | FR17: 63.0 | FS17: 48.0 | FT17: 25.0 | FU17: 9.0 | FV17: 37.0 | FW17: 33.0 | FX17: 19.0 | FY17: 39.5 | FZ17: 48.0 | GA17: 19.0 | GB17: 12.0 | GC17: 31.0 | GD17: 7.0 | GE17: 12.0 | GF17: 12.0 | GG17: 12.0 | GH17: 7.0 | GI17: 8.0 | GJ17: 16.0 | GK17: 14.0 | GL17: 16.0 | GM17: 39.0 | GN17: 39.5 | GO17: 39.5 | GP17: 4.0 | GQ17: 9.0 | GR17: 14.0 | GS17: 17.0 | GT17: 10.0 | GU17: 50.0 | GV17: 17.0 | GW17: 17.0 | GX17: 26.5 | GY17: 38.0 | GZ17: 26.5 | HA17: 17.0 | HC17: 52.0 | HD17: 9.0 | HE17: 15.5 | HF17: 13.0 | HG17: 14.0 | HH17: 15.5 | HI17: 9.0 | HJ17: 9.0 | HK17: 19.0 | HL17: 19.0 | HN17: 15.5 | HO17: 39.5 | HP17: 45.0 | HQ17: 6.0 | HR17: 38.0 | HS17: 19.0 | HT17: 11.0 | HU17: 9.0 | HV17: 7.0 | HW17: 77.0 | HX17: 18.0 | HY17: 50.0 | HZ17: 9.0 | IA17: 39.0 | IB17: 11.0 | IC17: 8.5 | ID17: 13.0 | IE17: 11.0 | IF17: 9.0 | IG17: 6.0 | IH17: 10.0 | II17: 11.0 | IK17: 33.0 | IL17: 8.5 | IM17: 22.0 | IN17: 19.0 | IO17: 19.0 | IP17: 20.0 | IQ17: 50.0 | IR17: 8.0 | IS17: 13.5 | IT17: 21.0 | IU17: 14.5 | IV17: 5.0 | IW17: 17.0 | IX17: 16.0 | IY17: 7.0 | IZ17: 20.0 | JA17: 13.5 | JB17: 13.5 | JC17: 8.0 | JD17: 17.0 | JE17: 50.0 | JF17: 19.0 | JG17: 18.0 | JH17: 32.0 | JI17: 23.0 | JJ17: 8.0 | JK17: 10.0 | JL17: 15.0 | JM17: 19.5 | JN17: 19.0 | JO17: 21.0 | JP17: 10.0 | JQ17: 8.0 | JR17: 15.5 | JS17: 15.5 | JT17: 51.0 | JU17: 57.0 | JV17: 40.0 | JX17: 14.0 | JY17: 33.0 | JZ17: 78.0 | KA17: 57.0 | KB17: 39.5 | KC17: 15.5 | KD17: 15.5 | KE17: 18.0 | KF17: 9.0 | KG17: 24.0 | KH17: 38.0 | KI17: 29.0 | KK17: 7.0 | KL17: 18.0 | KM17: 32.0 | KN17: 15.0 | KO17: 39.5 | KP17: 12.0 | KQ17: 13.5 | KR17: 39.5 | KS17: 18.0 | KT17: 10.0 | KU17: 17.0 | KV17: 26.0 | KW17: 10.0 | KX17: 13.5 | KY17: 31.0 | KZ17: 8.0 | LB17: 18.0 | LC17: 6.0 | LD17: 19.0 | LE17: 11.0 | LF17: 12.0 | LG17: 12.0 | LH17: 8.0 | LI17: 12.0 | LJ17: 8.0 | LK17: 17.0 | LL17: 12.0 | LM17: 16.0 | LN17: 12.0 | LO17: 11.0 | LP17: 6.0 | LQ17: 14.0 | LR17: 13.0 | LS17: 63.0 | LT17: 15.0 | LU17: 26.0 | LV17: 6.0 | LW17: 13.5 | LZ17: 16.0 | MA17: 25.0 | MB17: 12.0 | MC17: 14.0 | MD17: 12.0 | ME17: 62.0 | MF17: 62.0 | MG17: 64.0 | MI17: 9.0 | MJ17: 20.0 | MK17: 11.0 | ML17: 13.0 | MM17: 48.0 | MN17: 7.0 | MO17: 78.0 | MQ17: 55.0 | MR17: 15.5 | MS17: 17.0 | MT17: 48.0 | MU17: 13.5 | MV17: 19.0 | MW17: 6.0 | MX17: 14.0 | MY17: 47.0 | MZ17: 18.0 | NA17: 12.0 | NB17: 14.5 | NC17: 7.0 | ND17: 47.0 | NE17: 16.0 | NF17: 16.0 | NG17: 8.0 | NH17: 9.0 | NI17: 15.0 | NJ17: 15.5 | NK17: 16.0 | NL17: 19.0 | NM17: 13.0 | NN17: 14.5 | NO17: 24.0 | NP17: 19.5 | NQ17: 12.0 | NR17: 7.0 | NS17: 7.0 | NU17: 15.0 | NV17: 26.5 | NW17: 17.0 | NX17: 20.0 | NY17: 8.0 | NZ17: 18.0 | OA17: 19.5 | OB17: 31.0 | OC17: 62.0 | OE17: 7.0 | OF17: 13.0 | OG17: 13.0 | OH17: 13.0 | OI17: 8.0 | OJ17: 13.0 | OK17: 32.0 | OL17: 31.0 | OM17: 18.0 | ON17: 19.0 | OO17: 52.0 | OP17: 12.0 | OQ17: 56.0 | OR17: 7.0 | OS17: 15.5 | OT17: 12.0 | OU17: 13.0 | OV17: 13.5 | OW17: 13.5 | OX17: 18.0 | OY17: 9.0 | OZ17: 44.0 | PA17: 13.0 | PB17: 13.0 | PC17: 15.5 | PD17: 26.5 | PE17: 19.0 | PF17: 14.0 | PG17: 15.5 | PH17: 11.0 | PI17: 63.0 | PJ17: 31.0 | PK17: 53.0 | PM17: 12.0 | PN17: 33.0 | PQ17: 39.5 | PR17: 13.0 | PS17: 10.0 | PT17: 55.0 | PU17: 7.0 | PV17: 10.0 | PW17: 19.5 | PX17: 11.0 | PY17: 9.0 | PZ17: 9.0 | QA17: 18.5 | QB17: 20.0 | QD17: 77.0 | QE17: 44.0 | QF17: 57.0 | QG17: 33.0 | QH17: 15.5 | QI17: 13.0 | QJ17: 16.0 | QK17: 17.0 | QL17: 44.0 | QM17: 27.0 | QN17: 8.0 | QO17: 8.0 | QP17: 8.0 | QQ17: 13.0 | QR17: 17.0 | QS17: 8.0 | QT17: 12.0 | QU17: 26.0 | QV17: 14.0 | QW17: 13.5 | QX17: 78.0 | QY17: 19.0 | QZ17: 39.0 | RA17: 53.0 | RB17: 10.0 | RC17: 19.0 | RD17: 47.0 | RF17: 11.0 | RG17: 13.0 | RH17: 39.0 | RI17: 12.0 | RJ17: 37.0 | RL17: 9.0 | RM17: 8.0 | RN17: 5.0 | RO17: 4.0 | RP17: 13.0 | RQ17: 78.0 | RR17: 24.0 | RS17: 10.0 | RT17: 32.0 | RU17: 16.0 | RV17: 39.0 | RW17: 63.0 | RX17: 10.0 | RY17: 19.0 | RZ17: 19.0 | SA17: 19.0 | SB17: 19.0 | SC17: 19.0 | SD17: 45.0 | SE17: 45.0 | SF17: 50.0 | SG17: 37.0 | SH17: 40.5 | SI17: 13.0 | SJ17: 7.0 | SL17: 17.0 | SM17: 18.0 | SN17: 13.0 | SO17: 18.5 | SP17: 47.0 | SQ17: 9.0 | SR17: 77.0 | SS17: 32.0 | ST17: 7.0 | SU17: 15.5 | SV17: 20.0 | SW17: 13.0 | SX17: 8.0 | SY17: 8.0 | SZ17: 11.0 | TA17: 14.0 | TB17: 47.0 | TC17: 33.0 | TD17: 5.0 | TE17: 64.0 | TF17: 14.0 | TG17: 10.5 | TH17: 19.5 | TI17: 17.0 | TJ17: 9.0 | TK17: 8.0 | TL17: 8.0 | TM17: 11.0 | TN17: 13.0 | TO17: 10.0 | TP17: 7.0 | TQ17: 17.0 | TR17: 40.5 | TS17: 12.0 | TT17: 18.0 | TU17: 9.0 | TV17: 20.5 | TW17: 6.0 | TX17: 15.0 | TY17: 13.0 | TZ17: 10.0 | UA17: 11.0 | UB17: 50.0 | UC17: 10.0 | UD17: 10.0 | UE17: 5.0 | UF17: 17.0 | UG17: 11.0 | UH17: 14.0 | UI17: 15.5 | UJ17: 8.0 | UK17: 13.0 | UL17: 13.0 | UM17: 40.0 | UN17: 78.0 | UO17: 10.0 | UP17: 8.0 | UQ17: 24.0 | UR17: 48.0 | US17: 13.5 | UT17: 70.5 | UU17: 10.0 | UV17: 20.0 | UW17: 56.0 | UX17: 11.0 | UY17: 13.5 | UZ17: 13.0 | VA17: 17.0 | VC17: 13.5 | VD17: 10.0 | VE17: 47.0 | VG17: 10.0 | VH17: 24.0 | VJ17: 10.0 | VK17: 22.0 | VL17: 11.0 | VM17: 14.5 | VN17: 14.5 | VO17: 40.5 | VP17: 40.5 | VQ17: 14.5 | VR17: 15.5 | VS17: 48.0 | VT17: 13.0 | VU17: 8.0 | VV17: 63.0 | VW17: 16.0 | VX17: 13.5 | VY17: 13.5 | VZ17: 13.0 | WA17: 78.0 | WB17: 39.5 | WC17: 39.5 | WD17: 31.0 | WE17: 20.0 | WF17: 39.5 | WG17: 55.0 | WH17: 8.0 | WI17: 14.0 | WJ17: 14.0 | WK17: 33.0 | WL17: 15.0 | WM17: 15.0 | WO17: 38.0 | WP17: 12.0 | WQ17: 16.0 | WR17: 50.0 | WS17: 14.5 | WT17: 19.0 | WU17: 20.0 | WV17: 37.0 | WW17: 47.0 | WX17: 17.0 | WY17: 48.0 | WZ17: 11.0 | XA17: 17.0 | XC17: 5.0 | XD17: 6.0 | XE17: 48.0 | XF17: 18.0 | XG17: 78.0 | XH17: 13.0 | XI17: 12.0 | XJ17: 6.0 | XK17: 78.0 | XL17: 33.0 | XM17: 16.5 | XN17: 45.0 | XP17: 32.0 | XQ17: 9.0 | XS17: 16.0 | XT17: 16.0 | XU17: 25.5 | XV17: 5.0 | XW17: 63.0 | XX17: 5.0 | XY17: 12.0 | XZ17: 38.0 | YA17: 8.5 | YB17: 13.0 | YC17: 14.0 | YD17: 45.0 | YE17: 57.0 | YF17: 70.5 | YG17: 6.0 | YH17: 24.0 | YI17: 13.5 | YJ17: 20.0 | YK17: 19.5 | YL17: 19.5 | YM17: 11.0 | YN17: 28.0 | YP17: 9.0 | YQ17: 16.0 | YR17: 51.0 | YS17: 9.0 | YT17: 45.0 | YU17: 10.0 | YV17: 11.0 | YW17: 11.0 | YX17: 12.0 | YY17: 12.0 | YZ17: 15.5 | ZA17: 78.0 | ZB17: 44.0 | ZC17: 6.0
A18: EIQ Impacto ambiental (< 75; 75 - 136,5; > 136,5) | C18: 17.0 | D18: 106.0 | E18: 155.0 | F18: 28.0 | G18: 21.0 | H18: 69.0 | I18: 69.0 | J18: 69.0 | K18: 66.0 | L18: 30.0 | M18: 46.0 | N18: 36.0 | O18: 85.0 | P18: 74.0 | Q18: 56.0 | R18: 37.0 | S18: 72.0 | T18: 33.0 | U18: 26.0 | V18: 72.0 | W18: 40.5 | X18: 40.0 | Y18: 27.0 | Z18: 27.0 | AA18: 98.0 | AB18: 95.5 | AC18: 20.0 | AD18: 42.0 | AE18: 31.0 | AF18: 39.0 | AG18: 97.5 | AH18: 78.5 | AI18: 95.5 | AJ18: 44.0 | AK18: 34.5 | AL18: 34.5 | AN18: 17.0 | AO18: 65.5 | AP18: 72.0 | AQ18: 36.0 | AR18: 155.0 | AS18: 82.0 | AT18: 42.0 | AU18: 31.5 | AV18: 89.5 | AW18: 76.0 | AX18: 97.5 | AY18: 66.0 | AZ18: 28.0 | BA18: 38.0 | BB18: 34.0 | BC18: 97.5 | BD18: 30.0 | BE18: 30.0 | BF18: 36.5 | BH18: 51.0 | BI18: 51.0 | BJ18: 24.0 | BK18: 51.0 | BL18: 57.0 | BN18: 33.0 | BO18: 70.0 | BP18: 69.0 | BQ18: 109.0 | BR18: 39.0 | BS18: 29.0 | BT18: 29.0 | BU18: 72.0 | BV18: 72.0 | BW18: 34.0 | BX18: 41.0 | BY18: 96.0 | BZ18: 65.0 | CA18: 92.0 | CB18: 130.0 | CC18: 42.0 | CD18: 62.5 | CE18: 109.5 | CF18: 98.0 | CG18: 98.0 | CH18: 34.0 | CI18: 36.0 | CJ18: 107.0 | CK18: 98.0 | CL18: 83.5 | CM18: 25.0 | CN18: 115.0 | CO18: 115.0 | CP18: 69.0 | CQ18: 46.0 | CR18: 30.0 | CS18: 115.0 | CT18: 47.0 | CU18: 62.0 | CV18: 36.0 | CW18: 98.0 | CX18: 49.0 | CY18: 96.0 | CZ18: 96.0 | DA18: 65.0 | DB18: 40.0 | DC18: 76.3 | DD18: 84.0 | DE18: 83.5 | DF18: 35.0 | DG18: 76.0 | DH18: 70.0 | DI18: 159.0 | DJ18: 39.0 | DK18: 59.0 | DL18: 42.0 | DM18: 96.0 | DN18: 48.0 | DO18: 48.0 | DP18: 105.0 | DQ18: 115.0 | DR18: 81.0 | DS18: 62.5 | DT18: 62.5 | DU18: 20.0 | DV18: 62.5 | DW18: 104.0 | DX18: 30.0 | DY18: 33.0 | EB18: 91.0 | EC18: 33.0 | ED18: 137.0 | EE18: 69.0 | EF18: 126.0 | EG18: 36.0 | EH18: 38.0 | EI18: 39.0 | EJ18: 50.0 | EK18: 74.0 | EL18: 57.0 | EM18: 91.0 | EN18: 16.0 | EO18: 109.5 | EP18: 58.0 | EQ18: 162.0 | ER18: 42.0 | ES18: 39.0 | ET18: 44.0 | EU18: 21.0 | EV18: 95.5 | EW18: 97.5 | EX18: 60.0 | EY18: 60.0 | EZ18: 31.5 | FA18: 38.0 | FB18: 34.0 | FC18: 31.5 | FD18: 28.0 | FE18: 39.0 | FG18: 36.5 | FH18: 54.0 | FI18: 31.5 | FJ18: 31.5 | FK18: 31.5 | FL18: 50.0 | FM18: 137.0 | FN18: 168.0 | FO18: 74.0 | FP18: 95.5 | FQ18: 91.0 | FR18: 84.0 | FS18: 102.0 | FT18: 61.0 | FU18: 26.0 | FV18: 62.0 | FW18: 75.0 | FX18: 51.0 | FY18: 42.0 | FZ18: 102.0 | GA18: 56.0 | GB18: 50.0 | GC18: 46.0 | GD18: 53.0 | GE18: 50.0 | GF18: 50.0 | GG18: 50.0 | GH18: 98.0 | GI18: 41.0 | GJ18: 106.0 | GK18: 71.0 | GL18: 106.0 | GM18: 39.0 | GN18: 62.5 | GO18: 62.5 | GP18: 67.0 | GQ18: 100.0 | GR18: 41.5 | GS18: 82.0 | GT18: 47.0 | GU18: 72.0 | GV18: 79.0 | GW18: 79.0 | GX18: 61.0 | GY18: 66.0 | GZ18: 61.0 | HA18: 79.0 | HC18: 148.0 | HD18: 100.0 | HE18: 63.0 | HF18: 45.0 | HG18: 71.0 | HH18: 63.0 | HI18: 17.0 | HJ18: 34.0 | HK18: 44.0 | HL18: 44.0 | HN18: 63.0 | HO18: 42.0 | HP18: 72.0 | HQ18: 55.0 | HR18: 75.0 | HS18: 56.0 | HT18: 55.0 | HU18: 57.0 | HV18: 50.0 | HW18: 106.0 | HX18: 21.0 | HY18: 134.0 | HZ18: 46.0 | IA18: 60.0 | IB18: 97.0 | IC18: 58.5 | ID18: 112.0 | IE18: 55.0 | IF18: 49.0 | IG18: 55.0 | IH18: 36.0 | II18: 30.0 | IK18: 69.0 | IL18: 58.5 | IM18: 56.0 | IN18: 51.0 | IO18: 51.0 | IP18: 52.0 | IQ18: 134.0 | IR18: 15.0 | IS18: 95.5 | IT18: 36.0 | IU18: 118.5 | IV18: 38.0 | IW18: 75.0 | IX18: 85.0 | IY18: 98.0 | IZ18: 42.0 | JA18: 103.0 | JB18: 95.5 | JC18: 15.0 | JD18: 118.0 | JE18: 72.0 | JF18: 58.0 | JG18: 33.5 | JH18: 50.0 | JI18: 20.0 | JJ18: 56.5 | JK18: 36.0 | JL18: 91.0 | JM18: 92.0 | JN18: 74.0 | JO18: 91.0 | JP18: 29.0 | JQ18: 30.0 | JR18: 43.5 | JS18: 43.5 | JT18: 78.0 | JU18: 66.0 | JV18: 103.0 | JX18: 34.0 | JY18: 99.0 | JZ18: 126.0 | KA18: 66.0 | KB18: 42.0 | KC18: 40.5 | KD18: 40.5 | KE18: 33.5 | KF18: 46.0 | KG18: 109.5 | KH18: 66.0 | KI18: 20.0 | KK18: 46.0 | KL18: 39.0 | KM18: 36.0 | KN18: 91.0 | KO18: 62.5 | KP18: 50.0 | KQ18: 95.5 | KR18: 42.0 | KS18: 33.5 | KT18: 36.0 | KU18: 105.0 | KV18: 42.0 | KW18: 60.0 | KX18: 103.0 | KY18: 46.0 | KZ18: 56.5 | LB18: 54.0 | LC18: 34.5 | LD18: 51.0 | LE18: 30.0 | LF18: 50.0 | LG18: 32.0 | LH18: 15.0 | LI18: 32.0 | LJ18: 46.0 | LK18: 82.0 | LL18: 76.0 | LM18: 29.0 | LN18: 36.0 | LO18: 21.0 | LP18: 28.0 | LQ18: 58.0 | LR18: 47.0 | LS18: 162.0 | LT18: 32.0 | LU18: 80.0 | LV18: 34.5 | LW18: 95.5 | LZ18: 66.0 | MA18: 61.0 | MB18: 69.5 | MC18: 28.0 | MD18: 50.0 | ME18: 78.0 | MF18: 78.0 | MG18: 82.0 | MI18: 26.0 | MJ18: 88.0 | MK18: 33.5 | ML18: 38.0 | MM18: 102.0 | MN18: 46.0 | MO18: 126.0 | MQ18: 89.5 | MR18: 42.0 | MS18: 109.0 | MT18: 54.0 | MU18: 115.0 | MV18: 75.0 | MW18: 42.0 | MX18: 28.0 | MY18: 66.0 | MZ18: 57.0 | NA18: 50.0 | NB18: 54.0 | NC18: 24.0 | ND18: 57.0 | NE18: 106.0 | NF18: 106.0 | NG18: 30.0 | NH18: 25.0 | NI18: 110.5 | NJ18: 63.0 | NK18: 33.0 | NL18: 58.0 | NM18: 30.0 | NN18: 54.0 | NO18: 49.0 | NP18: 137.0 | NQ18: 40.0 | NR18: 50.0 | NS18: 27.0 | NU18: 110.5 | NV18: 65.0 | NW18: 105.0 | NX18: 70.0 | NY18: 15.0 | NZ18: 72.0 | OA18: 137.0 | OB18: 46.0 | OC18: 78.0 | OE18: 53.0 | OF18: 38.0 | OG18: 45.0 | OH18: 45.0 | OI18: 57.0 | OJ18: 45.0 | OK18: 104.0 | OL18: 46.0 | OM18: 42.0 | ON18: 74.0 | OO18: 148.0 | OP18: 40.0 | OQ18: 130.0 | OR18: 98.0 | OS18: 48.0 | OT18: 69.5 | OU18: 39.0 | OV18: 78.5 | OW18: 78.5 | OX18: 42.0 | OY18: 35.0 | OZ18: 78.0 | PA18: 99.0 | PB18: 47.0 | PC18: 63.0 | PD18: 65.0 | PE18: 75.0 | PF18: 40.0 | PG18: 42.0 | PH18: 21.0 | PI18: 87.0 | PJ18: 60.0 | PK18: 40.0 | PM18: 46.0 | PN18: 99.0 | PQ18: 42.0 | PR18: 112.0 | PS18: 28.0 | PT18: 89.5 | PU18: 53.0 | PV18: 60.0 | PW18: 137.0 | PX18: 21.0 | PY18: 49.0 | PZ18: 44.0 | QA18: 74.5 | QB18: 88.0 | QD18: 106.0 | QE18: 78.0 | QF18: 66.0 | QG18: 69.0 | QH18: 48.0 | QI18: 30.0 | QJ18: 85.0 | QK18: 69.0 | QL18: 47.5 | QM18: 42.0 | QN18: 46.0 | QO18: 28.0 | QP18: 27.0 | QQ18: 31.5 | QR18: 82.0 | QS18: 15.0 | QT18: 46.0 | QU18: 80.0 | QV18: 34.0 | QW18: 95.5 | QX18: 96.0 | QY18: 42.0 | QZ18: 66.0 | RA18: 40.0 | RB18: 36.0 | RC18: 16.0 | RD18: 74.0 | RF18: 97.0 | RG18: 106.0 | RH18: 60.0 | RI18: 76.0 | RJ18: 62.0 | RL18: 34.5 | RM18: 44.0 | RN18: 38.0 | RO18: 67.0 | RP18: 47.0 | RQ18: 168.0 | RR18: 49.0 | RS18: 38.0 | RT18: 98.0 | RU18: 76.0 | RV18: 39.0 | RW18: 99.0 | RX18: 29.0 | RY18: 51.0 | RZ18: 51.0 | SA18: 51.0 | SB18: 51.0 | SC18: 51.0 | SD18: 72.0 | SE18: 72.0 | SF18: 72.0 | SG18: 62.0 | SH18: 31.5 | SI18: 107.0 | SJ18: 53.0 | SL18: 75.0 | SM18: 54.0 | SN18: 45.0 | SO18: 74.5 | SP18: 57.0 | SQ18: 31.5 | SR18: 106.0 | SS18: 36.0 | ST18: 24.0 | SU18: 42.0 | SV18: 52.0 | SW18: 39.0 | SX18: 27.0 | SY18: 30.0 | SZ18: 33.0 | TA18: 41.5 | TB18: 66.0 | TC18: 69.0 | TD18: 38.0 | TE18: 82.0 | TF18: 34.0 | TG18: 31.5 | TH18: 137.0 | TI18: 118.0 | TJ18: 100.0 | TK18: 30.0 | TL18: 57.0 | TM18: 42.0 | TN18: 45.0 | TO18: 60.0 | TP18: 30.0 | TQ18: 69.0 | TR18: 31.5 | TS18: 32.0 | TT18: 57.0 | TU18: 85.0 | TV18: 159.0 | TW18: 55.0 | TX18: 32.0 | TY18: 106.0 | TZ18: 28.0 | UA18: 33.0 | UB18: 72.0 | UC18: 29.0 | UD18: 38.0 | UE18: 38.0 | UF18: 105.0 | UG18: 21.0 | UH18: 40.0 | UI18: 63.0 | UJ18: 44.0 | UK18: 81.0 | UL18: 24.0 | UM18: 103.0 | UN18: 126.0 | UO18: 36.0 | UP18: 13.0 | UQ18: 49.0 | UR18: 102.0 | US18: 115.0 | UT18: 97.5 | UU18: 47.0 | UV18: 70.0 | UW18: 96.0 | UX18: 33.0 | UY18: 103.0 | UZ18: 45.0 | VA18: 118.0 | VC18: 115.0 | VD18: 28.0 | VE18: 57.0 | VG18: 44.0 | VH18: 49.0 | VJ18: 31.0 | VK18: 56.0 | VL18: 97.0 | VM18: 118.5 | VN18: 118.5 | VO18: 31.5 | VP18: 31.5 | VQ18: 118.5 | VR18: 43.5 | VS18: 39.0 | VT18: 99.0 | VU18: 30.0 | VV18: 87.0 | VW18: 66.0 | VX18: 115.0 | VY18: 115.0 | VZ18: 39.0 | WA18: 126.0 | WB18: 42.0 | WC18: 42.0 | WD18: 60.0 | WE18: 70.0 | WF18: 62.5 | WG18: 89.5 | WH18: 13.0 | WI18: 40.0 | WJ18: 28.0 | WK18: 75.0 | WL18: 63.0 | WM18: 63.0 | WO18: 75.0 | WP18: 36.0 | WQ18: 74.0 | WR18: 100.0 | WS18: 59.0 | WT18: 56.0 | WU18: 37.0 | WV18: 62.0 | WW18: 57.0 | WX18: 105.0 | WY18: 39.0 | WZ18: 42.0 | XA18: 82.0 | XC18: 91.0 | XD18: 34.0 | XE18: 39.0 | XF18: 65.5 | XG18: 126.0 | XH18: 36.0 | XI18: 50.0 | XJ18: 55.0 | XK18: 96.0 | XL18: 69.0 | XM18: 38.0 | XN18: 72.0 | XP18: 50.0 | XQ18: 57.0 | XS18: 74.0 | XT18: 76.0 | XU18: 60.0 | XV18: 24.0 | XW18: 99.0 | XX18: 24.0 | XY18: 32.0 | XZ18: 60.0 | YA18: 83.5 | YB18: 31.5 | YC18: 40.0 | YD18: 72.0 | YE18: 66.0 | YF18: 97.5 | YG18: 28.0 | YH18: 109.5 | YI18: 78.5 | YJ18: 42.0 | YK18: 155.0 | YL18: 137.0 | YM18: 42.0 | YN18: 30.0 | YP18: 34.0 | YQ18: 74.0 | YR18: 78.0 | YS18: 34.5 | YT18: 72.0 | YU18: 44.0 | YV18: 33.5 | YW18: 21.0 | YX18: 50.0 | YY18: 50.0 | YZ18: 43.5 | ZA18: 126.0 | ZB18: 47.5 | ZC18: 40.0
A19: Produto banido na União Européia (X) | D19: x | H19: x | I19: x | J19: x | L19: x | N19: x | O19: x | Q19: x | S19: x | Y19: x | Z19: x | AB19: x | AD19: x | AG19: x | AI19: x | AK19: x | AL19: x | AM19: x | AQ19: x | AT19: x | AU19: x | AX19: x | AY19: x | AZ19: x | BC19: x | BD19: x | BE19: x | BF19: x | BH19: x | BI19: x | BJ19: x | BK19: x | BL19: x | BM19: x | BO19: x | BP19: x | BY19: x | BZ19: x | CC19: x | CD19: x | CF19: x | CG19: x | CL19: x | CN19: x | CO19: x | CP19: x | CS19: x | CV19: x | CW19: x | DA19: x | DB19: x | DC19: x | DE19: x | DH19: x | DI19: x | DK19: x | DP19: x | DQ19: x | DR19: x | DS19: x | DT19: x | DV19: x | DW19: x | DZ19: x | EA19: x | EB19: x | EC19: x | ED19: x | EE19: x | EG19: x | EI19: x | EJ19: x | EK19: x | EL19: x | EM19: x | EN19: x | EQ19: x | ER19: x | EV19: x | EW19: x | FF19: x | FG19: x | FL19: x | FM19: x | FN19: x | FP19: x | FS19: x | FU19: x | FW19: x | FX19: x | FZ19: x | GA19: x | GB19: x | GC19: x | GD19: x | GE19: x | GF19: x | GG19: x | GH19: x | GN19: x | GO19: x | GP19: x | GQ19: x | GS19: x | GX19: x | GZ19: x | HB19: x | HC19: x | HD19: x | HE19: x | HF19: x | HH19: x | HM19: x | HN19: x | HS19: x | HW19: x | HY19: x | II19: x | IK19: x | IN19: x | IO19: x | IQ19: x | IR19: x | IS19: x | IT19: x | IU19: x | IY19: x | IZ19: x | JB19: x | JC19: x | JD19: x | JG19: x | JO19: x | JP19: x | KE19: x | KK19: x | KO19: x | KP19: x | KQ19: x | KS19: x | KU19: x | KV19: x | KW19: x | KY19: x | LB19: x | LC19: x | LD19: x | LE19: x | LF19: x | LH19: x | LK19: x | LP19: x | LS19: x | LV19: x | LW19: x | LX19: x | LY19: x | MD19: x | MH19: x | MI19: x | MJ19: x | MK19: x | MM19: x | MN19: x | MR19: x | MU19: x | MW19: x | MZ19: x | NA19: x | ND19: x | NG19: x | NJ19: x | NK19: x | NM19: x | NP19: x | NQ19: x | NS19: x | NT19: x | NV19: x | NW19: x | NX19: x | NY19: x | NZ19: x | OA19: x | OB19: x | OD19: x | OE19: x | OG19: x | OH19: x | OJ19: x | OK19: x | OL19: x | OO19: x | OR19: x | PA19: x | PC19: x | PD19: x | PG19: x | PL19: x | PP19: x | PU19: x | PV19: x | PW19: x | QA19: x | QB19: x | QC19: x | QD19: x | QG19: x | QI19: x | QK19: x | QR19: x | QS19: x | QW19: x | QX19: x | QZ19: x | RC19: x | RE19: x | RK19: x | RM19: x | RO19: x | RQ19: x | RT19: x | RU19: x | RX19: x | RY19: x | RZ19: x | SA19: x | SB19: x | SC19: x | SH19: x | SJ19: x | SK19: x | SM19: x | SN19: x | SO19: x | SP19: x | SQ19: x | SR19: x | SU19: x | SW19: x | TC19: x | TH19: x | TI19: x | TJ19: x | TM19: x | TN19: x | TO19: x | TQ19: x | TR19: x | TT19: x | TU19: x | TV19: x | UC19: x | UF19: x | UI19: x | UJ19: x | UK19: x | UL19: x | UR19: x | US19: x | UT19: x | UV19: x | UZ19: x | VA19: x | VB19: x | VC19: x | VE19: x | VI19: x | VM19: x | VN19: x | VO19: x | VP19: x | VQ19: x | VS19: x | VT19: x | VU19: x | VX19: x | VY19: x | VZ19: x | WE19: x | WF19: x | WJ19: x | WK19: x | WQ19: x | WS19: x | WT19: x | WW19: x | WX19: x | WY19: x | WZ19: x | XA19: x | XB19: x | XC19: x | XE19: x | XI19: x | XK19: x | XL19: x | XO19: x | XR19: x | XS19: x | XT19: x | YA19: x | YF19: x | YG19: x | YJ19: x | YL19: x | YM19: x | YQ19: x | YV19: x | YX19: x | YY19: x
A20: Número de princípios ativos registrados no Brasil (2019-2022) | C20: 49 | D20: 8 | E20: 14 | F20: 12 | G20: 6 | H20: 11 | I20: 11 | J20: 11 | K20: 25 | P20: 24 | Q20: 13 | R20: 2 | T20: 3 | V20: 66 | W20: 1 | AA20: 5 | AB20: 6 | AC20: 1 | AE20: 3 | AF20: 4 | AG20: 44 | AI20: 3 | AJ20: 4 | AK20: 31 | AL20: 31 | AM20: 10 | AN20: 49 | AP20: 66 | AR20: 14 | AS20: 2 | AT20: 2 | AW20: 2 | AX20: 44 | AY20: 13 | BA20: 22 | BB20: 26 | BC20: 44 | BF20: 2 | BG20: 1 | BH20: 52 | BI20: 52 | BJ20: 14 | BK20: 52 | BL20: 1 | BN20: 3 | BO20: 17 | BP20: 11 | BQ20: 23 | BU20: 66 | BV20: 66 | BZ20: 19 | CA20: 4 | CB20: 5 | CD20: 17 | CE20: 11 | CJ20: 1 | CK20: 5 | CL20: 1 | CM20: 1 | CN20: 41 | CO20: 41 | CP20: 2 | CR20: 6 | CS20: 41 | CT20: 2 | CU20: 17 | CX20: 33 | CY20: 5 | CZ20: 5 | DA20: 19 | DE20: 1 | DG20: 2 | DH20: 17 | DJ20: 22 | DK20: 1 | DL20: 27 | DM20: 5 | DN20: 3 | DO20: 3 | DP20: 13 | DQ20: 41 | DS20: 17 | DT20: 17 | DV20: 17 | DY20: 3 | DZ20: 1 | EA20: 1 | EB20: 1 | EC20: 1 | EE20: 11 | EF20: 10 | EH20: 24 | EI20: 17 | EJ20: 28 | EK20: 3 | EL20: 1 | EM20: 5 | EN20: 7 | EO20: 11 | EQ20: 6 | EU20: 8 | EV20: 3 | EW20: 44 | EX20: 3 | EZ20: 15 | FA20: 24 | FC20: 24 | FD20: 1 | FE20: 4 | FF20: 14 | FG20: 2 | FI20: 15 | FJ20: 15 | FK20: 15 | FL20: 28 | FN20: 1 | FO20: 24 | FP20: 3 | FQ20: 16 | FS20: 25 | FT20: 4 | FU20: 9 | FV20: 17 | FX20: 52 | FY20: 35 | FZ20: 25 | GA20: 13 | GB20: 28 | GC20: 10 | GD20: 5 | GE20: 28 | GF20: 28 | GG20: 28 | GJ20: 3 | GL20: 3 | GM20: 4 | GN20: 17 | GO20: 17 | GP20: 13 | GQ20: 22 | GR20: 31 | GT20: 2 | GU20: 38 | GV20: 13 | GW20: 13 | GY20: 10 | HA20: 13 | HB20: 10 | HC20: 9 | HD20: 4 | HE20: 24 | HF20: 33 | HH20: 24 | HI20: 49 | HM20: 2 | HN20: 29 | HO20: 35 | HP20: 66 | HR20: 2 | HS20: 13 | HT20: 20 | HU20: 2 | HV20: 2 | HW20: 8 | HX20: 8 | HY20: 1 | IA20: 1 | IB20: 1 | IE20: 20 | IF20: 1 | IK20: 11 | IM20: 12 | IN20: 52 | IO20: 52 | IQ20: 1 | IR20: 64 | IS20: 6 | IU20: 1 | IW20: 3 | IZ20: 3 | JB20: 1 | JC20: 64 | JD20: 49 | JE20: 38 | JF20: 1 | JG20: 12 | JH20: 11 | JJ20: 4 | JK20: 2 | JL20: 16 | JM20: 4 | JN20: 10 | JO20: 1 | JR20: 26 | JS20: 26 | JU20: 4 | JV20: 1 | JW20: 1 | JX20: 26 | JY20: 1 | JZ20: 10 | KA20: 13 | KB20: 35 | KC20: 1 | KD20: 1 | KE20: 12 | KG20: 11 | KH20: 10 | KI20: 1 | KJ20: 2 | KM20: 27 | KN20: 16 | KO20: 17 | KP20: 28 | KQ20: 3 | KR20: 35 | KS20: 12 | KT20: 2 | KU20: 13 | KW20: 10 | KY20: 10 | KZ20: 4 | LA20: 2 | LC20: 31 | LD20: 52 | LF20: 28 | LG20: 44 | LH20: 64 | LI20: 44 | LJ20: 1 | LN20: 3 | LP20: 6 | LR20: 2 | LS20: 6 | LT20: 2 | LU20: 2 | LV20: 31 | LW20: 3 | LX20: 30 | LY20: 30 | LZ20: 1 | MA20: 4 | MD20: 28 | ME20: 1 | MF20: 1 | MG20: 2 | MH20: 10 | MI20: 9 | MK20: 19 | MM20: 25 | MO20: 10 | MP20: 4 | MS20: 23 | MU20: 41 | MV20: 11 | MY20: 1 | MZ20: 1 | NA20: 28 | NB20: 4 | NC20: 22 | ND20: 3 | NE20: 3 | NF20: 3 | NH20: 1 | NI20: 19 | NJ20: 24 | NK20: 1 | NL20: 1 | NN20: 4 | NO20: 33 | NR20: 2 | NT20: 2 | NU20: 19 | NV20: 19 | NW20: 13 | NX20: 17 | NY20: 64 | OB20: 10 | OC20: 1 | OD20: 30 | OE20: 9 | OG20: 33 | OH20: 33 | OI20: 5 | OJ20: 33 | OL20: 10 | OM20: 8 | ON20: 10 | OO20: 9 | OQ20: 5 | OS20: 3 | OU20: 22 | OX20: 8 | PC20: 29 | PD20: 19 | PE20: 11 | PF20: 6 | PH20: 6 | PK20: 5 | PN20: 1 | PP20: 2 | PQ20: 35 | PS20: 12 | PU20: 9 | PV20: 10 | PX20: 6 | PY20: 1 | QC20: 10 | QD20: 8 | QF20: 13 | QG20: 11 | QH20: 3 | QL20: 6 | QM20: 6 | QN20: 1 | QO20: 1 | QQ20: 15 | QS20: 64 | QU20: 2 | QV20: 2 | QW20: 1 | QY20: 27 | QZ20: 13 | RA20: 5 | RB20: 2 | RC20: 7 | RD20: 24 | RE20: 14 | RF20: 1 | RH20: 1 | RJ20: 17 | RL20: 5 | RO20: 13 | RQ20: 1 | RR20: 33 | RS20: 24 | RV20: 4 | RY20: 52 | RZ20: 52 | SA20: 52 | SB20: 52 | SC20: 52 | SD20: 66 | SE20: 66 | SF20: 38 | SG20: 17 | SH20: 3 | SI20: 1 | SJ20: 5 | SL20: 3 | SN20: 3 | SP20: 3 | SR20: 8 | SS20: 27 | ST20: 22 | SW20: 3 | SZ20: 3 | TA20: 31 | TB20: 1 | TC20: 11 | TE20: 2 | TF20: 2 | TG20: 24 | TH20: 27 | TI20: 49 | TJ20: 4 | TL20: 5 | TM20: 2 | TN20: 33 | TO20: 10 | TP20: 6 | TR20: 3 | TS20: 44 | TT20: 1 | TX20: 2 | TZ20: 12 | UA20: 3 | UB20: 38 | UD20: 24 | UF20: 13 | UH20: 6 | UI20: 29 | UL20: 14 | UM20: 1 | UN20: 10 | UQ20: 33 | UR20: 25 | US20: 41 | UT20: 44 | UU20: 2 | UV20: 17 | UW20: 5 | UX20: 3 | UZ20: 3 | VA20: 49 | VC20: 41 | VD20: 12 | VE20: 3 | VF20: 4 | VH20: 33 | VJ20: 3 | VK20: 12 | VL20: 1 | VM20: 1 | VN20: 1 | VO20: 3 | VP20: 3 | VQ20: 1 | VR20: 26 | VS20: 17 | VW20: 1 | VX20: 41 | VY20: 41 | VZ20: 3 | WA20: 10 | WB20: 35 | WC20: 35 | WE20: 17 | WF20: 17 | WI20: 6 | WL20: 6 | WM20: 6 | WO20: 2 | WP20: 3 | WQ20: 3 | WR20: 8 | WS20: 1 | WT20: 13 | WU20: 2 | WV20: 17 | WW20: 3 | WX20: 13 | WY20: 17 | WZ20: 2 | XB20: 30 | XC20: 5 | XE20: 17 | XG20: 10 | XI20: 28 | XL20: 2 | XM20: 22 | XN20: 66 | XP20: 11 | XQ20: 2 | XS20: 3 | XV20: 16 | XX20: 16 | XY20: 44 | XZ20: 3 | YA20: 1 | YB20: 15 | YC20: 6 | YD20: 66 | YE20: 4 | YF20: 44 | YG20: 6 | YH20: 11 | YJ20: 3 | YK20: 14 | YL20: 27 | YM20: 2 | YQ20: 3 | YS20: 5 | YT20: 66 | YU20: 4 | YV20: 19 | YW20: 6 | YX20: 28 | YY20: 28 | YZ20: 26 | ZA20: 10 | ZB20: 6
